Workbook

Sheet Main

Sheet InputSort (hidden)
A1: {"profileName":"7x012 vgt daily" | B1: vehicleName:"V2 Dodge 1998-2002" | C1: settingsMap:{"125":"84" | D1: 133:"114" | E1: 128:"94" | F1: 127:"90" | G1: 111:"50" | H1: 139:"25" | I1: 19:"0" | J1: 116:"68" | K1: 17:"2.9" | L1: 118:"71" | M1: 112:"10" | N1: 22:"40" | O1: 131:"106" | P1: 61:"1.5" | Q1: 115:"67" | R1: 62:"30" | S1: 129:"98" | T1: 126:"86" | U1: 114:"66" | V1: 136:"120" | W1: 121:"76" | X1: 140:"27.9" | Y1: 130:"102" | Z1: 119:"72" | AA1: 85:"1200" | AB1: 104:"3500" | AC1: 60:"50" | AD1: 138:"20" | AE1: 113:"66" | AF1: 124:"82" | AG1: 122:"78" | AH1: 135:"120" | AI1: 132:"110" | AJ1: 59:"4.9" | AK1: 15:"8" | AL1: 134:"118" | AM1: 110:"0" | AN1: 120:"74" | AO1: 137:"17" | AP1: 123:"80" | AQ1: 18:"100" | AR1: 141:"29.9" | AS1: 117:"70"}}
A3: {"profileName":"7x012 vgt daily" | B3: =IF(ISNUMBER(SEARCH("settingsMap",$A$1)),1,0) -> 0
A4: vehicleName:"V2 Dodge 1998-2002"
A5: settingsMap:{"125":"84"
A6: 133:"114"
A7: 128:"94"
A8: 127:"90"
A9: 111:"50"
A10: 139:"25"
A11: 19:"0"
A12: 116:"68"
A13: 17:"2.9"
A14: 118:"71"
A15: 112:"10"
A16: 22:"40"
A17: 131:"106"
A18: 61:"1.5"
A19: 115:"67"
A20: 62:"30"
A21: 129:"98"
A22: 126:"86"
A23: 114:"66"
A24: 136:"120"
A25: 121:"76"
A26: 140:"27.9"
A27: 130:"102"
A28: 119:"72"
A29: 85:"1200"
A30: 104:"3500"
A31: 60:"50"
A32: 138:"20"
A33: 113:"66"
A34: 124:"82"
A35: 122:"78"
A36: 135:"120"
A37: 132:"110"
A38: 59:"4.9"
A39: 15:"8"
A40: 134:"118"
A41: 110:"0"
A42: 120:"74"
A43: 137:"17"
A44: 123:"80"
A45: 18:"100"
A46: 141:"29.9"
A47: 117:"70"}}

Sheet RawInput (hidden)
F2: =IF(E3="{""profileName",1,0) -> 1
A3: {"profileName":"7x012 vgt daily" | B3: =RIGHT(A3,LEN(A3)-FIND(":",A3)) -> "7x012 vgt daily" | C3: =IFERROR(MID(B3,SEARCH("""",B3)+1,SEARCH("^",SUBSTITUTE(B3,"""","^",LEN(B3)-LEN(SUBSTITUTE(B3,"""",""))))-LEN(LEFT(B3,SEARCH("""",B3)+1))),"") -> 7x012 vgt daily | E3: =LEFT(A3,13) -> {"profileName | F3: =IF(ISNUMBER(SEARCH("profileName",E3)),1,0) -> 1 | I3: =V2_TuneBuilder!A1 -> 7x012 vgt daily | L3: =V3_TuneBuilder!A1 -> Daily | O3: ='4KV2_TuneBuilder'!A1 -> test4k | R3: ='4KV3_TuneBuilder'!A1 -> Daily | T3: =IF(OR(F4="V2 Dodge 1998-2000",F4="V2 Dodge 2001-2002",F4="V2 Dodge 1998-2002"),1,IF(OR(F4="V2 Quadzilla Only",F4="V2 QUADZILLA-ONLY"),2,IF(OR(F4="V2 Quadzilla Only 4k",F4="V2 Dodge 1998-2002 4K"),3,4))) -> 1 | U3: 1 | V3: 2 | W3: 3 | X3: 4 | Z3: "
A4: vehicleName:"V2 Dodge 1998-2002" | C4: =IFERROR(MID(A4,SEARCH("""",A4)+1,SEARCH("^",SUBSTITUTE(A4,"""","^",LEN(A4)-LEN(SUBSTITUTE(A4,"""",""))))-LEN(LEFT(A4,SEARCH("""",A4)+1))),"") -> V2 Dodge 1998-2002 | F4: V2 Dodge 1998-2002 | H4: Aid V2 | I4: V2 | J4: Combine | K4: Aid V3 | L4: V3 | M4: Combine | N4: Aid 4KV2 | O4: 4KV2 | P4: Combine | Q4: Aid 4KV3 | R4: 4KV3 | S4: Combine | U4: V2Build | V4: V3Build | W4: 4KV2Build | X4: 4KV3Build | Z4: ":"
A5: 125:"84" | B5: =IFERROR(LEFT(A5,FIND(":",A5)-1),"") -> 125 | C5: 84 | D5: =IFERROR(VALUE(B5),"") -> 125 | E5: =IFERROR(VALUE(C5),"") -> 84 | F5: =ISNUMBER(E5) -> TRUE | H5: 15 | I5: =IF(V2_TuneBuilder!B2>15,15,IF(V2_TuneBuilder!B2<6,6,V2_TuneBuilder!B2)) -> 12 | J5: =$Z$3&H5&$Z$4&I5&$Z$3&$Z$5 -> "15":"12", | K5: 15 | L5: =IF(V3_TuneBuilder!B2>15,15,IF(V3_TuneBuilder!B2<6,6,V3_TuneBuilder!B2)) -> 12 | M5: =$Z$3&K5&$Z$4&L5&$Z$3&$Z$5 -> "15":"12", | N5: 15 | O5: =IF('4KV2_TuneBuilder'!B2>15,15,IF('4KV2_TuneBuilder'!B2<6,6,'4KV2_TuneBuilder'!B2)) -> 12 | P5: =$Z$3&N5&$Z$4&O5&$Z$3&$Z$5 -> "15":"12", | Q5: 15 | R5: =IF('4KV3_TuneBuilder'!B2>15,15,IF('4KV3_TuneBuilder'!B2<6,6,'4KV3_TuneBuilder'!B2)) -> 12 | S5: =$Z$3&Q5&$Z$4&R5&$Z$3&$Z$5 -> "15":"12", | U5: =$Z$6&I3&$Z$3&$Z$5&$Z$3&$Z$7&$Z$4&C4&$Z$3&$Z$8&J5&J6&J7&J8&J9&J10&J11&J12&J13&J14&J15&J16&J17&J18&J19&J20&J21&J22&J23&J24&J25&J26&J27&J28&J29&J30&J31&J32&J33&J34&J35&J36&J37&J38&J39&J40&J41&J42&J43&J44&J45&J46&J47&Z9 -> {"profileName":"7x012 vgt daily","vehicleName":"V2 Dodge 1998-2002","settingsMap":{"15":"12","104":"3200","111":"50","85":"1800","18":"100","19":"10","110":"10","112":"5","22":"38","17":"2","59":"2","60":"100","61":"2","62":"30","137":"15","138":"18","139":"21","140":"23","141":"26","113":"101","114":"103","115":"105","116":"107","117":"110","118":"113","119":"116","120":"119","121":"122","122":"125","123":"128","124":"131","125":"134","126":"137","127":"140","128":"143","129":"146","130":"149","131":"150","132":"150","133":"150","134":"150","135":"150","136":"150"}} | V5: =$Z$6&L3&$Z$3&$Z$5&$Z$3&$Z$7&$Z$4&$C$4&$Z$3&$Z$8&M5&M6&M7&M8&M9&M10&M11&M12&M13&M14&M15&M16&M17&M18&M19&M20&M21&M22&M23&M24&M25&M26&M27&M28&M29&M30&M31&M32&M33&M34&M35&M36&M37&M38&M39&M40&M41&M42&M43&M44&M45&M46&M47&M48&M49&M50&M51&M52&M53&M54&M55&M56&M57&M58&M59&M60&M61&M62&M63&M64&M65&M66&M67&M68&M69&M70&M71&M72&$Z$9 -> {"profileName":"Daily","vehicleName":"V2 Dodge 1998-2002","settingsMap":{"15":"12","104":"3200","111":"50","85":"1800","18":"100","19":"10","112":"5","22":"38","156":"4","157":"8","158":"12","159":"16","160":"20","161":"24","162":"28","163":"32","164":"36","165":"40","166":"44","167":"48","168":"52","169":"56","170":"60","171":"64","172":"68","173":"72","174":"76","175":"80","176":"84","177":"88","178":"92","179":"96","180":"100","17":"2","59":"2","60":"100","61":"2","62":"5","137":"15","138":"18","139":"21","140":"23","141":"26","113":"101","114":"103","115":"105","116":"107","117":"110","118":"113","119":"116","120":"119","121":"122","122":"125","123":"128","124":"131","125":"134","126":"137","127":"140","128":"143","129":"146","130":"149","131":"150","132":"150","133":"150","134":"150","135":"150","136":"150"}} | W5: =$Z$6&O3&$Z$3&$Z$5&$Z$3&$Z$7&$Z$4&$C$4&$Z$3&$Z$8&P5&P6&P7&P8&P9&P10&P11&P12&P13&P14&P15&P16&P17&P18&P19&P20&P21&P22&P23&P24&P25&P26&P27&P28&P29&P30&P31&P32&P33&P34&P35&P36&P37&P38&P39&P40&P41&P42&P43&P44&P45&P46&P47&P48&P49&P50&P51&P52&P53&P54&P55&P56&P57&P58&P59&P60&P61&P62&P63&P64&P65&P66&P67&P68&P69&P70&P71&P72&P73&P74&$Z$9 -> {"profileName":"test4k","vehicleName":"V2 Dodge 1998-2002","settingsMap":{"15":"12","104":"4200","111":"50","85":"4400","18":"100","19":"10","110":"10","112":"5","22":"38","17":"2","59":"2","60":"100","61":"2","62":"30","137":"15","138":"18","139":"21","140":"23","142":"24","143":"25","141":"26","113":"101","114":"103","115":"105","116":"107","117":"110","118":"113","119":"116","120":"119","121":"122","122":"125","123":"128","124":"131","125":"134","126":"137","127":"140","128":"143","129":"146","130":"149","131":"150","132":"150","133":"150","134":"150","135":"150","136":"150","156":"0","157":"0","158":"0","159":"0","160":"0","161":"0","162":"0","163":"0","164":"0","165":"0","166":"0","167":"0","168":"0","169":"0","170":"0","171":"0","172":"0","173":"0","174":"0","175":"0","176":"0","177":"0","178":"0","179":"0","180":"0"}} | X5: =$Z$6&R3&$Z$3&$Z$5&$Z$3&$Z$7&$Z$4&$C$4&$Z$3&$Z$8&S5&S6&S7&S8&S9&S10&S11&S12&S13&S14&S15&S16&S17&S18&S19&S20&S21&S22&S23&S24&S25&S26&S27&S28&S29&S30&S31&S32&S33&S34&S35&S36&S37&S38&S39&S40&S41&S42&S43&S44&S45&S46&S47&S48&S49&S50&S51&S52&S53&S54&S55&S56&S57&S58&S59&S60&S61&S62&S63&S64&S65&S66&S67&S68&S69&S70&S71&S72&S73&S74&$Z$9 -> {"profileName":"Daily","vehicleName":"V2 Dodge 1998-2002","settingsMap":{"15":"12","104":"4200","111":"50","85":"4400","18":"100","19":"10","112":"5","22":"38","156":"4","157":"8","158":"12","159":"16","160":"20","161":"24","162":"28","163":"32","164":"36","165":"40","166":"44","167":"48","168":"52","169":"56","170":"60","171":"64","172":"68","173":"72","174":"76","175":"80","176":"84","177":"88","178":"92","179":"96","180":"100","17":"2","59":"2","60":"100","61":"2","62":"5","137":"15","138":"18","139":"21","140":"23","142":"24","143":"25","141":"50","113":"101","114":"103","115":"105","116":"107","117":"110","118":"113","119":"116","120":"119","121":"122","122":"125","123":"128","124":"131","125":"134","126":"137","127":"140","128":"143","129":"146","130":"149","131":"150","132":"150","133":"150","134":"150","135":"150","136":"150","110":"0"}} | Z5: ,
A6: 133:"114" | B6: 133 | C6: 114 | D6: =IFERROR(VALUE(B6),"") -> 133 | E6: 114 | F6: =ISNUMBER(E6) -> TRUE | H6: 104 | I6: =IF(V2_TuneBuilder!B3>3700,3700,IF(V2_TuneBuilder!B3<3200,3200,V2_TuneBuilder!B3)) -> 3200 | J6: "104":"3200", | K6: 104 | L6: =IF(V3_TuneBuilder!B3>3700,3700,IF(V3_TuneBuilder!B3<3200,3200,V3_TuneBuilder!B3)) -> 3200 | M6: "104":"3200", | N6: 104 | O6: =IF('4KV2_TuneBuilder'!B3>4400,4400,IF('4KV2_TuneBuilder'!B3<3400,3400,'4KV2_TuneBuilder'!B3)) -> 4200 | P6: "104":"4200", | Q6: 104 | R6: =IF('4KV3_TuneBuilder'!B3>4400,4400,IF('4KV3_TuneBuilder'!B3<3400,3400,'4KV3_TuneBuilder'!B3)) -> 4200 | S6: "104":"4200", | Z6: {"profileName":"
A7: 128:"94" | B7: 128 | C7: 94 | D7: 128 | E7: 94 | F7: TRUE | H7: 111 | I7: =IF(V2_TuneBuilder!B5>100,100,IF(V2_TuneBuilder!B5<5,5,V2_TuneBuilder!B5)) -> 50 | J7: "111":"50", | K7: 111 | L7: =IF(V3_TuneBuilder!B5>100,100,IF(V3_TuneBuilder!B5<5,5,V3_TuneBuilder!B5)) -> 50 | M7: "111":"50", | N7: 111 | O7: =IF('4KV2_TuneBuilder'!B5>100,100,IF('4KV2_TuneBuilder'!B5<5,5,'4KV2_TuneBuilder'!B5)) -> 50 | P7: "111":"50", | Q7: 111 | R7: =IF('4KV3_TuneBuilder'!B5>100,100,IF('4KV3_TuneBuilder'!B5<5,5,'4KV3_TuneBuilder'!B5)) -> 50 | S7: "111":"50", | Z7: vehicleName
A8: 127:"90" | B8: 127 | C8: 90 | D8: 127 | E8: 90 | F8: TRUE | H8: 85 | I8: =IF(V2_TuneBuilder!B7>2200,2200,IF(V2_TuneBuilder!B7<1200,1200,V2_TuneBuilder!B7)) -> 1800 | J8: "85":"1800", | K8: 85 | L8: =IF(V3_TuneBuilder!B7>2200,2200,IF(V3_TuneBuilder!B7<1200,1200,V3_TuneBuilder!B7)) -> 1800 | M8: "85":"1800", | N8: 85 | O8: =IF('4KV2_TuneBuilder'!B7>6000,6000,IF('4KV2_TuneBuilder'!B7<4000,4000,'4KV2_TuneBuilder'!B7)) -> 4400 | P8: "85":"4400", | Q8: 85 | R8: =IF('4KV3_TuneBuilder'!B7>6000,6000,IF('4KV3_TuneBuilder'!B7<4000,4000,'4KV3_TuneBuilder'!B7)) -> 4400 | S8: "85":"4400", | Z8: ,"settingsMap":{
A9: 111:"50" | B9: 111 | C9: 50 | D9: 111 | E9: 50 | F9: TRUE | H9: 18 | I9: =IF(V2_TuneBuilder!B8>100,100,IF(V2_TuneBuilder!B8<0,0,V2_TuneBuilder!B8)) -> 100 | J9: "18":"100", | K9: 18 | L9: =IF(V3_TuneBuilder!B8>100,100,IF(V3_TuneBuilder!B8<0,0,V3_TuneBuilder!B8)) -> 100 | M9: "18":"100", | N9: 18 | O9: =IF('4KV2_TuneBuilder'!B8>100,100,IF('4KV2_TuneBuilder'!B8<0,0,'4KV2_TuneBuilder'!B8)) -> 100 | P9: "18":"100", | Q9: 18 | R9: =IF('4KV3_TuneBuilder'!B8>100,100,IF('4KV3_TuneBuilder'!B8<0,0,'4KV3_TuneBuilder'!B8)) -> 100 | S9: "18":"100", | Z9: }}
A10: 139:"25" | B10: 139 | C10: 25 | D10: 139 | E10: 25 | F10: TRUE | H10: 19 | I10: =IF(V2_TuneBuilder!B9>100,100,IF(V2_TuneBuilder!B9<0,0,V2_TuneBuilder!B9)) -> 10 | J10: "19":"10", | K10: 19 | L10: =IF(V3_TuneBuilder!B9>100,100,IF(V3_TuneBuilder!B9<0,0,V3_TuneBuilder!B9)) -> 10 | M10: "19":"10", | N10: 19 | O10: =IF('4KV2_TuneBuilder'!B9>100,100,IF('4KV2_TuneBuilder'!B9<0,0,'4KV2_TuneBuilder'!B9)) -> 10 | P10: "19":"10", | Q10: 19 | R10: =IF('4KV3_TuneBuilder'!B9>100,100,IF('4KV3_TuneBuilder'!B9<0,0,'4KV3_TuneBuilder'!B9)) -> 10 | S10: "19":"10",
A11: 19:"0" | B11: 19 | C11: 0 | D11: 19 | E11: 0 | F11: TRUE | H11: 110 | I11: =IF(V2_TuneBuilder!B10>50,50,IF(V2_TuneBuilder!B10<0,0,V2_TuneBuilder!B10)) -> 10 | J11: "110":"10", | K11: 112 | L11: =IF(V3_TuneBuilder!B10>50,50,IF(V3_TuneBuilder!B10<0,0,V3_TuneBuilder!B10)) -> 5 | M11: "112":"5", | N11: 110 | O11: =IF('4KV2_TuneBuilder'!B10>50,50,IF('4KV2_TuneBuilder'!B10<0,0,'4KV2_TuneBuilder'!B10)) -> 10 | P11: "110":"10", | Q11: 112 | R11: =IF('4KV3_TuneBuilder'!B10>25,25,IF('4KV3_TuneBuilder'!B10<0,0,'4KV3_TuneBuilder'!B10)) -> 5 | S11: "112":"5",
A12: 116:"68" | B12: 116 | C12: 68 | D12: 116 | E12: 68 | F12: TRUE | H12: 112 | I12: =IF(V2_TuneBuilder!B11>25,25,IF(V2_TuneBuilder!B11<0,0,V2_TuneBuilder!B11)) -> 5 | J12: "112":"5", | K12: 22 | L12: =IF(V3_TuneBuilder!B11>40,40,IF(V3_TuneBuilder!B11<20,20,V3_TuneBuilder!B11)) -> 38 | M12: "22":"38", | N12: 112 | O12: =IF('4KV2_TuneBuilder'!B11>25,25,IF('4KV2_TuneBuilder'!B11<0,0,'4KV2_TuneBuilder'!B11)) -> 5 | P12: "112":"5", | Q12: 22 | R12: =IF('4KV3_TuneBuilder'!B11>40,40,IF('4KV3_TuneBuilder'!B11<0,0,'4KV3_TuneBuilder'!B11)) -> 38 | S12: "22":"38",
A13: 17:"2.9" | B13: 17 | C13: 2.9 | D13: 17 | E13: 2.9 | F13: TRUE | H13: 22 | I13: =IF(V2_TuneBuilder!B12>40,40,IF(V2_TuneBuilder!B12<0,0,V2_TuneBuilder!B12)) -> 38 | J13: "22":"38", | K13: 156 | L13: =IF(V3_TuneBuilder!B13>100,100,IF(V3_TuneBuilder!B13<0,0,V3_TuneBuilder!B13)) -> 4 | M13: "156":"4", | N13: 22 | O13: =IF('4KV2_TuneBuilder'!B12>40,40,IF('4KV2_TuneBuilder'!B12<20,20,'4KV2_TuneBuilder'!B12)) -> 38 | P13: "22":"38", | Q13: 156 | R13: =IF('4KV3_TuneBuilder'!B13>100,100,IF('4KV3_TuneBuilder'!B13<0,0,'4KV3_TuneBuilder'!B13)) -> 4 | S13: "156":"4",
A14: 118:"71" | B14: 118 | C14: 71 | D14: 118 | E14: 71 | F14: TRUE | H14: 17 | I14: =IF(V2_TuneBuilder!B14>3,3,IF(V2_TuneBuilder!B14<0,0,V2_TuneBuilder!B14)) -> 2 | J14: "17":"2", | K14: 157 | L14: =IF(V3_TuneBuilder!B14>100,100,IF(V3_TuneBuilder!B14<0,0,V3_TuneBuilder!B14)) -> 8 | M14: "157":"8", | N14: 17 | O14: =IF('4KV2_TuneBuilder'!B14>3,3,IF('4KV2_TuneBuilder'!B14<0,0,'4KV2_TuneBuilder'!B14)) -> 2 | P14: "17":"2", | Q14: 157 | R14: =IF('4KV3_TuneBuilder'!B14>100,100,IF('4KV3_TuneBuilder'!B14<0,0,'4KV3_TuneBuilder'!B14)) -> 8 | S14: "157":"8",
A15: 112:"10" | B15: 112 | C15: 10 | D15: 112 | E15: 10 | F15: TRUE | H15: 59 | I15: =IF(V2_TuneBuilder!B15>5,5,IF(V2_TuneBuilder!B15<0,0,V2_TuneBuilder!B15)) -> 2 | J15: "59":"2", | K15: 158 | L15: =IF(V3_TuneBuilder!B15>100,100,IF(V3_TuneBuilder!B15<0,0,V3_TuneBuilder!B15)) -> 12 | M15: "158":"12", | N15: 59 | O15: =IF('4KV2_TuneBuilder'!B15>5,5,IF('4KV2_TuneBuilder'!B15<0,0,'4KV2_TuneBuilder'!B15)) -> 2 | P15: "59":"2", | Q15: 158 | R15: =IF('4KV3_TuneBuilder'!B15>100,100,IF('4KV3_TuneBuilder'!B15<0,0,'4KV3_TuneBuilder'!B15)) -> 12 | S15: "158":"12",
A16: 22:"40" | B16: 22 | C16: 40 | D16: 22 | E16: 40 | F16: TRUE | H16: 60 | I16: =IF(V2_TuneBuilder!B16>100,100,IF(V2_TuneBuilder!B16<0,0,V2_TuneBuilder!B16)) -> 100 | J16: "60":"100", | K16: 159 | L16: =IF(V3_TuneBuilder!B16>100,100,IF(V3_TuneBuilder!B16<0,0,V3_TuneBuilder!B16)) -> 16 | M16: "159":"16", | N16: 60 | O16: =IF('4KV2_TuneBuilder'!B16>100,100,IF('4KV2_TuneBuilder'!B16<0,0,'4KV2_TuneBuilder'!B16)) -> 100 | P16: "60":"100", | Q16: 159 | R16: =IF('4KV3_TuneBuilder'!B16>100,100,IF('4KV3_TuneBuilder'!B16<0,0,'4KV3_TuneBuilder'!B16)) -> 16 | S16: "159":"16",
A17: 131:"106" | B17: 131 | C17: 106 | D17: 131 | E17: 106 | F17: TRUE | H17: 61 | I17: =IF(V2_TuneBuilder!B17>8,8,IF(V2_TuneBuilder!B17<0,0,V2_TuneBuilder!B17)) -> 2 | J17: "61":"2", | K17: 160 | L17: =IF(V3_TuneBuilder!B17>100,100,IF(V3_TuneBuilder!B17<0,0,V3_TuneBuilder!B17)) -> 20 | M17: "160":"20", | N17: 61 | O17: =IF('4KV2_TuneBuilder'!B17>8,8,IF('4KV2_TuneBuilder'!B17<0,0,'4KV2_TuneBuilder'!B17)) -> 2 | P17: "61":"2", | Q17: 160 | R17: =IF('4KV3_TuneBuilder'!B17>100,100,IF('4KV3_TuneBuilder'!B17<0,0,'4KV3_TuneBuilder'!B17)) -> 20 | S17: "160":"20",
A18: 61:"1.5" | B18: 61 | C18: 1.5 | D18: 61 | E18: 1.5 | F18: TRUE | H18: 62 | I18: =IF(V2_TuneBuilder!B18>40,40,IF(V2_TuneBuilder!B18<0,0,V2_TuneBuilder!B18)) -> 30 | J18: "62":"30", | K18: 161 | L18: =IF(V3_TuneBuilder!B18>100,100,IF(V3_TuneBuilder!B18<0,0,V3_TuneBuilder!B18)) -> 24 | M18: "161":"24", | N18: 62 | O18: =IF('4KV2_TuneBuilder'!B18>40,40,IF('4KV2_TuneBuilder'!B18<0,0,'4KV2_TuneBuilder'!B18)) -> 30 | P18: "62":"30", | Q18: 161 | R18: =IF('4KV3_TuneBuilder'!B18>100,100,IF('4KV3_TuneBuilder'!B18<0,0,'4KV3_TuneBuilder'!B18)) -> 24 | S18: "161":"24",
A19: 115:"67" | B19: 115 | C19: 67 | D19: 115 | E19: 67 | F19: TRUE | H19: 137 | I19: =IF(V2_TuneBuilder!B20>30,30,IF(V2_TuneBuilder!B20<12,12,V2_TuneBuilder!B20)) -> 15 | J19: "137":"15", | K19: 162 | L19: =IF(V3_TuneBuilder!B19>100,100,IF(V3_TuneBuilder!B19<0,0,V3_TuneBuilder!B19)) -> 28 | M19: "162":"28", | N19: 137 | O19: =IF('4KV2_TuneBuilder'!B20>30,30,IF('4KV2_TuneBuilder'!B20<12,12,'4KV2_TuneBuilder'!B20)) -> 15 | P19: "137":"15", | Q19: 162 | R19: =IF('4KV3_TuneBuilder'!B19>100,100,IF('4KV3_TuneBuilder'!B19<0,0,'4KV3_TuneBuilder'!B19)) -> 28 | S19: "162":"28",
A20: 62:"30" | B20: 62 | C20: 30 | D20: 62 | E20: 30 | F20: TRUE | H20: 138 | I20: =IF(V2_TuneBuilder!B21>30,30,IF(V2_TuneBuilder!B21<12,12,V2_TuneBuilder!B21)) -> 18 | J20: "138":"18", | K20: 163 | L20: =IF(V3_TuneBuilder!B20>100,100,IF(V3_TuneBuilder!B20<0,0,V3_TuneBuilder!B20)) -> 32 | M20: "163":"32", | N20: 138 | O20: =IF('4KV2_TuneBuilder'!B21>30,30,IF('4KV2_TuneBuilder'!B21<12,12,'4KV2_TuneBuilder'!B21)) -> 18 | P20: "138":"18", | Q20: 163 | R20: =IF('4KV3_TuneBuilder'!B20>100,100,IF('4KV3_TuneBuilder'!B20<0,0,'4KV3_TuneBuilder'!B20)) -> 32 | S20: "163":"32",
A21: 129:"98" | B21: 129 | C21: 98 | D21: 129 | E21: 98 | F21: TRUE | H21: 139 | I21: =IF(V2_TuneBuilder!B22>30,30,IF(V2_TuneBuilder!B22<12,12,V2_TuneBuilder!B22)) -> 21 | J21: "139":"21", | K21: 164 | L21: =IF(V3_TuneBuilder!B21>100,100,IF(V3_TuneBuilder!B21<0,0,V3_TuneBuilder!B21)) -> 36 | M21: "164":"36", | N21: 139 | O21: =IF('4KV2_TuneBuilder'!B22>30,30,IF('4KV2_TuneBuilder'!B22<12,12,'4KV2_TuneBuilder'!B22)) -> 21 | P21: "139":"21", | Q21: 164 | R21: =IF('4KV3_TuneBuilder'!B21>100,100,IF('4KV3_TuneBuilder'!B21<0,0,'4KV3_TuneBuilder'!B21)) -> 36 | S21: "164":"36",
A22: 126:"86" | B22: 126 | C22: 86 | D22: 126 | E22: 86 | F22: TRUE | H22: 140 | I22: =IF(V2_TuneBuilder!B23>30,30,IF(V2_TuneBuilder!B23<12,12,V2_TuneBuilder!B23)) -> 23 | J22: "140":"23", | K22: 165 | L22: =IF(V3_TuneBuilder!B22>100,100,IF(V3_TuneBuilder!B22<0,0,V3_TuneBuilder!B22)) -> 40 | M22: "165":"40", | N22: 140 | O22: =IF('4KV2_TuneBuilder'!B23>30,30,IF('4KV2_TuneBuilder'!B23<12,12,'4KV2_TuneBuilder'!B23)) -> 23 | P22: "140":"23", | Q22: 165 | R22: =IF('4KV3_TuneBuilder'!B22>100,100,IF('4KV3_TuneBuilder'!B22<0,0,'4KV3_TuneBuilder'!B22)) -> 40 | S22: "165":"40",
A23: 114:"66" | B23: 114 | C23: 66 | D23: 114 | E23: 66 | F23: TRUE | H23: 141 | I23: =IF(V2_TuneBuilder!B24>30,30,IF(V2_TuneBuilder!B24<12,12,V2_TuneBuilder!B24)) -> 26 | J23: "141":"26", | K23: 166 | L23: =IF(V3_TuneBuilder!B23>100,100,IF(V3_TuneBuilder!B23<0,0,V3_TuneBuilder!B23)) -> 44 | M23: "166":"44", | N23: 142 | O23: =IF('4KV2_TuneBuilder'!B24>30,30,IF('4KV2_TuneBuilder'!B24<12,12,'4KV2_TuneBuilder'!B24)) -> 24 | P23: "142":"24", | Q23: 166 | R23: =IF('4KV3_TuneBuilder'!B23>100,100,IF('4KV3_TuneBuilder'!B23<0,0,'4KV3_TuneBuilder'!B23)) -> 44 | S23: "166":"44",
A24: 136:"120" | B24: 136 | C24: 120 | D24: 136 | E24: 120 | F24: TRUE | H24: 113 | I24: =IF(V2_TuneBuilder!B26>150,150,IF(V2_TuneBuilder!B26<50,50,V2_TuneBuilder!B26)) -> 101 | J24: "113":"101", | K24: 167 | L24: =IF(V3_TuneBuilder!B24>100,100,IF(V3_TuneBuilder!B24<0,0,V3_TuneBuilder!B24)) -> 48 | M24: "167":"48", | N24: 143 | O24: =IF('4KV2_TuneBuilder'!B25>30,30,IF('4KV2_TuneBuilder'!B25<12,12,'4KV2_TuneBuilder'!B25)) -> 25 | P24: "143":"25", | Q24: 167 | R24: =IF('4KV3_TuneBuilder'!B24>100,100,IF('4KV3_TuneBuilder'!B24<0,0,'4KV3_TuneBuilder'!B24)) -> 48 | S24: "167":"48",
A25: 121:"76" | B25: 121 | C25: 76 | D25: 121 | E25: 76 | F25: TRUE | H25: 114 | I25: =IF(V2_TuneBuilder!B27>150,150,IF(V2_TuneBuilder!B27<50,50,V2_TuneBuilder!B27)) -> 103 | J25: "114":"103", | K25: 168 | L25: =IF(V3_TuneBuilder!B25>100,100,IF(V3_TuneBuilder!B25<0,0,V3_TuneBuilder!B25)) -> 52 | M25: "168":"52", | N25: 141 | O25: =IF('4KV2_TuneBuilder'!B26>30,30,IF('4KV2_TuneBuilder'!B26<12,12,'4KV2_TuneBuilder'!B26)) -> 26 | P25: "141":"26", | Q25: 168 | R25: =IF('4KV3_TuneBuilder'!B25>100,100,IF('4KV3_TuneBuilder'!B25<0,0,'4KV3_TuneBuilder'!B25)) -> 52 | S25: "168":"52",
A26: 140:"27.9" | B26: 140 | C26: 27.9 | D26: 140 | E26: 27.9 | F26: TRUE | H26: 115 | I26: =IF(V2_TuneBuilder!B28>150,150,IF(V2_TuneBuilder!B28<50,50,V2_TuneBuilder!B28)) -> 105 | J26: "115":"105", | K26: 169 | L26: =IF(V3_TuneBuilder!B26>100,100,IF(V3_TuneBuilder!B26<0,0,V3_TuneBuilder!B26)) -> 56 | M26: "169":"56", | N26: 113 | O26: =IF('4KV2_TuneBuilder'!B28>150,150,IF('4KV2_TuneBuilder'!B28<50,50,'4KV2_TuneBuilder'!B28)) -> 101 | P26: "113":"101", | Q26: 169 | R26: =IF('4KV3_TuneBuilder'!B26>100,100,IF('4KV3_TuneBuilder'!B26<0,0,'4KV3_TuneBuilder'!B26)) -> 56 | S26: "169":"56",
A27: 130:"102" | B27: 130 | C27: 102 | D27: 130 | E27: 102 | F27: TRUE | H27: 116 | I27: =IF(V2_TuneBuilder!B29>150,150,IF(V2_TuneBuilder!B29<50,50,V2_TuneBuilder!B29)) -> 107 | J27: "116":"107", | K27: 170 | L27: =IF(V3_TuneBuilder!B27>100,100,IF(V3_TuneBuilder!B27<0,0,V3_TuneBuilder!B27)) -> 60 | M27: "170":"60", | N27: 114 | O27: =IF('4KV2_TuneBuilder'!B29>150,150,IF('4KV2_TuneBuilder'!B29<50,50,'4KV2_TuneBuilder'!B29)) -> 103 | P27: "114":"103", | Q27: 170 | R27: =IF('4KV3_TuneBuilder'!B27>100,100,IF('4KV3_TuneBuilder'!B27<0,0,'4KV3_TuneBuilder'!B27)) -> 60 | S27: "170":"60",
A28: 119:"72" | B28: 119 | C28: 72 | D28: 119 | E28: 72 | F28: TRUE | H28: 117 | I28: =IF(V2_TuneBuilder!B30>150,150,IF(V2_TuneBuilder!B30<50,50,V2_TuneBuilder!B30)) -> 110 | J28: "117":"110", | K28: 171 | L28: =IF(V3_TuneBuilder!B28>100,100,IF(V3_TuneBuilder!B28<0,0,V3_TuneBuilder!B28)) -> 64 | M28: "171":"64", | N28: 115 | O28: =IF('4KV2_TuneBuilder'!B30>150,150,IF('4KV2_TuneBuilder'!B30<50,50,'4KV2_TuneBuilder'!B30)) -> 105 | P28: "115":"105", | Q28: 171 | R28: =IF('4KV3_TuneBuilder'!B28>100,100,IF('4KV3_TuneBuilder'!B28<0,0,'4KV3_TuneBuilder'!B28)) -> 64 | S28: "171":"64",
A29: 85:"1200" | B29: 85 | C29: 1200 | D29: 85 | E29: 1200 | F29: TRUE | H29: 118 | I29: =IF(V2_TuneBuilder!B31>150,150,IF(V2_TuneBuilder!B31<50,50,V2_TuneBuilder!B31)) -> 113 | J29: "118":"113", | K29: 172 | L29: =IF(V3_TuneBuilder!B29>100,100,IF(V3_TuneBuilder!B29<0,0,V3_TuneBuilder!B29)) -> 68 | M29: "172":"68", | N29: 116 | O29: =IF('4KV2_TuneBuilder'!B31>150,150,IF('4KV2_TuneBuilder'!B31<50,50,'4KV2_TuneBuilder'!B31)) -> 107 | P29: "116":"107", | Q29: 172 | R29: =IF('4KV3_TuneBuilder'!B29>100,100,IF('4KV3_TuneBuilder'!B29<0,0,'4KV3_TuneBuilder'!B29)) -> 68 | S29: "172":"68",
A30: 104:"3500" | B30: 104 | C30: 3500 | D30: 104 | E30: 3500 | F30: TRUE | H30: 119 | I30: =IF(V2_TuneBuilder!B32>150,150,IF(V2_TuneBuilder!B32<50,50,V2_TuneBuilder!B32)) -> 116 | J30: "119":"116", | K30: 173 | L30: =IF(V3_TuneBuilder!B30>100,100,IF(V3_TuneBuilder!B30<0,0,V3_TuneBuilder!B30)) -> 72 | M30: "173":"72", | N30: 117 | O30: =IF('4KV2_TuneBuilder'!B32>150,150,IF('4KV2_TuneBuilder'!B32<50,50,'4KV2_TuneBuilder'!B32)) -> 110 | P30: "117":"110", | Q30: 173 | R30: =IF('4KV3_TuneBuilder'!B30>100,100,IF('4KV3_TuneBuilder'!B30<0,0,'4KV3_TuneBuilder'!B30)) -> 72 | S30: "173":"72",
A31: 60:"50" | B31: 60 | C31: 50 | D31: 60 | E31: 50 | F31: TRUE | H31: 120 | I31: =IF(V2_TuneBuilder!B33>150,150,IF(V2_TuneBuilder!B33<50,50,V2_TuneBuilder!B33)) -> 119 | J31: "120":"119", | K31: 174 | L31: =IF(V3_TuneBuilder!B31>100,100,IF(V3_TuneBuilder!B31<0,0,V3_TuneBuilder!B31)) -> 76 | M31: "174":"76", | N31: 118 | O31: =IF('4KV2_TuneBuilder'!B33>150,150,IF('4KV2_TuneBuilder'!B33<50,50,'4KV2_TuneBuilder'!B33)) -> 113 | P31: "118":"113", | Q31: 174 | R31: =IF('4KV3_TuneBuilder'!B31>100,100,IF('4KV3_TuneBuilder'!B31<0,0,'4KV3_TuneBuilder'!B31)) -> 76 | S31: "174":"76",
A32: 138:"20" | B32: 138 | C32: 20 | D32: 138 | E32: 20 | F32: TRUE | H32: 121 | I32: =IF(V2_TuneBuilder!B34>150,150,IF(V2_TuneBuilder!B34<50,50,V2_TuneBuilder!B34)) -> 122 | J32: "121":"122", | K32: 175 | L32: =IF(V3_TuneBuilder!B32>100,100,IF(V3_TuneBuilder!B32<0,0,V3_TuneBuilder!B32)) -> 80 | M32: "175":"80", | N32: 119 | O32: =IF('4KV2_TuneBuilder'!B34>150,150,IF('4KV2_TuneBuilder'!B34<50,50,'4KV2_TuneBuilder'!B34)) -> 116 | P32: "119":"116", | Q32: 175 | R32: =IF('4KV3_TuneBuilder'!B32>100,100,IF('4KV3_TuneBuilder'!B32<0,0,'4KV3_TuneBuilder'!B32)) -> 80 | S32: "175":"80",
A33: 113:"66" | B33: 113 | C33: 66 | D33: 113 | E33: 66 | F33: TRUE | H33: 122 | I33: =IF(V2_TuneBuilder!B35>150,150,IF(V2_TuneBuilder!B35<50,50,V2_TuneBuilder!B35)) -> 125 | J33: "122":"125", | K33: 176 | L33: =IF(V3_TuneBuilder!B33>100,100,IF(V3_TuneBuilder!B33<0,0,V3_TuneBuilder!B33)) -> 84 | M33: "176":"84", | N33: 120 | O33: =IF('4KV2_TuneBuilder'!B35>150,150,IF('4KV2_TuneBuilder'!B35<50,50,'4KV2_TuneBuilder'!B35)) -> 119 | P33: "120":"119", | Q33: 176 | R33: =IF('4KV3_TuneBuilder'!B33>100,100,IF('4KV3_TuneBuilder'!B33<0,0,'4KV3_TuneBuilder'!B33)) -> 84 | S33: "176":"84",
A34: 124:"82" | B34: 124 | C34: 82 | D34: 124 | E34: 82 | F34: TRUE | H34: 123 | I34: =IF(V2_TuneBuilder!B36>150,150,IF(V2_TuneBuilder!B36<50,50,V2_TuneBuilder!B36)) -> 128 | J34: "123":"128", | K34: 177 | L34: =IF(V3_TuneBuilder!B34>100,100,IF(V3_TuneBuilder!B34<0,0,V3_TuneBuilder!B34)) -> 88 | M34: "177":"88", | N34: 121 | O34: =IF('4KV2_TuneBuilder'!B36>150,150,IF('4KV2_TuneBuilder'!B36<50,50,'4KV2_TuneBuilder'!B36)) -> 122 | P34: "121":"122", | Q34: 177 | R34: =IF('4KV3_TuneBuilder'!B34>100,100,IF('4KV3_TuneBuilder'!B34<0,0,'4KV3_TuneBuilder'!B34)) -> 88 | S34: "177":"88",
A35: 122:"78" | B35: 122 | C35: 78 | D35: 122 | E35: 78 | F35: TRUE | H35: 124 | I35: =IF(V2_TuneBuilder!B37>150,150,IF(V2_TuneBuilder!B37<50,50,V2_TuneBuilder!B37)) -> 131 | J35: "124":"131", | K35: 178 | L35: =IF(V3_TuneBuilder!B35>100,100,IF(V3_TuneBuilder!B35<0,0,V3_TuneBuilder!B35)) -> 92 | M35: "178":"92", | N35: 122 | O35: =IF('4KV2_TuneBuilder'!B37>150,150,IF('4KV2_TuneBuilder'!B37<50,50,'4KV2_TuneBuilder'!B37)) -> 125 | P35: "122":"125", | Q35: 178 | R35: =IF('4KV3_TuneBuilder'!B35>100,100,IF('4KV3_TuneBuilder'!B35<0,0,'4KV3_TuneBuilder'!B35)) -> 92 | S35: "178":"92",
A36: 135:"120" | B36: 135 | C36: =IFERROR(MID(A36,SEARCH("""",A36)+1,SEARCH("^",SUBSTITUTE(A36,"""","^",LEN(A36)-LEN(SUBSTITUTE(A36,"""",""))))-LEN(LEFT(A36,SEARCH("""",A36)+1))),"") -> 120 | D36: 135 | E36: 120 | F36: TRUE | H36: 125 | I36: =IF(V2_TuneBuilder!B38>150,150,IF(V2_TuneBuilder!B38<50,50,V2_TuneBuilder!B38)) -> 134 | J36: "125":"134", | K36: 179 | L36: =IF(V3_TuneBuilder!B36>100,100,IF(V3_TuneBuilder!B36<0,0,V3_TuneBuilder!B36)) -> 96 | M36: "179":"96", | N36: 123 | O36: =IF('4KV2_TuneBuilder'!B38>150,150,IF('4KV2_TuneBuilder'!B38<50,50,'4KV2_TuneBuilder'!B38)) -> 128 | P36: "123":"128", | Q36: 179 | R36: =IF('4KV3_TuneBuilder'!B36>100,100,IF('4KV3_TuneBuilder'!B36<0,0,'4KV3_TuneBuilder'!B36)) -> 96 | S36: "179":"96",
A37: 132:"110" | B37: =IFERROR(LEFT(A37,FIND(":",A37)-1),"") -> 132 | C37: 110 | D37: 132 | E37: 110 | F37: TRUE | H37: 126 | I37: =IF(V2_TuneBuilder!B39>150,150,IF(V2_TuneBuilder!B39<50,50,V2_TuneBuilder!B39)) -> 137 | J37: "126":"137", | K37: 180 | L37: =IF(V3_TuneBuilder!B37>100,100,IF(V3_TuneBuilder!B37<0,0,V3_TuneBuilder!B37)) -> 100 | M37: "180":"100", | N37: 124 | O37: =IF('4KV2_TuneBuilder'!B39>150,150,IF('4KV2_TuneBuilder'!B39<50,50,'4KV2_TuneBuilder'!B39)) -> 131 | P37: "124":"131", | Q37: 180 | R37: =IF('4KV3_TuneBuilder'!B37>100,100,IF('4KV3_TuneBuilder'!B37<0,0,'4KV3_TuneBuilder'!B37)) -> 100 | S37: "180":"100",
A38: 59:"4.9" | B38: 59 | C38: 4.9 | D38: 59 | E38: 4.9 | F38: TRUE | H38: 127 | I38: =IF(V2_TuneBuilder!B40>150,150,IF(V2_TuneBuilder!B40<50,50,V2_TuneBuilder!B40)) -> 140 | J38: "127":"140", | K38: 17 | L38: =IF(V3_TuneBuilder!B39>3,3,IF(V3_TuneBuilder!B39<0,0,V3_TuneBuilder!B39)) -> 2 | M38: "17":"2", | N38: 125 | O38: =IF('4KV2_TuneBuilder'!B40>150,150,IF('4KV2_TuneBuilder'!B40<50,50,'4KV2_TuneBuilder'!B40)) -> 134 | P38: "125":"134", | Q38: 17 | R38: =IF('4KV3_TuneBuilder'!B39>3,3,IF('4KV3_TuneBuilder'!B39<0,0,'4KV3_TuneBuilder'!B39)) -> 2 | S38: "17":"2",
A39: 15:"8" | B39: 15 | C39: 8 | D39: 15 | E39: 8 | F39: TRUE | H39: 128 | I39: =IF(V2_TuneBuilder!B41>150,150,IF(V2_TuneBuilder!B41<50,50,V2_TuneBuilder!B41)) -> 143 | J39: "128":"143", | K39: 59 | L39: =IF(V3_TuneBuilder!B40>5,5,IF(V3_TuneBuilder!B40<0,0,V3_TuneBuilder!B40)) -> 2 | M39: "59":"2", | N39: 126 | O39: =IF('4KV2_TuneBuilder'!B41>150,150,IF('4KV2_TuneBuilder'!B41<50,50,'4KV2_TuneBuilder'!B41)) -> 137 | P39: "126":"137", | Q39: 59 | R39: =IF('4KV3_TuneBuilder'!B40>5,5,IF('4KV3_TuneBuilder'!B40<0,0,'4KV3_TuneBuilder'!B40)) -> 2 | S39: "59":"2",
A40: 134:"118" | B40: 134 | C40: 118 | D40: 134 | E40: 118 | F40: TRUE | H40: 129 | I40: =IF(V2_TuneBuilder!B42>150,150,IF(V2_TuneBuilder!B42<50,50,V2_TuneBuilder!B42)) -> 146 | J40: "129":"146", | K40: 60 | L40: =IF(V3_TuneBuilder!B41>100,100,IF(V3_TuneBuilder!B41<0,0,V3_TuneBuilder!B41)) -> 100 | M40: "60":"100", | N40: 127 | O40: =IF('4KV2_TuneBuilder'!B42>150,150,IF('4KV2_TuneBuilder'!B42<50,50,'4KV2_TuneBuilder'!B42)) -> 140 | P40: "127":"140", | Q40: 60 | R40: =IF('4KV3_TuneBuilder'!B41>100,100,IF('4KV3_TuneBuilder'!B41<0,0,'4KV3_TuneBuilder'!B41)) -> 100 | S40: "60":"100",
A41: 110:"0" | B41: 110 | C41: 0 | D41: 110 | E41: 0 | F41: TRUE | H41: 130 | I41: =IF(V2_TuneBuilder!B43>150,150,IF(V2_TuneBuilder!B43<50,50,V2_TuneBuilder!B43)) -> 149 | J41: "130":"149", | K41: 61 | L41: =IF(V3_TuneBuilder!B42>8,8,IF(V3_TuneBuilder!B42<0,0,V3_TuneBuilder!B42)) -> 2 | M41: "61":"2", | N41: 128 | O41: =IF('4KV2_TuneBuilder'!B43>150,150,IF('4KV2_TuneBuilder'!B43<50,50,'4KV2_TuneBuilder'!B43)) -> 143 | P41: "128":"143", | Q41: 61 | R41: =IF('4KV3_TuneBuilder'!B42>8,8,IF('4KV3_TuneBuilder'!B42<0,0,'4KV3_TuneBuilder'!B42)) -> 2 | S41: "61":"2",
A42: 120:"74" | B42: 120 | C42: 74 | D42: 120 | E42: 74 | F42: TRUE | H42: 131 | I42: =IF(V2_TuneBuilder!B44>150,150,IF(V2_TuneBuilder!B44<50,50,V2_TuneBuilder!B44)) -> 150 | J42: "131":"150", | K42: 62 | L42: =IF(V3_TuneBuilder!B43>40,40,IF(V3_TuneBuilder!B43<0,0,V3_TuneBuilder!B43)) -> 5 | M42: "62":"5", | N42: 129 | O42: =IF('4KV2_TuneBuilder'!B44>150,150,IF('4KV2_TuneBuilder'!B44<50,50,'4KV2_TuneBuilder'!B44)) -> 146 | P42: "129":"146", | Q42: 62 | R42: =IF('4KV3_TuneBuilder'!B43>40,40,IF('4KV3_TuneBuilder'!B43<0,0,'4KV3_TuneBuilder'!B43)) -> 5 | S42: "62":"5",
A43: 137:"17" | B43: 137 | C43: 17 | D43: 137 | E43: 17 | F43: TRUE | H43: 132 | I43: =IF(V2_TuneBuilder!B45>150,150,IF(V2_TuneBuilder!B45<50,50,V2_TuneBuilder!B45)) -> 150 | J43: "132":"150", | K43: 137 | L43: =IF(V3_TuneBuilder!B45>30,30,IF(V3_TuneBuilder!B45<12,12,V3_TuneBuilder!B45)) -> 15 | M43: "137":"15", | N43: 130 | O43: =IF('4KV2_TuneBuilder'!B45>150,150,IF('4KV2_TuneBuilder'!B45<50,50,'4KV2_TuneBuilder'!B45)) -> 149 | P43: "130":"149", | Q43: 137 | R43: =IF('4KV3_TuneBuilder'!B45>30,30,IF('4KV3_TuneBuilder'!B45<12,12,'4KV3_TuneBuilder'!B45)) -> 15 | S43: "137":"15",
A44: 123:"80" | B44: 123 | C44: 80 | D44: 123 | E44: 80 | F44: TRUE | H44: 133 | I44: =IF(V2_TuneBuilder!B46>150,150,IF(V2_TuneBuilder!B46<50,50,V2_TuneBuilder!B46)) -> 150 | J44: "133":"150", | K44: 138 | L44: =IF(V3_TuneBuilder!B46>30,30,IF(V3_TuneBuilder!B46<12,12,V3_TuneBuilder!B46)) -> 18 | M44: "138":"18", | N44: 131 | O44: =IF('4KV2_TuneBuilder'!B46>150,150,IF('4KV2_TuneBuilder'!B46<50,50,'4KV2_TuneBuilder'!B46)) -> 150 | P44: "131":"150", | Q44: 138 | R44: =IF('4KV3_TuneBuilder'!B46>30,30,IF('4KV3_TuneBuilder'!B46<12,12,'4KV3_TuneBuilder'!B46)) -> 18 | S44: "138":"18",
A45: 18:"100" | B45: 18 | C45: 100 | D45: 18 | E45: 100 | F45: TRUE | H45: 134 | I45: =IF(V2_TuneBuilder!B47>150,150,IF(V2_TuneBuilder!B47<50,50,V2_TuneBuilder!B47)) -> 150 | J45: "134":"150", | K45: 139 | L45: =IF(V3_TuneBuilder!B47>30,30,IF(V3_TuneBuilder!B47<12,12,V3_TuneBuilder!B47)) -> 21 | M45: "139":"21", | N45: 132 | O45: =IF('4KV2_TuneBuilder'!B47>150,150,IF('4KV2_TuneBuilder'!B47<50,50,'4KV2_TuneBuilder'!B47)) -> 150 | P45: "132":"150", | Q45: 139 | R45: =IF('4KV3_TuneBuilder'!B47>30,30,IF('4KV3_TuneBuilder'!B47<12,12,'4KV3_TuneBuilder'!B47)) -> 21 | S45: "139":"21",
A46: 141:"29.9" | B46: 141 | C46: 29.9 | D46: 141 | E46: 29.9 | F46: TRUE | H46: 135 | I46: =IF(V2_TuneBuilder!B48>150,150,IF(V2_TuneBuilder!B48<50,50,V2_TuneBuilder!B48)) -> 150 | J46: "135":"150", | K46: 140 | L46: =IF(V3_TuneBuilder!B48>30,30,IF(V3_TuneBuilder!B48<12,12,V3_TuneBuilder!B48)) -> 23 | M46: "140":"23", | N46: 133 | O46: =IF('4KV2_TuneBuilder'!B48>150,150,IF('4KV2_TuneBuilder'!B48<50,50,'4KV2_TuneBuilder'!B48)) -> 150 | P46: "133":"150", | Q46: 140 | R46: =IF('4KV3_TuneBuilder'!B48>30,30,IF('4KV3_TuneBuilder'!B48<12,12,'4KV3_TuneBuilder'!B48)) -> 23 | S46: "140":"23",
A47: 117:"70"}} | B47: 117 | C47: 70 | D47: 117 | E47: 70 | F47: TRUE | H47: 136 | I47: =IF(V2_TuneBuilder!B49>150,150,IF(V2_TuneBuilder!B49<50,50,V2_TuneBuilder!B49)) -> 150 | J47: =$Z$3&H47&$Z$4&I47&$Z$3 -> "136":"150" | K47: 141 | L47: =IF(V3_TuneBuilder!B49>30,30,IF(V3_TuneBuilder!B49<12,12,V3_TuneBuilder!B49)) -> 26 | M47: "141":"26", | N47: 134 | O47: =IF('4KV2_TuneBuilder'!B49>150,150,IF('4KV2_TuneBuilder'!B49<50,50,'4KV2_TuneBuilder'!B49)) -> 150 | P47: "134":"150", | Q47: 142 | R47: =IF('4KV3_TuneBuilder'!B49>30,30,IF('4KV3_TuneBuilder'!B49<12,12,'4KV3_TuneBuilder'!B49)) -> 24 | S47: "142":"24",
F48: FALSE | K48: 113 | L48: =IF(V3_TuneBuilder!B51>150,150,IF(V3_TuneBuilder!B51<50,50,V3_TuneBuilder!B51)) -> 101 | M48: "113":"101", | N48: 135 | O48: =IF('4KV2_TuneBuilder'!B50>150,150,IF('4KV2_TuneBuilder'!B50<50,50,'4KV2_TuneBuilder'!B50)) -> 150 | P48: "135":"150", | Q48: 143 | R48: =IF('4KV3_TuneBuilder'!B50>30,30,IF('4KV3_TuneBuilder'!B50<12,12,'4KV3_TuneBuilder'!B50)) -> 25 | S48: "143":"25",
F49: FALSE | K49: 114 | L49: =IF(V3_TuneBuilder!B52>150,150,IF(V3_TuneBuilder!B52<50,50,V3_TuneBuilder!B52)) -> 103 | M49: "114":"103", | N49: 136 | O49: =IF('4KV2_TuneBuilder'!B51>150,150,IF('4KV2_TuneBuilder'!B51<50,50,'4KV2_TuneBuilder'!B51)) -> 150 | P49: "136":"150", | Q49: 141 | R49: =IF('4KV3_TuneBuilder'!B52>150,150,IF('4KV3_TuneBuilder'!B52<50,50,'4KV3_TuneBuilder'!B52)) -> 50 | S49: "141":"50",
F50: FALSE | K50: 115 | L50: =IF(V3_TuneBuilder!B53>150,150,IF(V3_TuneBuilder!B53<50,50,V3_TuneBuilder!B53)) -> 105 | M50: "115":"105", | N50: 156 | O50: 0 | P50: "156":"0", | Q50: 113 | R50: =IF('4KV3_TuneBuilder'!B53>150,150,IF('4KV3_TuneBuilder'!B53<50,50,'4KV3_TuneBuilder'!B53)) -> 101 | S50: "113":"101",
F51: FALSE | K51: 116 | L51: =IF(V3_TuneBuilder!B54>150,150,IF(V3_TuneBuilder!B54<50,50,V3_TuneBuilder!B54)) -> 107 | M51: "116":"107", | N51: 157 | O51: 0 | P51: "157":"0", | Q51: 114 | R51: =IF('4KV3_TuneBuilder'!B54>150,150,IF('4KV3_TuneBuilder'!B54<50,50,'4KV3_TuneBuilder'!B54)) -> 103 | S51: "114":"103",
F52: FALSE | K52: 117 | L52: =IF(V3_TuneBuilder!B55>150,150,IF(V3_TuneBuilder!B55<50,50,V3_TuneBuilder!B55)) -> 110 | M52: "117":"110", | N52: 158 | O52: 0 | P52: "158":"0", | Q52: 115 | R52: =IF('4KV3_TuneBuilder'!B55>150,150,IF('4KV3_TuneBuilder'!B55<50,50,'4KV3_TuneBuilder'!B55)) -> 105 | S52: "115":"105",
F53: FALSE | K53: 118 | L53: =IF(V3_TuneBuilder!B56>150,150,IF(V3_TuneBuilder!B56<50,50,V3_TuneBuilder!B56)) -> 113 | M53: "118":"113", | N53: 159 | O53: 0 | P53: "159":"0", | Q53: 116 | R53: =IF('4KV3_TuneBuilder'!B56>150,150,IF('4KV3_TuneBuilder'!B56<50,50,'4KV3_TuneBuilder'!B56)) -> 107 | S53: "116":"107",
F54: FALSE | K54: 119 | L54: =IF(V3_TuneBuilder!B57>150,150,IF(V3_TuneBuilder!B57<50,50,V3_TuneBuilder!B57)) -> 116 | M54: "119":"116", | N54: 160 | O54: 0 | P54: "160":"0", | Q54: 117 | R54: =IF('4KV3_TuneBuilder'!B57>150,150,IF('4KV3_TuneBuilder'!B57<50,50,'4KV3_TuneBuilder'!B57)) -> 110 | S54: "117":"110",
F55: FALSE | K55: 120 | L55: =IF(V3_TuneBuilder!B58>150,150,IF(V3_TuneBuilder!B58<50,50,V3_TuneBuilder!B58)) -> 119 | M55: "120":"119", | N55: 161 | O55: 0 | P55: "161":"0", | Q55: 118 | R55: =IF('4KV3_TuneBuilder'!B58>150,150,IF('4KV3_TuneBuilder'!B58<50,50,'4KV3_TuneBuilder'!B58)) -> 113 | S55: "118":"113",
F56: FALSE | K56: 121 | L56: =IF(V3_TuneBuilder!B59>150,150,IF(V3_TuneBuilder!B59<50,50,V3_TuneBuilder!B59)) -> 122 | M56: "121":"122", | N56: 162 | O56: 0 | P56: "162":"0", | Q56: 119 | R56: =IF('4KV3_TuneBuilder'!B59>150,150,IF('4KV3_TuneBuilder'!B59<50,50,'4KV3_TuneBuilder'!B59)) -> 116 | S56: "119":"116",
F57: FALSE | K57: 122 | L57: =IF(V3_TuneBuilder!B60>150,150,IF(V3_TuneBuilder!B60<50,50,V3_TuneBuilder!B60)) -> 125 | M57: "122":"125", | N57: 163 | O57: 0 | P57: "163":"0", | Q57: 120 | R57: =IF('4KV3_TuneBuilder'!B60>150,150,IF('4KV3_TuneBuilder'!B60<50,50,'4KV3_TuneBuilder'!B60)) -> 119 | S57: "120":"119",
F58: FALSE | K58: 123 | L58: =IF(V3_TuneBuilder!B61>150,150,IF(V3_TuneBuilder!B61<50,50,V3_TuneBuilder!B61)) -> 128 | M58: "123":"128", | N58: 164 | O58: 0 | P58: "164":"0", | Q58: 121 | R58: =IF('4KV3_TuneBuilder'!B61>150,150,IF('4KV3_TuneBuilder'!B61<50,50,'4KV3_TuneBuilder'!B61)) -> 122 | S58: "121":"122",
F59: FALSE | K59: 124 | L59: =IF(V3_TuneBuilder!B62>150,150,IF(V3_TuneBuilder!B62<50,50,V3_TuneBuilder!B62)) -> 131 | M59: "124":"131", | N59: 165 | O59: 0 | P59: "165":"0", | Q59: 122 | R59: =IF('4KV3_TuneBuilder'!B62>150,150,IF('4KV3_TuneBuilder'!B62<50,50,'4KV3_TuneBuilder'!B62)) -> 125 | S59: "122":"125",
F60: FALSE | K60: 125 | L60: =IF(V3_TuneBuilder!B63>150,150,IF(V3_TuneBuilder!B63<50,50,V3_TuneBuilder!B63)) -> 134 | M60: "125":"134", | N60: 166 | O60: 0 | P60: "166":"0", | Q60: 123 | R60: =IF('4KV3_TuneBuilder'!B63>150,150,IF('4KV3_TuneBuilder'!B63<50,50,'4KV3_TuneBuilder'!B63)) -> 128 | S60: "123":"128",
F61: FALSE | K61: 126 | L61: =IF(V3_TuneBuilder!B64>150,150,IF(V3_TuneBuilder!B64<50,50,V3_TuneBuilder!B64)) -> 137 | M61: "126":"137", | N61: 167 | O61: 0 | P61: "167":"0", | Q61: 124 | R61: =IF('4KV3_TuneBuilder'!B64>150,150,IF('4KV3_TuneBuilder'!B64<50,50,'4KV3_TuneBuilder'!B64)) -> 131 | S61: "124":"131",
F62: FALSE | K62: 127 | L62: =IF(V3_TuneBuilder!B65>150,150,IF(V3_TuneBuilder!B65<50,50,V3_TuneBuilder!B65)) -> 140 | M62: "127":"140", | N62: 168 | O62: 0 | P62: "168":"0", | Q62: 125 | R62: =IF('4KV3_TuneBuilder'!B65>150,150,IF('4KV3_TuneBuilder'!B65<50,50,'4KV3_TuneBuilder'!B65)) -> 134 | S62: "125":"134",
F63: FALSE | K63: 128 | L63: =IF(V3_TuneBuilder!B66>150,150,IF(V3_TuneBuilder!B66<50,50,V3_TuneBuilder!B66)) -> 143 | M63: "128":"143", | N63: 169 | O63: 0 | P63: "169":"0", | Q63: 126 | R63: =IF('4KV3_TuneBuilder'!B66>150,150,IF('4KV3_TuneBuilder'!B66<50,50,'4KV3_TuneBuilder'!B66)) -> 137 | S63: "126":"137",
F64: FALSE | K64: 129 | L64: =IF(V3_TuneBuilder!B67>150,150,IF(V3_TuneBuilder!B67<50,50,V3_TuneBuilder!B67)) -> 146 | M64: "129":"146", | N64: 170 | O64: 0 | P64: "170":"0", | Q64: 127 | R64: =IF('4KV3_TuneBuilder'!B67>150,150,IF('4KV3_TuneBuilder'!B67<50,50,'4KV3_TuneBuilder'!B67)) -> 140 | S64: "127":"140",
F65: FALSE | K65: 130 | L65: =IF(V3_TuneBuilder!B68>150,150,IF(V3_TuneBuilder!B68<50,50,V3_TuneBuilder!B68)) -> 149 | M65: "130":"149", | N65: 171 | O65: 0 | P65: "171":"0", | Q65: 128 | R65: =IF('4KV3_TuneBuilder'!B68>150,150,IF('4KV3_TuneBuilder'!B68<50,50,'4KV3_TuneBuilder'!B68)) -> 143 | S65: "128":"143",
F66: FALSE | K66: 131 | L66: =IF(V3_TuneBuilder!B69>150,150,IF(V3_TuneBuilder!B69<50,50,V3_TuneBuilder!B69)) -> 150 | M66: "131":"150", | N66: 172 | O66: 0 | P66: "172":"0", | Q66: 129 | R66: =IF('4KV3_TuneBuilder'!B69>150,150,IF('4KV3_TuneBuilder'!B69<50,50,'4KV3_TuneBuilder'!B69)) -> 146 | S66: "129":"146",
F67: FALSE | K67: 132 | L67: =IF(V3_TuneBuilder!B70>150,150,IF(V3_TuneBuilder!B70<50,50,V3_TuneBuilder!B70)) -> 150 | M67: "132":"150", | N67: 173 | O67: 0 | P67: "173":"0", | Q67: 130 | R67: =IF('4KV3_TuneBuilder'!B70>150,150,IF('4KV3_TuneBuilder'!B70<50,50,'4KV3_TuneBuilder'!B70)) -> 149 | S67: "130":"149",
C68: =IFERROR(MID(A68,SEARCH("""",A68)+1,SEARCH("^",SUBSTITUTE(A68,"""","^",LEN(A68)-LEN(SUBSTITUTE(A68,"""",""))))-LEN(LEFT(A68,SEARCH("""",A68)+1))),"") ->  | F68: FALSE | K68: 133 | L68: =IF(V3_TuneBuilder!B71>150,150,IF(V3_TuneBuilder!B71<50,50,V3_TuneBuilder!B71)) -> 150 | M68: "133":"150", | N68: 174 | O68: 0 | P68: "174":"0", | Q68: 131 | R68: =IF('4KV3_TuneBuilder'!B71>150,150,IF('4KV3_TuneBuilder'!B71<50,50,'4KV3_TuneBuilder'!B71)) -> 150 | S68: "131":"150",
B69: =IFERROR(LEFT(A69,FIND(":",A69)-1),"") ->  | F69: FALSE | K69: 134 | L69: =IF(V3_TuneBuilder!B72>150,150,IF(V3_TuneBuilder!B72<50,50,V3_TuneBuilder!B72)) -> 150 | M69: =$Z$3&K69&$Z$4&L69&$Z$3&$Z$5 -> "134":"150", | N69: 175 | O69: 0 | P69: "175":"0", | Q69: 132 | R69: =IF('4KV3_TuneBuilder'!B72>150,150,IF('4KV3_TuneBuilder'!B72<50,50,'4KV3_TuneBuilder'!B72)) -> 150 | S69: =$Z$3&Q69&$Z$4&R69&$Z$3&$Z$5 -> "132":"150",
D70: =IFERROR(VALUE(B70),"") ->  | F70: =ISNUMBER(E70) -> FALSE | K70: 135 | L70: =IF(V3_TuneBuilder!B73>150,150,IF(V3_TuneBuilder!B73<50,50,V3_TuneBuilder!B73)) -> 150 | M70: "135":"150", | N70: 176 | O70: 0 | P70: =$Z$3&N70&$Z$4&O70&$Z$3&$Z$5 -> "176":"0", | Q70: 133 | R70: =IF('4KV3_TuneBuilder'!B73>150,150,IF('4KV3_TuneBuilder'!B73<50,50,'4KV3_TuneBuilder'!B73)) -> 150 | S70: "133":"150",
F71: FALSE | K71: 136 | L71: =IF(V3_TuneBuilder!B74>150,150,IF(V3_TuneBuilder!B74<50,50,V3_TuneBuilder!B74)) -> 150 | M71: =$Z$3&K71&$Z$4&L71&$Z$3 -> "136":"150" | N71: 177 | O71: 0 | P71: "177":"0", | Q71: 134 | R71: =IF('4KV3_TuneBuilder'!B74>150,150,IF('4KV3_TuneBuilder'!B74<50,50,'4KV3_TuneBuilder'!B74)) -> 150 | S71: "134":"150",
F72: FALSE | N72: 178 | O72: 0 | P72: "178":"0", | Q72: 135 | R72: =IF('4KV3_TuneBuilder'!B75>150,150,IF('4KV3_TuneBuilder'!B75<50,50,'4KV3_TuneBuilder'!B75)) -> 150 | S72: "135":"150",
F73: FALSE | N73: 179 | O73: 0 | P73: "179":"0", | Q73: 136 | R73: =IF('4KV3_TuneBuilder'!B76>150,150,IF('4KV3_TuneBuilder'!B76<50,50,'4KV3_TuneBuilder'!B76)) -> 150 | S73: "136":"150",
F74: FALSE | N74: 180 | O74: 0 | P74: =$Z$3&N74&$Z$4&O74&$Z$3 -> "180":"0" | Q74: 110 | R74: 0 | S74: =$Z$3&Q74&$Z$4&R74&$Z$3 -> "110":"0"
F75: =ISNUMBER(E75) -> FALSE
F76: =ISNUMBER(E76) -> FALSE | H76: =B75 -> 
F77: FALSE
F78: FALSE
F79: FALSE
F80: FALSE
F81: FALSE
F82: FALSE
F83: FALSE
F84: FALSE
F85: FALSE
F86: FALSE
F87: FALSE
F88: FALSE
F89: FALSE
F90: FALSE
F91: FALSE
F92: FALSE
F93: FALSE
F94: FALSE
F95: FALSE
F96: FALSE
F97: FALSE
F98: FALSE
F99: FALSE
C100: =IFERROR(MID(A100,SEARCH("""",A100)+1,SEARCH("^",SUBSTITUTE(A100,"""","^",LEN(A100)-LEN(SUBSTITUTE(A100,"""",""))))-LEN(LEFT(A100,SEARCH("""",A100)+1))),"") ->  | F100: FALSE
B101: =IFERROR(LEFT(A101,FIND(":",A101)-1),"") ->  | F101: FALSE
F102: FALSE
F103: FALSE
F104: FALSE
F105: FALSE
F106: FALSE
F107: FALSE
F108: FALSE
F109: FALSE
F110: FALSE
F111: FALSE
F112: FALSE
F113: FALSE
F114: FALSE
F115: FALSE
F116: FALSE
F117: FALSE
F118: FALSE
F119: FALSE
F120: FALSE
F121: FALSE
F122: FALSE
F123: FALSE
F124: FALSE
F125: FALSE
F126: FALSE
F127: FALSE
F128: FALSE
F129: FALSE
F130: FALSE
F131: FALSE
C132: =IFERROR(MID(A132,SEARCH("""",A132)+1,SEARCH("^",SUBSTITUTE(A132,"""","^",LEN(A132)-LEN(SUBSTITUTE(A132,"""",""))))-LEN(LEFT(A132,SEARCH("""",A132)+1))),"") ->  | F132: FALSE
B133: =IFERROR(LEFT(A133,FIND(":",A133)-1),"") ->  | F133: FALSE
D134: =IFERROR(VALUE(B134),"") ->  | F134: FALSE
F135: FALSE
F136: FALSE
F137: FALSE
F138: FALSE
F139: FALSE
F140: =ISNUMBER(E140) -> FALSE
F141: FALSE
F142: FALSE
F143: FALSE
F144: FALSE
F145: FALSE
F146: FALSE
F147: FALSE
F148: FALSE
F149: FALSE
F150: FALSE
F151: FALSE
F152: FALSE
F153: FALSE
F154: FALSE
F155: FALSE
F156: FALSE
F157: FALSE
F158: FALSE
F159: FALSE
F160: FALSE
F161: FALSE
F162: FALSE
F163: FALSE
C164: =IFERROR(MID(A164,SEARCH("""",A164)+1,SEARCH("^",SUBSTITUTE(A164,"""","^",LEN(A164)-LEN(SUBSTITUTE(A164,"""",""))))-LEN(LEFT(A164,SEARCH("""",A164)+1))),"") ->  | F164: FALSE
B165: =IFERROR(LEFT(A165,FIND(":",A165)-1),"") ->  | F165: FALSE
F166: FALSE
F167: FALSE
F168: FALSE
F169: FALSE
F170: FALSE
F171: FALSE
F172: FALSE
F173: FALSE
F174: FALSE
F175: FALSE
F176: FALSE
F177: FALSE
F178: FALSE
F179: FALSE
F180: FALSE
F181: FALSE
F182: FALSE
F183: FALSE
F184: FALSE
F185: FALSE
F186: FALSE
F187: FALSE
F188: FALSE
F189: FALSE
F190: FALSE
F191: FALSE
F192: FALSE
F193: FALSE
F194: FALSE
F195: FALSE
F196: FALSE
B197: =IFERROR(LEFT(A197,FIND(":",A197)-1),"") ->  | F197: FALSE
D198: =IFERROR(VALUE(B198),"") ->  | F198: FALSE
F199: FALSE
F200: FALSE

Sheet TuneLookup (hidden)
A1: Imported Tune Parameters | D1: V2 Tune Parameters | G1: V3 Tune Parameters | J1: 4k V2 Tune Parameters | M1: 4k V3 Tune Parameters | P1: Tune Parameters
A2: Number of Power Levels | B2: =IFERROR(VLOOKUP($Q$2,RawInput!$D$5:$E$200,2,FALSE),0) -> 8 | D2: Number of Power Levels | E2: 12 | G2: Number of Power Levels | H2: 12 | J2: Number of Power Levels | K2: 12 | M2: Number of Power Levels | N2: 12 | P2: Number of Power Levels | Q2: 15
A3: RPM Limit | B3: =IFERROR(VLOOKUP($Q$3,RawInput!$D$5:$E$200,2,FALSE),0) -> 3500 | D3: RPM Limit | E3: 3200 | G3: RPM Limit | H3: 3200 | J3: RPM Limit | K3: 4200 | M3: RPM Limit | N3: 4200 | P3: RPM Limit | Q3: 104
A4: Valet Mode | D4: Valet Mode | G4: Valet Mode | J4: Valet Mode | M4: Valet Mode | P4: Valet Mode
A5: Maximum Valet Mode Power | B5: =IFERROR(VLOOKUP($Q$5,RawInput!$D$5:$E$200,2,FALSE),0) -> 50 | D5: Maximum Valet Mode Power | E5: 50 | G5: Maximum Valet Mode Power | H5: 50 | J5: Maximum Valet Mode Power | K5: 50 | M5: Maximum Valet Mode Power | N5: 50 | P5: Maximum Valet Mode Power | Q5: 111
A6: Pump Tap Parameters List | D6: Pump Tap Parameters List | G6: Pump Tap Parameters List | J6: Pump Tap Parameters List | M6: Pump Tap Parameters List | P6: Pump Tap Parameters List
A7: Maximum Fuel Stretch | B7: =IFERROR(VLOOKUP($Q$7,RawInput!$D$5:$E$200,2,FALSE),0) -> 1200 | D7: Maximum Fuel Stretch | E7: 1800 | G7: Maximum Fuel Stretch | H7: 1800 | J7: Maximum Fuel Stretch | K7: 4400 | M7: Maximum Fuel Stretch | N7: 4400 | P7: Maximum Fuel Stretch | Q7: 85
A8: TPS Pump Maximum | B8: =IFERROR(VLOOKUP($Q$8,RawInput!$D$5:$E$200,2,FALSE),0) -> 100 | D8: TPS Pump Maximum | E8: 100 | G8: TPS Pump Maximum | H8: 100 | J8: TPS Pump Maximum | K8: 100 | M8: TPS Pump Maximum | N8: 100 | P8: TPS Pump Maximum | Q8: 18
A9: TPS Pump Minimum | B9: =IFERROR(VLOOKUP($Q$9,RawInput!$D$5:$E$200,2,FALSE),0) -> 0 | D9: TPS Pump Minimum | E9: 10 | G9: TPS Pump Minimum | H9: 10 | J9: TPS Pump Minimum | K9: 10 | M9: TPS Pump Minimum | N9: 10 | P9: TPS Pump Minimum | Q9: 19
A10: Min Pump Tap Fueling % | B10: =IFERROR(VLOOKUP($Q$10,RawInput!$D$5:$E$200,2,FALSE),0) -> 0 | D10: Min Pump Tap Fueling % | E10: 10 | G10: Pump Tap Min PSI | H10: 5 | J10: Min Pump Tap Fueling % | K10: 10 | M10: Pump Tap Min PSI | N10: 5 | P10: Min Pump Tap Fueling % | Q10: 110
A11: Pump Tap Min PSI | B11: =IFERROR(VLOOKUP($Q$11,RawInput!$D$5:$E$200,2,FALSE),0) -> 10 | D11: Pump Tap Min PSI | E11: 5 | G11: Boost Scaling | H11: 38 | J11: Pump Tap Min PSI | K11: 5 | M11: Boost Scaling | N11: 38 | P11: Pump Tap Min PSI | Q11: 112
A12: Boost Scaling | B12: =IFERROR(VLOOKUP($Q$12,RawInput!$D$5:$E$200,2,FALSE),0) -> 40 | D12: Boost Scaling | E12: 38 | G12: Wiretap PSI Equlizer | J12: Boost Scaling | K12: 38 | M12: Wiretap PSI Equlizer | P12: Boost Scaling | Q12: 22
A13: Wiretap PSI Equlizer | D13: Timing Parameters | G13: 1 PSI | H13: 4 | J13: Timing Parameters | M13: 1 PSI | N13: 4 | P13: Wiretap PSI Equlizer
A14: 1 PSI | B14: =IFERROR(VLOOKUP($Q$14,RawInput!$D$5:$E$200,2,FALSE),0) -> 0 | D14: Fuel Load Timing | E14: 2 | G14: 2 PSI | H14: 8 | J14: Fuel Load Timing | K14: 2 | M14: 2 PSI | N14: 8 | P14: 1 PSI | Q14: 156
A15: 2 PSI | B15: =IFERROR(VLOOKUP($Q$15,RawInput!$D$5:$E$200,2,FALSE),0) -> 0 | D15: Low PSI Timing Reduct | E15: 2 | G15: 3 PSI | H15: 12 | J15: Low PSI Timing Reduct | K15: 2 | M15: 3 PSI | N15: 12 | P15: 2 PSI | Q15: 157
A16: 3 PSI | B16: =IFERROR(VLOOKUP($Q$16,RawInput!$D$5:$E$200,2,FALSE),0) -> 0 | D16: Timing Reduct Scaling | E16: 100 | G16: 4 PSI | H16: 16 | J16: Timing Reduct Scaling | K16: 100 | M16: 4 PSI | N16: 16 | P16: 3 PSI | Q16: 158
A17: 4 PSI | B17: =IFERROR(VLOOKUP($Q$17,RawInput!$D$5:$E$200,2,FALSE),0) -> 0 | D17: LightThrottle Timing Adv | E17: 2 | G17: 5 PSI | H17: 20 | J17: LightThrottle Timing Adv | K17: 2 | M17: 5 PSI | N17: 20 | P17: 4 PSI | Q17: 159
A18: 5 PSI | B18: =IFERROR(VLOOKUP($Q$18,RawInput!$D$5:$E$200,2,FALSE),0) -> 0 | D18: Light Throttle Limit | E18: 30 | G18: 6 PSI | H18: 24 | J18: Light Throttle Limit | K18: 30 | M18: 6 PSI | N18: 24 | P18: 5 PSI | Q18: 160
A19: 6 PSI | B19: =IFERROR(VLOOKUP($Q$19,RawInput!$D$5:$E$200,2,FALSE),0) -> 0 | D19: Timing Equilzer | G19: 7 PSI | H19: 28 | J19: Timing Equilzer | M19: 7 PSI | N19: 28 | P19: 6 PSI | Q19: 161
A20: 7 PSI | B20: =IFERROR(VLOOKUP($Q$20,RawInput!$D$5:$E$200,2,FALSE),0) -> 0 | D20: 1500RPM | E20: 15 | G20: 8 PSI | H20: 32 | J20: 1500RPM | K20: 15 | M20: 8 PSI | N20: 32 | P20: 7 PSI | Q20: 162
A21: 8 PSI | B21: =IFERROR(VLOOKUP($Q$21,RawInput!$D$5:$E$200,2,FALSE),0) -> 0 | D21: 2000RPM | E21: 18 | G21: 9 PSI | H21: 36 | J21: 2000RPM | K21: 18 | M21: 9 PSI | N21: 36 | P21: 8 PSI | Q21: 163
A22: 9 PSI | B22: =IFERROR(VLOOKUP($Q$22,RawInput!$D$5:$E$200,2,FALSE),0) -> 0 | D22: 2500RPM | E22: 21 | G22: 10 PSI | H22: 40 | J22: 2500RPM | K22: 21 | M22: 10 PSI | N22: 40 | P22: 9 PSI | Q22: 164
A23: 10 PSI | B23: =IFERROR(VLOOKUP($Q$23,RawInput!$D$5:$E$200,2,FALSE),0) -> 0 | D23: 3000RPM | E23: 23 | G23: 12 PSI | H23: 44 | J23: 3000RPM | K23: 23 | M23: 12 PSI | N23: 44 | P23: 10 PSI | Q23: 165
A24: 12 PSI | B24: =IFERROR(VLOOKUP($Q$24,RawInput!$D$5:$E$200,2,FALSE),0) -> 0 | D24: MAX | E24: 26 | G24: 14 PSI | H24: 48 | J24: 3500RPM | K24: 24 | M24: 14 PSI | N24: 48 | P24: 12 PSI | Q24: 166
A25: 14 PSI | B25: =IFERROR(VLOOKUP($Q$25,RawInput!$D$5:$E$200,2,FALSE),0) -> 0 | D25: Boost Level Fueling - CAN Bus | G25: 16 PSI | H25: 52 | J25: 4000RPM | K25: 25 | M25: 16 PSI | N25: 52 | P25: 14 PSI | Q25: 167
A26: 16 PSI | B26: =IFERROR(VLOOKUP($Q$26,RawInput!$D$5:$E$200,2,FALSE),0) -> 0 | D26: 0 PSI | E26: 101 | G26: 18 PSI | H26: 56 | J26: MAX | K26: 26 | M26: 18 PSI | N26: 56 | P26: 16 PSI | Q26: 168
A27: 18 PSI | B27: =IFERROR(VLOOKUP($Q$27,RawInput!$D$5:$E$200,2,FALSE),0) -> 0 | D27: 1 PSI | E27: 103 | G27: 20 PSI | H27: 60 | J27: Boost Level Fueling - CAN Bus | M27: 20 PSI | N27: 60 | P27: 18 PSI | Q27: 169
A28: 20 PSI | B28: =IFERROR(VLOOKUP($Q$28,RawInput!$D$5:$E$200,2,FALSE),0) -> 0 | D28: 2 PSI | E28: 105 | G28: 22 PSI | H28: 64 | J28: 0 PSI | K28: 101 | M28: 22 PSI | N28: 64 | P28: 20 PSI | Q28: 170
A29: 22 PSI | B29: =IFERROR(VLOOKUP($Q$29,RawInput!$D$5:$E$200,2,FALSE),0) -> 0 | D29: 3 PSI | E29: 107 | G29: 24 PSI | H29: 68 | J29: 1 PSI | K29: 103 | M29: 24 PSI | N29: 68 | P29: 22 PSI | Q29: 171
A30: 24 PSI | B30: =IFERROR(VLOOKUP($Q$30,RawInput!$D$5:$E$200,2,FALSE),0) -> 0 | D30: 4 PSI | E30: 110 | G30: 26 PSI | H30: 72 | J30: 2 PSI | K30: 105 | M30: 26 PSI | N30: 72 | P30: 24 PSI | Q30: 172
A31: 26 PSI | B31: =IFERROR(VLOOKUP($Q$31,RawInput!$D$5:$E$200,2,FALSE),0) -> 0 | D31: 5 PSI | E31: 113 | G31: 28 PSI | H31: 76 | J31: 3 PSI | K31: 107 | M31: 28 PSI | N31: 76 | P31: 26 PSI | Q31: 173
A32: 28 PSI | B32: =IFERROR(VLOOKUP($Q$32,RawInput!$D$5:$E$200,2,FALSE),0) -> 0 | D32: 6 PSI | E32: 116 | G32: 30 PSI | H32: 80 | J32: 4 PSI | K32: 110 | M32: 30 PSI | N32: 80 | P32: 28 PSI | Q32: 174
A33: 30 PSI | B33: =IFERROR(VLOOKUP($Q$33,RawInput!$D$5:$E$200,2,FALSE),0) -> 0 | D33: 7 PSI | E33: 119 | G33: 32 PSI | H33: 84 | J33: 5 PSI | K33: 113 | M33: 32 PSI | N33: 84 | P33: 30 PSI | Q33: 175
A34: 32 PSI | B34: =IFERROR(VLOOKUP($Q$34,RawInput!$D$5:$E$200,2,FALSE),0) -> 0 | D34: 8 PSI | E34: 122 | G34: 34 PSI | H34: 88 | J34: 6 PSI | K34: 116 | M34: 34 PSI | N34: 88 | P34: 32 PSI | Q34: 176
A35: 34 PSI | B35: =IFERROR(VLOOKUP($Q$35,RawInput!$D$5:$E$200,2,FALSE),0) -> 0 | D35: 9 PSI | E35: 125 | G35: 36 PSI | H35: 92 | J35: 7 PSI | K35: 119 | M35: 36 PSI | N35: 92 | P35: 34 PSI | Q35: 177
A36: 36 PSI | B36: =IFERROR(VLOOKUP($Q$36,RawInput!$D$5:$E$200,2,FALSE),0) -> 0 | D36: 10 PSI | E36: 128 | G36: 38 PSI | H36: 96 | J36: 8 PSI | K36: 122 | M36: 38 PSI | N36: 96 | P36: 36 PSI | Q36: 178
A37: 38 PSI | B37: =IFERROR(VLOOKUP($Q$37,RawInput!$D$5:$E$200,2,FALSE),0) -> 0 | D37: 11 PSI | E37: 131 | G37: 40 PSI | H37: 100 | J37: 9 PSI | K37: 125 | M37: 40 PSI | N37: 100 | P37: 38 PSI | Q37: 179
A38: 40 PSI | B38: =IFERROR(VLOOKUP($Q$38,RawInput!$D$5:$E$200,2,FALSE),0) -> 0 | D38: 12 PSI | E38: 134 | G38: Timing Parameters | J38: 10 PSI | K38: 128 | M38: Timing Parameters | P38: 40 PSI | Q38: 180
A39: Timing Parameters | D39: 13 PSI | E39: 137 | G39: Fuel Load Timing | H39: 2 | J39: 11 PSI | K39: 131 | M39: Fuel Load Timing | N39: 2 | P39: Timing Parameters
A40: Fuel Load Timing | B40: =IFERROR(VLOOKUP($Q$40,RawInput!$D$5:$E$200,2,FALSE),0) -> 2.9 | D40: 14 PSI | E40: 140 | G40: Low PSI Timing Reduct | H40: 2 | J40: 12 PSI | K40: 134 | M40: Low PSI Timing Reduct | N40: 2 | P40: Fuel Load Timing | Q40: 17
A41: Low PSI Timing Reduct | B41: =IFERROR(VLOOKUP($Q$41,RawInput!$D$5:$E$200,2,FALSE),0) -> 4.9 | D41: 15 PSI | E41: 143 | G41: Timing Reduct Scaling | H41: 100 | J41: 13 PSI | K41: 137 | M41: Timing Reduct Scaling | N41: 100 | P41: Low PSI Timing Reduct | Q41: 59
A42: Timing Reduct Scaling | B42: =IFERROR(VLOOKUP($Q$42,RawInput!$D$5:$E$200,2,FALSE),0) -> 50 | D42: 16 PSI | E42: 146 | G42: LightThrottle Timing Adv | H42: 2 | J42: 14 PSI | K42: 140 | M42: LightThrottle Timing Adv | N42: 2 | P42: Timing Reduct Scaling | Q42: 60
A43: LightThrottle Timing Adv | B43: =IFERROR(VLOOKUP($Q$43,RawInput!$D$5:$E$200,2,FALSE),0) -> 1.5 | D43: 18 PSI | E43: 149 | G43: Light Throttle Limit | H43: 5 | J43: 15 PSI | K43: 143 | M43: Light Throttle Limit | N43: 5 | P43: LightThrottle Timing Adv | Q43: 61
A44: Light Throttle Limit | B44: =IFERROR(VLOOKUP($Q$44,RawInput!$D$5:$E$200,2,FALSE),0) -> 30 | D44: 20 PSI | E44: 150 | G44: Timing Equilzer | J44: 16 PSI | K44: 146 | M44: Timing Equilzer | P44: Light Throttle Limit | Q44: 62
A45: Timing Equilzer | D45: 22 PSI | E45: 150 | G45: 1500RPM | H45: 15 | J45: 18 PSI | K45: 149 | M45: 1500RPM | N45: 15 | P45: Timing Equilzer
A46: 1500RPM | B46: =IFERROR(VLOOKUP($Q$46,RawInput!$D$5:$E$200,2,FALSE),0) -> 17 | D46: 24 PSI | E46: 150 | G46: 2000RPM | H46: 18 | J46: 20 PSI | K46: 150 | M46: 2000RPM | N46: 18 | P46: 1500RPM | Q46: 137
A47: 2000RPM | B47: =IFERROR(VLOOKUP($Q$47,RawInput!$D$5:$E$200,2,FALSE),0) -> 20 | D47: 26 PSI | E47: 150 | G47: 2500RPM | H47: 21 | J47: 22 PSI | K47: 150 | M47: 2500RPM | N47: 21 | P47: 2000RPM | Q47: 138
A48: 2500RPM | B48: =IFERROR(VLOOKUP($Q$48,RawInput!$D$5:$E$200,2,FALSE),0) -> 25 | D48: 28 PSI | E48: 150 | G48: 3000RPM | H48: 23 | J48: 24 PSI | K48: 150 | M48: 3000RPM | N48: 23 | P48: 2500RPM | Q48: 139
A49: 3000RPM | B49: =IFERROR(VLOOKUP($Q$49,RawInput!$D$5:$E$200,2,FALSE),0) -> 27.9 | D49: 30+ PSI | E49: 150 | G49: MAX | H49: 26 | J49: 26 PSI | K49: 150 | M49: 3500RPM | N49: 24 | P49: 3000RPM | Q49: 140
A50: 3500RPM | B50: =IFERROR(VLOOKUP($Q$50,RawInput!$D$5:$E$200,2,FALSE),0) -> 0 | G50: Boost Level Fueling - CAN Bus | J50: 28 PSI | K50: 150 | M50: 4000RPM | N50: 25 | P50: 3500RPM | Q50: 142
A51: 4000RPM | B51: =IFERROR(VLOOKUP($Q$51,RawInput!$D$5:$E$200,2,FALSE),0) -> 0 | G51: 0 PSI | H51: 101 | J51: 30+ PSI | K51: 150 | M51: MAX | N51: 26 | P51: 4000RPM | Q51: 143
A52: MAX | B52: =IFERROR(VLOOKUP($Q$52,RawInput!$D$5:$E$200,2,FALSE),0) -> 29.9 | G52: 1 PSI | H52: 103 | M52: Boost Level Fueling - CAN Bus | P52: MAX | Q52: 141
A53: Boost Level Fueling - CAN Bus | G53: 2 PSI | H53: 105 | M53: 0 PSI | N53: 101 | P53: Boost Level Fueling - CAN Bus
A54: 0 PSI | B54: =IFERROR(VLOOKUP($Q$54,RawInput!$D$5:$E$200,2,FALSE),0) -> 66 | G54: 3 PSI | H54: 107 | M54: 1 PSI | N54: 103 | P54: 0 PSI | Q54: 113
A55: 1 PSI | B55: =IFERROR(VLOOKUP($Q$55,RawInput!$D$5:$E$200,2,FALSE),0) -> 66 | G55: 4 PSI | H55: 110 | M55: 2 PSI | N55: 105 | P55: 1 PSI | Q55: 114
A56: 2 PSI | B56: =IFERROR(VLOOKUP($Q$56,RawInput!$D$5:$E$200,2,FALSE),0) -> 67 | G56: 5 PSI | H56: 113 | M56: 3 PSI | N56: 107 | P56: 2 PSI | Q56: 115
A57: 3 PSI | B57: =IFERROR(VLOOKUP($Q$57,RawInput!$D$5:$E$200,2,FALSE),0) -> 68 | G57: 6 PSI | H57: 116 | M57: 4 PSI | N57: 110 | P57: 3 PSI | Q57: 116
A58: 4 PSI | B58: =IFERROR(VLOOKUP($Q$58,RawInput!$D$5:$E$200,2,FALSE),0) -> 70 | G58: 7 PSI | H58: 119 | M58: 5 PSI | N58: 113 | P58: 4 PSI | Q58: 117
A59: 5 PSI | B59: =IFERROR(VLOOKUP($Q$59,RawInput!$D$5:$E$200,2,FALSE),0) -> 71 | G59: 8 PSI | H59: 122 | M59: 6 PSI | N59: 116 | P59: 5 PSI | Q59: 118
A60: 6 PSI | B60: =IFERROR(VLOOKUP($Q$60,RawInput!$D$5:$E$200,2,FALSE),0) -> 72 | G60: 9 PSI | H60: 125 | M60: 7 PSI | N60: 119 | P60: 6 PSI | Q60: 119
A61: 7 PSI | B61: =IFERROR(VLOOKUP($Q$61,RawInput!$D$5:$E$200,2,FALSE),0) -> 74 | G61: 10 PSI | H61: 128 | M61: 8 PSI | N61: 122 | P61: 7 PSI | Q61: 120
A62: 8 PSI | B62: =IFERROR(VLOOKUP($Q$62,RawInput!$D$5:$E$200,2,FALSE),0) -> 76 | G62: 11 PSI | H62: 131 | M62: 9 PSI | N62: 125 | P62: 8 PSI | Q62: 121
A63: 9 PSI | B63: =IFERROR(VLOOKUP($Q$63,RawInput!$D$5:$E$200,2,FALSE),0) -> 78 | G63: 12 PSI | H63: 134 | M63: 10 PSI | N63: 128 | P63: 9 PSI | Q63: 122
A64: 10 PSI | B64: =IFERROR(VLOOKUP($Q$64,RawInput!$D$5:$E$200,2,FALSE),0) -> 80 | G64: 13 PSI | H64: 137 | M64: 11 PSI | N64: 131 | P64: 10 PSI | Q64: 123
A65: 11 PSI | B65: =IFERROR(VLOOKUP($Q$65,RawInput!$D$5:$E$200,2,FALSE),0) -> 82 | G65: 14 PSI | H65: 140 | M65: 12 PSI | N65: 134 | P65: 11 PSI | Q65: 124
A66: 12 PSI | B66: =IFERROR(VLOOKUP($Q$66,RawInput!$D$5:$E$200,2,FALSE),0) -> 84 | G66: 15 PSI | H66: 143 | M66: 13 PSI | N66: 137 | P66: 12 PSI | Q66: 125
A67: 13 PSI | B67: =IFERROR(VLOOKUP($Q$67,RawInput!$D$5:$E$200,2,FALSE),0) -> 86 | G67: 16 PSI | H67: 146 | M67: 14 PSI | N67: 140 | P67: 13 PSI | Q67: 126
A68: 14 PSI | B68: =IFERROR(VLOOKUP($Q$68,RawInput!$D$5:$E$200,2,FALSE),0) -> 90 | G68: 18 PSI | H68: 149 | M68: 15 PSI | N68: 143 | P68: 14 PSI | Q68: 127
A69: 15 PSI | B69: =IFERROR(VLOOKUP($Q$69,RawInput!$D$5:$E$200,2,FALSE),0) -> 94 | G69: 20 PSI | H69: 150 | M69: 16 PSI | N69: 146 | P69: 15 PSI | Q69: 128
A70: 16 PSI | B70: =IFERROR(VLOOKUP($Q$70,RawInput!$D$5:$E$200,2,FALSE),0) -> 98 | G70: 22 PSI | H70: 150 | M70: 18 PSI | N70: 149 | P70: 16 PSI | Q70: 129
A71: 18 PSI | B71: =IFERROR(VLOOKUP($Q$71,RawInput!$D$5:$E$200,2,FALSE),0) -> 102 | G71: 24 PSI | H71: 150 | M71: 20 PSI | N71: 150 | P71: 18 PSI | Q71: 130
A72: 20 PSI | B72: =IFERROR(VLOOKUP($Q$72,RawInput!$D$5:$E$200,2,FALSE),0) -> 106 | G72: 26 PSI | H72: 150 | M72: 22 PSI | N72: 150 | P72: 20 PSI | Q72: 131
A73: 22 PSI | B73: =IFERROR(VLOOKUP($Q$73,RawInput!$D$5:$E$200,2,FALSE),0) -> 110 | G73: 28 PSI | H73: 150 | M73: 24 PSI | N73: 150 | P73: 22 PSI | Q73: 132
A74: 24 PSI | B74: =IFERROR(VLOOKUP($Q$74,RawInput!$D$5:$E$200,2,FALSE),0) -> 114 | G74: 30+ PSI | H74: 150 | M74: 26 PSI | N74: 150 | P74: 24 PSI | Q74: 133
A75: 26 PSI | B75: =IFERROR(VLOOKUP($Q$75,RawInput!$D$5:$E$200,2,FALSE),0) -> 118 | M75: 28 PSI | N75: 150 | P75: 26 PSI | Q75: 134
A76: 28 PSI | B76: =IFERROR(VLOOKUP($Q$76,RawInput!$D$5:$E$200,2,FALSE),0) -> 120 | M76: 30+ PSI | N76: 150 | P76: 28 PSI | Q76: 135
A77: 30+ PSI | B77: =IFERROR(VLOOKUP($Q$77,RawInput!$D$5:$E$200,2,FALSE),0) -> 120 | P77: 30+ PSI | Q77: 136

Sheet DefaultBuilder (hidden)
F1: All Inputs | H1: Testing | P1: Canbus Up or down | W1: Wire Tap Up Down | AG1: Timing | AN1: Timing Reduction | AQ1: Altitude | AR1: HorsePower | AS1: InjectorType | AT1: Low | AU1: Mid | AV1: High | AW1: Time | AX1: Scale | AY1: Reduce | AZ1: Type
F2: Inputs | G2: Offset | H2: Inputs | I2: Offset | J2: Inputs | K2: Offset | L2: Inputs | M2: Offset | N2: V2 | P2: V3 | R2: 4KV2 | T2: 4KV3 | V2: V3 | X2: 4KV3 | Z2: V2 | AB2: V3 | AD2: 4KV2 | AF2: 4KV3 | AH2: V2 | AJ2: V3 | AL2: 4KV2 | AN2: 4KV3
D3: TuneType | G3: =IF($D$4="Mild",3,IF($D$4="Daily",0,IF($D$4="Tow",2,IF($D$4="Street",-5,IF($D$4="Race",-12,0))))) -> 0 | I3: =IF($D$4="Mild",3,IF($D$4="Daily",0,IF($D$4="Tow",2,IF($D$4="Street",-5,IF($D$4="Race",-12,0))))) -> 0 | K3: =IF($D$4="Mild",3,IF($D$4="Daily",0,IF($D$4="Tow",2,IF($D$4="Street",-5,IF($D$4="Race",-12,0))))) -> 0 | M3: =IF($D$4="Mild",3,IF($D$4="Daily",0,IF($D$4="Tow",2,IF($D$4="Street",-5,IF($D$4="Race",-12,0))))) -> 0 | Z3: 1500RPM | AA3: 2 | AB3: 1500RPM | AD3: 1500RPM | AF3: 1500RPM | AQ3: 0 | AR3: 0 | AS3: SAC | AT3: -5 | AU3: -5 | AV3: -5 | AW3: -2 | AX3: 10 | AY3: 0 | AZ3: Mild
D4: Daily | E4: Altitude | F4: 4000 | G4: =F4*0.0025 -> 10 | H4: 500 | I4: =H4*0.0025 -> 1.25 | J4: 5000 | K4: =J4*0.0025 -> 12.5 | L4: 600 | M4: =L4*0.0025 -> 1.5 | N4: Low 1-9 | P4: Low 0-7 | Q4: 0 | R4: Low 0-7 | T4: Low 0-7 | V4: Low 0-7 | X4: Low 1-9 | Z4: 2000RPM | AB4: 2000RPM | AD4: 2000RPM | AF4: 2000RPM | AH4: LPTR | AI4: 2 | AJ4: LPTR | AK4: 2 | AL4: LPTR | AN4: LPTR | AQ4: 250 | AR4: 25 | AS4: VCO | AT4: -4 | AU4: -4 | AV4: -4 | AW4: -1 | AX4: 20 | AY4: 1 | AZ4: Daily
E5: Injector | F5: 175 | G5: =IF(F5<151,F5*0.035,(IF(F5<226,F5*0.06,F5*0.09))) -> 10.5 | H5: 75 | I5: =IF(H5<151,H5*0.035,(IF(H5<226,H5*0.06,H5*0.09))) -> 2.625 | J5: 150 | K5: =IF(J5<151,J5*0.035,(IF(J5<226,J5*0.06,J5*0.09))) -> 5.25 | L5: 0 | M5: =IF(L5<151,L5*0.035,(IF(L5<226,L5*0.06,L5*0.09))) -> 0 | N5: Mid 10-26 | P5: Mid 8-15 | R5: Mid 8-15 | T5: Mid 8-15 | V5: Mid 8-15 | X5: Mid 10-26 | Z5: 2500RPM | AB5: 2500RPM | AD5: 2500RPM | AF5: 2500RPM | AH5: Scale | AI5: 50 | AJ5: Scale | AK5: 100 | AL5: Scale | AN5: Scale | AQ5: 500 | AR5: 50 | AT5: -3 | AU5: -3 | AV5: -3 | AW5: 0 | AX5: 30 | AY5: 2 | AZ5: Tow
E6: Tip | F6: VCO | G6: =IF(F6="VCO",0,2) -> 0 | H6: VCO | I6: =IF(H6="VCO",0,2) -> 0 | J6: SAC | K6: =IF(J6="VCO",0,2) -> 2 | L6: SAC | M6: =IF(L6="VCO",0,2) -> 2 | N6: High 26-40+ | P6: High 16-30+ | R6: High 16-30+ | T6: High 16-30+ | V6: High 16-30+ | X6: High 26-40+ | Z6: 3000RPM | AB6: 3000RPM | AD6: 3000RPM | AF6: 3000RPM | AQ6: 750 | AR6: 75 | AT6: -2 | AU6: -2 | AV6: -2 | AW6: 1 | AX6: 40 | AY6: 3 | AZ6: Street
F7: Total | G7: =SUM(G3:G6) -> 20.5 | H7: Total | I7: =SUM(I3:I6) -> 3.875 | J7: Total | K7: =SUM(K3:K6) -> 19.75 | L7: Total | M7: =SUM(M3:M6) -> 3.5 | N7: Value | P7: Value | R7: Value | T7: Value | V7: Value | W7: 0 | X7: Value | Z7: MAX | AB7: MAX | AD7: 3500RPM | AF7: 3500RPM | AQ7: 1000 | AR7: 100 | AT7: -1 | AU7: -1 | AV7: -1 | AW7: 2 | AX7: 50 | AY7: 4 | AZ7: Race
E8: 150 | F8: 101 | G8: =IF(ROUNDDOWN(F8-$G$7,0)>150,150,IF(ROUNDDOWN(F8-$G$7,0)<50,50,ROUNDDOWN(F8-$G$7,0))) -> 80 | H8: 101 | I8: =IF(ROUNDDOWN(H8-$I$7,0)>150,150,IF(ROUNDDOWN(H8-$I$7,0)<50,50,ROUNDDOWN(H8-$I$7,0))) -> 97 | J8: 101 | K8: =IF(ROUNDDOWN(J8-$K$7,0)>150,150,IF(ROUNDDOWN(J8-$K$7,0)<50,50,ROUNDDOWN(J8-$K$7,0))) -> 81 | L8: 101 | M8: =IF(ROUNDDOWN(L8-$M$7,0)>150,150,IF(ROUNDDOWN(L8-$M$7,0)<50,50,ROUNDDOWN(L8-$M$7,0))) -> 97 | N8: =V2_TuneBuilder!B26 -> 101 | O8: =IF(SUM(N8,$O$4)>150,150,IF(SUM(N8,$O$4)<50,50,SUM(N8,$O$4))) -> 101 | P8: =V3_TuneBuilder!B51 -> 101 | Q8: =IF(SUM(P8,$Q$4)>150,150,IF(SUM(P8,$Q$4)<50,50,SUM(P8,$Q$4))) -> 101 | R8: ='4KV2_TuneBuilder'!B28 -> 101 | S8: =IF(SUM(R8,$S$4)>150,150,IF(SUM(R8,$S$4)<50,50,SUM(R8,$S$4))) -> 101 | T8: ='4KV3_TuneBuilder'!B53 -> 101 | U8: =IF(SUM(T8,$U$4)>150,150,IF(SUM(T8,$U$4)<50,50,SUM(T8,$U$4))) -> 101 | V8: =V3_TuneBuilder!B13 -> 4 | W8: =IF(SUM(V8,$W$4)>100,100,IF(SUM(V8,$W$4)<0,0,SUM(V8,$W$4))) -> 4 | X8: ='4KV3_TuneBuilder'!B13 -> 4 | Y8: =IF(SUM(X8,$Y$4)>100,100,IF(SUM(X8,$Y$4)<0,0,SUM(X8,$Y$4))) -> 4 | AD8: 4000RPM | AF8: 4000RPM | AQ8: 1250 | AR8: 125 | AT8: 0 | AU8: 0 | AV8: 0 | AX8: 60 | AY8: 5 | AZ8: Extreme
E9: 150 | F9: 103 | G9: =IF(ROUNDDOWN(F9-$G$7,0)>150,150,IF(ROUNDDOWN(F9-$G$7,0)<50,50,ROUNDDOWN(F9-$G$7,0))) -> 82 | H9: 103 | I9: =IF(ROUNDDOWN(H9-$I$7,0)>150,150,IF(ROUNDDOWN(H9-$I$7,0)<50,50,ROUNDDOWN(H9-$I$7,0))) -> 99 | J9: 103 | K9: =IF(ROUNDDOWN(J9-$K$7,0)>150,150,IF(ROUNDDOWN(J9-$K$7,0)<50,50,ROUNDDOWN(J9-$K$7,0))) -> 83 | L9: 103 | M9: =ROUNDDOWN(L9-$M$7,0) -> 99 | N9: =V2_TuneBuilder!B27 -> 103 | O9: =IF(SUM(N9,$O$4)>150,150,IF(SUM(N9,$O$4)<50,50,SUM(N9,$O$4))) -> 103 | P9: =V3_TuneBuilder!B52 -> 103 | Q9: =IF(SUM(P9,$Q$4)>150,150,IF(SUM(P9,$Q$4)<50,50,SUM(P9,$Q$4))) -> 103 | R9: ='4KV2_TuneBuilder'!B29 -> 103 | S9: =IF(SUM(R9,$S$4)>150,150,IF(SUM(R9,$S$4)<50,50,SUM(R9,$S$4))) -> 103 | T9: ='4KV3_TuneBuilder'!B54 -> 103 | U9: =IF(SUM(T9,$U$4)>150,150,IF(SUM(T9,$U$4)<50,50,SUM(T9,$U$4))) -> 103 | V9: =V3_TuneBuilder!B14 -> 8 | W9: =IF(SUM(V9,$W$4)>100,100,IF(SUM(V9,$W$4)<0,0,SUM(V9,$W$4))) -> 8 | X9: ='4KV3_TuneBuilder'!B14 -> 8 | Y9: =IF(SUM(X9,$Y$4)>100,100,IF(SUM(X9,$Y$4)<0,0,SUM(X9,$Y$4))) -> 8 | AD9: Max | AE9: 0 | AF9: Max | AQ9: 1500 | AR9: 150 | AT9: 1 | AU9: 1 | AV9: 1 | AX9: 70
C10: Fuel Stretch | E10: 150 | F10: 105 | G10: 84 | H10: 105 | I10: 101 | J10: 105 | K10: 85 | L10: 105 | M10: 101 | N10: =V2_TuneBuilder!B28 -> 105 | O10: 105 | P10: =V3_TuneBuilder!B53 -> 105 | Q10: 105 | R10: ='4KV2_TuneBuilder'!B30 -> 105 | S10: 105 | T10: ='4KV3_TuneBuilder'!B55 -> 105 | U10: 105 | V10: =V3_TuneBuilder!B15 -> 12 | W10: 12 | X10: ='4KV3_TuneBuilder'!B15 -> 12 | Y10: 12 | Z10: =V2_TuneBuilder!B20 -> 15 | AA10: =IF(SUM(Z10,AA3)>17,17,IF(SUM(Z10,AA3)<12,12,SUM(Z10,AA3))) -> 17 | AB10: =V3_TuneBuilder!B45 -> 15 | AC10: =IF(SUM(AB10,AC3)>17,17,IF(SUM(AB10,AC3)<12,12,SUM(AB10,AC3))) -> 15 | AD10: ='4KV2_TuneBuilder'!B20 -> 15 | AE10: =IF(SUM(AD10,AE3)>17,17,IF(SUM(AD10,AE3)<12,12,SUM(AD10,AE3))) -> 15 | AF10: ='4KV3_TuneBuilder'!B45 -> 15 | AG10: =IF(SUM(AF10,AG3)>17,17,IF(SUM(AF10,AG3)<12,12,SUM(AF10,AG3))) -> 15 | AQ10: 1750 | AR10: 175 | AT10: 2 | AU10: 2 | AV10: 2 | AX10: 80
C11: V2 | D11: =IF(D4="Tow",1200,IF(OR(F5<51,D4="Extreme"),1800,IF(OR(F5<101,D4="Race"),1700,IF(F5<151,1600,IF(OR(F5<201,D4="Daily"),1500,IF(OR(F5<251,D4="Mild"),1350,1200)))))) -> 1500 | E11: 150 | F11: 107 | G11: 86 | H11: 107 | I11: 103 | J11: 107 | K11: 87 | L11: 107 | M11: 103 | N11: =V2_TuneBuilder!B29 -> 107 | O11: 107 | P11: =V3_TuneBuilder!B54 -> 107 | Q11: 107 | R11: ='4KV2_TuneBuilder'!B31 -> 107 | S11: 107 | T11: ='4KV3_TuneBuilder'!B56 -> 107 | U11: 107 | V11: =V3_TuneBuilder!B16 -> 16 | W11: 16 | X11: ='4KV3_TuneBuilder'!B16 -> 16 | Y11: 16 | Z11: =V2_TuneBuilder!B21 -> 18 | AA11: =IF(SUM(Z11,AA4)>22,22,IF(SUM(Z11,AA4)<13,13,SUM(Z11,AA4))) -> 18 | AB11: =V3_TuneBuilder!B46 -> 18 | AC11: =IF(SUM(AB11,AC4)>22,22,IF(SUM(AB11,AC4)<13,13,SUM(AB11,AC4))) -> 18 | AD11: ='4KV2_TuneBuilder'!B21 -> 18 | AE11: =IF(SUM(AD11,AE4)>22,30,IF(SUM(AD11,AE4)<13,13,SUM(AD11,AE4))) -> 18 | AF11: ='4KV3_TuneBuilder'!B46 -> 18 | AG11: =IF(SUM(AF11,AG4)>22,22,IF(SUM(AF11,AG4)<13,13,SUM(AF11,AG4))) -> 18 | AQ11: 2000 | AR11: 200 | AT11: 3 | AU11: 3 | AV11: 3 | AX11: 90
C12: V3 | D12: =IF(D4="Tow",1200,IF(OR(H5<51,D4="Extreme"),1800,IF(OR(H5<101,D4="Race"),1700,IF(H5<151,1600,IF(OR(H5<201,D4="Tow",D4="Daily"),1500,IF(OR(H5<251,"Mild"),1350,1200)))))) -> 1700 | E12: 150 | F12: 110 | G12: 89 | H12: 110 | I12: 106 | J12: 110 | K12: 90 | L12: 110 | M12: 106 | N12: =V2_TuneBuilder!B30 -> 110 | O12: 110 | P12: =V3_TuneBuilder!B55 -> 110 | Q12: 110 | R12: ='4KV2_TuneBuilder'!B32 -> 110 | S12: 110 | T12: ='4KV3_TuneBuilder'!B57 -> 110 | U12: 110 | V12: =V3_TuneBuilder!B17 -> 20 | W12: 20 | X12: ='4KV3_TuneBuilder'!B17 -> 20 | Y12: 20 | Z12: =V2_TuneBuilder!B22 -> 21 | AA12: =IF(SUM(Z12,AA5)>25,25,IF(SUM(Z12,AA5)<18,18,SUM(Z12,AA5))) -> 21 | AB12: =V3_TuneBuilder!B47 -> 21 | AC12: =IF(SUM(AB12,AC5)>25,25,IF(SUM(AB12,AC5)<18,18,SUM(AB12,AC5))) -> 21 | AD12: ='4KV2_TuneBuilder'!B22 -> 21 | AE12: =IF(SUM(AD12,AE5)>25,25,IF(SUM(AD12,AE5)<18,18,SUM(AD12,AE5))) -> 21 | AF12: ='4KV3_TuneBuilder'!B47 -> 21 | AG12: =IF(SUM(AF12,AG5)>25,25,IF(SUM(AF12,AG5)<18,18,SUM(AF12,AG5))) -> 21 | AQ12: 2250 | AR12: 225 | AT12: 4 | AU12: 4 | AV12: 4 | AX12: 100
C13: V24K | D13: =IF(D4="Tow",4000,IF(OR(J5<51,D4="Extreme"),6000,IF(OR(J5<101,D4="Race"),5600,IF(J5<151,5000,IF(OR(J5<201,D4="Tow",D4="Daily"),4800,IF(OR(J5<251,"Mild"),4500,4200)))))) -> 5000 | E13: 150 | F13: 113 | G13: 92 | H13: 113 | I13: 109 | J13: 113 | K13: 93 | L13: 113 | M13: 109 | N13: =V2_TuneBuilder!B31 -> 113 | O13: 113 | P13: =V3_TuneBuilder!B56 -> 113 | Q13: 113 | R13: ='4KV2_TuneBuilder'!B33 -> 113 | S13: 113 | T13: ='4KV3_TuneBuilder'!B58 -> 113 | U13: 113 | V13: =V3_TuneBuilder!B18 -> 24 | W13: 24 | X13: ='4KV3_TuneBuilder'!B18 -> 24 | Y13: 24 | Z13: =V2_TuneBuilder!B23 -> 23 | AA13: =IF(SUM(Z13,AA6)>30,30,IF(SUM(Z13,AA6)<20,20,SUM(Z13,AA6))) -> 23 | AB13: =V3_TuneBuilder!B48 -> 23 | AC13: =IF(SUM(AB13,AC6)>30,30,IF(SUM(AB13,AC6)<20,20,SUM(AB13,AC6))) -> 23 | AD13: ='4KV2_TuneBuilder'!B23 -> 23 | AE13: =IF(SUM(AD13,AE6)>30,30,IF(SUM(AD13,AE6)<20,20,SUM(AD13,AE6))) -> 23 | AF13: ='4KV3_TuneBuilder'!B48 -> 23 | AG13: =IF(SUM(AF13,AG6)>30,30,IF(SUM(AF13,AG6)<20,20,SUM(AF13,AG6))) -> 23 | AQ13: 2500 | AR13: 250 | AT13: 5 | AU13: 5 | AV13: 5
C14: V34k | D14: =IF(D4="Tow",4000,IF(OR(L5<51,D4="Extreme"),6000,IF(OR(L5<101,D4="Race"),5600,IF(L5<151,5000,IF(OR(L5<201,D4="Tow",D4="Daily"),4800,IF(OR(L5<251,"Mild"),4500,4200)))))) -> 6000 | E14: 150 | F14: 116 | G14: 95 | H14: 116 | I14: 112 | J14: 116 | K14: 96 | L14: 116 | M14: 112 | N14: =V2_TuneBuilder!B32 -> 116 | O14: 116 | P14: =V3_TuneBuilder!B57 -> 116 | Q14: 116 | R14: ='4KV2_TuneBuilder'!B34 -> 116 | S14: 116 | T14: ='4KV3_TuneBuilder'!B59 -> 116 | U14: 116 | V14: =V3_TuneBuilder!B19 -> 28 | W14: 28 | X14: ='4KV3_TuneBuilder'!B19 -> 28 | Y14: 28 | Z14: =V2_TuneBuilder!B24 -> 26 | AA14: =IF(SUM(Z14,AA7)>30,30,IF(SUM(Z14,AA7)<23,23,SUM(Z14,AA7))) -> 26 | AB14: =V3_TuneBuilder!B49 -> 26 | AC14: =IF(SUM(AB14,AC7)>30,30,IF(SUM(AB14,AC7)<23,0,SUM(AB14,AC7))) -> 26 | AD14: ='4KV2_TuneBuilder'!B24 -> 24 | AE14: =IF(SUM(AD14,AE7)>30,30,IF(SUM(AD14,AE7)<23,23,SUM(AD14,AE7))) -> 24 | AF14: ='4KV3_TuneBuilder'!B49 -> 24 | AG14: =IF(SUM(AF14,AG7)>30,30,IF(SUM(AF14,AG7)<23,23,SUM(AF14,AG7))) -> 24 | AQ14: 2750 | AR14: 275
C15: Pump Tap | E15: 150 | F15: 119 | G15: 98 | H15: 119 | I15: 115 | J15: 119 | K15: 99 | L15: 119 | M15: 115 | N15: =V2_TuneBuilder!B33 -> 119 | O15: 119 | P15: =V3_TuneBuilder!B58 -> 119 | Q15: 119 | R15: ='4KV2_TuneBuilder'!B35 -> 119 | S15: 119 | T15: ='4KV3_TuneBuilder'!B60 -> 119 | U15: 119 | V15: =V3_TuneBuilder!B20 -> 32 | W15: 32 | X15: ='4KV3_TuneBuilder'!B20 -> 32 | Y15: 32 | AD15: ='4KV2_TuneBuilder'!B25 -> 25 | AE15: =IF(SUM(AD15,AE8)>30,30,IF(SUM(AD15,AE8)<24,24,SUM(AD15,AE8))) -> 25 | AF15: ='4KV3_TuneBuilder'!B50 -> 25 | AG15: =IF(SUM(AF15,AG8)>30,30,IF(SUM(AF15,AG8)<24,24,SUM(AF15,AG8))) -> 25 | AQ15: 3000 | AR15: 300
C16: TPS Pump Maximum | D16: =IF(D4="Race",80,IF(D4="Extreme",70,100)) -> 100 | E16: 150 | F16: 122 | G16: 101 | H16: 122 | I16: 118 | J16: 122 | K16: 102 | L16: 122 | M16: 118 | N16: =V2_TuneBuilder!B34 -> 122 | O16: =IF(SUM(N16,$O$5)>150,150,IF(SUM(N16,$O$5)<50,50,SUM(N16,$O$5))) -> 122 | P16: =V3_TuneBuilder!B59 -> 122 | Q16: =IF(SUM(P16,$Q$5)>150,150,IF(SUM(P16,$Q$5)<50,50,SUM(P16,$Q$5))) -> 122 | R16: ='4KV2_TuneBuilder'!B36 -> 122 | S16: =IF(SUM(R16,$S$5)>150,150,IF(SUM(R16,$S$5)<50,50,SUM(R16,$S$5))) -> 122 | T16: ='4KV3_TuneBuilder'!B61 -> 122 | U16: =IF(SUM(T16,$U$5)>150,150,IF(SUM(T16,$U$5)<50,50,SUM(T16,$U$5))) -> 122 | V16: =V3_TuneBuilder!B21 -> 36 | W16: =IF(SUM(V16,$W$4)>100,100,IF(SUM(V16,$W$4)<0,0,SUM(V16,$W$4))) -> 36 | X16: ='4KV3_TuneBuilder'!B21 -> 36 | Y16: 36 | AD16: ='4KV2_TuneBuilder'!B26 -> 26 | AE16: =IF(SUM(AD16,AE9)>30,30,IF(SUM(AD16,AE9)<25,25,SUM(AD16,AE9))) -> 26 | AF16: ='4KV3_TuneBuilder'!B51 -> 26 | AG16: =IF(SUM(AF16,AG9)>30,30,IF(SUM(AF16,AG9)<25,25,SUM(AF16,AG9))) -> 26 | AQ16: 3250
C17: TPS Pump Minimum | D17: 0 | E17: 150 | F17: 125 | G17: 104 | H17: 125 | I17: 121 | J17: 125 | K17: 105 | L17: 125 | M17: 121 | N17: =V2_TuneBuilder!B35 -> 125 | O17: =IF(SUM(N17,$O$5)>150,150,IF(SUM(N17,$O$5)<50,50,SUM(N17,$O$5))) -> 125 | P17: =V3_TuneBuilder!B60 -> 125 | Q17: =IF(SUM(P17,$Q$5)>150,150,IF(SUM(P17,$Q$5)<50,50,SUM(P17,$Q$5))) -> 125 | R17: ='4KV2_TuneBuilder'!B37 -> 125 | S17: =IF(SUM(R17,$S$5)>150,150,IF(SUM(R17,$S$5)<50,50,SUM(R17,$S$5))) -> 125 | T17: ='4KV3_TuneBuilder'!B62 -> 125 | U17: =IF(SUM(T17,$U$5)>150,150,IF(SUM(T17,$U$5)<50,50,SUM(T17,$U$5))) -> 125 | V17: =V3_TuneBuilder!B22 -> 40 | W17: =IF(SUM(V17,$W$5)>100,100,IF(SUM(V17,$W$5)<0,0,SUM(V17,$W$5))) -> 40 | X17: ='4KV3_TuneBuilder'!B22 -> 40 | Y17: =IF(SUM(X17,$Y$5)>100,100,IF(SUM(X17,$Y$5)<0,0,SUM(X17,$Y$5))) -> 40 | AQ17: 3500
C18: Min Pump Tap Fueling % | D18: =IF(OR(D4="Mild",D4="Tow"),0,IF(D4="Daily",5,IF(D4="Street",10,IF(D4="Race",15,IF(D4="Extreme",25,0))))) -> 5 | E18: 150 | F18: 128 | G18: 107 | H18: 128 | I18: 124 | J18: 128 | K18: 108 | L18: 128 | M18: 124 | N18: =V2_TuneBuilder!B36 -> 128 | O18: =IF(SUM(N18,$O$5)>150,150,IF(SUM(N18,$O$5)<50,50,SUM(N18,$O$5))) -> 128 | P18: =V3_TuneBuilder!B61 -> 128 | Q18: 128 | R18: ='4KV2_TuneBuilder'!B38 -> 128 | S18: 128 | T18: ='4KV3_TuneBuilder'!B63 -> 128 | U18: 128 | V18: =V3_TuneBuilder!B23 -> 44 | W18: =IF(SUM(V18,$W$5)>100,100,IF(SUM(V18,$W$5)<0,0,SUM(V18,$W$5))) -> 44 | X18: ='4KV3_TuneBuilder'!B23 -> 44 | Y18: =IF(SUM(X18,$Y$5)>100,100,IF(SUM(X18,$Y$5)<0,0,SUM(X18,$Y$5))) -> 44 | AQ18: 3750
C19: Pump Tap Min PSI | D19: =IF(D4="Mild",12,IF(D4="Daily",10,IF(D4="Tow",15,IF(D4="Street",8,IF(D4="Race",5,IF(D4="Extreme",0,10)))))) -> 10 | E19: 150 | F19: 131 | G19: 110 | H19: 131 | I19: 127 | J19: 131 | K19: 111 | L19: 131 | M19: 127 | N19: =V2_TuneBuilder!B37 -> 131 | O19: 131 | P19: =V3_TuneBuilder!B62 -> 131 | Q19: 131 | R19: ='4KV2_TuneBuilder'!B39 -> 131 | S19: 131 | T19: ='4KV3_TuneBuilder'!B64 -> 131 | U19: 131 | V19: =V3_TuneBuilder!B24 -> 48 | W19: 48 | X19: ='4KV3_TuneBuilder'!B24 -> 48 | Y19: 48 | AQ19: 4000
C20: Boost Scaling | D20: 40 | E20: 150 | F20: 134 | G20: 113 | H20: 134 | I20: 130 | J20: 134 | K20: 114 | L20: 134 | M20: 130 | N20: =V2_TuneBuilder!B38 -> 134 | O20: 134 | P20: =V3_TuneBuilder!B63 -> 134 | Q20: 134 | R20: ='4KV2_TuneBuilder'!B40 -> 134 | S20: 134 | T20: ='4KV3_TuneBuilder'!B65 -> 134 | U20: 134 | V20: =V3_TuneBuilder!B25 -> 52 | W20: 52 | X20: ='4KV3_TuneBuilder'!B25 -> 52 | Y20: 52 | AQ20: 4250
E21: 150 | F21: 137 | G21: 116 | H21: 137 | I21: 133 | J21: 137 | K21: 117 | L21: 137 | M21: 133 | N21: =V2_TuneBuilder!B39 -> 137 | O21: 137 | P21: =V3_TuneBuilder!B64 -> 137 | Q21: 137 | R21: ='4KV2_TuneBuilder'!B41 -> 137 | S21: 137 | T21: ='4KV3_TuneBuilder'!B66 -> 137 | U21: 137 | V21: =V3_TuneBuilder!B26 -> 56 | W21: 56 | X21: ='4KV3_TuneBuilder'!B26 -> 56 | Y21: 56 | AQ21: 4500
E22: 150 | F22: 140 | G22: 119 | H22: 140 | I22: 136 | J22: 140 | K22: 120 | L22: 140 | M22: 136 | N22: =V2_TuneBuilder!B40 -> 140 | O22: 140 | P22: =V3_TuneBuilder!B65 -> 140 | Q22: 140 | R22: ='4KV2_TuneBuilder'!B42 -> 140 | S22: 140 | T22: ='4KV3_TuneBuilder'!B67 -> 140 | U22: 140 | V22: =V3_TuneBuilder!B27 -> 60 | W22: 60 | X22: ='4KV3_TuneBuilder'!B27 -> 60 | Y22: 60 | AQ22: 4750
E23: 150 | F23: 143 | G23: 122 | H23: 143 | I23: 139 | J23: 143 | K23: 123 | L23: 143 | M23: 139 | N23: =V2_TuneBuilder!B41 -> 143 | O23: 143 | P23: =V3_TuneBuilder!B66 -> 143 | Q23: 143 | R23: ='4KV2_TuneBuilder'!B43 -> 143 | S23: 143 | T23: ='4KV3_TuneBuilder'!B68 -> 143 | U23: 143 | V23: =V3_TuneBuilder!B28 -> 64 | W23: 64 | X23: ='4KV3_TuneBuilder'!B28 -> 64 | Y23: 64 | AQ23: 5000
E24: 150 | F24: 146 | G24: 125 | H24: 146 | I24: 142 | J24: 146 | K24: 126 | L24: 146 | M24: 142 | N24: =V2_TuneBuilder!B42 -> 146 | O24: =IF(SUM(N24,$O$6)>150,150,IF(SUM(N24,$O$6)<50,50,SUM(N24,$O$6))) -> 146 | P24: =V3_TuneBuilder!B67 -> 146 | Q24: =IF(SUM(P24,$Q$6)>150,150,IF(SUM(P24,$Q$6)<50,50,SUM(P24,$Q$6))) -> 146 | R24: ='4KV2_TuneBuilder'!B44 -> 146 | S24: =IF(SUM(R24,$S$6)>150,150,IF(SUM(R24,$S$6)<50,50,SUM(R24,$S$6))) -> 146 | T24: ='4KV3_TuneBuilder'!B69 -> 146 | U24: =IF(SUM(T24,$U$6)>150,150,IF(SUM(T24,$U$6)<50,50,SUM(T24,$U$6))) -> 146 | V24: =V3_TuneBuilder!B29 -> 68 | W24: 68 | X24: ='4KV3_TuneBuilder'!B29 -> 68 | Y24: 68 | AQ24: 5250
E25: 150 | F25: 149 | G25: 128 | H25: 149 | I25: 145 | J25: 149 | K25: 129 | L25: 149 | M25: 145 | N25: =V2_TuneBuilder!B43 -> 149 | O25: =IF(SUM(N25,$O$6)>150,150,IF(SUM(N25,$O$6)<50,50,SUM(N25,$O$6))) -> 149 | P25: =V3_TuneBuilder!B68 -> 149 | Q25: =IF(SUM(P25,$Q$6)>150,150,IF(SUM(P25,$Q$6)<50,50,SUM(P25,$Q$6))) -> 149 | R25: ='4KV2_TuneBuilder'!B45 -> 149 | S25: =IF(SUM(R25,$S$6)>150,150,IF(SUM(R25,$S$6)<50,50,SUM(R25,$S$6))) -> 149 | T25: ='4KV3_TuneBuilder'!B70 -> 149 | U25: =IF(SUM(T25,$U$6)>150,150,IF(SUM(T25,$U$6)<50,50,SUM(T25,$U$6))) -> 149 | V25: =V3_TuneBuilder!B30 -> 72 | W25: =IF(SUM(V25,$W$6)>100,100,IF(SUM(V25,$W$6)<0,0,SUM(V25,$W$6))) -> 72 | X25: ='4KV3_TuneBuilder'!B30 -> 72 | Y25: =IF(SUM(X25,$Y$6)>100,100,IF(SUM(X25,$Y$6)<0,0,SUM(X25,$Y$6))) -> 72 | AQ25: 5500
E26: 150 | F26: 150 | G26: 129 | H26: 150 | I26: 146 | J26: 150 | K26: 130 | L26: 150 | M26: 146 | N26: =V2_TuneBuilder!B44 -> 150 | O26: =IF(SUM(N26,$O$6)>150,150,IF(SUM(N26,$O$6)<50,50,SUM(N26,$O$6))) -> 150 | P26: =V3_TuneBuilder!B69 -> 150 | Q26: 150 | R26: ='4KV2_TuneBuilder'!B46 -> 150 | S26: 150 | T26: ='4KV3_TuneBuilder'!B71 -> 150 | U26: 150 | V26: =V3_TuneBuilder!B31 -> 76 | W26: =IF(SUM(V26,$W$6)>100,100,IF(SUM(V26,$W$6)<0,0,SUM(V26,$W$6))) -> 76 | X26: ='4KV3_TuneBuilder'!B31 -> 76 | Y26: =IF(SUM(X26,$Y$6)>100,100,IF(SUM(X26,$Y$6)<0,0,SUM(X26,$Y$6))) -> 76 | AQ26: 5750
E27: 150 | F27: 150 | G27: 129 | H27: 150 | I27: 146 | J27: 150 | K27: 130 | L27: 150 | M27: 146 | N27: =V2_TuneBuilder!B45 -> 150 | O27: 150 | P27: =V3_TuneBuilder!B70 -> 150 | Q27: 150 | R27: ='4KV2_TuneBuilder'!B47 -> 150 | S27: 150 | T27: ='4KV3_TuneBuilder'!B72 -> 150 | U27: 150 | V27: =V3_TuneBuilder!B32 -> 80 | W27: 80 | X27: ='4KV3_TuneBuilder'!B32 -> 80 | Y27: 80 | AQ27: 6000
E28: 150 | F28: 150 | G28: 129 | H28: 150 | I28: 146 | J28: 150 | K28: 130 | L28: 150 | M28: 146 | N28: =V2_TuneBuilder!B46 -> 150 | O28: 150 | P28: =V3_TuneBuilder!B71 -> 150 | Q28: 150 | R28: ='4KV2_TuneBuilder'!B48 -> 150 | S28: 150 | T28: ='4KV3_TuneBuilder'!B73 -> 150 | U28: 150 | V28: =V3_TuneBuilder!B33 -> 84 | W28: 84 | X28: ='4KV3_TuneBuilder'!B33 -> 84 | Y28: 84 | AQ28: 6250
E29: 150 | F29: 150 | G29: 129 | H29: 150 | I29: 146 | J29: 150 | K29: 130 | L29: 150 | M29: 146 | N29: =V2_TuneBuilder!B47 -> 150 | O29: 150 | P29: =V3_TuneBuilder!B72 -> 150 | Q29: 150 | R29: ='4KV2_TuneBuilder'!B49 -> 150 | S29: 150 | T29: ='4KV3_TuneBuilder'!B74 -> 150 | U29: 150 | V29: =V3_TuneBuilder!B34 -> 88 | W29: 88 | X29: ='4KV3_TuneBuilder'!B34 -> 88 | Y29: 88 | AQ29: 6500
E30: 150 | F30: 150 | G30: 129 | H30: 150 | I30: 146 | J30: 150 | K30: 130 | L30: 150 | M30: 146 | N30: =V2_TuneBuilder!B48 -> 150 | O30: 150 | P30: =V3_TuneBuilder!B73 -> 150 | Q30: 150 | R30: ='4KV2_TuneBuilder'!B50 -> 150 | S30: 150 | T30: ='4KV3_TuneBuilder'!B75 -> 150 | U30: 150 | V30: =V3_TuneBuilder!B35 -> 92 | W30: 92 | X30: ='4KV3_TuneBuilder'!B35 -> 92 | Y30: 92 | AQ30: 6750
E31: 150 | F31: 150 | G31: 129 | H31: 150 | I31: 146 | J31: 150 | K31: 130 | L31: 150 | M31: 146 | N31: =V2_TuneBuilder!B49 -> 150 | O31: 150 | P31: =V3_TuneBuilder!B74 -> 150 | Q31: 150 | R31: ='4KV2_TuneBuilder'!B51 -> 150 | S31: 150 | T31: ='4KV3_TuneBuilder'!B76 -> 150 | U31: 150 | V31: =V3_TuneBuilder!B36 -> 96 | W31: 96 | X31: ='4KV3_TuneBuilder'!B36 -> 96 | Y31: 96 | AQ31: 7000
V32: =V3_TuneBuilder!B37 -> 100 | W32: 100 | X32: ='4KV3_TuneBuilder'!B37 -> 100 | Y32: 100 | AQ32: 7250
AQ33: 7500
AQ34: 7750
AQ35: 8000
AQ36: 8250
AQ37: 8500
AQ38: 8750
AQ39: 9000
AQ40: 9250
AQ41: 9500
AQ42: 9750
AQ43: 10000
AQ44: 10250
AQ45: 10500
AQ46: 10750
AQ47: 11000
AQ48: 11250
AQ49: 11500
AQ50: 11750
AQ51: 12000

Sheet GraphBuild (hidden)
A1: V2
A2: TPS % | B2: 0.04 | C2: 0.08 | D2: 0.12 | E2: 0.16 | F2: 0.2 | G2: 0.24 | H2: 0.28 | I2: 0.32 | J2: 0.36 | K2: 0.4 | L2: 0.44 | M2: 0.48 | N2: 0.52 | O2: 0.56 | P2: 0.6 | Q2: 0.64 | R2: 0.68 | S2: 0.72 | T2: 0.76 | U2: 0.8 | V2: 0.84 | W2: 0.88 | X2: 0.92 | Y2: 0.96 | Z2: 1
A3: 1 | B3: =B$2*V3_TuneBuilder!$B13 -> 0.16 | C3: =C$2*V3_TuneBuilder!$B13 -> 0.32 | D3: =D$2*V3_TuneBuilder!$B13 -> 0.48 | E3: =E$2*V3_TuneBuilder!$B13 -> 0.64 | F3: =F$2*V3_TuneBuilder!$B13 -> 0.8 | G3: =G$2*V3_TuneBuilder!$B13 -> 0.96 | H3: =H$2*V3_TuneBuilder!$B13 -> 1.12 | I3: =I$2*V3_TuneBuilder!$B13 -> 1.28 | J3: =J$2*V3_TuneBuilder!$B13 -> 1.44 | K3: =K$2*V3_TuneBuilder!$B13 -> 1.6 | L3: =L$2*V3_TuneBuilder!$B13 -> 1.76 | M3: =M$2*V3_TuneBuilder!$B13 -> 1.92 | N3: =N$2*V3_TuneBuilder!$B13 -> 2.08 | O3: =O$2*V3_TuneBuilder!$B13 -> 2.24 | P3: =P$2*V3_TuneBuilder!$B13 -> 2.4 | Q3: =Q$2*V3_TuneBuilder!$B13 -> 2.56 | R3: =R$2*V3_TuneBuilder!$B13 -> 2.72 | S3: =S$2*V3_TuneBuilder!$B13 -> 2.88 | T3: =T$2*V3_TuneBuilder!$B13 -> 3.04 | U3: =U$2*V3_TuneBuilder!$B13 -> 3.2 | V3: =V$2*V3_TuneBuilder!$B13 -> 3.36 | W3: =W$2*V3_TuneBuilder!$B13 -> 3.52 | X3: =X$2*V3_TuneBuilder!$B13 -> 3.68 | Y3: =Y$2*V3_TuneBuilder!$B13 -> 3.84 | Z3: =Z$2*V3_TuneBuilder!$B13 -> 4
A4: 2 | B4: =B$2*V3_TuneBuilder!$B14 -> 0.32 | C4: =C$2*V3_TuneBuilder!$B14 -> 0.64 | D4: =D$2*V3_TuneBuilder!$B14 -> 0.96 | E4: =E$2*V3_TuneBuilder!$B14 -> 1.28 | F4: =F$2*V3_TuneBuilder!$B14 -> 1.6 | G4: =G$2*V3_TuneBuilder!$B14 -> 1.92 | H4: =H$2*V3_TuneBuilder!$B14 -> 2.24 | I4: =I$2*V3_TuneBuilder!$B14 -> 2.56 | J4: =J$2*V3_TuneBuilder!$B14 -> 2.88 | K4: =K$2*V3_TuneBuilder!$B14 -> 3.2 | L4: =L$2*V3_TuneBuilder!$B14 -> 3.52 | M4: =M$2*V3_TuneBuilder!$B14 -> 3.84 | N4: =N$2*V3_TuneBuilder!$B14 -> 4.16 | O4: =O$2*V3_TuneBuilder!$B14 -> 4.48 | P4: =P$2*V3_TuneBuilder!$B14 -> 4.8 | Q4: =Q$2*V3_TuneBuilder!$B14 -> 5.12 | R4: =R$2*V3_TuneBuilder!$B14 -> 5.44 | S4: =S$2*V3_TuneBuilder!$B14 -> 5.76 | T4: =T$2*V3_TuneBuilder!$B14 -> 6.08 | U4: =U$2*V3_TuneBuilder!$B14 -> 6.4 | V4: =V$2*V3_TuneBuilder!$B14 -> 6.72 | W4: =W$2*V3_TuneBuilder!$B14 -> 7.04 | X4: =X$2*V3_TuneBuilder!$B14 -> 7.36 | Y4: =Y$2*V3_TuneBuilder!$B14 -> 7.68 | Z4: =Z$2*V3_TuneBuilder!$B14 -> 8
A5: 3 | B5: =B$2*V3_TuneBuilder!$B15 -> 0.48 | C5: =C$2*V3_TuneBuilder!$B15 -> 0.96 | D5: =D$2*V3_TuneBuilder!$B15 -> 1.44 | E5: =E$2*V3_TuneBuilder!$B15 -> 1.92 | F5: =F$2*V3_TuneBuilder!$B15 -> 2.4 | G5: =G$2*V3_TuneBuilder!$B15 -> 2.88 | H5: =H$2*V3_TuneBuilder!$B15 -> 3.36 | I5: =I$2*V3_TuneBuilder!$B15 -> 3.84 | J5: =J$2*V3_TuneBuilder!$B15 -> 4.32 | K5: =K$2*V3_TuneBuilder!$B15 -> 4.8 | L5: =L$2*V3_TuneBuilder!$B15 -> 5.28 | M5: =M$2*V3_TuneBuilder!$B15 -> 5.76 | N5: =N$2*V3_TuneBuilder!$B15 -> 6.24 | O5: =O$2*V3_TuneBuilder!$B15 -> 6.72 | P5: =P$2*V3_TuneBuilder!$B15 -> 7.2 | Q5: =Q$2*V3_TuneBuilder!$B15 -> 7.68 | R5: =R$2*V3_TuneBuilder!$B15 -> 8.16 | S5: =S$2*V3_TuneBuilder!$B15 -> 8.64 | T5: =T$2*V3_TuneBuilder!$B15 -> 9.12 | U5: =U$2*V3_TuneBuilder!$B15 -> 9.6 | V5: =V$2*V3_TuneBuilder!$B15 -> 10.08 | W5: =W$2*V3_TuneBuilder!$B15 -> 10.56 | X5: =X$2*V3_TuneBuilder!$B15 -> 11.04 | Y5: =Y$2*V3_TuneBuilder!$B15 -> 11.52 | Z5: =Z$2*V3_TuneBuilder!$B15 -> 12
A6: 4 | B6: =B$2*V3_TuneBuilder!$B16 -> 0.64 | C6: =C$2*V3_TuneBuilder!$B16 -> 1.28 | D6: =D$2*V3_TuneBuilder!$B16 -> 1.92 | E6: =E$2*V3_TuneBuilder!$B16 -> 2.56 | F6: =F$2*V3_TuneBuilder!$B16 -> 3.2 | G6: =G$2*V3_TuneBuilder!$B16 -> 3.84 | H6: =H$2*V3_TuneBuilder!$B16 -> 4.48 | I6: =I$2*V3_TuneBuilder!$B16 -> 5.12 | J6: =J$2*V3_TuneBuilder!$B16 -> 5.76 | K6: =K$2*V3_TuneBuilder!$B16 -> 6.4 | L6: =L$2*V3_TuneBuilder!$B16 -> 7.04 | M6: =M$2*V3_TuneBuilder!$B16 -> 7.68 | N6: =N$2*V3_TuneBuilder!$B16 -> 8.32 | O6: =O$2*V3_TuneBuilder!$B16 -> 8.96 | P6: =P$2*V3_TuneBuilder!$B16 -> 9.6 | Q6: =Q$2*V3_TuneBuilder!$B16 -> 10.24 | R6: =R$2*V3_TuneBuilder!$B16 -> 10.88 | S6: =S$2*V3_TuneBuilder!$B16 -> 11.52 | T6: =T$2*V3_TuneBuilder!$B16 -> 12.16 | U6: =U$2*V3_TuneBuilder!$B16 -> 12.8 | V6: =V$2*V3_TuneBuilder!$B16 -> 13.44 | W6: =W$2*V3_TuneBuilder!$B16 -> 14.08 | X6: =X$2*V3_TuneBuilder!$B16 -> 14.72 | Y6: =Y$2*V3_TuneBuilder!$B16 -> 15.36 | Z6: =Z$2*V3_TuneBuilder!$B16 -> 16
A7: 5 | B7: =B$2*V3_TuneBuilder!$B17 -> 0.8 | C7: =C$2*V3_TuneBuilder!$B17 -> 1.6 | D7: =D$2*V3_TuneBuilder!$B17 -> 2.4 | E7: =E$2*V3_TuneBuilder!$B17 -> 3.2 | F7: =F$2*V3_TuneBuilder!$B17 -> 4 | G7: =G$2*V3_TuneBuilder!$B17 -> 4.8 | H7: =H$2*V3_TuneBuilder!$B17 -> 5.6 | I7: =I$2*V3_TuneBuilder!$B17 -> 6.4 | J7: =J$2*V3_TuneBuilder!$B17 -> 7.2 | K7: =K$2*V3_TuneBuilder!$B17 -> 8 | L7: =L$2*V3_TuneBuilder!$B17 -> 8.8 | M7: =M$2*V3_TuneBuilder!$B17 -> 9.6 | N7: =N$2*V3_TuneBuilder!$B17 -> 10.4 | O7: =O$2*V3_TuneBuilder!$B17 -> 11.2 | P7: =P$2*V3_TuneBuilder!$B17 -> 12 | Q7: =Q$2*V3_TuneBuilder!$B17 -> 12.8 | R7: =R$2*V3_TuneBuilder!$B17 -> 13.6 | S7: =S$2*V3_TuneBuilder!$B17 -> 14.4 | T7: =T$2*V3_TuneBuilder!$B17 -> 15.2 | U7: =U$2*V3_TuneBuilder!$B17 -> 16 | V7: =V$2*V3_TuneBuilder!$B17 -> 16.8 | W7: =W$2*V3_TuneBuilder!$B17 -> 17.6 | X7: =X$2*V3_TuneBuilder!$B17 -> 18.4 | Y7: =Y$2*V3_TuneBuilder!$B17 -> 19.2 | Z7: =Z$2*V3_TuneBuilder!$B17 -> 20
A8: 6 | B8: =B$2*V3_TuneBuilder!$B18 -> 0.96 | C8: =C$2*V3_TuneBuilder!$B18 -> 1.92 | D8: =D$2*V3_TuneBuilder!$B18 -> 2.88 | E8: =E$2*V3_TuneBuilder!$B18 -> 3.84 | F8: =F$2*V3_TuneBuilder!$B18 -> 4.8 | G8: =G$2*V3_TuneBuilder!$B18 -> 5.76 | H8: =H$2*V3_TuneBuilder!$B18 -> 6.72 | I8: =I$2*V3_TuneBuilder!$B18 -> 7.68 | J8: =J$2*V3_TuneBuilder!$B18 -> 8.64 | K8: =K$2*V3_TuneBuilder!$B18 -> 9.6 | L8: =L$2*V3_TuneBuilder!$B18 -> 10.56 | M8: =M$2*V3_TuneBuilder!$B18 -> 11.52 | N8: =N$2*V3_TuneBuilder!$B18 -> 12.48 | O8: =O$2*V3_TuneBuilder!$B18 -> 13.44 | P8: =P$2*V3_TuneBuilder!$B18 -> 14.4 | Q8: =Q$2*V3_TuneBuilder!$B18 -> 15.36 | R8: =R$2*V3_TuneBuilder!$B18 -> 16.32 | S8: =S$2*V3_TuneBuilder!$B18 -> 17.28 | T8: =T$2*V3_TuneBuilder!$B18 -> 18.24 | U8: =U$2*V3_TuneBuilder!$B18 -> 19.2 | V8: =V$2*V3_TuneBuilder!$B18 -> 20.16 | W8: =W$2*V3_TuneBuilder!$B18 -> 21.12 | X8: =X$2*V3_TuneBuilder!$B18 -> 22.08 | Y8: =Y$2*V3_TuneBuilder!$B18 -> 23.04 | Z8: =Z$2*V3_TuneBuilder!$B18 -> 24
A9: 7 | B9: =B$2*V3_TuneBuilder!$B19 -> 1.12 | C9: =C$2*V3_TuneBuilder!$B19 -> 2.24 | D9: =D$2*V3_TuneBuilder!$B19 -> 3.36 | E9: =E$2*V3_TuneBuilder!$B19 -> 4.48 | F9: =F$2*V3_TuneBuilder!$B19 -> 5.6 | G9: =G$2*V3_TuneBuilder!$B19 -> 6.72 | H9: =H$2*V3_TuneBuilder!$B19 -> 7.84 | I9: =I$2*V3_TuneBuilder!$B19 -> 8.96 | J9: =J$2*V3_TuneBuilder!$B19 -> 10.08 | K9: =K$2*V3_TuneBuilder!$B19 -> 11.2 | L9: =L$2*V3_TuneBuilder!$B19 -> 12.32 | M9: =M$2*V3_TuneBuilder!$B19 -> 13.44 | N9: =N$2*V3_TuneBuilder!$B19 -> 14.56 | O9: =O$2*V3_TuneBuilder!$B19 -> 15.68 | P9: =P$2*V3_TuneBuilder!$B19 -> 16.8 | Q9: =Q$2*V3_TuneBuilder!$B19 -> 17.92 | R9: =R$2*V3_TuneBuilder!$B19 -> 19.04 | S9: =S$2*V3_TuneBuilder!$B19 -> 20.16 | T9: =T$2*V3_TuneBuilder!$B19 -> 21.28 | U9: =U$2*V3_TuneBuilder!$B19 -> 22.4 | V9: =V$2*V3_TuneBuilder!$B19 -> 23.52 | W9: =W$2*V3_TuneBuilder!$B19 -> 24.64 | X9: =X$2*V3_TuneBuilder!$B19 -> 25.76 | Y9: =Y$2*V3_TuneBuilder!$B19 -> 26.88 | Z9: =Z$2*V3_TuneBuilder!$B19 -> 28
A10: 8 | B10: =B$2*V3_TuneBuilder!$B20 -> 1.28 | C10: =C$2*V3_TuneBuilder!$B20 -> 2.56 | D10: =D$2*V3_TuneBuilder!$B20 -> 3.84 | E10: =E$2*V3_TuneBuilder!$B20 -> 5.12 | F10: =F$2*V3_TuneBuilder!$B20 -> 6.4 | G10: =G$2*V3_TuneBuilder!$B20 -> 7.68 | H10: =H$2*V3_TuneBuilder!$B20 -> 8.96 | I10: =I$2*V3_TuneBuilder!$B20 -> 10.24 | J10: =J$2*V3_TuneBuilder!$B20 -> 11.52 | K10: =K$2*V3_TuneBuilder!$B20 -> 12.8 | L10: =L$2*V3_TuneBuilder!$B20 -> 14.08 | M10: =M$2*V3_TuneBuilder!$B20 -> 15.36 | N10: =N$2*V3_TuneBuilder!$B20 -> 16.64 | O10: =O$2*V3_TuneBuilder!$B20 -> 17.92 | P10: =P$2*V3_TuneBuilder!$B20 -> 19.2 | Q10: =Q$2*V3_TuneBuilder!$B20 -> 20.48 | R10: =R$2*V3_TuneBuilder!$B20 -> 21.76 | S10: =S$2*V3_TuneBuilder!$B20 -> 23.04 | T10: =T$2*V3_TuneBuilder!$B20 -> 24.32 | U10: =U$2*V3_TuneBuilder!$B20 -> 25.6 | V10: =V$2*V3_TuneBuilder!$B20 -> 26.88 | W10: =W$2*V3_TuneBuilder!$B20 -> 28.16 | X10: =X$2*V3_TuneBuilder!$B20 -> 29.44 | Y10: =Y$2*V3_TuneBuilder!$B20 -> 30.72 | Z10: =Z$2*V3_TuneBuilder!$B20 -> 32
A11: 9 | B11: =B$2*V3_TuneBuilder!$B21 -> 1.44 | C11: =C$2*V3_TuneBuilder!$B21 -> 2.88 | D11: =D$2*V3_TuneBuilder!$B21 -> 4.32 | E11: =E$2*V3_TuneBuilder!$B21 -> 5.76 | F11: =F$2*V3_TuneBuilder!$B21 -> 7.2 | G11: =G$2*V3_TuneBuilder!$B21 -> 8.64 | H11: =H$2*V3_TuneBuilder!$B21 -> 10.08 | I11: =I$2*V3_TuneBuilder!$B21 -> 11.52 | J11: =J$2*V3_TuneBuilder!$B21 -> 12.96 | K11: =K$2*V3_TuneBuilder!$B21 -> 14.4 | L11: =L$2*V3_TuneBuilder!$B21 -> 15.84 | M11: =M$2*V3_TuneBuilder!$B21 -> 17.28 | N11: =N$2*V3_TuneBuilder!$B21 -> 18.72 | O11: =O$2*V3_TuneBuilder!$B21 -> 20.16 | P11: =P$2*V3_TuneBuilder!$B21 -> 21.6 | Q11: =Q$2*V3_TuneBuilder!$B21 -> 23.04 | R11: =R$2*V3_TuneBuilder!$B21 -> 24.48 | S11: =S$2*V3_TuneBuilder!$B21 -> 25.92 | T11: =T$2*V3_TuneBuilder!$B21 -> 27.36 | U11: =U$2*V3_TuneBuilder!$B21 -> 28.8 | V11: =V$2*V3_TuneBuilder!$B21 -> 30.24 | W11: =W$2*V3_TuneBuilder!$B21 -> 31.68 | X11: =X$2*V3_TuneBuilder!$B21 -> 33.12 | Y11: =Y$2*V3_TuneBuilder!$B21 -> 34.56 | Z11: =Z$2*V3_TuneBuilder!$B21 -> 36
A12: 10 | B12: =B$2*V3_TuneBuilder!$B22 -> 1.6 | C12: =C$2*V3_TuneBuilder!$B22 -> 3.2 | D12: =D$2*V3_TuneBuilder!$B22 -> 4.8 | E12: =E$2*V3_TuneBuilder!$B22 -> 6.4 | F12: =F$2*V3_TuneBuilder!$B22 -> 8 | G12: =G$2*V3_TuneBuilder!$B22 -> 9.6 | H12: =H$2*V3_TuneBuilder!$B22 -> 11.2 | I12: =I$2*V3_TuneBuilder!$B22 -> 12.8 | J12: =J$2*V3_TuneBuilder!$B22 -> 14.4 | K12: =K$2*V3_TuneBuilder!$B22 -> 16 | L12: =L$2*V3_TuneBuilder!$B22 -> 17.6 | M12: =M$2*V3_TuneBuilder!$B22 -> 19.2 | N12: =N$2*V3_TuneBuilder!$B22 -> 20.8 | O12: =O$2*V3_TuneBuilder!$B22 -> 22.4 | P12: =P$2*V3_TuneBuilder!$B22 -> 24 | Q12: =Q$2*V3_TuneBuilder!$B22 -> 25.6 | R12: =R$2*V3_TuneBuilder!$B22 -> 27.2 | S12: =S$2*V3_TuneBuilder!$B22 -> 28.8 | T12: =T$2*V3_TuneBuilder!$B22 -> 30.4 | U12: =U$2*V3_TuneBuilder!$B22 -> 32 | V12: =V$2*V3_TuneBuilder!$B22 -> 33.6 | W12: =W$2*V3_TuneBuilder!$B22 -> 35.2 | X12: =X$2*V3_TuneBuilder!$B22 -> 36.8 | Y12: =Y$2*V3_TuneBuilder!$B22 -> 38.4 | Z12: =Z$2*V3_TuneBuilder!$B22 -> 40
A13: 12 | B13: =B$2*V3_TuneBuilder!$B23 -> 1.76 | C13: =C$2*V3_TuneBuilder!$B23 -> 3.52 | D13: =D$2*V3_TuneBuilder!$B23 -> 5.28 | E13: =E$2*V3_TuneBuilder!$B23 -> 7.04 | F13: =F$2*V3_TuneBuilder!$B23 -> 8.8 | G13: =G$2*V3_TuneBuilder!$B23 -> 10.56 | H13: =H$2*V3_TuneBuilder!$B23 -> 12.32 | I13: =I$2*V3_TuneBuilder!$B23 -> 14.08 | J13: =J$2*V3_TuneBuilder!$B23 -> 15.84 | K13: =K$2*V3_TuneBuilder!$B23 -> 17.6 | L13: =L$2*V3_TuneBuilder!$B23 -> 19.36 | M13: =M$2*V3_TuneBuilder!$B23 -> 21.12 | N13: =N$2*V3_TuneBuilder!$B23 -> 22.88 | O13: =O$2*V3_TuneBuilder!$B23 -> 24.64 | P13: =P$2*V3_TuneBuilder!$B23 -> 26.4 | Q13: =Q$2*V3_TuneBuilder!$B23 -> 28.16 | R13: =R$2*V3_TuneBuilder!$B23 -> 29.92 | S13: =S$2*V3_TuneBuilder!$B23 -> 31.68 | T13: =T$2*V3_TuneBuilder!$B23 -> 33.44 | U13: =U$2*V3_TuneBuilder!$B23 -> 35.2 | V13: =V$2*V3_TuneBuilder!$B23 -> 36.96 | W13: =W$2*V3_TuneBuilder!$B23 -> 38.72 | X13: =X$2*V3_TuneBuilder!$B23 -> 40.48 | Y13: =Y$2*V3_TuneBuilder!$B23 -> 42.24 | Z13: =Z$2*V3_TuneBuilder!$B23 -> 44
A14: 14 | B14: =B$2*V3_TuneBuilder!$B24 -> 1.92 | C14: =C$2*V3_TuneBuilder!$B24 -> 3.84 | D14: =D$2*V3_TuneBuilder!$B24 -> 5.76 | E14: =E$2*V3_TuneBuilder!$B24 -> 7.68 | F14: =F$2*V3_TuneBuilder!$B24 -> 9.6 | G14: =G$2*V3_TuneBuilder!$B24 -> 11.52 | H14: =H$2*V3_TuneBuilder!$B24 -> 13.44 | I14: =I$2*V3_TuneBuilder!$B24 -> 15.36 | J14: =J$2*V3_TuneBuilder!$B24 -> 17.28 | K14: =K$2*V3_TuneBuilder!$B24 -> 19.2 | L14: =L$2*V3_TuneBuilder!$B24 -> 21.12 | M14: =M$2*V3_TuneBuilder!$B24 -> 23.04 | N14: =N$2*V3_TuneBuilder!$B24 -> 24.96 | O14: =O$2*V3_TuneBuilder!$B24 -> 26.88 | P14: =P$2*V3_TuneBuilder!$B24 -> 28.8 | Q14: =Q$2*V3_TuneBuilder!$B24 -> 30.72 | R14: =R$2*V3_TuneBuilder!$B24 -> 32.64 | S14: =S$2*V3_TuneBuilder!$B24 -> 34.56 | T14: =T$2*V3_TuneBuilder!$B24 -> 36.48 | U14: =U$2*V3_TuneBuilder!$B24 -> 38.4 | V14: =V$2*V3_TuneBuilder!$B24 -> 40.32 | W14: =W$2*V3_TuneBuilder!$B24 -> 42.24 | X14: =X$2*V3_TuneBuilder!$B24 -> 44.16 | Y14: =Y$2*V3_TuneBuilder!$B24 -> 46.08 | Z14: =Z$2*V3_TuneBuilder!$B24 -> 48
A15: 16 | B15: =B$2*V3_TuneBuilder!$B25 -> 2.08 | C15: =C$2*V3_TuneBuilder!$B25 -> 4.16 | D15: =D$2*V3_TuneBuilder!$B25 -> 6.24 | E15: =E$2*V3_TuneBuilder!$B25 -> 8.32 | F15: =F$2*V3_TuneBuilder!$B25 -> 10.4 | G15: =G$2*V3_TuneBuilder!$B25 -> 12.48 | H15: =H$2*V3_TuneBuilder!$B25 -> 14.56 | I15: =I$2*V3_TuneBuilder!$B25 -> 16.64 | J15: =J$2*V3_TuneBuilder!$B25 -> 18.72 | K15: =K$2*V3_TuneBuilder!$B25 -> 20.8 | L15: =L$2*V3_TuneBuilder!$B25 -> 22.88 | M15: =M$2*V3_TuneBuilder!$B25 -> 24.96 | N15: =N$2*V3_TuneBuilder!$B25 -> 27.04 | O15: =O$2*V3_TuneBuilder!$B25 -> 29.12 | P15: =P$2*V3_TuneBuilder!$B25 -> 31.2 | Q15: =Q$2*V3_TuneBuilder!$B25 -> 33.28 | R15: =R$2*V3_TuneBuilder!$B25 -> 35.36 | S15: =S$2*V3_TuneBuilder!$B25 -> 37.44 | T15: =T$2*V3_TuneBuilder!$B25 -> 39.52 | U15: =U$2*V3_TuneBuilder!$B25 -> 41.6 | V15: =V$2*V3_TuneBuilder!$B25 -> 43.68 | W15: =W$2*V3_TuneBuilder!$B25 -> 45.76 | X15: =X$2*V3_TuneBuilder!$B25 -> 47.84 | Y15: =Y$2*V3_TuneBuilder!$B25 -> 49.92 | Z15: =Z$2*V3_TuneBuilder!$B25 -> 52
A16: 18 | B16: =B$2*V3_TuneBuilder!$B26 -> 2.24 | C16: =C$2*V3_TuneBuilder!$B26 -> 4.48 | D16: =D$2*V3_TuneBuilder!$B26 -> 6.72 | E16: =E$2*V3_TuneBuilder!$B26 -> 8.96 | F16: =F$2*V3_TuneBuilder!$B26 -> 11.2 | G16: =G$2*V3_TuneBuilder!$B26 -> 13.44 | H16: =H$2*V3_TuneBuilder!$B26 -> 15.68 | I16: =I$2*V3_TuneBuilder!$B26 -> 17.92 | J16: =J$2*V3_TuneBuilder!$B26 -> 20.16 | K16: =K$2*V3_TuneBuilder!$B26 -> 22.4 | L16: =L$2*V3_TuneBuilder!$B26 -> 24.64 | M16: =M$2*V3_TuneBuilder!$B26 -> 26.88 | N16: =N$2*V3_TuneBuilder!$B26 -> 29.12 | O16: =O$2*V3_TuneBuilder!$B26 -> 31.36 | P16: =P$2*V3_TuneBuilder!$B26 -> 33.6 | Q16: =Q$2*V3_TuneBuilder!$B26 -> 35.84 | R16: =R$2*V3_TuneBuilder!$B26 -> 38.08 | S16: =S$2*V3_TuneBuilder!$B26 -> 40.32 | T16: =T$2*V3_TuneBuilder!$B26 -> 42.56 | U16: =U$2*V3_TuneBuilder!$B26 -> 44.8 | V16: =V$2*V3_TuneBuilder!$B26 -> 47.04 | W16: =W$2*V3_TuneBuilder!$B26 -> 49.28 | X16: =X$2*V3_TuneBuilder!$B26 -> 51.52 | Y16: =Y$2*V3_TuneBuilder!$B26 -> 53.76 | Z16: =Z$2*V3_TuneBuilder!$B26 -> 56
A17: 20 | B17: =B$2*V3_TuneBuilder!$B27 -> 2.4 | C17: =C$2*V3_TuneBuilder!$B27 -> 4.8 | D17: =D$2*V3_TuneBuilder!$B27 -> 7.2 | E17: =E$2*V3_TuneBuilder!$B27 -> 9.6 | F17: =F$2*V3_TuneBuilder!$B27 -> 12 | G17: =G$2*V3_TuneBuilder!$B27 -> 14.4 | H17: =H$2*V3_TuneBuilder!$B27 -> 16.8 | I17: =I$2*V3_TuneBuilder!$B27 -> 19.2 | J17: =J$2*V3_TuneBuilder!$B27 -> 21.6 | K17: =K$2*V3_TuneBuilder!$B27 -> 24 | L17: =L$2*V3_TuneBuilder!$B27 -> 26.4 | M17: =M$2*V3_TuneBuilder!$B27 -> 28.8 | N17: =N$2*V3_TuneBuilder!$B27 -> 31.2 | O17: =O$2*V3_TuneBuilder!$B27 -> 33.6 | P17: =P$2*V3_TuneBuilder!$B27 -> 36 | Q17: =Q$2*V3_TuneBuilder!$B27 -> 38.4 | R17: =R$2*V3_TuneBuilder!$B27 -> 40.8 | S17: =S$2*V3_TuneBuilder!$B27 -> 43.2 | T17: =T$2*V3_TuneBuilder!$B27 -> 45.6 | U17: =U$2*V3_TuneBuilder!$B27 -> 48 | V17: =V$2*V3_TuneBuilder!$B27 -> 50.4 | W17: =W$2*V3_TuneBuilder!$B27 -> 52.8 | X17: =X$2*V3_TuneBuilder!$B27 -> 55.2 | Y17: =Y$2*V3_TuneBuilder!$B27 -> 57.6 | Z17: =Z$2*V3_TuneBuilder!$B27 -> 60
A18: 22 | B18: =B$2*V3_TuneBuilder!$B28 -> 2.56 | C18: =C$2*V3_TuneBuilder!$B28 -> 5.12 | D18: =D$2*V3_TuneBuilder!$B28 -> 7.68 | E18: =E$2*V3_TuneBuilder!$B28 -> 10.24 | F18: =F$2*V3_TuneBuilder!$B28 -> 12.8 | G18: =G$2*V3_TuneBuilder!$B28 -> 15.36 | H18: =H$2*V3_TuneBuilder!$B28 -> 17.92 | I18: =I$2*V3_TuneBuilder!$B28 -> 20.48 | J18: =J$2*V3_TuneBuilder!$B28 -> 23.04 | K18: =K$2*V3_TuneBuilder!$B28 -> 25.6 | L18: =L$2*V3_TuneBuilder!$B28 -> 28.16 | M18: =M$2*V3_TuneBuilder!$B28 -> 30.72 | N18: =N$2*V3_TuneBuilder!$B28 -> 33.28 | O18: =O$2*V3_TuneBuilder!$B28 -> 35.84 | P18: =P$2*V3_TuneBuilder!$B28 -> 38.4 | Q18: =Q$2*V3_TuneBuilder!$B28 -> 40.96 | R18: =R$2*V3_TuneBuilder!$B28 -> 43.52 | S18: =S$2*V3_TuneBuilder!$B28 -> 46.08 | T18: =T$2*V3_TuneBuilder!$B28 -> 48.64 | U18: =U$2*V3_TuneBuilder!$B28 -> 51.2 | V18: =V$2*V3_TuneBuilder!$B28 -> 53.76 | W18: =W$2*V3_TuneBuilder!$B28 -> 56.32 | X18: =X$2*V3_TuneBuilder!$B28 -> 58.88 | Y18: =Y$2*V3_TuneBuilder!$B28 -> 61.44 | Z18: =Z$2*V3_TuneBuilder!$B28 -> 64
A19: 24 | B19: =B$2*V3_TuneBuilder!$B29 -> 2.72 | C19: =C$2*V3_TuneBuilder!$B29 -> 5.44 | D19: =D$2*V3_TuneBuilder!$B29 -> 8.16 | E19: =E$2*V3_TuneBuilder!$B29 -> 10.88 | F19: =F$2*V3_TuneBuilder!$B29 -> 13.6 | G19: =G$2*V3_TuneBuilder!$B29 -> 16.32 | H19: =H$2*V3_TuneBuilder!$B29 -> 19.04 | I19: =I$2*V3_TuneBuilder!$B29 -> 21.76 | J19: =J$2*V3_TuneBuilder!$B29 -> 24.48 | K19: =K$2*V3_TuneBuilder!$B29 -> 27.2 | L19: =L$2*V3_TuneBuilder!$B29 -> 29.92 | M19: =M$2*V3_TuneBuilder!$B29 -> 32.64 | N19: =N$2*V3_TuneBuilder!$B29 -> 35.36 | O19: =O$2*V3_TuneBuilder!$B29 -> 38.08 | P19: =P$2*V3_TuneBuilder!$B29 -> 40.8 | Q19: =Q$2*V3_TuneBuilder!$B29 -> 43.52 | R19: =R$2*V3_TuneBuilder!$B29 -> 46.24 | S19: =S$2*V3_TuneBuilder!$B29 -> 48.96 | T19: =T$2*V3_TuneBuilder!$B29 -> 51.68 | U19: =U$2*V3_TuneBuilder!$B29 -> 54.4 | V19: =V$2*V3_TuneBuilder!$B29 -> 57.12 | W19: =W$2*V3_TuneBuilder!$B29 -> 59.84 | X19: =X$2*V3_TuneBuilder!$B29 -> 62.56 | Y19: =Y$2*V3_TuneBuilder!$B29 -> 65.28 | Z19: =Z$2*V3_TuneBuilder!$B29 -> 68
A20: 26 | B20: =B$2*V3_TuneBuilder!$B30 -> 2.88 | C20: =C$2*V3_TuneBuilder!$B30 -> 5.76 | D20: =D$2*V3_TuneBuilder!$B30 -> 8.64 | E20: =E$2*V3_TuneBuilder!$B30 -> 11.52 | F20: =F$2*V3_TuneBuilder!$B30 -> 14.4 | G20: =G$2*V3_TuneBuilder!$B30 -> 17.28 | H20: =H$2*V3_TuneBuilder!$B30 -> 20.16 | I20: =I$2*V3_TuneBuilder!$B30 -> 23.04 | J20: =J$2*V3_TuneBuilder!$B30 -> 25.92 | K20: =K$2*V3_TuneBuilder!$B30 -> 28.8 | L20: =L$2*V3_TuneBuilder!$B30 -> 31.68 | M20: =M$2*V3_TuneBuilder!$B30 -> 34.56 | N20: =N$2*V3_TuneBuilder!$B30 -> 37.44 | O20: =O$2*V3_TuneBuilder!$B30 -> 40.32 | P20: =P$2*V3_TuneBuilder!$B30 -> 43.2 | Q20: =Q$2*V3_TuneBuilder!$B30 -> 46.08 | R20: =R$2*V3_TuneBuilder!$B30 -> 48.96 | S20: =S$2*V3_TuneBuilder!$B30 -> 51.84 | T20: =T$2*V3_TuneBuilder!$B30 -> 54.72 | U20: =U$2*V3_TuneBuilder!$B30 -> 57.6 | V20: =V$2*V3_TuneBuilder!$B30 -> 60.48 | W20: =W$2*V3_TuneBuilder!$B30 -> 63.36 | X20: =X$2*V3_TuneBuilder!$B30 -> 66.24 | Y20: =Y$2*V3_TuneBuilder!$B30 -> 69.12 | Z20: =Z$2*V3_TuneBuilder!$B30 -> 72
A21: 28 | B21: =B$2*V3_TuneBuilder!$B31 -> 3.04 | C21: =C$2*V3_TuneBuilder!$B31 -> 6.08 | D21: =D$2*V3_TuneBuilder!$B31 -> 9.12 | E21: =E$2*V3_TuneBuilder!$B31 -> 12.16 | F21: =F$2*V3_TuneBuilder!$B31 -> 15.2 | G21: =G$2*V3_TuneBuilder!$B31 -> 18.24 | H21: =H$2*V3_TuneBuilder!$B31 -> 21.28 | I21: =I$2*V3_TuneBuilder!$B31 -> 24.32 | J21: =J$2*V3_TuneBuilder!$B31 -> 27.36 | K21: =K$2*V3_TuneBuilder!$B31 -> 30.4 | L21: =L$2*V3_TuneBuilder!$B31 -> 33.44 | M21: =M$2*V3_TuneBuilder!$B31 -> 36.48 | N21: =N$2*V3_TuneBuilder!$B31 -> 39.52 | O21: =O$2*V3_TuneBuilder!$B31 -> 42.56 | P21: =P$2*V3_TuneBuilder!$B31 -> 45.6 | Q21: =Q$2*V3_TuneBuilder!$B31 -> 48.64 | R21: =R$2*V3_TuneBuilder!$B31 -> 51.68 | S21: =S$2*V3_TuneBuilder!$B31 -> 54.72 | T21: =T$2*V3_TuneBuilder!$B31 -> 57.76 | U21: =U$2*V3_TuneBuilder!$B31 -> 60.8 | V21: =V$2*V3_TuneBuilder!$B31 -> 63.84 | W21: =W$2*V3_TuneBuilder!$B31 -> 66.88 | X21: =X$2*V3_TuneBuilder!$B31 -> 69.92 | Y21: =Y$2*V3_TuneBuilder!$B31 -> 72.96 | Z21: =Z$2*V3_TuneBuilder!$B31 -> 76
A22: 30 | B22: =B$2*V3_TuneBuilder!$B32 -> 3.2 | C22: =C$2*V3_TuneBuilder!$B32 -> 6.4 | D22: =D$2*V3_TuneBuilder!$B32 -> 9.6 | E22: =E$2*V3_TuneBuilder!$B32 -> 12.8 | F22: =F$2*V3_TuneBuilder!$B32 -> 16 | G22: =G$2*V3_TuneBuilder!$B32 -> 19.2 | H22: =H$2*V3_TuneBuilder!$B32 -> 22.4 | I22: =I$2*V3_TuneBuilder!$B32 -> 25.6 | J22: =J$2*V3_TuneBuilder!$B32 -> 28.8 | K22: =K$2*V3_TuneBuilder!$B32 -> 32 | L22: =L$2*V3_TuneBuilder!$B32 -> 35.2 | M22: =M$2*V3_TuneBuilder!$B32 -> 38.4 | N22: =N$2*V3_TuneBuilder!$B32 -> 41.6 | O22: =O$2*V3_TuneBuilder!$B32 -> 44.8 | P22: =P$2*V3_TuneBuilder!$B32 -> 48 | Q22: =Q$2*V3_TuneBuilder!$B32 -> 51.2 | R22: =R$2*V3_TuneBuilder!$B32 -> 54.4 | S22: =S$2*V3_TuneBuilder!$B32 -> 57.6 | T22: =T$2*V3_TuneBuilder!$B32 -> 60.8 | U22: =U$2*V3_TuneBuilder!$B32 -> 64 | V22: =V$2*V3_TuneBuilder!$B32 -> 67.2 | W22: =W$2*V3_TuneBuilder!$B32 -> 70.4 | X22: =X$2*V3_TuneBuilder!$B32 -> 73.6 | Y22: =Y$2*V3_TuneBuilder!$B32 -> 76.8 | Z22: =Z$2*V3_TuneBuilder!$B32 -> 80
A23: 32 | B23: =B$2*V3_TuneBuilder!$B33 -> 3.36 | C23: =C$2*V3_TuneBuilder!$B33 -> 6.72 | D23: =D$2*V3_TuneBuilder!$B33 -> 10.08 | E23: =E$2*V3_TuneBuilder!$B33 -> 13.44 | F23: =F$2*V3_TuneBuilder!$B33 -> 16.8 | G23: =G$2*V3_TuneBuilder!$B33 -> 20.16 | H23: =H$2*V3_TuneBuilder!$B33 -> 23.52 | I23: =I$2*V3_TuneBuilder!$B33 -> 26.88 | J23: =J$2*V3_TuneBuilder!$B33 -> 30.24 | K23: =K$2*V3_TuneBuilder!$B33 -> 33.6 | L23: =L$2*V3_TuneBuilder!$B33 -> 36.96 | M23: =M$2*V3_TuneBuilder!$B33 -> 40.32 | N23: =N$2*V3_TuneBuilder!$B33 -> 43.68 | O23: =O$2*V3_TuneBuilder!$B33 -> 47.04 | P23: =P$2*V3_TuneBuilder!$B33 -> 50.4 | Q23: =Q$2*V3_TuneBuilder!$B33 -> 53.76 | R23: =R$2*V3_TuneBuilder!$B33 -> 57.12 | S23: =S$2*V3_TuneBuilder!$B33 -> 60.48 | T23: =T$2*V3_TuneBuilder!$B33 -> 63.84 | U23: =U$2*V3_TuneBuilder!$B33 -> 67.2 | V23: =V$2*V3_TuneBuilder!$B33 -> 70.56 | W23: =W$2*V3_TuneBuilder!$B33 -> 73.92 | X23: =X$2*V3_TuneBuilder!$B33 -> 77.28 | Y23: =Y$2*V3_TuneBuilder!$B33 -> 80.64 | Z23: =Z$2*V3_TuneBuilder!$B33 -> 84
A24: 34 | B24: =B$2*V3_TuneBuilder!$B34 -> 3.52 | C24: =C$2*V3_TuneBuilder!$B34 -> 7.04 | D24: =D$2*V3_TuneBuilder!$B34 -> 10.56 | E24: =E$2*V3_TuneBuilder!$B34 -> 14.08 | F24: =F$2*V3_TuneBuilder!$B34 -> 17.6 | G24: =G$2*V3_TuneBuilder!$B34 -> 21.12 | H24: =H$2*V3_TuneBuilder!$B34 -> 24.64 | I24: =I$2*V3_TuneBuilder!$B34 -> 28.16 | J24: =J$2*V3_TuneBuilder!$B34 -> 31.68 | K24: =K$2*V3_TuneBuilder!$B34 -> 35.2 | L24: =L$2*V3_TuneBuilder!$B34 -> 38.72 | M24: =M$2*V3_TuneBuilder!$B34 -> 42.24 | N24: =N$2*V3_TuneBuilder!$B34 -> 45.76 | O24: =O$2*V3_TuneBuilder!$B34 -> 49.28 | P24: =P$2*V3_TuneBuilder!$B34 -> 52.8 | Q24: =Q$2*V3_TuneBuilder!$B34 -> 56.32 | R24: =R$2*V3_TuneBuilder!$B34 -> 59.84 | S24: =S$2*V3_TuneBuilder!$B34 -> 63.36 | T24: =T$2*V3_TuneBuilder!$B34 -> 66.88 | U24: =U$2*V3_TuneBuilder!$B34 -> 70.4 | V24: =V$2*V3_TuneBuilder!$B34 -> 73.92 | W24: =W$2*V3_TuneBuilder!$B34 -> 77.44 | X24: =X$2*V3_TuneBuilder!$B34 -> 80.96 | Y24: =Y$2*V3_TuneBuilder!$B34 -> 84.48 | Z24: =Z$2*V3_TuneBuilder!$B34 -> 88
A25: 36 | B25: =B$2*V3_TuneBuilder!$B35 -> 3.68 | C25: =C$2*V3_TuneBuilder!$B35 -> 7.36 | D25: =D$2*V3_TuneBuilder!$B35 -> 11.04 | E25: =E$2*V3_TuneBuilder!$B35 -> 14.72 | F25: =F$2*V3_TuneBuilder!$B35 -> 18.4 | G25: =G$2*V3_TuneBuilder!$B35 -> 22.08 | H25: =H$2*V3_TuneBuilder!$B35 -> 25.76 | I25: =I$2*V3_TuneBuilder!$B35 -> 29.44 | J25: =J$2*V3_TuneBuilder!$B35 -> 33.12 | K25: =K$2*V3_TuneBuilder!$B35 -> 36.8 | L25: =L$2*V3_TuneBuilder!$B35 -> 40.48 | M25: =M$2*V3_TuneBuilder!$B35 -> 44.16 | N25: =N$2*V3_TuneBuilder!$B35 -> 47.84 | O25: =O$2*V3_TuneBuilder!$B35 -> 51.52 | P25: =P$2*V3_TuneBuilder!$B35 -> 55.2 | Q25: =Q$2*V3_TuneBuilder!$B35 -> 58.88 | R25: =R$2*V3_TuneBuilder!$B35 -> 62.56 | S25: =S$2*V3_TuneBuilder!$B35 -> 66.24 | T25: =T$2*V3_TuneBuilder!$B35 -> 69.92 | U25: =U$2*V3_TuneBuilder!$B35 -> 73.6 | V25: =V$2*V3_TuneBuilder!$B35 -> 77.28 | W25: =W$2*V3_TuneBuilder!$B35 -> 80.96 | X25: =X$2*V3_TuneBuilder!$B35 -> 84.64 | Y25: =Y$2*V3_TuneBuilder!$B35 -> 88.32 | Z25: =Z$2*V3_TuneBuilder!$B35 -> 92
A26: 38 | B26: =B$2*V3_TuneBuilder!$B36 -> 3.84 | C26: =C$2*V3_TuneBuilder!$B36 -> 7.68 | D26: =D$2*V3_TuneBuilder!$B36 -> 11.52 | E26: =E$2*V3_TuneBuilder!$B36 -> 15.36 | F26: =F$2*V3_TuneBuilder!$B36 -> 19.2 | G26: =G$2*V3_TuneBuilder!$B36 -> 23.04 | H26: =H$2*V3_TuneBuilder!$B36 -> 26.88 | I26: =I$2*V3_TuneBuilder!$B36 -> 30.72 | J26: =J$2*V3_TuneBuilder!$B36 -> 34.56 | K26: =K$2*V3_TuneBuilder!$B36 -> 38.4 | L26: =L$2*V3_TuneBuilder!$B36 -> 42.24 | M26: =M$2*V3_TuneBuilder!$B36 -> 46.08 | N26: =N$2*V3_TuneBuilder!$B36 -> 49.92 | O26: =O$2*V3_TuneBuilder!$B36 -> 53.76 | P26: =P$2*V3_TuneBuilder!$B36 -> 57.6 | Q26: =Q$2*V3_TuneBuilder!$B36 -> 61.44 | R26: =R$2*V3_TuneBuilder!$B36 -> 65.28 | S26: =S$2*V3_TuneBuilder!$B36 -> 69.12 | T26: =T$2*V3_TuneBuilder!$B36 -> 72.96 | U26: =U$2*V3_TuneBuilder!$B36 -> 76.8 | V26: =V$2*V3_TuneBuilder!$B36 -> 80.64 | W26: =W$2*V3_TuneBuilder!$B36 -> 84.48 | X26: =X$2*V3_TuneBuilder!$B36 -> 88.32 | Y26: =Y$2*V3_TuneBuilder!$B36 -> 92.16 | Z26: =Z$2*V3_TuneBuilder!$B36 -> 96
A27: 40 | B27: =B$2*V3_TuneBuilder!$B37 -> 4 | C27: =C$2*V3_TuneBuilder!$B37 -> 8 | D27: =D$2*V3_TuneBuilder!$B37 -> 12 | E27: =E$2*V3_TuneBuilder!$B37 -> 16 | F27: =F$2*V3_TuneBuilder!$B37 -> 20 | G27: =G$2*V3_TuneBuilder!$B37 -> 24 | H27: =H$2*V3_TuneBuilder!$B37 -> 28 | I27: =I$2*V3_TuneBuilder!$B37 -> 32 | J27: =J$2*V3_TuneBuilder!$B37 -> 36 | K27: =K$2*V3_TuneBuilder!$B37 -> 40 | L27: =L$2*V3_TuneBuilder!$B37 -> 44 | M27: =M$2*V3_TuneBuilder!$B37 -> 48 | N27: =N$2*V3_TuneBuilder!$B37 -> 52 | O27: =O$2*V3_TuneBuilder!$B37 -> 56 | P27: =P$2*V3_TuneBuilder!$B37 -> 60 | Q27: =Q$2*V3_TuneBuilder!$B37 -> 64 | R27: =R$2*V3_TuneBuilder!$B37 -> 68 | S27: =S$2*V3_TuneBuilder!$B37 -> 72 | T27: =T$2*V3_TuneBuilder!$B37 -> 76 | U27: =U$2*V3_TuneBuilder!$B37 -> 80 | V27: =V$2*V3_TuneBuilder!$B37 -> 84 | W27: =W$2*V3_TuneBuilder!$B37 -> 88 | X27: =X$2*V3_TuneBuilder!$B37 -> 92 | Y27: =Y$2*V3_TuneBuilder!$B37 -> 96 | Z27: =Z$2*V3_TuneBuilder!$B37 -> 100
A28: 4KV2
A29: TPS % | B29: 0.04 | C29: 0.08 | D29: 0.12 | E29: 0.16 | F29: 0.2 | G29: 0.24 | H29: 0.28 | I29: 0.32 | J29: 0.36 | K29: 0.4 | L29: 0.44 | M29: 0.48 | N29: 0.52 | O29: 0.56 | P29: 0.6 | Q29: 0.64 | R29: 0.68 | S29: 0.72 | T29: 0.76 | U29: 0.8 | V29: 0.84 | W29: 0.88 | X29: 0.92 | Y29: 0.96 | Z29: 1
A30: 1 | B30: =B$29*'4KV3_TuneBuilder'!$B13 -> 0.16 | C30: =C$29*'4KV3_TuneBuilder'!$B13 -> 0.32 | D30: =D$29*'4KV3_TuneBuilder'!$B13 -> 0.48 | E30: =E$29*'4KV3_TuneBuilder'!$B13 -> 0.64 | F30: =F$29*'4KV3_TuneBuilder'!$B13 -> 0.8 | G30: =G$29*'4KV3_TuneBuilder'!$B13 -> 0.96 | H30: =H$29*'4KV3_TuneBuilder'!$B13 -> 1.12 | I30: =I$29*'4KV3_TuneBuilder'!$B13 -> 1.28 | J30: =J$29*'4KV3_TuneBuilder'!$B13 -> 1.44 | K30: =K$29*'4KV3_TuneBuilder'!$B13 -> 1.6 | L30: =L$29*'4KV3_TuneBuilder'!$B13 -> 1.76 | M30: =M$29*'4KV3_TuneBuilder'!$B13 -> 1.92 | N30: =N$29*'4KV3_TuneBuilder'!$B13 -> 2.08 | O30: =O$29*'4KV3_TuneBuilder'!$B13 -> 2.24 | P30: =P$29*'4KV3_TuneBuilder'!$B13 -> 2.4 | Q30: =Q$29*'4KV3_TuneBuilder'!$B13 -> 2.56 | R30: =R$29*'4KV3_TuneBuilder'!$B13 -> 2.72 | S30: =S$29*'4KV3_TuneBuilder'!$B13 -> 2.88 | T30: =T$29*'4KV3_TuneBuilder'!$B13 -> 3.04 | U30: =U$29*'4KV3_TuneBuilder'!$B13 -> 3.2 | V30: =V$29*'4KV3_TuneBuilder'!$B13 -> 3.36 | W30: =W$29*'4KV3_TuneBuilder'!$B13 -> 3.52 | X30: =X$29*'4KV3_TuneBuilder'!$B13 -> 3.68 | Y30: =Y$29*'4KV3_TuneBuilder'!$B13 -> 3.84 | Z30: =Z$29*'4KV3_TuneBuilder'!$B13 -> 4
A31: 2 | B31: =B$29*'4KV3_TuneBuilder'!$B14 -> 0.32 | C31: =C$29*'4KV3_TuneBuilder'!$B14 -> 0.64 | D31: =D$29*'4KV3_TuneBuilder'!$B14 -> 0.96 | E31: =E$29*'4KV3_TuneBuilder'!$B14 -> 1.28 | F31: =F$29*'4KV3_TuneBuilder'!$B14 -> 1.6 | G31: =G$29*'4KV3_TuneBuilder'!$B14 -> 1.92 | H31: =H$29*'4KV3_TuneBuilder'!$B14 -> 2.24 | I31: =I$29*'4KV3_TuneBuilder'!$B14 -> 2.56 | J31: =J$29*'4KV3_TuneBuilder'!$B14 -> 2.88 | K31: =K$29*'4KV3_TuneBuilder'!$B14 -> 3.2 | L31: =L$29*'4KV3_TuneBuilder'!$B14 -> 3.52 | M31: =M$29*'4KV3_TuneBuilder'!$B14 -> 3.84 | N31: =N$29*'4KV3_TuneBuilder'!$B14 -> 4.16 | O31: =O$29*'4KV3_TuneBuilder'!$B14 -> 4.48 | P31: =P$29*'4KV3_TuneBuilder'!$B14 -> 4.8 | Q31: =Q$29*'4KV3_TuneBuilder'!$B14 -> 5.12 | R31: =R$29*'4KV3_TuneBuilder'!$B14 -> 5.44 | S31: =S$29*'4KV3_TuneBuilder'!$B14 -> 5.76 | T31: =T$29*'4KV3_TuneBuilder'!$B14 -> 6.08 | U31: =U$29*'4KV3_TuneBuilder'!$B14 -> 6.4 | V31: =V$29*'4KV3_TuneBuilder'!$B14 -> 6.72 | W31: =W$29*'4KV3_TuneBuilder'!$B14 -> 7.04 | X31: =X$29*'4KV3_TuneBuilder'!$B14 -> 7.36 | Y31: =Y$29*'4KV3_TuneBuilder'!$B14 -> 7.68 | Z31: =Z$29*'4KV3_TuneBuilder'!$B14 -> 8
A32: 3 | B32: =B$29*'4KV3_TuneBuilder'!$B15 -> 0.48 | C32: =C$29*'4KV3_TuneBuilder'!$B15 -> 0.96 | D32: =D$29*'4KV3_TuneBuilder'!$B15 -> 1.44 | E32: =E$29*'4KV3_TuneBuilder'!$B15 -> 1.92 | F32: =F$29*'4KV3_TuneBuilder'!$B15 -> 2.4 | G32: =G$29*'4KV3_TuneBuilder'!$B15 -> 2.88 | H32: =H$29*'4KV3_TuneBuilder'!$B15 -> 3.36 | I32: =I$29*'4KV3_TuneBuilder'!$B15 -> 3.84 | J32: =J$29*'4KV3_TuneBuilder'!$B15 -> 4.32 | K32: =K$29*'4KV3_TuneBuilder'!$B15 -> 4.8 | L32: =L$29*'4KV3_TuneBuilder'!$B15 -> 5.28 | M32: =M$29*'4KV3_TuneBuilder'!$B15 -> 5.76 | N32: =N$29*'4KV3_TuneBuilder'!$B15 -> 6.24 | O32: =O$29*'4KV3_TuneBuilder'!$B15 -> 6.72 | P32: =P$29*'4KV3_TuneBuilder'!$B15 -> 7.2 | Q32: =Q$29*'4KV3_TuneBuilder'!$B15 -> 7.68 | R32: =R$29*'4KV3_TuneBuilder'!$B15 -> 8.16 | S32: =S$29*'4KV3_TuneBuilder'!$B15 -> 8.64 | T32: =T$29*'4KV3_TuneBuilder'!$B15 -> 9.12 | U32: =U$29*'4KV3_TuneBuilder'!$B15 -> 9.6 | V32: =V$29*'4KV3_TuneBuilder'!$B15 -> 10.08 | W32: =W$29*'4KV3_TuneBuilder'!$B15 -> 10.56 | X32: =X$29*'4KV3_TuneBuilder'!$B15 -> 11.04 | Y32: =Y$29*'4KV3_TuneBuilder'!$B15 -> 11.52 | Z32: =Z$29*'4KV3_TuneBuilder'!$B15 -> 12
A33: 4 | B33: =B$29*'4KV3_TuneBuilder'!$B16 -> 0.64 | C33: =C$29*'4KV3_TuneBuilder'!$B16 -> 1.28 | D33: =D$29*'4KV3_TuneBuilder'!$B16 -> 1.92 | E33: =E$29*'4KV3_TuneBuilder'!$B16 -> 2.56 | F33: =F$29*'4KV3_TuneBuilder'!$B16 -> 3.2 | G33: =G$29*'4KV3_TuneBuilder'!$B16 -> 3.84 | H33: =H$29*'4KV3_TuneBuilder'!$B16 -> 4.48 | I33: =I$29*'4KV3_TuneBuilder'!$B16 -> 5.12 | J33: =J$29*'4KV3_TuneBuilder'!$B16 -> 5.76 | K33: =K$29*'4KV3_TuneBuilder'!$B16 -> 6.4 | L33: =L$29*'4KV3_TuneBuilder'!$B16 -> 7.04 | M33: =M$29*'4KV3_TuneBuilder'!$B16 -> 7.68 | N33: =N$29*'4KV3_TuneBuilder'!$B16 -> 8.32 | O33: =O$29*'4KV3_TuneBuilder'!$B16 -> 8.96 | P33: =P$29*'4KV3_TuneBuilder'!$B16 -> 9.6 | Q33: =Q$29*'4KV3_TuneBuilder'!$B16 -> 10.24 | R33: =R$29*'4KV3_TuneBuilder'!$B16 -> 10.88 | S33: =S$29*'4KV3_TuneBuilder'!$B16 -> 11.52 | T33: =T$29*'4KV3_TuneBuilder'!$B16 -> 12.16 | U33: =U$29*'4KV3_TuneBuilder'!$B16 -> 12.8 | V33: =V$29*'4KV3_TuneBuilder'!$B16 -> 13.44 | W33: =W$29*'4KV3_TuneBuilder'!$B16 -> 14.08 | X33: =X$29*'4KV3_TuneBuilder'!$B16 -> 14.72 | Y33: =Y$29*'4KV3_TuneBuilder'!$B16 -> 15.36 | Z33: =Z$29*'4KV3_TuneBuilder'!$B16 -> 16
A34: 5 | B34: =B$29*'4KV3_TuneBuilder'!$B17 -> 0.8 | C34: =C$29*'4KV3_TuneBuilder'!$B17 -> 1.6 | D34: =D$29*'4KV3_TuneBuilder'!$B17 -> 2.4 | E34: =E$29*'4KV3_TuneBuilder'!$B17 -> 3.2 | F34: =F$29*'4KV3_TuneBuilder'!$B17 -> 4 | G34: =G$29*'4KV3_TuneBuilder'!$B17 -> 4.8 | H34: =H$29*'4KV3_TuneBuilder'!$B17 -> 5.6 | I34: =I$29*'4KV3_TuneBuilder'!$B17 -> 6.4 | J34: =J$29*'4KV3_TuneBuilder'!$B17 -> 7.2 | K34: =K$29*'4KV3_TuneBuilder'!$B17 -> 8 | L34: =L$29*'4KV3_TuneBuilder'!$B17 -> 8.8 | M34: =M$29*'4KV3_TuneBuilder'!$B17 -> 9.6 | N34: =N$29*'4KV3_TuneBuilder'!$B17 -> 10.4 | O34: =O$29*'4KV3_TuneBuilder'!$B17 -> 11.2 | P34: =P$29*'4KV3_TuneBuilder'!$B17 -> 12 | Q34: =Q$29*'4KV3_TuneBuilder'!$B17 -> 12.8 | R34: =R$29*'4KV3_TuneBuilder'!$B17 -> 13.6 | S34: =S$29*'4KV3_TuneBuilder'!$B17 -> 14.4 | T34: =T$29*'4KV3_TuneBuilder'!$B17 -> 15.2 | U34: =U$29*'4KV3_TuneBuilder'!$B17 -> 16 | V34: =V$29*'4KV3_TuneBuilder'!$B17 -> 16.8 | W34: =W$29*'4KV3_TuneBuilder'!$B17 -> 17.6 | X34: =X$29*'4KV3_TuneBuilder'!$B17 -> 18.4 | Y34: =Y$29*'4KV3_TuneBuilder'!$B17 -> 19.2 | Z34: =Z$29*'4KV3_TuneBuilder'!$B17 -> 20
A35: 6 | B35: =B$29*'4KV3_TuneBuilder'!$B18 -> 0.96 | C35: =C$29*'4KV3_TuneBuilder'!$B18 -> 1.92 | D35: =D$29*'4KV3_TuneBuilder'!$B18 -> 2.88 | E35: =E$29*'4KV3_TuneBuilder'!$B18 -> 3.84 | F35: =F$29*'4KV3_TuneBuilder'!$B18 -> 4.8 | G35: =G$29*'4KV3_TuneBuilder'!$B18 -> 5.76 | H35: =H$29*'4KV3_TuneBuilder'!$B18 -> 6.72 | I35: =I$29*'4KV3_TuneBuilder'!$B18 -> 7.68 | J35: =J$29*'4KV3_TuneBuilder'!$B18 -> 8.64 | K35: =K$29*'4KV3_TuneBuilder'!$B18 -> 9.6 | L35: =L$29*'4KV3_TuneBuilder'!$B18 -> 10.56 | M35: =M$29*'4KV3_TuneBuilder'!$B18 -> 11.52 | N35: =N$29*'4KV3_TuneBuilder'!$B18 -> 12.48 | O35: =O$29*'4KV3_TuneBuilder'!$B18 -> 13.44 | P35: =P$29*'4KV3_TuneBuilder'!$B18 -> 14.4 | Q35: =Q$29*'4KV3_TuneBuilder'!$B18 -> 15.36 | R35: =R$29*'4KV3_TuneBuilder'!$B18 -> 16.32 | S35: =S$29*'4KV3_TuneBuilder'!$B18 -> 17.28 | T35: =T$29*'4KV3_TuneBuilder'!$B18 -> 18.24 | U35: =U$29*'4KV3_TuneBuilder'!$B18 -> 19.2 | V35: =V$29*'4KV3_TuneBuilder'!$B18 -> 20.16 | W35: =W$29*'4KV3_TuneBuilder'!$B18 -> 21.12 | X35: =X$29*'4KV3_TuneBuilder'!$B18 -> 22.08 | Y35: =Y$29*'4KV3_TuneBuilder'!$B18 -> 23.04 | Z35: =Z$29*'4KV3_TuneBuilder'!$B18 -> 24
A36: 7 | B36: =B$29*'4KV3_TuneBuilder'!$B19 -> 1.12 | C36: =C$29*'4KV3_TuneBuilder'!$B19 -> 2.24 | D36: =D$29*'4KV3_TuneBuilder'!$B19 -> 3.36 | E36: =E$29*'4KV3_TuneBuilder'!$B19 -> 4.48 | F36: =F$29*'4KV3_TuneBuilder'!$B19 -> 5.6 | G36: =G$29*'4KV3_TuneBuilder'!$B19 -> 6.72 | H36: =H$29*'4KV3_TuneBuilder'!$B19 -> 7.84 | I36: =I$29*'4KV3_TuneBuilder'!$B19 -> 8.96 | J36: =J$29*'4KV3_TuneBuilder'!$B19 -> 10.08 | K36: =K$29*'4KV3_TuneBuilder'!$B19 -> 11.2 | L36: =L$29*'4KV3_TuneBuilder'!$B19 -> 12.32 | M36: =M$29*'4KV3_TuneBuilder'!$B19 -> 13.44 | N36: =N$29*'4KV3_TuneBuilder'!$B19 -> 14.56 | O36: =O$29*'4KV3_TuneBuilder'!$B19 -> 15.68 | P36: =P$29*'4KV3_TuneBuilder'!$B19 -> 16.8 | Q36: =Q$29*'4KV3_TuneBuilder'!$B19 -> 17.92 | R36: =R$29*'4KV3_TuneBuilder'!$B19 -> 19.04 | S36: =S$29*'4KV3_TuneBuilder'!$B19 -> 20.16 | T36: =T$29*'4KV3_TuneBuilder'!$B19 -> 21.28 | U36: =U$29*'4KV3_TuneBuilder'!$B19 -> 22.4 | V36: =V$29*'4KV3_TuneBuilder'!$B19 -> 23.52 | W36: =W$29*'4KV3_TuneBuilder'!$B19 -> 24.64 | X36: =X$29*'4KV3_TuneBuilder'!$B19 -> 25.76 | Y36: =Y$29*'4KV3_TuneBuilder'!$B19 -> 26.88 | Z36: =Z$29*'4KV3_TuneBuilder'!$B19 -> 28
A37: 8 | B37: =B$29*'4KV3_TuneBuilder'!$B20 -> 1.28 | C37: =C$29*'4KV3_TuneBuilder'!$B20 -> 2.56 | D37: =D$29*'4KV3_TuneBuilder'!$B20 -> 3.84 | E37: =E$29*'4KV3_TuneBuilder'!$B20 -> 5.12 | F37: =F$29*'4KV3_TuneBuilder'!$B20 -> 6.4 | G37: =G$29*'4KV3_TuneBuilder'!$B20 -> 7.68 | H37: =H$29*'4KV3_TuneBuilder'!$B20 -> 8.96 | I37: =I$29*'4KV3_TuneBuilder'!$B20 -> 10.24 | J37: =J$29*'4KV3_TuneBuilder'!$B20 -> 11.52 | K37: =K$29*'4KV3_TuneBuilder'!$B20 -> 12.8 | L37: =L$29*'4KV3_TuneBuilder'!$B20 -> 14.08 | M37: =M$29*'4KV3_TuneBuilder'!$B20 -> 15.36 | N37: =N$29*'4KV3_TuneBuilder'!$B20 -> 16.64 | O37: =O$29*'4KV3_TuneBuilder'!$B20 -> 17.92 | P37: =P$29*'4KV3_TuneBuilder'!$B20 -> 19.2 | Q37: =Q$29*'4KV3_TuneBuilder'!$B20 -> 20.48 | R37: =R$29*'4KV3_TuneBuilder'!$B20 -> 21.76 | S37: =S$29*'4KV3_TuneBuilder'!$B20 -> 23.04 | T37: =T$29*'4KV3_TuneBuilder'!$B20 -> 24.32 | U37: =U$29*'4KV3_TuneBuilder'!$B20 -> 25.6 | V37: =V$29*'4KV3_TuneBuilder'!$B20 -> 26.88 | W37: =W$29*'4KV3_TuneBuilder'!$B20 -> 28.16 | X37: =X$29*'4KV3_TuneBuilder'!$B20 -> 29.44 | Y37: =Y$29*'4KV3_TuneBuilder'!$B20 -> 30.72 | Z37: =Z$29*'4KV3_TuneBuilder'!$B20 -> 32
A38: 9 | B38: =B$29*'4KV3_TuneBuilder'!$B21 -> 1.44 | C38: =C$29*'4KV3_TuneBuilder'!$B21 -> 2.88 | D38: =D$29*'4KV3_TuneBuilder'!$B21 -> 4.32 | E38: =E$29*'4KV3_TuneBuilder'!$B21 -> 5.76 | F38: =F$29*'4KV3_TuneBuilder'!$B21 -> 7.2 | G38: =G$29*'4KV3_TuneBuilder'!$B21 -> 8.64 | H38: =H$29*'4KV3_TuneBuilder'!$B21 -> 10.08 | I38: =I$29*'4KV3_TuneBuilder'!$B21 -> 11.52 | J38: =J$29*'4KV3_TuneBuilder'!$B21 -> 12.96 | K38: =K$29*'4KV3_TuneBuilder'!$B21 -> 14.4 | L38: =L$29*'4KV3_TuneBuilder'!$B21 -> 15.84 | M38: =M$29*'4KV3_TuneBuilder'!$B21 -> 17.28 | N38: =N$29*'4KV3_TuneBuilder'!$B21 -> 18.72 | O38: =O$29*'4KV3_TuneBuilder'!$B21 -> 20.16 | P38: =P$29*'4KV3_TuneBuilder'!$B21 -> 21.6 | Q38: =Q$29*'4KV3_TuneBuilder'!$B21 -> 23.04 | R38: =R$29*'4KV3_TuneBuilder'!$B21 -> 24.48 | S38: =S$29*'4KV3_TuneBuilder'!$B21 -> 25.92 | T38: =T$29*'4KV3_TuneBuilder'!$B21 -> 27.36 | U38: =U$29*'4KV3_TuneBuilder'!$B21 -> 28.8 | V38: =V$29*'4KV3_TuneBuilder'!$B21 -> 30.24 | W38: =W$29*'4KV3_TuneBuilder'!$B21 -> 31.68 | X38: =X$29*'4KV3_TuneBuilder'!$B21 -> 33.12 | Y38: =Y$29*'4KV3_TuneBuilder'!$B21 -> 34.56 | Z38: =Z$29*'4KV3_TuneBuilder'!$B21 -> 36
A39: 10 | B39: =B$29*'4KV3_TuneBuilder'!$B22 -> 1.6 | C39: =C$29*'4KV3_TuneBuilder'!$B22 -> 3.2 | D39: =D$29*'4KV3_TuneBuilder'!$B22 -> 4.8 | E39: =E$29*'4KV3_TuneBuilder'!$B22 -> 6.4 | F39: =F$29*'4KV3_TuneBuilder'!$B22 -> 8 | G39: =G$29*'4KV3_TuneBuilder'!$B22 -> 9.6 | H39: =H$29*'4KV3_TuneBuilder'!$B22 -> 11.2 | I39: =I$29*'4KV3_TuneBuilder'!$B22 -> 12.8 | J39: =J$29*'4KV3_TuneBuilder'!$B22 -> 14.4 | K39: =K$29*'4KV3_TuneBuilder'!$B22 -> 16 | L39: =L$29*'4KV3_TuneBuilder'!$B22 -> 17.6 | M39: =M$29*'4KV3_TuneBuilder'!$B22 -> 19.2 | N39: =N$29*'4KV3_TuneBuilder'!$B22 -> 20.8 | O39: =O$29*'4KV3_TuneBuilder'!$B22 -> 22.4 | P39: =P$29*'4KV3_TuneBuilder'!$B22 -> 24 | Q39: =Q$29*'4KV3_TuneBuilder'!$B22 -> 25.6 | R39: =R$29*'4KV3_TuneBuilder'!$B22 -> 27.2 | S39: =S$29*'4KV3_TuneBuilder'!$B22 -> 28.8 | T39: =T$29*'4KV3_TuneBuilder'!$B22 -> 30.4 | U39: =U$29*'4KV3_TuneBuilder'!$B22 -> 32 | V39: =V$29*'4KV3_TuneBuilder'!$B22 -> 33.6 | W39: =W$29*'4KV3_TuneBuilder'!$B22 -> 35.2 | X39: =X$29*'4KV3_TuneBuilder'!$B22 -> 36.8 | Y39: =Y$29*'4KV3_TuneBuilder'!$B22 -> 38.4 | Z39: =Z$29*'4KV3_TuneBuilder'!$B22 -> 40
A40: 12 | B40: =B$29*'4KV3_TuneBuilder'!$B23 -> 1.76 | C40: =C$29*'4KV3_TuneBuilder'!$B23 -> 3.52 | D40: =D$29*'4KV3_TuneBuilder'!$B23 -> 5.28 | E40: =E$29*'4KV3_TuneBuilder'!$B23 -> 7.04 | F40: =F$29*'4KV3_TuneBuilder'!$B23 -> 8.8 | G40: =G$29*'4KV3_TuneBuilder'!$B23 -> 10.56 | H40: =H$29*'4KV3_TuneBuilder'!$B23 -> 12.32 | I40: =I$29*'4KV3_TuneBuilder'!$B23 -> 14.08 | J40: =J$29*'4KV3_TuneBuilder'!$B23 -> 15.84 | K40: =K$29*'4KV3_TuneBuilder'!$B23 -> 17.6 | L40: =L$29*'4KV3_TuneBuilder'!$B23 -> 19.36 | M40: =M$29*'4KV3_TuneBuilder'!$B23 -> 21.12 | N40: =N$29*'4KV3_TuneBuilder'!$B23 -> 22.88 | O40: =O$29*'4KV3_TuneBuilder'!$B23 -> 24.64 | P40: =P$29*'4KV3_TuneBuilder'!$B23 -> 26.4 | Q40: =Q$29*'4KV3_TuneBuilder'!$B23 -> 28.16 | R40: =R$29*'4KV3_TuneBuilder'!$B23 -> 29.92 | S40: =S$29*'4KV3_TuneBuilder'!$B23 -> 31.68 | T40: =T$29*'4KV3_TuneBuilder'!$B23 -> 33.44 | U40: =U$29*'4KV3_TuneBuilder'!$B23 -> 35.2 | V40: =V$29*'4KV3_TuneBuilder'!$B23 -> 36.96 | W40: =W$29*'4KV3_TuneBuilder'!$B23 -> 38.72 | X40: =X$29*'4KV3_TuneBuilder'!$B23 -> 40.48 | Y40: =Y$29*'4KV3_TuneBuilder'!$B23 -> 42.24 | Z40: =Z$29*'4KV3_TuneBuilder'!$B23 -> 44
A41: 14 | B41: =B$29*'4KV3_TuneBuilder'!$B24 -> 1.92 | C41: =C$29*'4KV3_TuneBuilder'!$B24 -> 3.84 | D41: =D$29*'4KV3_TuneBuilder'!$B24 -> 5.76 | E41: =E$29*'4KV3_TuneBuilder'!$B24 -> 7.68 | F41: =F$29*'4KV3_TuneBuilder'!$B24 -> 9.6 | G41: =G$29*'4KV3_TuneBuilder'!$B24 -> 11.52 | H41: =H$29*'4KV3_TuneBuilder'!$B24 -> 13.44 | I41: =I$29*'4KV3_TuneBuilder'!$B24 -> 15.36 | J41: =J$29*'4KV3_TuneBuilder'!$B24 -> 17.28 | K41: =K$29*'4KV3_TuneBuilder'!$B24 -> 19.2 | L41: =L$29*'4KV3_TuneBuilder'!$B24 -> 21.12 | M41: =M$29*'4KV3_TuneBuilder'!$B24 -> 23.04 | N41: =N$29*'4KV3_TuneBuilder'!$B24 -> 24.96 | O41: =O$29*'4KV3_TuneBuilder'!$B24 -> 26.88 | P41: =P$29*'4KV3_TuneBuilder'!$B24 -> 28.8 | Q41: =Q$29*'4KV3_TuneBuilder'!$B24 -> 30.72 | R41: =R$29*'4KV3_TuneBuilder'!$B24 -> 32.64 | S41: =S$29*'4KV3_TuneBuilder'!$B24 -> 34.56 | T41: =T$29*'4KV3_TuneBuilder'!$B24 -> 36.48 | U41: =U$29*'4KV3_TuneBuilder'!$B24 -> 38.4 | V41: =V$29*'4KV3_TuneBuilder'!$B24 -> 40.32 | W41: =W$29*'4KV3_TuneBuilder'!$B24 -> 42.24 | X41: =X$29*'4KV3_TuneBuilder'!$B24 -> 44.16 | Y41: =Y$29*'4KV3_TuneBuilder'!$B24 -> 46.08 | Z41: =Z$29*'4KV3_TuneBuilder'!$B24 -> 48
A42: 16 | B42: =B$29*'4KV3_TuneBuilder'!$B25 -> 2.08 | C42: =C$29*'4KV3_TuneBuilder'!$B25 -> 4.16 | D42: =D$29*'4KV3_TuneBuilder'!$B25 -> 6.24 | E42: =E$29*'4KV3_TuneBuilder'!$B25 -> 8.32 | F42: =F$29*'4KV3_TuneBuilder'!$B25 -> 10.4 | G42: =G$29*'4KV3_TuneBuilder'!$B25 -> 12.48 | H42: =H$29*'4KV3_TuneBuilder'!$B25 -> 14.56 | I42: =I$29*'4KV3_TuneBuilder'!$B25 -> 16.64 | J42: =J$29*'4KV3_TuneBuilder'!$B25 -> 18.72 | K42: =K$29*'4KV3_TuneBuilder'!$B25 -> 20.8 | L42: =L$29*'4KV3_TuneBuilder'!$B25 -> 22.88 | M42: =M$29*'4KV3_TuneBuilder'!$B25 -> 24.96 | N42: =N$29*'4KV3_TuneBuilder'!$B25 -> 27.04 | O42: =O$29*'4KV3_TuneBuilder'!$B25 -> 29.12 | P42: =P$29*'4KV3_TuneBuilder'!$B25 -> 31.2 | Q42: =Q$29*'4KV3_TuneBuilder'!$B25 -> 33.28 | R42: =R$29*'4KV3_TuneBuilder'!$B25 -> 35.36 | S42: =S$29*'4KV3_TuneBuilder'!$B25 -> 37.44 | T42: =T$29*'4KV3_TuneBuilder'!$B25 -> 39.52 | U42: =U$29*'4KV3_TuneBuilder'!$B25 -> 41.6 | V42: =V$29*'4KV3_TuneBuilder'!$B25 -> 43.68 | W42: =W$29*'4KV3_TuneBuilder'!$B25 -> 45.76 | X42: =X$29*'4KV3_TuneBuilder'!$B25 -> 47.84 | Y42: =Y$29*'4KV3_TuneBuilder'!$B25 -> 49.92 | Z42: =Z$29*'4KV3_TuneBuilder'!$B25 -> 52
A43: 18 | B43: =B$29*'4KV3_TuneBuilder'!$B26 -> 2.24 | C43: =C$29*'4KV3_TuneBuilder'!$B26 -> 4.48 | D43: =D$29*'4KV3_TuneBuilder'!$B26 -> 6.72 | E43: =E$29*'4KV3_TuneBuilder'!$B26 -> 8.96 | F43: =F$29*'4KV3_TuneBuilder'!$B26 -> 11.2 | G43: =G$29*'4KV3_TuneBuilder'!$B26 -> 13.44 | H43: =H$29*'4KV3_TuneBuilder'!$B26 -> 15.68 | I43: =I$29*'4KV3_TuneBuilder'!$B26 -> 17.92 | J43: =J$29*'4KV3_TuneBuilder'!$B26 -> 20.16 | K43: =K$29*'4KV3_TuneBuilder'!$B26 -> 22.4 | L43: =L$29*'4KV3_TuneBuilder'!$B26 -> 24.64 | M43: =M$29*'4KV3_TuneBuilder'!$B26 -> 26.88 | N43: =N$29*'4KV3_TuneBuilder'!$B26 -> 29.12 | O43: =O$29*'4KV3_TuneBuilder'!$B26 -> 31.36 | P43: =P$29*'4KV3_TuneBuilder'!$B26 -> 33.6 | Q43: =Q$29*'4KV3_TuneBuilder'!$B26 -> 35.84 | R43: =R$29*'4KV3_TuneBuilder'!$B26 -> 38.08 | S43: =S$29*'4KV3_TuneBuilder'!$B26 -> 40.32 | T43: =T$29*'4KV3_TuneBuilder'!$B26 -> 42.56 | U43: =U$29*'4KV3_TuneBuilder'!$B26 -> 44.8 | V43: =V$29*'4KV3_TuneBuilder'!$B26 -> 47.04 | W43: =W$29*'4KV3_TuneBuilder'!$B26 -> 49.28 | X43: =X$29*'4KV3_TuneBuilder'!$B26 -> 51.52 | Y43: =Y$29*'4KV3_TuneBuilder'!$B26 -> 53.76 | Z43: =Z$29*'4KV3_TuneBuilder'!$B26 -> 56
A44: 20 | B44: =B$29*'4KV3_TuneBuilder'!$B27 -> 2.4 | C44: =C$29*'4KV3_TuneBuilder'!$B27 -> 4.8 | D44: =D$29*'4KV3_TuneBuilder'!$B27 -> 7.2 | E44: =E$29*'4KV3_TuneBuilder'!$B27 -> 9.6 | F44: =F$29*'4KV3_TuneBuilder'!$B27 -> 12 | G44: =G$29*'4KV3_TuneBuilder'!$B27 -> 14.4 | H44: =H$29*'4KV3_TuneBuilder'!$B27 -> 16.8 | I44: =I$29*'4KV3_TuneBuilder'!$B27 -> 19.2 | J44: =J$29*'4KV3_TuneBuilder'!$B27 -> 21.6 | K44: =K$29*'4KV3_TuneBuilder'!$B27 -> 24 | L44: =L$29*'4KV3_TuneBuilder'!$B27 -> 26.4 | M44: =M$29*'4KV3_TuneBuilder'!$B27 -> 28.8 | N44: =N$29*'4KV3_TuneBuilder'!$B27 -> 31.2 | O44: =O$29*'4KV3_TuneBuilder'!$B27 -> 33.6 | P44: =P$29*'4KV3_TuneBuilder'!$B27 -> 36 | Q44: =Q$29*'4KV3_TuneBuilder'!$B27 -> 38.4 | R44: =R$29*'4KV3_TuneBuilder'!$B27 -> 40.8 | S44: =S$29*'4KV3_TuneBuilder'!$B27 -> 43.2 | T44: =T$29*'4KV3_TuneBuilder'!$B27 -> 45.6 | U44: =U$29*'4KV3_TuneBuilder'!$B27 -> 48 | V44: =V$29*'4KV3_TuneBuilder'!$B27 -> 50.4 | W44: =W$29*'4KV3_TuneBuilder'!$B27 -> 52.8 | X44: =X$29*'4KV3_TuneBuilder'!$B27 -> 55.2 | Y44: =Y$29*'4KV3_TuneBuilder'!$B27 -> 57.6 | Z44: =Z$29*'4KV3_TuneBuilder'!$B27 -> 60
A45: 22 | B45: =B$29*'4KV3_TuneBuilder'!$B28 -> 2.56 | C45: =C$29*'4KV3_TuneBuilder'!$B28 -> 5.12 | D45: =D$29*'4KV3_TuneBuilder'!$B28 -> 7.68 | E45: =E$29*'4KV3_TuneBuilder'!$B28 -> 10.24 | F45: =F$29*'4KV3_TuneBuilder'!$B28 -> 12.8 | G45: =G$29*'4KV3_TuneBuilder'!$B28 -> 15.36 | H45: =H$29*'4KV3_TuneBuilder'!$B28 -> 17.92 | I45: =I$29*'4KV3_TuneBuilder'!$B28 -> 20.48 | J45: =J$29*'4KV3_TuneBuilder'!$B28 -> 23.04 | K45: =K$29*'4KV3_TuneBuilder'!$B28 -> 25.6 | L45: =L$29*'4KV3_TuneBuilder'!$B28 -> 28.16 | M45: =M$29*'4KV3_TuneBuilder'!$B28 -> 30.72 | N45: =N$29*'4KV3_TuneBuilder'!$B28 -> 33.28 | O45: =O$29*'4KV3_TuneBuilder'!$B28 -> 35.84 | P45: =P$29*'4KV3_TuneBuilder'!$B28 -> 38.4 | Q45: =Q$29*'4KV3_TuneBuilder'!$B28 -> 40.96 | R45: =R$29*'4KV3_TuneBuilder'!$B28 -> 43.52 | S45: =S$29*'4KV3_TuneBuilder'!$B28 -> 46.08 | T45: =T$29*'4KV3_TuneBuilder'!$B28 -> 48.64 | U45: =U$29*'4KV3_TuneBuilder'!$B28 -> 51.2 | V45: =V$29*'4KV3_TuneBuilder'!$B28 -> 53.76 | W45: =W$29*'4KV3_TuneBuilder'!$B28 -> 56.32 | X45: =X$29*'4KV3_TuneBuilder'!$B28 -> 58.88 | Y45: =Y$29*'4KV3_TuneBuilder'!$B28 -> 61.44 | Z45: =Z$29*'4KV3_TuneBuilder'!$B28 -> 64
A46: 24 | B46: =B$29*'4KV3_TuneBuilder'!$B29 -> 2.72 | C46: =C$29*'4KV3_TuneBuilder'!$B29 -> 5.44 | D46: =D$29*'4KV3_TuneBuilder'!$B29 -> 8.16 | E46: =E$29*'4KV3_TuneBuilder'!$B29 -> 10.88 | F46: =F$29*'4KV3_TuneBuilder'!$B29 -> 13.6 | G46: =G$29*'4KV3_TuneBuilder'!$B29 -> 16.32 | H46: =H$29*'4KV3_TuneBuilder'!$B29 -> 19.04 | I46: =I$29*'4KV3_TuneBuilder'!$B29 -> 21.76 | J46: =J$29*'4KV3_TuneBuilder'!$B29 -> 24.48 | K46: =K$29*'4KV3_TuneBuilder'!$B29 -> 27.2 | L46: =L$29*'4KV3_TuneBuilder'!$B29 -> 29.92 | M46: =M$29*'4KV3_TuneBuilder'!$B29 -> 32.64 | N46: =N$29*'4KV3_TuneBuilder'!$B29 -> 35.36 | O46: =O$29*'4KV3_TuneBuilder'!$B29 -> 38.08 | P46: =P$29*'4KV3_TuneBuilder'!$B29 -> 40.8 | Q46: =Q$29*'4KV3_TuneBuilder'!$B29 -> 43.52 | R46: =R$29*'4KV3_TuneBuilder'!$B29 -> 46.24 | S46: =S$29*'4KV3_TuneBuilder'!$B29 -> 48.96 | T46: =T$29*'4KV3_TuneBuilder'!$B29 -> 51.68 | U46: =U$29*'4KV3_TuneBuilder'!$B29 -> 54.4 | V46: =V$29*'4KV3_TuneBuilder'!$B29 -> 57.12 | W46: =W$29*'4KV3_TuneBuilder'!$B29 -> 59.84 | X46: =X$29*'4KV3_TuneBuilder'!$B29 -> 62.56 | Y46: =Y$29*'4KV3_TuneBuilder'!$B29 -> 65.28 | Z46: =Z$29*'4KV3_TuneBuilder'!$B29 -> 68
A47: 26 | B47: =B$29*'4KV3_TuneBuilder'!$B30 -> 2.88 | C47: =C$29*'4KV3_TuneBuilder'!$B30 -> 5.76 | D47: =D$29*'4KV3_TuneBuilder'!$B30 -> 8.64 | E47: =E$29*'4KV3_TuneBuilder'!$B30 -> 11.52 | F47: =F$29*'4KV3_TuneBuilder'!$B30 -> 14.4 | G47: =G$29*'4KV3_TuneBuilder'!$B30 -> 17.28 | H47: =H$29*'4KV3_TuneBuilder'!$B30 -> 20.16 | I47: =I$29*'4KV3_TuneBuilder'!$B30 -> 23.04 | J47: =J$29*'4KV3_TuneBuilder'!$B30 -> 25.92 | K47: =K$29*'4KV3_TuneBuilder'!$B30 -> 28.8 | L47: =L$29*'4KV3_TuneBuilder'!$B30 -> 31.68 | M47: =M$29*'4KV3_TuneBuilder'!$B30 -> 34.56 | N47: =N$29*'4KV3_TuneBuilder'!$B30 -> 37.44 | O47: =O$29*'4KV3_TuneBuilder'!$B30 -> 40.32 | P47: =P$29*'4KV3_TuneBuilder'!$B30 -> 43.2 | Q47: =Q$29*'4KV3_TuneBuilder'!$B30 -> 46.08 | R47: =R$29*'4KV3_TuneBuilder'!$B30 -> 48.96 | S47: =S$29*'4KV3_TuneBuilder'!$B30 -> 51.84 | T47: =T$29*'4KV3_TuneBuilder'!$B30 -> 54.72 | U47: =U$29*'4KV3_TuneBuilder'!$B30 -> 57.6 | V47: =V$29*'4KV3_TuneBuilder'!$B30 -> 60.48 | W47: =W$29*'4KV3_TuneBuilder'!$B30 -> 63.36 | X47: =X$29*'4KV3_TuneBuilder'!$B30 -> 66.24 | Y47: =Y$29*'4KV3_TuneBuilder'!$B30 -> 69.12 | Z47: =Z$29*'4KV3_TuneBuilder'!$B30 -> 72
A48: 28 | B48: =B$29*'4KV3_TuneBuilder'!$B31 -> 3.04 | C48: =C$29*'4KV3_TuneBuilder'!$B31 -> 6.08 | D48: =D$29*'4KV3_TuneBuilder'!$B31 -> 9.12 | E48: =E$29*'4KV3_TuneBuilder'!$B31 -> 12.16 | F48: =F$29*'4KV3_TuneBuilder'!$B31 -> 15.2 | G48: =G$29*'4KV3_TuneBuilder'!$B31 -> 18.24 | H48: =H$29*'4KV3_TuneBuilder'!$B31 -> 21.28 | I48: =I$29*'4KV3_TuneBuilder'!$B31 -> 24.32 | J48: =J$29*'4KV3_TuneBuilder'!$B31 -> 27.36 | K48: =K$29*'4KV3_TuneBuilder'!$B31 -> 30.4 | L48: =L$29*'4KV3_TuneBuilder'!$B31 -> 33.44 | M48: =M$29*'4KV3_TuneBuilder'!$B31 -> 36.48 | N48: =N$29*'4KV3_TuneBuilder'!$B31 -> 39.52 | O48: =O$29*'4KV3_TuneBuilder'!$B31 -> 42.56 | P48: =P$29*'4KV3_TuneBuilder'!$B31 -> 45.6 | Q48: =Q$29*'4KV3_TuneBuilder'!$B31 -> 48.64 | R48: =R$29*'4KV3_TuneBuilder'!$B31 -> 51.68 | S48: =S$29*'4KV3_TuneBuilder'!$B31 -> 54.72 | T48: =T$29*'4KV3_TuneBuilder'!$B31 -> 57.76 | U48: =U$29*'4KV3_TuneBuilder'!$B31 -> 60.8 | V48: =V$29*'4KV3_TuneBuilder'!$B31 -> 63.84 | W48: =W$29*'4KV3_TuneBuilder'!$B31 -> 66.88 | X48: =X$29*'4KV3_TuneBuilder'!$B31 -> 69.92 | Y48: =Y$29*'4KV3_TuneBuilder'!$B31 -> 72.96 | Z48: =Z$29*'4KV3_TuneBuilder'!$B31 -> 76
A49: 30 | B49: =B$29*'4KV3_TuneBuilder'!$B32 -> 3.2 | C49: =C$29*'4KV3_TuneBuilder'!$B32 -> 6.4 | D49: =D$29*'4KV3_TuneBuilder'!$B32 -> 9.6 | E49: =E$29*'4KV3_TuneBuilder'!$B32 -> 12.8 | F49: =F$29*'4KV3_TuneBuilder'!$B32 -> 16 | G49: =G$29*'4KV3_TuneBuilder'!$B32 -> 19.2 | H49: =H$29*'4KV3_TuneBuilder'!$B32 -> 22.4 | I49: =I$29*'4KV3_TuneBuilder'!$B32 -> 25.6 | J49: =J$29*'4KV3_TuneBuilder'!$B32 -> 28.8 | K49: =K$29*'4KV3_TuneBuilder'!$B32 -> 32 | L49: =L$29*'4KV3_TuneBuilder'!$B32 -> 35.2 | M49: =M$29*'4KV3_TuneBuilder'!$B32 -> 38.4 | N49: =N$29*'4KV3_TuneBuilder'!$B32 -> 41.6 | O49: =O$29*'4KV3_TuneBuilder'!$B32 -> 44.8 | P49: =P$29*'4KV3_TuneBuilder'!$B32 -> 48 | Q49: =Q$29*'4KV3_TuneBuilder'!$B32 -> 51.2 | R49: =R$29*'4KV3_TuneBuilder'!$B32 -> 54.4 | S49: =S$29*'4KV3_TuneBuilder'!$B32 -> 57.6 | T49: =T$29*'4KV3_TuneBuilder'!$B32 -> 60.8 | U49: =U$29*'4KV3_TuneBuilder'!$B32 -> 64 | V49: =V$29*'4KV3_TuneBuilder'!$B32 -> 67.2 | W49: =W$29*'4KV3_TuneBuilder'!$B32 -> 70.4 | X49: =X$29*'4KV3_TuneBuilder'!$B32 -> 73.6 | Y49: =Y$29*'4KV3_TuneBuilder'!$B32 -> 76.8 | Z49: =Z$29*'4KV3_TuneBuilder'!$B32 -> 80
A50: 32 | B50: =B$29*'4KV3_TuneBuilder'!$B33 -> 3.36 | C50: =C$29*'4KV3_TuneBuilder'!$B33 -> 6.72 | D50: =D$29*'4KV3_TuneBuilder'!$B33 -> 10.08 | E50: =E$29*'4KV3_TuneBuilder'!$B33 -> 13.44 | F50: =F$29*'4KV3_TuneBuilder'!$B33 -> 16.8 | G50: =G$29*'4KV3_TuneBuilder'!$B33 -> 20.16 | H50: =H$29*'4KV3_TuneBuilder'!$B33 -> 23.52 | I50: =I$29*'4KV3_TuneBuilder'!$B33 -> 26.88 | J50: =J$29*'4KV3_TuneBuilder'!$B33 -> 30.24 | K50: =K$29*'4KV3_TuneBuilder'!$B33 -> 33.6 | L50: =L$29*'4KV3_TuneBuilder'!$B33 -> 36.96 | M50: =M$29*'4KV3_TuneBuilder'!$B33 -> 40.32 | N50: =N$29*'4KV3_TuneBuilder'!$B33 -> 43.68 | O50: =O$29*'4KV3_TuneBuilder'!$B33 -> 47.04 | P50: =P$29*'4KV3_TuneBuilder'!$B33 -> 50.4 | Q50: =Q$29*'4KV3_TuneBuilder'!$B33 -> 53.76 | R50: =R$29*'4KV3_TuneBuilder'!$B33 -> 57.12 | S50: =S$29*'4KV3_TuneBuilder'!$B33 -> 60.48 | T50: =T$29*'4KV3_TuneBuilder'!$B33 -> 63.84 | U50: =U$29*'4KV3_TuneBuilder'!$B33 -> 67.2 | V50: =V$29*'4KV3_TuneBuilder'!$B33 -> 70.56 | W50: =W$29*'4KV3_TuneBuilder'!$B33 -> 73.92 | X50: =X$29*'4KV3_TuneBuilder'!$B33 -> 77.28 | Y50: =Y$29*'4KV3_TuneBuilder'!$B33 -> 80.64 | Z50: =Z$29*'4KV3_TuneBuilder'!$B33 -> 84
A51: 34 | B51: =B$29*'4KV3_TuneBuilder'!$B34 -> 3.52 | C51: =C$29*'4KV3_TuneBuilder'!$B34 -> 7.04 | D51: =D$29*'4KV3_TuneBuilder'!$B34 -> 10.56 | E51: =E$29*'4KV3_TuneBuilder'!$B34 -> 14.08 | F51: =F$29*'4KV3_TuneBuilder'!$B34 -> 17.6 | G51: =G$29*'4KV3_TuneBuilder'!$B34 -> 21.12 | H51: =H$29*'4KV3_TuneBuilder'!$B34 -> 24.64 | I51: =I$29*'4KV3_TuneBuilder'!$B34 -> 28.16 | J51: =J$29*'4KV3_TuneBuilder'!$B34 -> 31.68 | K51: =K$29*'4KV3_TuneBuilder'!$B34 -> 35.2 | L51: =L$29*'4KV3_TuneBuilder'!$B34 -> 38.72 | M51: =M$29*'4KV3_TuneBuilder'!$B34 -> 42.24 | N51: =N$29*'4KV3_TuneBuilder'!$B34 -> 45.76 | O51: =O$29*'4KV3_TuneBuilder'!$B34 -> 49.28 | P51: =P$29*'4KV3_TuneBuilder'!$B34 -> 52.8 | Q51: =Q$29*'4KV3_TuneBuilder'!$B34 -> 56.32 | R51: =R$29*'4KV3_TuneBuilder'!$B34 -> 59.84 | S51: =S$29*'4KV3_TuneBuilder'!$B34 -> 63.36 | T51: =T$29*'4KV3_TuneBuilder'!$B34 -> 66.88 | U51: =U$29*'4KV3_TuneBuilder'!$B34 -> 70.4 | V51: =V$29*'4KV3_TuneBuilder'!$B34 -> 73.92 | W51: =W$29*'4KV3_TuneBuilder'!$B34 -> 77.44 | X51: =X$29*'4KV3_TuneBuilder'!$B34 -> 80.96 | Y51: =Y$29*'4KV3_TuneBuilder'!$B34 -> 84.48 | Z51: =Z$29*'4KV3_TuneBuilder'!$B34 -> 88
A52: 36 | B52: =B$29*'4KV3_TuneBuilder'!$B35 -> 3.68 | C52: =C$29*'4KV3_TuneBuilder'!$B35 -> 7.36 | D52: =D$29*'4KV3_TuneBuilder'!$B35 -> 11.04 | E52: =E$29*'4KV3_TuneBuilder'!$B35 -> 14.72 | F52: =F$29*'4KV3_TuneBuilder'!$B35 -> 18.4 | G52: =G$29*'4KV3_TuneBuilder'!$B35 -> 22.08 | H52: =H$29*'4KV3_TuneBuilder'!$B35 -> 25.76 | I52: =I$29*'4KV3_TuneBuilder'!$B35 -> 29.44 | J52: =J$29*'4KV3_TuneBuilder'!$B35 -> 33.12 | K52: =K$29*'4KV3_TuneBuilder'!$B35 -> 36.8 | L52: =L$29*'4KV3_TuneBuilder'!$B35 -> 40.48 | M52: =M$29*'4KV3_TuneBuilder'!$B35 -> 44.16 | N52: =N$29*'4KV3_TuneBuilder'!$B35 -> 47.84 | O52: =O$29*'4KV3_TuneBuilder'!$B35 -> 51.52 | P52: =P$29*'4KV3_TuneBuilder'!$B35 -> 55.2 | Q52: =Q$29*'4KV3_TuneBuilder'!$B35 -> 58.88 | R52: =R$29*'4KV3_TuneBuilder'!$B35 -> 62.56 | S52: =S$29*'4KV3_TuneBuilder'!$B35 -> 66.24 | T52: =T$29*'4KV3_TuneBuilder'!$B35 -> 69.92 | U52: =U$29*'4KV3_TuneBuilder'!$B35 -> 73.6 | V52: =V$29*'4KV3_TuneBuilder'!$B35 -> 77.28 | W52: =W$29*'4KV3_TuneBuilder'!$B35 -> 80.96 | X52: =X$29*'4KV3_TuneBuilder'!$B35 -> 84.64 | Y52: =Y$29*'4KV3_TuneBuilder'!$B35 -> 88.32 | Z52: =Z$29*'4KV3_TuneBuilder'!$B35 -> 92
A53: 38 | B53: =B$29*'4KV3_TuneBuilder'!$B36 -> 3.84 | C53: =C$29*'4KV3_TuneBuilder'!$B36 -> 7.68 | D53: =D$29*'4KV3_TuneBuilder'!$B36 -> 11.52 | E53: =E$29*'4KV3_TuneBuilder'!$B36 -> 15.36 | F53: =F$29*'4KV3_TuneBuilder'!$B36 -> 19.2 | G53: =G$29*'4KV3_TuneBuilder'!$B36 -> 23.04 | H53: =H$29*'4KV3_TuneBuilder'!$B36 -> 26.88 | I53: =I$29*'4KV3_TuneBuilder'!$B36 -> 30.72 | J53: =J$29*'4KV3_TuneBuilder'!$B36 -> 34.56 | K53: =K$29*'4KV3_TuneBuilder'!$B36 -> 38.4 | L53: =L$29*'4KV3_TuneBuilder'!$B36 -> 42.24 | M53: =M$29*'4KV3_TuneBuilder'!$B36 -> 46.08 | N53: =N$29*'4KV3_TuneBuilder'!$B36 -> 49.92 | O53: =O$29*'4KV3_TuneBuilder'!$B36 -> 53.76 | P53: =P$29*'4KV3_TuneBuilder'!$B36 -> 57.6 | Q53: =Q$29*'4KV3_TuneBuilder'!$B36 -> 61.44 | R53: =R$29*'4KV3_TuneBuilder'!$B36 -> 65.28 | S53: =S$29*'4KV3_TuneBuilder'!$B36 -> 69.12 | T53: =T$29*'4KV3_TuneBuilder'!$B36 -> 72.96 | U53: =U$29*'4KV3_TuneBuilder'!$B36 -> 76.8 | V53: =V$29*'4KV3_TuneBuilder'!$B36 -> 80.64 | W53: =W$29*'4KV3_TuneBuilder'!$B36 -> 84.48 | X53: =X$29*'4KV3_TuneBuilder'!$B36 -> 88.32 | Y53: =Y$29*'4KV3_TuneBuilder'!$B36 -> 92.16 | Z53: =Z$29*'4KV3_TuneBuilder'!$B36 -> 96
A54: 40 | B54: =B$29*'4KV3_TuneBuilder'!$B37 -> 4 | C54: =C$29*'4KV3_TuneBuilder'!$B37 -> 8 | D54: =D$29*'4KV3_TuneBuilder'!$B37 -> 12 | E54: =E$29*'4KV3_TuneBuilder'!$B37 -> 16 | F54: =F$29*'4KV3_TuneBuilder'!$B37 -> 20 | G54: =G$29*'4KV3_TuneBuilder'!$B37 -> 24 | H54: =H$29*'4KV3_TuneBuilder'!$B37 -> 28 | I54: =I$29*'4KV3_TuneBuilder'!$B37 -> 32 | J54: =J$29*'4KV3_TuneBuilder'!$B37 -> 36 | K54: =K$29*'4KV3_TuneBuilder'!$B37 -> 40 | L54: =L$29*'4KV3_TuneBuilder'!$B37 -> 44 | M54: =M$29*'4KV3_TuneBuilder'!$B37 -> 48 | N54: =N$29*'4KV3_TuneBuilder'!$B37 -> 52 | O54: =O$29*'4KV3_TuneBuilder'!$B37 -> 56 | P54: =P$29*'4KV3_TuneBuilder'!$B37 -> 60 | Q54: =Q$29*'4KV3_TuneBuilder'!$B37 -> 64 | R54: =R$29*'4KV3_TuneBuilder'!$B37 -> 68 | S54: =S$29*'4KV3_TuneBuilder'!$B37 -> 72 | T54: =T$29*'4KV3_TuneBuilder'!$B37 -> 76 | U54: =U$29*'4KV3_TuneBuilder'!$B37 -> 80 | V54: =V$29*'4KV3_TuneBuilder'!$B37 -> 84 | W54: =W$29*'4KV3_TuneBuilder'!$B37 -> 88 | X54: =X$29*'4KV3_TuneBuilder'!$B37 -> 92 | Y54: =Y$29*'4KV3_TuneBuilder'!$B37 -> 96 | Z54: =Z$29*'4KV3_TuneBuilder'!$B37 -> 100
A57: CanBus
A58: OEM
A59: 100
A60: 100
A61: 100
A62: 100
A63: 100
A64: 100
A65: 100
A66: 100
A67: 100
A68: 100
A69: 100
A70: 100
A71: 100
A72: 100
A73: 100
A74: 100
A75: 100
A76: 100
A77: 100
A78: 100
A79: 100
A80: 100
A81: 100
A82: 100
A84: V2
B85: Inputs | H85: 1 | I85: 2 | J85: 3 | K85: 4 | L85: 5 | M85: 6 | N85: 7 | O85: 8 | P85: 9 | Q85: 10 | R85: 11 | S85: 12 | T85: 13 | U85: 14 | V85: 15 | W85: 16 | X85: 17 | Y85: 18 | Z85: 19 | AA85: 20
A86: =V2_TuneBuilder!B14 -> 2 | B86: Load % | C86: =V2_TuneBuilder!K2 -> 29 | D86: FL | E86: LT | F86: TR | H86: 0 | I86: 0 | J86: 0 | K86: 10 | L86: 20 | M86: 30 | N86: 35 | O86: 40 | P86: 45 | Q86: 50 | R86: 55 | S86: 60 | T86: 65 | U86: 70 | V86: 75 | W86: 80 | X86: 85 | Y86: 90 | Z86: 95 | AA86: 100 | AB86: //0 psi
A87: =V2_TuneBuilder!B15 -> 2 | B87: PSI | C87: =V2_TuneBuilder!K3 -> 0 | D87: =IF(C86>=A90,((D88-A86)*-1),0) -> 0 | E87: =IF(C86<A90,E88,0) -> 1.42 | F87: =IF(C86>=A90,F88,0) -> 0 | G87: =INDEX(H86:AA90,G89,G88) -> 0 | H87: 0 | I87: 0 | J87: 0 | K87: 0 | L87: 0 | M87: 10 | N87: 15 | O87: 20 | P87: 25 | Q87: 30 | R87: 35 | S87: 40 | T87: 45 | U87: 50 | V87: 55 | W87: 60 | X87: 65 | Y87: 70 | Z87: 75 | AA87: 80 | AB87: //2 psi
A88: =V2_TuneBuilder!B16 -> 100 | B88: TPS % | C88: =V2_TuneBuilder!K3 -> 0 | D88: =(A86 * C86 /100) -> 0.58 | E88: =IF(C89 > 50,E89+1,E89) -> 1.42 | F88: =IF(F89>(A87*A88/100),(A87*A88/100),F89) -> 0 | G88: =IF(C88 > 100,20,20 * D89 / 100) -> 1 | H88: 0 | I88: 0 | J88: 0 | K88: 0 | L88: 0 | M88: 0 | N88: 0 | O88: 0 | P88: 5 | Q88: 10 | R88: 15 | S88: 20 | T88: 25 | U88: 30 | V88: 35 | W88: 40 | X88: 45 | Y88: 50 | Z88: 55 | AA88: 60 | AB88: //4 psi
A89: =V2_TuneBuilder!B17 -> 2 | B89: MPH | C89: =V2_TuneBuilder!K5 -> 35 | D89: =IF(C88<5,5,C88) -> 5 | E89: =IF(C86 < A90,(((100-C86)/100) * A89),0) -> 1.42 | F89: =IF((C87<10),(A87*G87/100),0) -> 0 | G89: =IF(C87 > 10,5,(5 * C87 / 10)+1) -> 1 | H89: 0 | I89: 0 | J89: 0 | K89: 0 | L89: 0 | M89: 0 | N89: 0 | O89: 0 | P89: 0 | Q89: 0 | R89: 0 | S89: 0 | T89: 5 | U89: 10 | V89: 15 | W89: 20 | X89: 25 | Y89: 30 | Z89: 35 | AA89: 40 | AB89: //6 psi
A90: =V2_TuneBuilder!B18 -> 30 | B90: RPM | C90: =V2_TuneBuilder!K6 -> 2000 | D90: Timing At RPM = | F90: =IF(C90<2000,(((C90 - 1499)/500) * (B93 - B92)+B92),IF(C90<2500,(((C90 - 1999)/500) * (B94 - B93)+B93),IF(C90<3000,(((C90 - 2499)/500) * (B95 - B94)+B94),IF(C90<3500,(((C90 - 2999)/500) * (B96 - B95)+B95),B96)))) -> 19.426 | H90: 0 | I90: 0 | J90: 0 | K90: 0 | L90: 0 | M90: 0 | N90: 0 | O90: 0 | P90: 0 | Q90: 0 | R90: 0 | S90: 0 | T90: 0 | U90: 0 | V90: 0 | W90: 0 | X90: 5 | Y90: 10 | Z90: 15 | AA90: 20 | AB90: //8 psi
A92: =V2_TuneBuilder!B20 -> 15 | B92: =A92-D87-F87+E87 -> 16.42 | D92: Copy Entire Red
A93: =V2_TuneBuilder!B21 -> 18 | B93: =A93-D87-F87+E87 -> 19.42 | D93: Calcs based on Quadzilla code
A94: =V2_TuneBuilder!B22 -> 21 | B94: =A94-D87-F87+E87 -> 22.42
A95: =V2_TuneBuilder!B23 -> 23 | B95: =A95-D87-F87+E87 -> 24.42
A96: =V2_TuneBuilder!B24 -> 26 | B96: =A96-D87-F87+E87 -> 27.42
A98: V3
B99: Inputs | H99: 1 | I99: 2 | J99: 3 | K99: 4 | L99: 5 | M99: 6 | N99: 7 | O99: 8 | P99: 9 | Q99: 10 | R99: 11 | S99: 12 | T99: 13 | U99: 14 | V99: 15 | W99: 16 | X99: 17 | Y99: 18 | Z99: 19 | AA99: 20
A100: =V3_TuneBuilder!B39 -> 2 | B100: Load % | C100: =V3_TuneBuilder!K2 -> 29 | D100: FL | E100: LT | F100: TR | H100: 0 | I100: 0 | J100: 0 | K100: 10 | L100: 20 | M100: 30 | N100: 35 | O100: 40 | P100: 45 | Q100: 50 | R100: 55 | S100: 60 | T100: 65 | U100: 70 | V100: 75 | W100: 80 | X100: 85 | Y100: 90 | Z100: 95 | AA100: 100 | AB100: //0 psi
A101: =V3_TuneBuilder!B40 -> 2 | B101: PSI | C101: =V3_TuneBuilder!K3 -> 0 | D101: =IF(C100>=A104,((D102-A100)*-1),0) -> 1.42 | E101: =IF(C100<A104,E102,0) -> 0 | F101: =IF(C100>=A104,F102,0) -> 0 | G101: =INDEX(H100:AA104,G103,G102) -> 0 | H101: 0 | I101: 0 | J101: 0 | K101: 0 | L101: 0 | M101: 10 | N101: 15 | O101: 20 | P101: 25 | Q101: 30 | R101: 35 | S101: 40 | T101: 45 | U101: 50 | V101: 55 | W101: 60 | X101: 65 | Y101: 70 | Z101: 75 | AA101: 80 | AB101: //2 psi
A102: =V3_TuneBuilder!B41 -> 100 | B102: TPS % | C102: =V3_TuneBuilder!K4 -> 1 | D102: =(A100 * C100 /100) -> 0.58 | E102: =IF(C103 > 50,E103+1,E103) -> 0 | F102: =IF(F103>(A101*A102/100),(A101*A102/100),F103) -> 0 | G102: =IF(C102 > 100,20,20 * D103 / 100) -> 1 | H102: 0 | I102: 0 | J102: 0 | K102: 0 | L102: 0 | M102: 0 | N102: 0 | O102: 0 | P102: 5 | Q102: 10 | R102: 15 | S102: 20 | T102: 25 | U102: 30 | V102: 35 | W102: 40 | X102: 45 | Y102: 50 | Z102: 55 | AA102: 60 | AB102: //4 psi
A103: =V3_TuneBuilder!B42 -> 2 | B103: MPH | C103: =V3_TuneBuilder!K5 -> 35 | D103: =IF(C102<5,5,C102) -> 5 | E103: =IF(C100 < A104,(((100-C100)/100) * A103),0) -> 0 | F103: =IF((C101<10),(A101*G101/100),0) -> 0 | G103: =IF(C101 > 10,5,(5 * C101 / 10)+1) -> 1 | H103: 0 | I103: 0 | J103: 0 | K103: 0 | L103: 0 | M103: 0 | N103: 0 | O103: 0 | P103: 0 | Q103: 0 | R103: 0 | S103: 0 | T103: 5 | U103: 10 | V103: 15 | W103: 20 | X103: 25 | Y103: 30 | Z103: 35 | AA103: 40 | AB103: //6 psi
A104: =V3_TuneBuilder!B43 -> 5 | B104: RPM | C104: =V3_TuneBuilder!K6 -> 2000 | D104: Timing At RPM = | F104: =IF(C104<2000,(((C104 - 1499)/500) * (B107 - B106)+B106),IF(C104<2500,(((C104 - 1999)/500) * (B108 - B107)+B107),IF(C104<3000,(((C104 - 2499)/500) * (B109 - B108)+B108),IF(C104<3500,(((C104 - 2999)/500) * (B110 - B109)+B109),B110)))) -> 16.586 | H104: 0 | I104: 0 | J104: 0 | K104: 0 | L104: 0 | M104: 0 | N104: 0 | O104: 0 | P104: 0 | Q104: 0 | R104: 0 | S104: 0 | T104: 0 | U104: 0 | V104: 0 | W104: 0 | X104: 5 | Y104: 10 | Z104: 15 | AA104: 20 | AB104: //8 psi
A106: =V3_TuneBuilder!B45 -> 15 | B106: =A106-D101-F101+E101 -> 13.58 | D106: Copy Entire Red
A107: =V3_TuneBuilder!B46 -> 18 | B107: =A107-D101-F101+E101 -> 16.58 | D107: Calcs based on Quadzilla code
A108: =V3_TuneBuilder!B47 -> 21 | B108: =A108-D101-F101+E101 -> 19.58
A109: =V3_TuneBuilder!B48 -> 23 | B109: =A109-D101-F101+E101 -> 21.58
A110: =V3_TuneBuilder!B49 -> 26 | B110: =A110-D101-F101+E101 -> 24.58
A112: 4kV2
B113: Inputs | H113: 1 | I113: 2 | J113: 3 | K113: 4 | L113: 5 | M113: 6 | N113: 7 | O113: 8 | P113: 9 | Q113: 10 | R113: 11 | S113: 12 | T113: 13 | U113: 14 | V113: 15 | W113: 16 | X113: 17 | Y113: 18 | Z113: 19 | AA113: 20
A114: ='4KV2_TuneBuilder'!B14 -> 2 | B114: Load % | C114: ='4KV2_TuneBuilder'!K2 -> 29 | D114: FL | E114: LT | F114: TR | H114: 0 | I114: 0 | J114: 0 | K114: 10 | L114: 20 | M114: 30 | N114: 35 | O114: 40 | P114: 45 | Q114: 50 | R114: 55 | S114: 60 | T114: 65 | U114: 70 | V114: 75 | W114: 80 | X114: 85 | Y114: 90 | Z114: 95 | AA114: 100 | AB114: //0 psi
A115: ='4KV2_TuneBuilder'!B15 -> 2 | B115: PSI | C115: ='4KV2_TuneBuilder'!K3 -> 0 | D115: =IF(C114>=A118,((D116-A114)*-1),0) -> 0 | E115: =IF(C114<A118,E116,0) -> 1.42 | F115: =IF(C114>=A118,F116,0) -> 0 | G115: =INDEX(H114:AA118,G117,G116) -> 0 | H115: 0 | I115: 0 | J115: 0 | K115: 0 | L115: 0 | M115: 10 | N115: 15 | O115: 20 | P115: 25 | Q115: 30 | R115: 35 | S115: 40 | T115: 45 | U115: 50 | V115: 55 | W115: 60 | X115: 65 | Y115: 70 | Z115: 75 | AA115: 80 | AB115: //2 psi
A116: ='4KV2_TuneBuilder'!B16 -> 100 | B116: TPS % | C116: ='4KV2_TuneBuilder'!K4 -> 1 | D116: =(A114 * C114 /100) -> 0.58 | E116: =IF(C117 > 50,E117+1,E117) -> 1.42 | F116: =IF(F117>(A115*A116/100),(A115*A116/100),F117) -> 0 | G116: =IF(C116 > 100,20,20 * D117 / 100) -> 1 | H116: 0 | I116: 0 | J116: 0 | K116: 0 | L116: 0 | M116: 0 | N116: 0 | O116: 0 | P116: 5 | Q116: 10 | R116: 15 | S116: 20 | T116: 25 | U116: 30 | V116: 35 | W116: 40 | X116: 45 | Y116: 50 | Z116: 55 | AA116: 60 | AB116: //4 psi
A117: ='4KV2_TuneBuilder'!B17 -> 2 | B117: MPH | C117: ='4KV2_TuneBuilder'!K5 -> 35 | D117: =IF(C116<5,5,C116) -> 5 | E117: =IF(C114 < A118,(((100-C114)/100) * A117),0) -> 1.42 | F117: =IF((C115<10),(A115*G115/100),0) -> 0 | G117: =IF(C115 > 10,5,(5 * C115 / 10)+1) -> 1 | H117: 0 | I117: 0 | J117: 0 | K117: 0 | L117: 0 | M117: 0 | N117: 0 | O117: 0 | P117: 0 | Q117: 0 | R117: 0 | S117: 0 | T117: 5 | U117: 10 | V117: 15 | W117: 20 | X117: 25 | Y117: 30 | Z117: 35 | AA117: 40 | AB117: //6 psi
A118: ='4KV2_TuneBuilder'!B18 -> 30 | B118: RPM | C118: ='4KV2_TuneBuilder'!K6 -> 2000 | D118: Timing At RPM = | F118: =IF(C118<2000,(((C118 - 1499)/500) * (B121 - B120)+B120),IF(C118<2500,(((C118 - 1999)/500) * (B122 - B121)+B121),IF(C118<3000,(((C118 - 2499)/500) * (B123 - B122)+B122),IF(C118<3500,(((C118 - 2999)/500) * (B124 - B123)+B123),B124)))) -> 19.426 | H118: 0 | I118: 0 | J118: 0 | K118: 0 | L118: 0 | M118: 0 | N118: 0 | O118: 0 | P118: 0 | Q118: 0 | R118: 0 | S118: 0 | T118: 0 | U118: 0 | V118: 0 | W118: 0 | X118: 5 | Y118: 10 | Z118: 15 | AA118: 20 | AB118: //8 psi
A120: ='4KV2_TuneBuilder'!B20 -> 15 | B120: =A120-D115-F115+E115 -> 16.42 | D120: Copy Entire Red
A121: ='4KV2_TuneBuilder'!B21 -> 18 | B121: =A121-D115-F115+E115 -> 19.42 | D121: Calcs based on Quadzilla code
A122: ='4KV2_TuneBuilder'!B22 -> 21 | B122: =A122-D115-F115+E115 -> 22.42
A123: ='4KV2_TuneBuilder'!B23 -> 23 | B123: =A123-D115-F115+E115 -> 24.42
A124: ='4KV2_TuneBuilder'!B24 -> 24 | B124: =A124-$D$115-$F$115+$E$115 -> 25.42
A125: ='4KV2_TuneBuilder'!B25 -> 25 | B125: =A125-$D$115-$F$115+$E$115 -> 26.42
A126: ='4KV2_TuneBuilder'!B26 -> 26 | B126: =A126-$D$115-$F$115+$E$115 -> 27.42
A128: 4kV3
B129: Inputs | H129: 1 | I129: 2 | J129: 3 | K129: 4 | L129: 5 | M129: 6 | N129: 7 | O129: 8 | P129: 9 | Q129: 10 | R129: 11 | S129: 12 | T129: 13 | U129: 14 | V129: 15 | W129: 16 | X129: 17 | Y129: 18 | Z129: 19 | AA129: 20
A130: ='4KV3_TuneBuilder'!B39 -> 2 | B130: Load % | C130: ='4KV3_TuneBuilder'!K2 -> 25 | D130: FL | E130: LT | F130: TR | H130: 0 | I130: 0 | J130: 0 | K130: 10 | L130: 20 | M130: 30 | N130: 35 | O130: 40 | P130: 45 | Q130: 50 | R130: 55 | S130: 60 | T130: 65 | U130: 70 | V130: 75 | W130: 80 | X130: 85 | Y130: 90 | Z130: 95 | AA130: 100 | AB130: //0 psi
A131: ='4KV3_TuneBuilder'!B40 -> 2 | B131: PSI | C131: ='4KV3_TuneBuilder'!K3 -> 0 | D131: =IF(C130>=A134,((D132-A130)*-1),0) -> 1.5 | E131: =IF(C130<A134,E132,0) -> 0 | F131: =IF(C130>=A134,F132,0) -> 0 | G131: =INDEX(H130:AA134,G133,G132) -> 0 | H131: 0 | I131: 0 | J131: 0 | K131: 0 | L131: 0 | M131: 10 | N131: 15 | O131: 20 | P131: 25 | Q131: 30 | R131: 35 | S131: 40 | T131: 45 | U131: 50 | V131: 55 | W131: 60 | X131: 65 | Y131: 70 | Z131: 75 | AA131: 80 | AB131: //2 psi
A132: ='4KV3_TuneBuilder'!B41 -> 100 | B132: TPS % | C132: ='4KV3_TuneBuilder'!K4 -> 5 | D132: =(A130 * C130 /100) -> 0.5 | E132: =IF(C133 > 50,E133+1,E133) -> 0 | F132: =IF(F133>(A131*A132/100),(A131*A132/100),F133) -> 0 | G132: =IF(C132 > 100,20,20 * D133 / 100) -> 1 | H132: 0 | I132: 0 | J132: 0 | K132: 0 | L132: 0 | M132: 0 | N132: 0 | O132: 0 | P132: 5 | Q132: 10 | R132: 15 | S132: 20 | T132: 25 | U132: 30 | V132: 35 | W132: 40 | X132: 45 | Y132: 50 | Z132: 55 | AA132: 60 | AB132: //4 psi
A133: ='4KV3_TuneBuilder'!B42 -> 2 | B133: MPH | C133: ='4KV3_TuneBuilder'!K5 -> 35 | D133: =IF(C132<5,5,C132) -> 5 | E133: =IF(C130 < A134,(((100-C130)/100) * A133),0) -> 0 | F133: =IF((C131<10),(A131*G131/100),0) -> 0 | G133: =IF(C131 > 10,5,(5 * C131 / 10)+1) -> 1 | H133: 0 | I133: 0 | J133: 0 | K133: 0 | L133: 0 | M133: 0 | N133: 0 | O133: 0 | P133: 0 | Q133: 0 | R133: 0 | S133: 0 | T133: 5 | U133: 10 | V133: 15 | W133: 20 | X133: 25 | Y133: 30 | Z133: 35 | AA133: 40 | AB133: //6 psi
A134: ='4KV3_TuneBuilder'!B43 -> 5 | B134: RPM | C134: ='4KV3_TuneBuilder'!K6 -> 2000 | D134: Timing At RPM = | F134: =IF(C134<2000,(((C134 - 1499)/500) * (B137 - B136)+B136),IF(C134<2500,(((C134 - 1999)/500) * (B138 - B137)+B137),IF(C134<3000,(((C134 - 2499)/500) * (B139 - B138)+B138),IF(C134<3500,(((C134 - 2999)/500) * (B140 - B139)+B139),B140)))) -> 16.506 | H134: 0 | I134: 0 | J134: 0 | K134: 0 | L134: 0 | M134: 0 | N134: 0 | O134: 0 | P134: 0 | Q134: 0 | R134: 0 | S134: 0 | T134: 0 | U134: 0 | V134: 0 | W134: 0 | X134: 5 | Y134: 10 | Z134: 15 | AA134: 20 | AB134: //8 psi
A135: ='4KV3_TuneBuilder'!B44 -> 0
A136: ='4KV3_TuneBuilder'!B45 -> 15 | B136: =A136-D131-F131+E131 -> 13.5 | D136: Copy Entire Red
A137: ='4KV3_TuneBuilder'!B46 -> 18 | B137: =A137-D131-F131+E131 -> 16.5 | D137: Calcs based on Quadzilla code
A138: ='4KV3_TuneBuilder'!B47 -> 21 | B138: =A138-D131-F131+E131 -> 19.5
A139: ='4KV3_TuneBuilder'!B48 -> 23 | B139: =A139-D131-F131+E131 -> 21.5
A140: ='4KV3_TuneBuilder'!B49 -> 24 | B140: =A140-$D$115-$F$115+$E$115 -> 25.42
A141: ='4KV3_TuneBuilder'!B50 -> 25 | B141: =A141-$D$115-$F$115+$E$115 -> 26.42
A142: ='4KV3_TuneBuilder'!B51 -> 26 | B142: =A142-$D$115-$F$115+$E$115 -> 27.42
A145: V2 Fuel load timing vs rpm
B146: 0 | C146: 5 | D146: 10 | E146: 15 | F146: 20 | G146: 25 | H146: 30 | I146: 35 | J146: 40 | K146: 45 | L146: 50 | M146: 55 | N146: 60 | O146: 65 | P146: 70 | Q146: 75 | R146: 80 | S146: 85 | T146: 90 | U146: 95 | V146: 100
A147: 1500RPM | B147: =IF(B$146<=V2_TuneBuilder!B$18,(((100-B$146)/100)*V2_TuneBuilder!$B$17)+V2_TuneBuilder!$B20,(V2_TuneBuilder!$B20-(V2_TuneBuilder!$B$14*B$146)/100)) -> 17 | C147: =IF(C$146<=V2_TuneBuilder!$B$18,(((100-C$146)/100)*V2_TuneBuilder!$B$17)+V2_TuneBuilder!$B20,(V2_TuneBuilder!$B20-V2_TuneBuilder!$B$14+(V2_TuneBuilder!$B$14*C$146)/100)) -> 16.9 | D147: =IF(D$146<=V2_TuneBuilder!$B$18,(((100-D$146)/100)*V2_TuneBuilder!$B$17)+V2_TuneBuilder!$B20,(V2_TuneBuilder!$B20-V2_TuneBuilder!$B$14+(V2_TuneBuilder!$B$14*D$146)/100)) -> 16.8 | E147: =IF(E$146<=V2_TuneBuilder!$B$18,(((100-E$146)/100)*V2_TuneBuilder!$B$17)+V2_TuneBuilder!$B20,(V2_TuneBuilder!$B20-V2_TuneBuilder!$B$14+(V2_TuneBuilder!$B$14*E$146)/100)) -> 16.7 | F147: =IF(F$146<=V2_TuneBuilder!$B$18,(((100-F$146)/100)*V2_TuneBuilder!$B$17)+V2_TuneBuilder!$B20,(V2_TuneBuilder!$B20-V2_TuneBuilder!$B$14+(V2_TuneBuilder!$B$14*F$146)/100)) -> 16.6 | G147: =IF(G$146<=V2_TuneBuilder!$B$18,(((100-G$146)/100)*V2_TuneBuilder!$B$17)+V2_TuneBuilder!$B20,(V2_TuneBuilder!$B20-V2_TuneBuilder!$B$14+(V2_TuneBuilder!$B$14*G$146)/100)) -> 16.5 | H147: =IF(H$146<=V2_TuneBuilder!$B$18,(((100-H$146)/100)*V2_TuneBuilder!$B$17)+V2_TuneBuilder!$B20,(V2_TuneBuilder!$B20-V2_TuneBuilder!$B$14+(V2_TuneBuilder!$B$14*H$146)/100)) -> 16.4 | I147: =IF(I$146<=V2_TuneBuilder!$B$18,(((100-I$146)/100)*V2_TuneBuilder!$B$17)+V2_TuneBuilder!$B20,(V2_TuneBuilder!$B20-V2_TuneBuilder!$B$14+(V2_TuneBuilder!$B$14*I$146)/100)) -> 13.7 | J147: =IF(J$146<=V2_TuneBuilder!$B$18,(((100-J$146)/100)*V2_TuneBuilder!$B$17)+V2_TuneBuilder!$B20,(V2_TuneBuilder!$B20-V2_TuneBuilder!$B$14+(V2_TuneBuilder!$B$14*J$146)/100)) -> 13.8 | K147: =IF(K$146<=V2_TuneBuilder!$B$18,(((100-K$146)/100)*V2_TuneBuilder!$B$17)+V2_TuneBuilder!$B20,(V2_TuneBuilder!$B20-V2_TuneBuilder!$B$14+(V2_TuneBuilder!$B$14*K$146)/100)) -> 13.9 | L147: =IF(L$146<=V2_TuneBuilder!$B$18,(((100-L$146)/100)*V2_TuneBuilder!$B$17)+V2_TuneBuilder!$B20,(V2_TuneBuilder!$B20-V2_TuneBuilder!$B$14+(V2_TuneBuilder!$B$14*L$146)/100)) -> 14 | M147: =IF(M$146<=V2_TuneBuilder!$B$18,(((100-M$146)/100)*V2_TuneBuilder!$B$17)+V2_TuneBuilder!$B20,(V2_TuneBuilder!$B20-V2_TuneBuilder!$B$14+(V2_TuneBuilder!$B$14*M$146)/100)) -> 14.1 | N147: =IF(N$146<=V2_TuneBuilder!$B$18,(((100-N$146)/100)*V2_TuneBuilder!$B$17)+V2_TuneBuilder!$B20,(V2_TuneBuilder!$B20-V2_TuneBuilder!$B$14+(V2_TuneBuilder!$B$14*N$146)/100)) -> 14.2 | O147: =IF(O$146<=V2_TuneBuilder!$B$18,(((100-O$146)/100)*V2_TuneBuilder!$B$17)+V2_TuneBuilder!$B20,(V2_TuneBuilder!$B20-V2_TuneBuilder!$B$14+(V2_TuneBuilder!$B$14*O$146)/100)) -> 14.3 | P147: =IF(P$146<=V2_TuneBuilder!$B$18,(((100-P$146)/100)*V2_TuneBuilder!$B$17)+V2_TuneBuilder!$B20,(V2_TuneBuilder!$B20-V2_TuneBuilder!$B$14+(V2_TuneBuilder!$B$14*P$146)/100)) -> 14.4 | Q147: =IF(Q$146<=V2_TuneBuilder!$B$18,(((100-Q$146)/100)*V2_TuneBuilder!$B$17)+V2_TuneBuilder!$B20,(V2_TuneBuilder!$B20-V2_TuneBuilder!$B$14+(V2_TuneBuilder!$B$14*Q$146)/100)) -> 14.5 | R147: =IF(R$146<=V2_TuneBuilder!$B$18,(((100-R$146)/100)*V2_TuneBuilder!$B$17)+V2_TuneBuilder!$B20,(V2_TuneBuilder!$B20-V2_TuneBuilder!$B$14+(V2_TuneBuilder!$B$14*R$146)/100)) -> 14.6 | S147: =IF(S$146<=V2_TuneBuilder!$B$18,(((100-S$146)/100)*V2_TuneBuilder!$B$17)+V2_TuneBuilder!$B20,(V2_TuneBuilder!$B20-V2_TuneBuilder!$B$14+(V2_TuneBuilder!$B$14*S$146)/100)) -> 14.7 | T147: =IF(T$146<=V2_TuneBuilder!$B$18,(((100-T$146)/100)*V2_TuneBuilder!$B$17)+V2_TuneBuilder!$B20,(V2_TuneBuilder!$B20-V2_TuneBuilder!$B$14+(V2_TuneBuilder!$B$14*T$146)/100)) -> 14.8 | U147: =IF(U$146<=V2_TuneBuilder!$B$18,(((100-U$146)/100)*V2_TuneBuilder!$B$17)+V2_TuneBuilder!$B20,(V2_TuneBuilder!$B20-V2_TuneBuilder!$B$14+(V2_TuneBuilder!$B$14*U$146)/100)) -> 14.9 | V147: =IF(V$146<=V2_TuneBuilder!$B$18,(((100-V$146)/100)*V2_TuneBuilder!$B$17)+V2_TuneBuilder!$B20,(V2_TuneBuilder!$B20-V2_TuneBuilder!$B$14+(V2_TuneBuilder!$B$14*V$146)/100)) -> 15
A148: 2000RPM | B148: =IF(B$146<=V2_TuneBuilder!B$18,(((100-B$146)/100)*V2_TuneBuilder!$B$17)+V2_TuneBuilder!$B21,(V2_TuneBuilder!$B21-(V2_TuneBuilder!$B$14*B$146)/100)) -> 20 | C148: =IF(C$146<=V2_TuneBuilder!$B$18,(((100-C$146)/100)*V2_TuneBuilder!$B$17)+V2_TuneBuilder!$B21,(V2_TuneBuilder!$B21-V2_TuneBuilder!$B$14+(V2_TuneBuilder!$B$14*C$146)/100)) -> 19.9 | D148: =IF(D$146<=V2_TuneBuilder!$B$18,(((100-D$146)/100)*V2_TuneBuilder!$B$17)+V2_TuneBuilder!$B21,(V2_TuneBuilder!$B21-V2_TuneBuilder!$B$14+(V2_TuneBuilder!$B$14*D$146)/100)) -> 19.8 | E148: =IF(E$146<=V2_TuneBuilder!$B$18,(((100-E$146)/100)*V2_TuneBuilder!$B$17)+V2_TuneBuilder!$B21,(V2_TuneBuilder!$B21-V2_TuneBuilder!$B$14+(V2_TuneBuilder!$B$14*E$146)/100)) -> 19.7 | F148: =IF(F$146<=V2_TuneBuilder!$B$18,(((100-F$146)/100)*V2_TuneBuilder!$B$17)+V2_TuneBuilder!$B21,(V2_TuneBuilder!$B21-V2_TuneBuilder!$B$14+(V2_TuneBuilder!$B$14*F$146)/100)) -> 19.6 | G148: =IF(G$146<=V2_TuneBuilder!$B$18,(((100-G$146)/100)*V2_TuneBuilder!$B$17)+V2_TuneBuilder!$B21,(V2_TuneBuilder!$B21-V2_TuneBuilder!$B$14+(V2_TuneBuilder!$B$14*G$146)/100)) -> 19.5 | H148: =IF(H$146<=V2_TuneBuilder!$B$18,(((100-H$146)/100)*V2_TuneBuilder!$B$17)+V2_TuneBuilder!$B21,(V2_TuneBuilder!$B21-V2_TuneBuilder!$B$14+(V2_TuneBuilder!$B$14*H$146)/100)) -> 19.4 | I148: =IF(I$146<=V2_TuneBuilder!$B$18,(((100-I$146)/100)*V2_TuneBuilder!$B$17)+V2_TuneBuilder!$B21,(V2_TuneBuilder!$B21-V2_TuneBuilder!$B$14+(V2_TuneBuilder!$B$14*I$146)/100)) -> 16.7 | J148: =IF(J$146<=V2_TuneBuilder!$B$18,(((100-J$146)/100)*V2_TuneBuilder!$B$17)+V2_TuneBuilder!$B21,(V2_TuneBuilder!$B21-V2_TuneBuilder!$B$14+(V2_TuneBuilder!$B$14*J$146)/100)) -> 16.8 | K148: =IF(K$146<=V2_TuneBuilder!$B$18,(((100-K$146)/100)*V2_TuneBuilder!$B$17)+V2_TuneBuilder!$B21,(V2_TuneBuilder!$B21-V2_TuneBuilder!$B$14+(V2_TuneBuilder!$B$14*K$146)/100)) -> 16.9 | L148: =IF(L$146<=V2_TuneBuilder!$B$18,(((100-L$146)/100)*V2_TuneBuilder!$B$17)+V2_TuneBuilder!$B21,(V2_TuneBuilder!$B21-V2_TuneBuilder!$B$14+(V2_TuneBuilder!$B$14*L$146)/100)) -> 17 | M148: =IF(M$146<=V2_TuneBuilder!$B$18,(((100-M$146)/100)*V2_TuneBuilder!$B$17)+V2_TuneBuilder!$B21,(V2_TuneBuilder!$B21-V2_TuneBuilder!$B$14+(V2_TuneBuilder!$B$14*M$146)/100)) -> 17.1 | N148: =IF(N$146<=V2_TuneBuilder!$B$18,(((100-N$146)/100)*V2_TuneBuilder!$B$17)+V2_TuneBuilder!$B21,(V2_TuneBuilder!$B21-V2_TuneBuilder!$B$14+(V2_TuneBuilder!$B$14*N$146)/100)) -> 17.2 | O148: =IF(O$146<=V2_TuneBuilder!$B$18,(((100-O$146)/100)*V2_TuneBuilder!$B$17)+V2_TuneBuilder!$B21,(V2_TuneBuilder!$B21-V2_TuneBuilder!$B$14+(V2_TuneBuilder!$B$14*O$146)/100)) -> 17.3 | P148: =IF(P$146<=V2_TuneBuilder!$B$18,(((100-P$146)/100)*V2_TuneBuilder!$B$17)+V2_TuneBuilder!$B21,(V2_TuneBuilder!$B21-V2_TuneBuilder!$B$14+(V2_TuneBuilder!$B$14*P$146)/100)) -> 17.4 | Q148: =IF(Q$146<=V2_TuneBuilder!$B$18,(((100-Q$146)/100)*V2_TuneBuilder!$B$17)+V2_TuneBuilder!$B21,(V2_TuneBuilder!$B21-V2_TuneBuilder!$B$14+(V2_TuneBuilder!$B$14*Q$146)/100)) -> 17.5 | R148: =IF(R$146<=V2_TuneBuilder!$B$18,(((100-R$146)/100)*V2_TuneBuilder!$B$17)+V2_TuneBuilder!$B21,(V2_TuneBuilder!$B21-V2_TuneBuilder!$B$14+(V2_TuneBuilder!$B$14*R$146)/100)) -> 17.6 | S148: =IF(S$146<=V2_TuneBuilder!$B$18,(((100-S$146)/100)*V2_TuneBuilder!$B$17)+V2_TuneBuilder!$B21,(V2_TuneBuilder!$B21-V2_TuneBuilder!$B$14+(V2_TuneBuilder!$B$14*S$146)/100)) -> 17.7 | T148: =IF(T$146<=V2_TuneBuilder!$B$18,(((100-T$146)/100)*V2_TuneBuilder!$B$17)+V2_TuneBuilder!$B21,(V2_TuneBuilder!$B21-V2_TuneBuilder!$B$14+(V2_TuneBuilder!$B$14*T$146)/100)) -> 17.8 | U148: =IF(U$146<=V2_TuneBuilder!$B$18,(((100-U$146)/100)*V2_TuneBuilder!$B$17)+V2_TuneBuilder!$B21,(V2_TuneBuilder!$B21-V2_TuneBuilder!$B$14+(V2_TuneBuilder!$B$14*U$146)/100)) -> 17.9 | V148: =IF(V$146<=V2_TuneBuilder!$B$18,(((100-V$146)/100)*V2_TuneBuilder!$B$17)+V2_TuneBuilder!$B21,(V2_TuneBuilder!$B21-V2_TuneBuilder!$B$14+(V2_TuneBuilder!$B$14*V$146)/100)) -> 18
A149: 2500RPM | B149: =IF(B$146<=V2_TuneBuilder!B$18,(((100-B$146)/100)*V2_TuneBuilder!$B$17)+V2_TuneBuilder!$B22,(V2_TuneBuilder!$B22-(V2_TuneBuilder!$B$14*B$146)/100)) -> 23 | C149: =IF(C$146<=V2_TuneBuilder!$B$18,(((100-C$146)/100)*V2_TuneBuilder!$B$17)+V2_TuneBuilder!$B22,(V2_TuneBuilder!$B22-V2_TuneBuilder!$B$14+(V2_TuneBuilder!$B$14*C$146)/100)) -> 22.9 | D149: =IF(D$146<=V2_TuneBuilder!$B$18,(((100-D$146)/100)*V2_TuneBuilder!$B$17)+V2_TuneBuilder!$B22,(V2_TuneBuilder!$B22-V2_TuneBuilder!$B$14+(V2_TuneBuilder!$B$14*D$146)/100)) -> 22.8 | E149: =IF(E$146<=V2_TuneBuilder!$B$18,(((100-E$146)/100)*V2_TuneBuilder!$B$17)+V2_TuneBuilder!$B22,(V2_TuneBuilder!$B22-V2_TuneBuilder!$B$14+(V2_TuneBuilder!$B$14*E$146)/100)) -> 22.7 | F149: =IF(F$146<=V2_TuneBuilder!$B$18,(((100-F$146)/100)*V2_TuneBuilder!$B$17)+V2_TuneBuilder!$B22,(V2_TuneBuilder!$B22-V2_TuneBuilder!$B$14+(V2_TuneBuilder!$B$14*F$146)/100)) -> 22.6 | G149: =IF(G$146<=V2_TuneBuilder!$B$18,(((100-G$146)/100)*V2_TuneBuilder!$B$17)+V2_TuneBuilder!$B22,(V2_TuneBuilder!$B22-V2_TuneBuilder!$B$14+(V2_TuneBuilder!$B$14*G$146)/100)) -> 22.5 | H149: =IF(H$146<=V2_TuneBuilder!$B$18,(((100-H$146)/100)*V2_TuneBuilder!$B$17)+V2_TuneBuilder!$B22,(V2_TuneBuilder!$B22-V2_TuneBuilder!$B$14+(V2_TuneBuilder!$B$14*H$146)/100)) -> 22.4 | I149: =IF(I$146<=V2_TuneBuilder!$B$18,(((100-I$146)/100)*V2_TuneBuilder!$B$17)+V2_TuneBuilder!$B22,(V2_TuneBuilder!$B22-V2_TuneBuilder!$B$14+(V2_TuneBuilder!$B$14*I$146)/100)) -> 19.7 | J149: =IF(J$146<=V2_TuneBuilder!$B$18,(((100-J$146)/100)*V2_TuneBuilder!$B$17)+V2_TuneBuilder!$B22,(V2_TuneBuilder!$B22-V2_TuneBuilder!$B$14+(V2_TuneBuilder!$B$14*J$146)/100)) -> 19.8 | K149: =IF(K$146<=V2_TuneBuilder!$B$18,(((100-K$146)/100)*V2_TuneBuilder!$B$17)+V2_TuneBuilder!$B22,(V2_TuneBuilder!$B22-V2_TuneBuilder!$B$14+(V2_TuneBuilder!$B$14*K$146)/100)) -> 19.9 | L149: =IF(L$146<=V2_TuneBuilder!$B$18,(((100-L$146)/100)*V2_TuneBuilder!$B$17)+V2_TuneBuilder!$B22,(V2_TuneBuilder!$B22-V2_TuneBuilder!$B$14+(V2_TuneBuilder!$B$14*L$146)/100)) -> 20 | M149: =IF(M$146<=V2_TuneBuilder!$B$18,(((100-M$146)/100)*V2_TuneBuilder!$B$17)+V2_TuneBuilder!$B22,(V2_TuneBuilder!$B22-V2_TuneBuilder!$B$14+(V2_TuneBuilder!$B$14*M$146)/100)) -> 20.1 | N149: =IF(N$146<=V2_TuneBuilder!$B$18,(((100-N$146)/100)*V2_TuneBuilder!$B$17)+V2_TuneBuilder!$B22,(V2_TuneBuilder!$B22-V2_TuneBuilder!$B$14+(V2_TuneBuilder!$B$14*N$146)/100)) -> 20.2 | O149: =IF(O$146<=V2_TuneBuilder!$B$18,(((100-O$146)/100)*V2_TuneBuilder!$B$17)+V2_TuneBuilder!$B22,(V2_TuneBuilder!$B22-V2_TuneBuilder!$B$14+(V2_TuneBuilder!$B$14*O$146)/100)) -> 20.3 | P149: =IF(P$146<=V2_TuneBuilder!$B$18,(((100-P$146)/100)*V2_TuneBuilder!$B$17)+V2_TuneBuilder!$B22,(V2_TuneBuilder!$B22-V2_TuneBuilder!$B$14+(V2_TuneBuilder!$B$14*P$146)/100)) -> 20.4 | Q149: =IF(Q$146<=V2_TuneBuilder!$B$18,(((100-Q$146)/100)*V2_TuneBuilder!$B$17)+V2_TuneBuilder!$B22,(V2_TuneBuilder!$B22-V2_TuneBuilder!$B$14+(V2_TuneBuilder!$B$14*Q$146)/100)) -> 20.5 | R149: =IF(R$146<=V2_TuneBuilder!$B$18,(((100-R$146)/100)*V2_TuneBuilder!$B$17)+V2_TuneBuilder!$B22,(V2_TuneBuilder!$B22-V2_TuneBuilder!$B$14+(V2_TuneBuilder!$B$14*R$146)/100)) -> 20.6 | S149: =IF(S$146<=V2_TuneBuilder!$B$18,(((100-S$146)/100)*V2_TuneBuilder!$B$17)+V2_TuneBuilder!$B22,(V2_TuneBuilder!$B22-V2_TuneBuilder!$B$14+(V2_TuneBuilder!$B$14*S$146)/100)) -> 20.7 | T149: =IF(T$146<=V2_TuneBuilder!$B$18,(((100-T$146)/100)*V2_TuneBuilder!$B$17)+V2_TuneBuilder!$B22,(V2_TuneBuilder!$B22-V2_TuneBuilder!$B$14+(V2_TuneBuilder!$B$14*T$146)/100)) -> 20.8 | U149: =IF(U$146<=V2_TuneBuilder!$B$18,(((100-U$146)/100)*V2_TuneBuilder!$B$17)+V2_TuneBuilder!$B22,(V2_TuneBuilder!$B22-V2_TuneBuilder!$B$14+(V2_TuneBuilder!$B$14*U$146)/100)) -> 20.9 | V149: =IF(V$146<=V2_TuneBuilder!$B$18,(((100-V$146)/100)*V2_TuneBuilder!$B$17)+V2_TuneBuilder!$B22,(V2_TuneBuilder!$B22-V2_TuneBuilder!$B$14+(V2_TuneBuilder!$B$14*V$146)/100)) -> 21
A150: 3000RPM | B150: =IF(B$146<=V2_TuneBuilder!B$18,(((100-B$146)/100)*V2_TuneBuilder!$B$17)+V2_TuneBuilder!$B23,(V2_TuneBuilder!$B23-(V2_TuneBuilder!$B$14*B$146)/100)) -> 25 | C150: =IF(C$146<=V2_TuneBuilder!$B$18,(((100-C$146)/100)*V2_TuneBuilder!$B$17)+V2_TuneBuilder!$B23,(V2_TuneBuilder!$B23-V2_TuneBuilder!$B$14+(V2_TuneBuilder!$B$14*C$146)/100)) -> 24.9 | D150: =IF(D$146<=V2_TuneBuilder!$B$18,(((100-D$146)/100)*V2_TuneBuilder!$B$17)+V2_TuneBuilder!$B23,(V2_TuneBuilder!$B23-V2_TuneBuilder!$B$14+(V2_TuneBuilder!$B$14*D$146)/100)) -> 24.8 | E150: =IF(E$146<=V2_TuneBuilder!$B$18,(((100-E$146)/100)*V2_TuneBuilder!$B$17)+V2_TuneBuilder!$B23,(V2_TuneBuilder!$B23-V2_TuneBuilder!$B$14+(V2_TuneBuilder!$B$14*E$146)/100)) -> 24.7 | F150: =IF(F$146<=V2_TuneBuilder!$B$18,(((100-F$146)/100)*V2_TuneBuilder!$B$17)+V2_TuneBuilder!$B23,(V2_TuneBuilder!$B23-V2_TuneBuilder!$B$14+(V2_TuneBuilder!$B$14*F$146)/100)) -> 24.6 | G150: =IF(G$146<=V2_TuneBuilder!$B$18,(((100-G$146)/100)*V2_TuneBuilder!$B$17)+V2_TuneBuilder!$B23,(V2_TuneBuilder!$B23-V2_TuneBuilder!$B$14+(V2_TuneBuilder!$B$14*G$146)/100)) -> 24.5 | H150: =IF(H$146<=V2_TuneBuilder!$B$18,(((100-H$146)/100)*V2_TuneBuilder!$B$17)+V2_TuneBuilder!$B23,(V2_TuneBuilder!$B23-V2_TuneBuilder!$B$14+(V2_TuneBuilder!$B$14*H$146)/100)) -> 24.4 | I150: =IF(I$146<=V2_TuneBuilder!$B$18,(((100-I$146)/100)*V2_TuneBuilder!$B$17)+V2_TuneBuilder!$B23,(V2_TuneBuilder!$B23-V2_TuneBuilder!$B$14+(V2_TuneBuilder!$B$14*I$146)/100)) -> 21.7 | J150: =IF(J$146<=V2_TuneBuilder!$B$18,(((100-J$146)/100)*V2_TuneBuilder!$B$17)+V2_TuneBuilder!$B23,(V2_TuneBuilder!$B23-V2_TuneBuilder!$B$14+(V2_TuneBuilder!$B$14*J$146)/100)) -> 21.8 | K150: =IF(K$146<=V2_TuneBuilder!$B$18,(((100-K$146)/100)*V2_TuneBuilder!$B$17)+V2_TuneBuilder!$B23,(V2_TuneBuilder!$B23-V2_TuneBuilder!$B$14+(V2_TuneBuilder!$B$14*K$146)/100)) -> 21.9 | L150: =IF(L$146<=V2_TuneBuilder!$B$18,(((100-L$146)/100)*V2_TuneBuilder!$B$17)+V2_TuneBuilder!$B23,(V2_TuneBuilder!$B23-V2_TuneBuilder!$B$14+(V2_TuneBuilder!$B$14*L$146)/100)) -> 22 | M150: =IF(M$146<=V2_TuneBuilder!$B$18,(((100-M$146)/100)*V2_TuneBuilder!$B$17)+V2_TuneBuilder!$B23,(V2_TuneBuilder!$B23-V2_TuneBuilder!$B$14+(V2_TuneBuilder!$B$14*M$146)/100)) -> 22.1 | N150: =IF(N$146<=V2_TuneBuilder!$B$18,(((100-N$146)/100)*V2_TuneBuilder!$B$17)+V2_TuneBuilder!$B23,(V2_TuneBuilder!$B23-V2_TuneBuilder!$B$14+(V2_TuneBuilder!$B$14*N$146)/100)) -> 22.2 | O150: =IF(O$146<=V2_TuneBuilder!$B$18,(((100-O$146)/100)*V2_TuneBuilder!$B$17)+V2_TuneBuilder!$B23,(V2_TuneBuilder!$B23-V2_TuneBuilder!$B$14+(V2_TuneBuilder!$B$14*O$146)/100)) -> 22.3 | P150: =IF(P$146<=V2_TuneBuilder!$B$18,(((100-P$146)/100)*V2_TuneBuilder!$B$17)+V2_TuneBuilder!$B23,(V2_TuneBuilder!$B23-V2_TuneBuilder!$B$14+(V2_TuneBuilder!$B$14*P$146)/100)) -> 22.4 | Q150: =IF(Q$146<=V2_TuneBuilder!$B$18,(((100-Q$146)/100)*V2_TuneBuilder!$B$17)+V2_TuneBuilder!$B23,(V2_TuneBuilder!$B23-V2_TuneBuilder!$B$14+(V2_TuneBuilder!$B$14*Q$146)/100)) -> 22.5 | R150: =IF(R$146<=V2_TuneBuilder!$B$18,(((100-R$146)/100)*V2_TuneBuilder!$B$17)+V2_TuneBuilder!$B23,(V2_TuneBuilder!$B23-V2_TuneBuilder!$B$14+(V2_TuneBuilder!$B$14*R$146)/100)) -> 22.6 | S150: =IF(S$146<=V2_TuneBuilder!$B$18,(((100-S$146)/100)*V2_TuneBuilder!$B$17)+V2_TuneBuilder!$B23,(V2_TuneBuilder!$B23-V2_TuneBuilder!$B$14+(V2_TuneBuilder!$B$14*S$146)/100)) -> 22.7 | T150: =IF(T$146<=V2_TuneBuilder!$B$18,(((100-T$146)/100)*V2_TuneBuilder!$B$17)+V2_TuneBuilder!$B23,(V2_TuneBuilder!$B23-V2_TuneBuilder!$B$14+(V2_TuneBuilder!$B$14*T$146)/100)) -> 22.8 | U150: =IF(U$146<=V2_TuneBuilder!$B$18,(((100-U$146)/100)*V2_TuneBuilder!$B$17)+V2_TuneBuilder!$B23,(V2_TuneBuilder!$B23-V2_TuneBuilder!$B$14+(V2_TuneBuilder!$B$14*U$146)/100)) -> 22.9 | V150: =IF(V$146<=V2_TuneBuilder!$B$18,(((100-V$146)/100)*V2_TuneBuilder!$B$17)+V2_TuneBuilder!$B23,(V2_TuneBuilder!$B23-V2_TuneBuilder!$B$14+(V2_TuneBuilder!$B$14*V$146)/100)) -> 23
A151: MaxRPM | B151: =IF(B$146<=V2_TuneBuilder!B$18,(((100-B$146)/100)*V2_TuneBuilder!$B$17)+V2_TuneBuilder!$B24,(V2_TuneBuilder!$B24-(V2_TuneBuilder!$B$14*B$146)/100)) -> 28 | C151: =IF(C$146<=V2_TuneBuilder!$B$18,(((100-C$146)/100)*V2_TuneBuilder!$B$17)+V2_TuneBuilder!$B24,(V2_TuneBuilder!$B24-V2_TuneBuilder!$B$14+(V2_TuneBuilder!$B$14*C$146)/100)) -> 27.9 | D151: =IF(D$146<=V2_TuneBuilder!$B$18,(((100-D$146)/100)*V2_TuneBuilder!$B$17)+V2_TuneBuilder!$B24,(V2_TuneBuilder!$B24-V2_TuneBuilder!$B$14+(V2_TuneBuilder!$B$14*D$146)/100)) -> 27.8 | E151: =IF(E$146<=V2_TuneBuilder!$B$18,(((100-E$146)/100)*V2_TuneBuilder!$B$17)+V2_TuneBuilder!$B24,(V2_TuneBuilder!$B24-V2_TuneBuilder!$B$14+(V2_TuneBuilder!$B$14*E$146)/100)) -> 27.7 | F151: =IF(F$146<=V2_TuneBuilder!$B$18,(((100-F$146)/100)*V2_TuneBuilder!$B$17)+V2_TuneBuilder!$B24,(V2_TuneBuilder!$B24-V2_TuneBuilder!$B$14+(V2_TuneBuilder!$B$14*F$146)/100)) -> 27.6 | G151: =IF(G$146<=V2_TuneBuilder!$B$18,(((100-G$146)/100)*V2_TuneBuilder!$B$17)+V2_TuneBuilder!$B24,(V2_TuneBuilder!$B24-V2_TuneBuilder!$B$14+(V2_TuneBuilder!$B$14*G$146)/100)) -> 27.5 | H151: =IF(H$146<=V2_TuneBuilder!$B$18,(((100-H$146)/100)*V2_TuneBuilder!$B$17)+V2_TuneBuilder!$B24,(V2_TuneBuilder!$B24-V2_TuneBuilder!$B$14+(V2_TuneBuilder!$B$14*H$146)/100)) -> 27.4 | I151: =IF(I$146<=V2_TuneBuilder!$B$18,(((100-I$146)/100)*V2_TuneBuilder!$B$17)+V2_TuneBuilder!$B24,(V2_TuneBuilder!$B24-V2_TuneBuilder!$B$14+(V2_TuneBuilder!$B$14*I$146)/100)) -> 24.7 | J151: =IF(J$146<=V2_TuneBuilder!$B$18,(((100-J$146)/100)*V2_TuneBuilder!$B$17)+V2_TuneBuilder!$B24,(V2_TuneBuilder!$B24-V2_TuneBuilder!$B$14+(V2_TuneBuilder!$B$14*J$146)/100)) -> 24.8 | K151: =IF(K$146<=V2_TuneBuilder!$B$18,(((100-K$146)/100)*V2_TuneBuilder!$B$17)+V2_TuneBuilder!$B24,(V2_TuneBuilder!$B24-V2_TuneBuilder!$B$14+(V2_TuneBuilder!$B$14*K$146)/100)) -> 24.9 | L151: =IF(L$146<=V2_TuneBuilder!$B$18,(((100-L$146)/100)*V2_TuneBuilder!$B$17)+V2_TuneBuilder!$B24,(V2_TuneBuilder!$B24-V2_TuneBuilder!$B$14+(V2_TuneBuilder!$B$14*L$146)/100)) -> 25 | M151: =IF(M$146<=V2_TuneBuilder!$B$18,(((100-M$146)/100)*V2_TuneBuilder!$B$17)+V2_TuneBuilder!$B24,(V2_TuneBuilder!$B24-V2_TuneBuilder!$B$14+(V2_TuneBuilder!$B$14*M$146)/100)) -> 25.1 | N151: =IF(N$146<=V2_TuneBuilder!$B$18,(((100-N$146)/100)*V2_TuneBuilder!$B$17)+V2_TuneBuilder!$B24,(V2_TuneBuilder!$B24-V2_TuneBuilder!$B$14+(V2_TuneBuilder!$B$14*N$146)/100)) -> 25.2 | O151: =IF(O$146<=V2_TuneBuilder!$B$18,(((100-O$146)/100)*V2_TuneBuilder!$B$17)+V2_TuneBuilder!$B24,(V2_TuneBuilder!$B24-V2_TuneBuilder!$B$14+(V2_TuneBuilder!$B$14*O$146)/100)) -> 25.3 | P151: =IF(P$146<=V2_TuneBuilder!$B$18,(((100-P$146)/100)*V2_TuneBuilder!$B$17)+V2_TuneBuilder!$B24,(V2_TuneBuilder!$B24-V2_TuneBuilder!$B$14+(V2_TuneBuilder!$B$14*P$146)/100)) -> 25.4 | Q151: =IF(Q$146<=V2_TuneBuilder!$B$18,(((100-Q$146)/100)*V2_TuneBuilder!$B$17)+V2_TuneBuilder!$B24,(V2_TuneBuilder!$B24-V2_TuneBuilder!$B$14+(V2_TuneBuilder!$B$14*Q$146)/100)) -> 25.5 | R151: =IF(R$146<=V2_TuneBuilder!$B$18,(((100-R$146)/100)*V2_TuneBuilder!$B$17)+V2_TuneBuilder!$B24,(V2_TuneBuilder!$B24-V2_TuneBuilder!$B$14+(V2_TuneBuilder!$B$14*R$146)/100)) -> 25.6 | S151: =IF(S$146<=V2_TuneBuilder!$B$18,(((100-S$146)/100)*V2_TuneBuilder!$B$17)+V2_TuneBuilder!$B24,(V2_TuneBuilder!$B24-V2_TuneBuilder!$B$14+(V2_TuneBuilder!$B$14*S$146)/100)) -> 25.7 | T151: =IF(T$146<=V2_TuneBuilder!$B$18,(((100-T$146)/100)*V2_TuneBuilder!$B$17)+V2_TuneBuilder!$B24,(V2_TuneBuilder!$B24-V2_TuneBuilder!$B$14+(V2_TuneBuilder!$B$14*T$146)/100)) -> 25.8 | U151: =IF(U$146<=V2_TuneBuilder!$B$18,(((100-U$146)/100)*V2_TuneBuilder!$B$17)+V2_TuneBuilder!$B24,(V2_TuneBuilder!$B24-V2_TuneBuilder!$B$14+(V2_TuneBuilder!$B$14*U$146)/100)) -> 25.9 | V151: =IF(V$146<=V2_TuneBuilder!$B$18,(((100-V$146)/100)*V2_TuneBuilder!$B$17)+V2_TuneBuilder!$B24,(V2_TuneBuilder!$B24-V2_TuneBuilder!$B$14+(V2_TuneBuilder!$B$14*V$146)/100)) -> 26
A153: V3 Fuel load timing vs rpm
B154: 0 | C154: 5 | D154: 10 | E154: 15 | F154: 20 | G154: 25 | H154: 30 | I154: 35 | J154: 40 | K154: 45 | L154: 50 | M154: 55 | N154: 60 | O154: 65 | P154: 70 | Q154: 75 | R154: 80 | S154: 85 | T154: 90 | U154: 95 | V154: 100
A155: 1500RPM | B155: =IF(B$154<=V3_TuneBuilder!B$43,(((100-B$154)/100)*V3_TuneBuilder!$B$42)+V3_TuneBuilder!$B45,(V3_TuneBuilder!$B45-(V3_TuneBuilder!$B$39*B$154)/100)) -> 17 | C155: =IF(C$154<=V3_TuneBuilder!B$43,(((100-C$154)/100)*V3_TuneBuilder!$B$42)+V3_TuneBuilder!$B45,(V3_TuneBuilder!$B45-V3_TuneBuilder!$B$39+(V3_TuneBuilder!$B$39*C$154)/100)) -> 16.9 | D155: =IF(D$154<=V3_TuneBuilder!J$6,(((100-D$154)/100)*V3_TuneBuilder!$B$42)+V3_TuneBuilder!$B45,(V3_TuneBuilder!$B45-V3_TuneBuilder!$B$39+(V3_TuneBuilder!$B$39*D$154)/100)) -> 16.8 | E155: =IF(E$154<=V3_TuneBuilder!K$6,(((100-E$154)/100)*V3_TuneBuilder!$B$42)+V3_TuneBuilder!$B45,(V3_TuneBuilder!$B45-V3_TuneBuilder!$B$39+(V3_TuneBuilder!$B$39*E$154)/100)) -> 16.7 | F155: =IF(F$154<=V3_TuneBuilder!K$7,(((100-F$154)/100)*V3_TuneBuilder!$B$42)+V3_TuneBuilder!$B45,(V3_TuneBuilder!$B45-V3_TuneBuilder!$B$39+(V3_TuneBuilder!$B$39*F$154)/100)) -> 13.4 | G155: =IF(G$154<=V3_TuneBuilder!F$43,(((100-G$154)/100)*V3_TuneBuilder!$B$42)+V3_TuneBuilder!$B45,(V3_TuneBuilder!$B45-V3_TuneBuilder!$B$39+(V3_TuneBuilder!$B$39*G$154)/100)) -> 13.5 | H155: =IF(H$154<=V3_TuneBuilder!G$43,(((100-H$154)/100)*V3_TuneBuilder!$B$42)+V3_TuneBuilder!$B45,(V3_TuneBuilder!$B45-V3_TuneBuilder!$B$39+(V3_TuneBuilder!$B$39*H$154)/100)) -> 13.6 | I155: =IF(I$154<=V3_TuneBuilder!H$43,(((100-I$154)/100)*V3_TuneBuilder!$B$42)+V3_TuneBuilder!$B45,(V3_TuneBuilder!$B45-V3_TuneBuilder!$B$39+(V3_TuneBuilder!$B$39*I$154)/100)) -> 13.7 | J155: =IF(J$154<=V3_TuneBuilder!I$43,(((100-J$154)/100)*V3_TuneBuilder!$B$42)+V3_TuneBuilder!$B45,(V3_TuneBuilder!$B45-V3_TuneBuilder!$B$39+(V3_TuneBuilder!$B$39*J$154)/100)) -> 13.8 | K155: =IF(K$154<=V3_TuneBuilder!J$43,(((100-K$154)/100)*V3_TuneBuilder!$B$42)+V3_TuneBuilder!$B45,(V3_TuneBuilder!$B45-V3_TuneBuilder!$B$39+(V3_TuneBuilder!$B$39*K$154)/100)) -> 13.9 | L155: =IF(L$154<=V3_TuneBuilder!K$43,(((100-L$154)/100)*V3_TuneBuilder!$B$42)+V3_TuneBuilder!$B45,(V3_TuneBuilder!$B45-V3_TuneBuilder!$B$39+(V3_TuneBuilder!$B$39*L$154)/100)) -> 14 | M155: =IF(M$154<=V3_TuneBuilder!L$43,(((100-M$154)/100)*V3_TuneBuilder!$B$42)+V3_TuneBuilder!$B45,(V3_TuneBuilder!$B45-V3_TuneBuilder!$B$39+(V3_TuneBuilder!$B$39*M$154)/100)) -> 14.1 | N155: =IF(N$154<=V3_TuneBuilder!M$43,(((100-N$154)/100)*V3_TuneBuilder!$B$42)+V3_TuneBuilder!$B45,(V3_TuneBuilder!$B45-V3_TuneBuilder!$B$39+(V3_TuneBuilder!$B$39*N$154)/100)) -> 14.2 | O155: =IF(O$154<=V3_TuneBuilder!N$43,(((100-O$154)/100)*V3_TuneBuilder!$B$42)+V3_TuneBuilder!$B45,(V3_TuneBuilder!$B45-V3_TuneBuilder!$B$39+(V3_TuneBuilder!$B$39*O$154)/100)) -> 14.3 | P155: =IF(P$154<=V3_TuneBuilder!O$43,(((100-P$154)/100)*V3_TuneBuilder!$B$42)+V3_TuneBuilder!$B45,(V3_TuneBuilder!$B45-V3_TuneBuilder!$B$39+(V3_TuneBuilder!$B$39*P$154)/100)) -> 14.4 | Q155: =IF(Q$154<=V3_TuneBuilder!P$43,(((100-Q$154)/100)*V3_TuneBuilder!$B$42)+V3_TuneBuilder!$B45,(V3_TuneBuilder!$B45-V3_TuneBuilder!$B$39+(V3_TuneBuilder!$B$39*Q$154)/100)) -> 14.5 | R155: =IF(R$154<=V3_TuneBuilder!Q$43,(((100-R$154)/100)*V3_TuneBuilder!$B$42)+V3_TuneBuilder!$B45,(V3_TuneBuilder!$B45-V3_TuneBuilder!$B$39+(V3_TuneBuilder!$B$39*R$154)/100)) -> 14.6 | S155: =IF(S$154<=V3_TuneBuilder!R$43,(((100-S$154)/100)*V3_TuneBuilder!$B$42)+V3_TuneBuilder!$B45,(V3_TuneBuilder!$B45-V3_TuneBuilder!$B$39+(V3_TuneBuilder!$B$39*S$154)/100)) -> 14.7 | T155: =IF(T$154<=V3_TuneBuilder!S$43,(((100-T$154)/100)*V3_TuneBuilder!$B$42)+V3_TuneBuilder!$B45,(V3_TuneBuilder!$B45-V3_TuneBuilder!$B$39+(V3_TuneBuilder!$B$39*T$154)/100)) -> 14.8 | U155: =IF(U$154<=V3_TuneBuilder!T$43,(((100-U$154)/100)*V3_TuneBuilder!$B$42)+V3_TuneBuilder!$B45,(V3_TuneBuilder!$B45-V3_TuneBuilder!$B$39+(V3_TuneBuilder!$B$39*U$154)/100)) -> 14.9 | V155: =IF(V$154<=V3_TuneBuilder!U$43,(((100-V$154)/100)*V3_TuneBuilder!$B$42)+V3_TuneBuilder!$B45,(V3_TuneBuilder!$B45-V3_TuneBuilder!$B$39+(V3_TuneBuilder!$B$39*V$154)/100)) -> 15
A156: 2000RPM | B156: =IF(B$154<=V3_TuneBuilder!B$43,(((100-B$154)/100)*V3_TuneBuilder!$B$42)+V3_TuneBuilder!$B46,(V3_TuneBuilder!$B46-(V3_TuneBuilder!$B$39*B$154)/100)) -> 20 | C156: =IF(C$154<=V3_TuneBuilder!B$43,(((100-C$154)/100)*V3_TuneBuilder!$B$42)+V3_TuneBuilder!$B46,(V3_TuneBuilder!$B46-V3_TuneBuilder!$B$39+(V3_TuneBuilder!$B$39*C$154)/100)) -> 19.9 | D156: =IF(D$154<=V3_TuneBuilder!J$6,(((100-D$154)/100)*V3_TuneBuilder!$B$42)+V3_TuneBuilder!$B46,(V3_TuneBuilder!$B46-V3_TuneBuilder!$B$39+(V3_TuneBuilder!$B$39*D$154)/100)) -> 19.8 | E156: =IF(E$154<=V3_TuneBuilder!K$6,(((100-E$154)/100)*V3_TuneBuilder!$B$42)+V3_TuneBuilder!$B46,(V3_TuneBuilder!$B46-V3_TuneBuilder!$B$39+(V3_TuneBuilder!$B$39*E$154)/100)) -> 19.7 | F156: =IF(F$154<=V3_TuneBuilder!K$7,(((100-F$154)/100)*V3_TuneBuilder!$B$42)+V3_TuneBuilder!$B46,(V3_TuneBuilder!$B46-V3_TuneBuilder!$B$39+(V3_TuneBuilder!$B$39*F$154)/100)) -> 16.4 | G156: =IF(G$154<=V3_TuneBuilder!F$43,(((100-G$154)/100)*V3_TuneBuilder!$B$42)+V3_TuneBuilder!$B46,(V3_TuneBuilder!$B46-V3_TuneBuilder!$B$39+(V3_TuneBuilder!$B$39*G$154)/100)) -> 16.5 | H156: =IF(H$154<=V3_TuneBuilder!G$43,(((100-H$154)/100)*V3_TuneBuilder!$B$42)+V3_TuneBuilder!$B46,(V3_TuneBuilder!$B46-V3_TuneBuilder!$B$39+(V3_TuneBuilder!$B$39*H$154)/100)) -> 16.6 | I156: =IF(I$154<=V3_TuneBuilder!H$43,(((100-I$154)/100)*V3_TuneBuilder!$B$42)+V3_TuneBuilder!$B46,(V3_TuneBuilder!$B46-V3_TuneBuilder!$B$39+(V3_TuneBuilder!$B$39*I$154)/100)) -> 16.7 | J156: =IF(J$154<=V3_TuneBuilder!I$43,(((100-J$154)/100)*V3_TuneBuilder!$B$42)+V3_TuneBuilder!$B46,(V3_TuneBuilder!$B46-V3_TuneBuilder!$B$39+(V3_TuneBuilder!$B$39*J$154)/100)) -> 16.8 | K156: =IF(K$154<=V3_TuneBuilder!J$43,(((100-K$154)/100)*V3_TuneBuilder!$B$42)+V3_TuneBuilder!$B46,(V3_TuneBuilder!$B46-V3_TuneBuilder!$B$39+(V3_TuneBuilder!$B$39*K$154)/100)) -> 16.9 | L156: =IF(L$154<=V3_TuneBuilder!K$43,(((100-L$154)/100)*V3_TuneBuilder!$B$42)+V3_TuneBuilder!$B46,(V3_TuneBuilder!$B46-V3_TuneBuilder!$B$39+(V3_TuneBuilder!$B$39*L$154)/100)) -> 17 | M156: =IF(M$154<=V3_TuneBuilder!L$43,(((100-M$154)/100)*V3_TuneBuilder!$B$42)+V3_TuneBuilder!$B46,(V3_TuneBuilder!$B46-V3_TuneBuilder!$B$39+(V3_TuneBuilder!$B$39*M$154)/100)) -> 17.1 | N156: =IF(N$154<=V3_TuneBuilder!M$43,(((100-N$154)/100)*V3_TuneBuilder!$B$42)+V3_TuneBuilder!$B46,(V3_TuneBuilder!$B46-V3_TuneBuilder!$B$39+(V3_TuneBuilder!$B$39*N$154)/100)) -> 17.2 | O156: =IF(O$154<=V3_TuneBuilder!N$43,(((100-O$154)/100)*V3_TuneBuilder!$B$42)+V3_TuneBuilder!$B46,(V3_TuneBuilder!$B46-V3_TuneBuilder!$B$39+(V3_TuneBuilder!$B$39*O$154)/100)) -> 17.3 | P156: =IF(P$154<=V3_TuneBuilder!O$43,(((100-P$154)/100)*V3_TuneBuilder!$B$42)+V3_TuneBuilder!$B46,(V3_TuneBuilder!$B46-V3_TuneBuilder!$B$39+(V3_TuneBuilder!$B$39*P$154)/100)) -> 17.4 | Q156: =IF(Q$154<=V3_TuneBuilder!P$43,(((100-Q$154)/100)*V3_TuneBuilder!$B$42)+V3_TuneBuilder!$B46,(V3_TuneBuilder!$B46-V3_TuneBuilder!$B$39+(V3_TuneBuilder!$B$39*Q$154)/100)) -> 17.5 | R156: =IF(R$154<=V3_TuneBuilder!Q$43,(((100-R$154)/100)*V3_TuneBuilder!$B$42)+V3_TuneBuilder!$B46,(V3_TuneBuilder!$B46-V3_TuneBuilder!$B$39+(V3_TuneBuilder!$B$39*R$154)/100)) -> 17.6 | S156: =IF(S$154<=V3_TuneBuilder!R$43,(((100-S$154)/100)*V3_TuneBuilder!$B$42)+V3_TuneBuilder!$B46,(V3_TuneBuilder!$B46-V3_TuneBuilder!$B$39+(V3_TuneBuilder!$B$39*S$154)/100)) -> 17.7 | T156: =IF(T$154<=V3_TuneBuilder!S$43,(((100-T$154)/100)*V3_TuneBuilder!$B$42)+V3_TuneBuilder!$B46,(V3_TuneBuilder!$B46-V3_TuneBuilder!$B$39+(V3_TuneBuilder!$B$39*T$154)/100)) -> 17.8 | U156: =IF(U$154<=V3_TuneBuilder!T$43,(((100-U$154)/100)*V3_TuneBuilder!$B$42)+V3_TuneBuilder!$B46,(V3_TuneBuilder!$B46-V3_TuneBuilder!$B$39+(V3_TuneBuilder!$B$39*U$154)/100)) -> 17.9 | V156: =IF(V$154<=V3_TuneBuilder!U$43,(((100-V$154)/100)*V3_TuneBuilder!$B$42)+V3_TuneBuilder!$B46,(V3_TuneBuilder!$B46-V3_TuneBuilder!$B$39+(V3_TuneBuilder!$B$39*V$154)/100)) -> 18
A157: 2500RPM | B157: =IF(B$154<=V3_TuneBuilder!B$43,(((100-B$154)/100)*V3_TuneBuilder!$B$42)+V3_TuneBuilder!$B47,(V3_TuneBuilder!$B47-(V3_TuneBuilder!$B$39*B$154)/100)) -> 23 | C157: =IF(C$154<=V3_TuneBuilder!B$43,(((100-C$154)/100)*V3_TuneBuilder!$B$42)+V3_TuneBuilder!$B47,(V3_TuneBuilder!$B47-V3_TuneBuilder!$B$39+(V3_TuneBuilder!$B$39*C$154)/100)) -> 22.9 | D157: =IF(D$154<=V3_TuneBuilder!J$6,(((100-D$154)/100)*V3_TuneBuilder!$B$42)+V3_TuneBuilder!$B47,(V3_TuneBuilder!$B47-V3_TuneBuilder!$B$39+(V3_TuneBuilder!$B$39*D$154)/100)) -> 22.8 | E157: =IF(E$154<=V3_TuneBuilder!K$6,(((100-E$154)/100)*V3_TuneBuilder!$B$42)+V3_TuneBuilder!$B47,(V3_TuneBuilder!$B47-V3_TuneBuilder!$B$39+(V3_TuneBuilder!$B$39*E$154)/100)) -> 22.7 | F157: =IF(F$154<=V3_TuneBuilder!K$7,(((100-F$154)/100)*V3_TuneBuilder!$B$42)+V3_TuneBuilder!$B47,(V3_TuneBuilder!$B47-V3_TuneBuilder!$B$39+(V3_TuneBuilder!$B$39*F$154)/100)) -> 19.4 | G157: =IF(G$154<=V3_TuneBuilder!F$43,(((100-G$154)/100)*V3_TuneBuilder!$B$42)+V3_TuneBuilder!$B47,(V3_TuneBuilder!$B47-V3_TuneBuilder!$B$39+(V3_TuneBuilder!$B$39*G$154)/100)) -> 19.5 | H157: =IF(H$154<=V3_TuneBuilder!G$43,(((100-H$154)/100)*V3_TuneBuilder!$B$42)+V3_TuneBuilder!$B47,(V3_TuneBuilder!$B47-V3_TuneBuilder!$B$39+(V3_TuneBuilder!$B$39*H$154)/100)) -> 19.6 | I157: =IF(I$154<=V3_TuneBuilder!H$43,(((100-I$154)/100)*V3_TuneBuilder!$B$42)+V3_TuneBuilder!$B47,(V3_TuneBuilder!$B47-V3_TuneBuilder!$B$39+(V3_TuneBuilder!$B$39*I$154)/100)) -> 19.7 | J157: =IF(J$154<=V3_TuneBuilder!I$43,(((100-J$154)/100)*V3_TuneBuilder!$B$42)+V3_TuneBuilder!$B47,(V3_TuneBuilder!$B47-V3_TuneBuilder!$B$39+(V3_TuneBuilder!$B$39*J$154)/100)) -> 19.8 | K157: =IF(K$154<=V3_TuneBuilder!J$43,(((100-K$154)/100)*V3_TuneBuilder!$B$42)+V3_TuneBuilder!$B47,(V3_TuneBuilder!$B47-V3_TuneBuilder!$B$39+(V3_TuneBuilder!$B$39*K$154)/100)) -> 19.9 | L157: =IF(L$154<=V3_TuneBuilder!K$43,(((100-L$154)/100)*V3_TuneBuilder!$B$42)+V3_TuneBuilder!$B47,(V3_TuneBuilder!$B47-V3_TuneBuilder!$B$39+(V3_TuneBuilder!$B$39*L$154)/100)) -> 20 | M157: =IF(M$154<=V3_TuneBuilder!L$43,(((100-M$154)/100)*V3_TuneBuilder!$B$42)+V3_TuneBuilder!$B47,(V3_TuneBuilder!$B47-V3_TuneBuilder!$B$39+(V3_TuneBuilder!$B$39*M$154)/100)) -> 20.1 | N157: =IF(N$154<=V3_TuneBuilder!M$43,(((100-N$154)/100)*V3_TuneBuilder!$B$42)+V3_TuneBuilder!$B47,(V3_TuneBuilder!$B47-V3_TuneBuilder!$B$39+(V3_TuneBuilder!$B$39*N$154)/100)) -> 20.2 | O157: =IF(O$154<=V3_TuneBuilder!N$43,(((100-O$154)/100)*V3_TuneBuilder!$B$42)+V3_TuneBuilder!$B47,(V3_TuneBuilder!$B47-V3_TuneBuilder!$B$39+(V3_TuneBuilder!$B$39*O$154)/100)) -> 20.3 | P157: =IF(P$154<=V3_TuneBuilder!O$43,(((100-P$154)/100)*V3_TuneBuilder!$B$42)+V3_TuneBuilder!$B47,(V3_TuneBuilder!$B47-V3_TuneBuilder!$B$39+(V3_TuneBuilder!$B$39*P$154)/100)) -> 20.4 | Q157: =IF(Q$154<=V3_TuneBuilder!P$43,(((100-Q$154)/100)*V3_TuneBuilder!$B$42)+V3_TuneBuilder!$B47,(V3_TuneBuilder!$B47-V3_TuneBuilder!$B$39+(V3_TuneBuilder!$B$39*Q$154)/100)) -> 20.5 | R157: =IF(R$154<=V3_TuneBuilder!Q$43,(((100-R$154)/100)*V3_TuneBuilder!$B$42)+V3_TuneBuilder!$B47,(V3_TuneBuilder!$B47-V3_TuneBuilder!$B$39+(V3_TuneBuilder!$B$39*R$154)/100)) -> 20.6 | S157: =IF(S$154<=V3_TuneBuilder!R$43,(((100-S$154)/100)*V3_TuneBuilder!$B$42)+V3_TuneBuilder!$B47,(V3_TuneBuilder!$B47-V3_TuneBuilder!$B$39+(V3_TuneBuilder!$B$39*S$154)/100)) -> 20.7 | T157: =IF(T$154<=V3_TuneBuilder!S$43,(((100-T$154)/100)*V3_TuneBuilder!$B$42)+V3_TuneBuilder!$B47,(V3_TuneBuilder!$B47-V3_TuneBuilder!$B$39+(V3_TuneBuilder!$B$39*T$154)/100)) -> 20.8 | U157: =IF(U$154<=V3_TuneBuilder!T$43,(((100-U$154)/100)*V3_TuneBuilder!$B$42)+V3_TuneBuilder!$B47,(V3_TuneBuilder!$B47-V3_TuneBuilder!$B$39+(V3_TuneBuilder!$B$39*U$154)/100)) -> 20.9 | V157: =IF(V$154<=V3_TuneBuilder!U$43,(((100-V$154)/100)*V3_TuneBuilder!$B$42)+V3_TuneBuilder!$B47,(V3_TuneBuilder!$B47-V3_TuneBuilder!$B$39+(V3_TuneBuilder!$B$39*V$154)/100)) -> 21
A158: 3000RPM | B158: =IF(B$154<=V3_TuneBuilder!B$43,(((100-B$154)/100)*V3_TuneBuilder!$B$42)+V3_TuneBuilder!$B48,(V3_TuneBuilder!$B48-(V3_TuneBuilder!$B$39*B$154)/100)) -> 25 | C158: =IF(C$154<=V3_TuneBuilder!B$43,(((100-C$154)/100)*V3_TuneBuilder!$B$42)+V3_TuneBuilder!$B48,(V3_TuneBuilder!$B48-V3_TuneBuilder!$B$39+(V3_TuneBuilder!$B$39*C$154)/100)) -> 24.9 | D158: =IF(D$154<=V3_TuneBuilder!J$6,(((100-D$154)/100)*V3_TuneBuilder!$B$42)+V3_TuneBuilder!$B48,(V3_TuneBuilder!$B48-V3_TuneBuilder!$B$39+(V3_TuneBuilder!$B$39*D$154)/100)) -> 24.8 | E158: =IF(E$154<=V3_TuneBuilder!K$6,(((100-E$154)/100)*V3_TuneBuilder!$B$42)+V3_TuneBuilder!$B48,(V3_TuneBuilder!$B48-V3_TuneBuilder!$B$39+(V3_TuneBuilder!$B$39*E$154)/100)) -> 24.7 | F158: =IF(F$154<=V3_TuneBuilder!K$7,(((100-F$154)/100)*V3_TuneBuilder!$B$42)+V3_TuneBuilder!$B48,(V3_TuneBuilder!$B48-V3_TuneBuilder!$B$39+(V3_TuneBuilder!$B$39*F$154)/100)) -> 21.4 | G158: =IF(G$154<=V3_TuneBuilder!F$43,(((100-G$154)/100)*V3_TuneBuilder!$B$42)+V3_TuneBuilder!$B48,(V3_TuneBuilder!$B48-V3_TuneBuilder!$B$39+(V3_TuneBuilder!$B$39*G$154)/100)) -> 21.5 | H158: =IF(H$154<=V3_TuneBuilder!G$43,(((100-H$154)/100)*V3_TuneBuilder!$B$42)+V3_TuneBuilder!$B48,(V3_TuneBuilder!$B48-V3_TuneBuilder!$B$39+(V3_TuneBuilder!$B$39*H$154)/100)) -> 21.6 | I158: =IF(I$154<=V3_TuneBuilder!H$43,(((100-I$154)/100)*V3_TuneBuilder!$B$42)+V3_TuneBuilder!$B48,(V3_TuneBuilder!$B48-V3_TuneBuilder!$B$39+(V3_TuneBuilder!$B$39*I$154)/100)) -> 21.7 | J158: =IF(J$154<=V3_TuneBuilder!I$43,(((100-J$154)/100)*V3_TuneBuilder!$B$42)+V3_TuneBuilder!$B48,(V3_TuneBuilder!$B48-V3_TuneBuilder!$B$39+(V3_TuneBuilder!$B$39*J$154)/100)) -> 21.8 | K158: =IF(K$154<=V3_TuneBuilder!J$43,(((100-K$154)/100)*V3_TuneBuilder!$B$42)+V3_TuneBuilder!$B48,(V3_TuneBuilder!$B48-V3_TuneBuilder!$B$39+(V3_TuneBuilder!$B$39*K$154)/100)) -> 21.9 | L158: =IF(L$154<=V3_TuneBuilder!K$43,(((100-L$154)/100)*V3_TuneBuilder!$B$42)+V3_TuneBuilder!$B48,(V3_TuneBuilder!$B48-V3_TuneBuilder!$B$39+(V3_TuneBuilder!$B$39*L$154)/100)) -> 22 | M158: =IF(M$154<=V3_TuneBuilder!L$43,(((100-M$154)/100)*V3_TuneBuilder!$B$42)+V3_TuneBuilder!$B48,(V3_TuneBuilder!$B48-V3_TuneBuilder!$B$39+(V3_TuneBuilder!$B$39*M$154)/100)) -> 22.1 | N158: =IF(N$154<=V3_TuneBuilder!M$43,(((100-N$154)/100)*V3_TuneBuilder!$B$42)+V3_TuneBuilder!$B48,(V3_TuneBuilder!$B48-V3_TuneBuilder!$B$39+(V3_TuneBuilder!$B$39*N$154)/100)) -> 22.2 | O158: =IF(O$154<=V3_TuneBuilder!N$43,(((100-O$154)/100)*V3_TuneBuilder!$B$42)+V3_TuneBuilder!$B48,(V3_TuneBuilder!$B48-V3_TuneBuilder!$B$39+(V3_TuneBuilder!$B$39*O$154)/100)) -> 22.3 | P158: =IF(P$154<=V3_TuneBuilder!O$43,(((100-P$154)/100)*V3_TuneBuilder!$B$42)+V3_TuneBuilder!$B48,(V3_TuneBuilder!$B48-V3_TuneBuilder!$B$39+(V3_TuneBuilder!$B$39*P$154)/100)) -> 22.4 | Q158: =IF(Q$154<=V3_TuneBuilder!P$43,(((100-Q$154)/100)*V3_TuneBuilder!$B$42)+V3_TuneBuilder!$B48,(V3_TuneBuilder!$B48-V3_TuneBuilder!$B$39+(V3_TuneBuilder!$B$39*Q$154)/100)) -> 22.5 | R158: =IF(R$154<=V3_TuneBuilder!Q$43,(((100-R$154)/100)*V3_TuneBuilder!$B$42)+V3_TuneBuilder!$B48,(V3_TuneBuilder!$B48-V3_TuneBuilder!$B$39+(V3_TuneBuilder!$B$39*R$154)/100)) -> 22.6 | S158: =IF(S$154<=V3_TuneBuilder!R$43,(((100-S$154)/100)*V3_TuneBuilder!$B$42)+V3_TuneBuilder!$B48,(V3_TuneBuilder!$B48-V3_TuneBuilder!$B$39+(V3_TuneBuilder!$B$39*S$154)/100)) -> 22.7 | T158: =IF(T$154<=V3_TuneBuilder!S$43,(((100-T$154)/100)*V3_TuneBuilder!$B$42)+V3_TuneBuilder!$B48,(V3_TuneBuilder!$B48-V3_TuneBuilder!$B$39+(V3_TuneBuilder!$B$39*T$154)/100)) -> 22.8 | U158: =IF(U$154<=V3_TuneBuilder!T$43,(((100-U$154)/100)*V3_TuneBuilder!$B$42)+V3_TuneBuilder!$B48,(V3_TuneBuilder!$B48-V3_TuneBuilder!$B$39+(V3_TuneBuilder!$B$39*U$154)/100)) -> 22.9 | V158: =IF(V$154<=V3_TuneBuilder!U$43,(((100-V$154)/100)*V3_TuneBuilder!$B$42)+V3_TuneBuilder!$B48,(V3_TuneBuilder!$B48-V3_TuneBuilder!$B$39+(V3_TuneBuilder!$B$39*V$154)/100)) -> 23
A159: MaxRPM | B159: =IF(B$154<=V3_TuneBuilder!B$43,(((100-B$154)/100)*V3_TuneBuilder!$B$42)+V3_TuneBuilder!$B49,(V3_TuneBuilder!$B49-(V3_TuneBuilder!$B$39*B$154)/100)) -> 28 | C159: =IF(C$154<=V3_TuneBuilder!B$43,(((100-C$154)/100)*V3_TuneBuilder!$B$42)+V3_TuneBuilder!$B49,(V3_TuneBuilder!$B49-V3_TuneBuilder!$B$39+(V3_TuneBuilder!$B$39*C$154)/100)) -> 27.9 | D159: =IF(D$154<=V3_TuneBuilder!J$6,(((100-D$154)/100)*V3_TuneBuilder!$B$42)+V3_TuneBuilder!$B49,(V3_TuneBuilder!$B49-V3_TuneBuilder!$B$39+(V3_TuneBuilder!$B$39*D$154)/100)) -> 27.8 | E159: =IF(E$154<=V3_TuneBuilder!K$6,(((100-E$154)/100)*V3_TuneBuilder!$B$42)+V3_TuneBuilder!$B49,(V3_TuneBuilder!$B49-V3_TuneBuilder!$B$39+(V3_TuneBuilder!$B$39*E$154)/100)) -> 27.7 | F159: =IF(F$154<=V3_TuneBuilder!K$7,(((100-F$154)/100)*V3_TuneBuilder!$B$42)+V3_TuneBuilder!$B49,(V3_TuneBuilder!$B49-V3_TuneBuilder!$B$39+(V3_TuneBuilder!$B$39*F$154)/100)) -> 24.4 | G159: =IF(G$154<=V3_TuneBuilder!F$43,(((100-G$154)/100)*V3_TuneBuilder!$B$42)+V3_TuneBuilder!$B49,(V3_TuneBuilder!$B49-V3_TuneBuilder!$B$39+(V3_TuneBuilder!$B$39*G$154)/100)) -> 24.5 | H159: =IF(H$154<=V3_TuneBuilder!G$43,(((100-H$154)/100)*V3_TuneBuilder!$B$42)+V3_TuneBuilder!$B49,(V3_TuneBuilder!$B49-V3_TuneBuilder!$B$39+(V3_TuneBuilder!$B$39*H$154)/100)) -> 24.6 | I159: =IF(I$154<=V3_TuneBuilder!H$43,(((100-I$154)/100)*V3_TuneBuilder!$B$42)+V3_TuneBuilder!$B49,(V3_TuneBuilder!$B49-V3_TuneBuilder!$B$39+(V3_TuneBuilder!$B$39*I$154)/100)) -> 24.7 | J159: =IF(J$154<=V3_TuneBuilder!I$43,(((100-J$154)/100)*V3_TuneBuilder!$B$42)+V3_TuneBuilder!$B49,(V3_TuneBuilder!$B49-V3_TuneBuilder!$B$39+(V3_TuneBuilder!$B$39*J$154)/100)) -> 24.8 | K159: =IF(K$154<=V3_TuneBuilder!J$43,(((100-K$154)/100)*V3_TuneBuilder!$B$42)+V3_TuneBuilder!$B49,(V3_TuneBuilder!$B49-V3_TuneBuilder!$B$39+(V3_TuneBuilder!$B$39*K$154)/100)) -> 24.9 | L159: =IF(L$154<=V3_TuneBuilder!K$43,(((100-L$154)/100)*V3_TuneBuilder!$B$42)+V3_TuneBuilder!$B49,(V3_TuneBuilder!$B49-V3_TuneBuilder!$B$39+(V3_TuneBuilder!$B$39*L$154)/100)) -> 25 | M159: =IF(M$154<=V3_TuneBuilder!L$43,(((100-M$154)/100)*V3_TuneBuilder!$B$42)+V3_TuneBuilder!$B49,(V3_TuneBuilder!$B49-V3_TuneBuilder!$B$39+(V3_TuneBuilder!$B$39*M$154)/100)) -> 25.1 | N159: =IF(N$154<=V3_TuneBuilder!M$43,(((100-N$154)/100)*V3_TuneBuilder!$B$42)+V3_TuneBuilder!$B49,(V3_TuneBuilder!$B49-V3_TuneBuilder!$B$39+(V3_TuneBuilder!$B$39*N$154)/100)) -> 25.2 | O159: =IF(O$154<=V3_TuneBuilder!N$43,(((100-O$154)/100)*V3_TuneBuilder!$B$42)+V3_TuneBuilder!$B49,(V3_TuneBuilder!$B49-V3_TuneBuilder!$B$39+(V3_TuneBuilder!$B$39*O$154)/100)) -> 25.3 | P159: =IF(P$154<=V3_TuneBuilder!O$43,(((100-P$154)/100)*V3_TuneBuilder!$B$42)+V3_TuneBuilder!$B49,(V3_TuneBuilder!$B49-V3_TuneBuilder!$B$39+(V3_TuneBuilder!$B$39*P$154)/100)) -> 25.4 | Q159: =IF(Q$154<=V3_TuneBuilder!P$43,(((100-Q$154)/100)*V3_TuneBuilder!$B$42)+V3_TuneBuilder!$B49,(V3_TuneBuilder!$B49-V3_TuneBuilder!$B$39+(V3_TuneBuilder!$B$39*Q$154)/100)) -> 25.5 | R159: =IF(R$154<=V3_TuneBuilder!Q$43,(((100-R$154)/100)*V3_TuneBuilder!$B$42)+V3_TuneBuilder!$B49,(V3_TuneBuilder!$B49-V3_TuneBuilder!$B$39+(V3_TuneBuilder!$B$39*R$154)/100)) -> 25.6 | S159: =IF(S$154<=V3_TuneBuilder!R$43,(((100-S$154)/100)*V3_TuneBuilder!$B$42)+V3_TuneBuilder!$B49,(V3_TuneBuilder!$B49-V3_TuneBuilder!$B$39+(V3_TuneBuilder!$B$39*S$154)/100)) -> 25.7 | T159: =IF(T$154<=V3_TuneBuilder!S$43,(((100-T$154)/100)*V3_TuneBuilder!$B$42)+V3_TuneBuilder!$B49,(V3_TuneBuilder!$B49-V3_TuneBuilder!$B$39+(V3_TuneBuilder!$B$39*T$154)/100)) -> 25.8 | U159: =IF(U$154<=V3_TuneBuilder!T$43,(((100-U$154)/100)*V3_TuneBuilder!$B$42)+V3_TuneBuilder!$B49,(V3_TuneBuilder!$B49-V3_TuneBuilder!$B$39+(V3_TuneBuilder!$B$39*U$154)/100)) -> 25.9 | V159: =IF(V$154<=V3_TuneBuilder!U$43,(((100-V$154)/100)*V3_TuneBuilder!$B$42)+V3_TuneBuilder!$B49,(V3_TuneBuilder!$B49-V3_TuneBuilder!$B$39+(V3_TuneBuilder!$B$39*V$154)/100)) -> 26
A161: 4KV2 Fuel load timing vs rpm
B162: 0 | C162: 5 | D162: 10 | E162: 15 | F162: 20 | G162: 25 | H162: 30 | I162: 35 | J162: 40 | K162: 45 | L162: 50 | M162: 55 | N162: 60 | O162: 65 | P162: 70 | Q162: 75 | R162: 80 | S162: 85 | T162: 90 | U162: 95 | V162: 100
A163: 1500RPM | B163: =IF(B$162<='4KV2_TuneBuilder'!B$18,(((100-B$162)/100)*'4KV2_TuneBuilder'!$B$17)+'4KV2_TuneBuilder'!$B20,('4KV2_TuneBuilder'!$B20-('4KV2_TuneBuilder'!$B$14*B$162)/100)) -> 17 | C163: =IF(C$162<='4KV2_TuneBuilder'!J$6,(((100-C$162)/100)*'4KV2_TuneBuilder'!$B$17)+'4KV2_TuneBuilder'!$B20,('4KV2_TuneBuilder'!$B20-'4KV2_TuneBuilder'!$B$14+('4KV2_TuneBuilder'!$B$14*C$162)/100)) -> 16.9 | D163: =IF(D$162<='4KV2_TuneBuilder'!K$6,(((100-D$162)/100)*'4KV2_TuneBuilder'!$B$17)+'4KV2_TuneBuilder'!$B20,('4KV2_TuneBuilder'!$B20-'4KV2_TuneBuilder'!$B$14+('4KV2_TuneBuilder'!$B$14*D$162)/100)) -> 16.8 | E163: =IF(E$162<='4KV2_TuneBuilder'!K$7,(((100-E$162)/100)*'4KV2_TuneBuilder'!$B$17)+'4KV2_TuneBuilder'!$B20,('4KV2_TuneBuilder'!$B20-'4KV2_TuneBuilder'!$B$14+('4KV2_TuneBuilder'!$B$14*E$162)/100)) -> 16.7 | F163: =IF(F$162<='4KV2_TuneBuilder'!F$17,(((100-F$162)/100)*'4KV2_TuneBuilder'!$B$17)+'4KV2_TuneBuilder'!$B20,('4KV2_TuneBuilder'!$B20-'4KV2_TuneBuilder'!$B$14+('4KV2_TuneBuilder'!$B$14*F$162)/100)) -> 13.4 | G163: =IF(G$162<='4KV2_TuneBuilder'!G$17,(((100-G$162)/100)*'4KV2_TuneBuilder'!$B$17)+'4KV2_TuneBuilder'!$B20,('4KV2_TuneBuilder'!$B20-'4KV2_TuneBuilder'!$B$14+('4KV2_TuneBuilder'!$B$14*G$162)/100)) -> 13.5 | H163: =IF(H$162<='4KV2_TuneBuilder'!H$17,(((100-H$162)/100)*'4KV2_TuneBuilder'!$B$17)+'4KV2_TuneBuilder'!$B20,('4KV2_TuneBuilder'!$B20-'4KV2_TuneBuilder'!$B$14+('4KV2_TuneBuilder'!$B$14*H$162)/100)) -> 13.6 | I163: =IF(I$162<='4KV2_TuneBuilder'!I$17,(((100-I$162)/100)*'4KV2_TuneBuilder'!$B$17)+'4KV2_TuneBuilder'!$B20,('4KV2_TuneBuilder'!$B20-'4KV2_TuneBuilder'!$B$14+('4KV2_TuneBuilder'!$B$14*I$162)/100)) -> 13.7 | J163: =IF(J$162<='4KV2_TuneBuilder'!J$17,(((100-J$162)/100)*'4KV2_TuneBuilder'!$B$17)+'4KV2_TuneBuilder'!$B20,('4KV2_TuneBuilder'!$B20-'4KV2_TuneBuilder'!$B$14+('4KV2_TuneBuilder'!$B$14*J$162)/100)) -> 13.8 | K163: =IF(K$162<='4KV2_TuneBuilder'!K$17,(((100-K$162)/100)*'4KV2_TuneBuilder'!$B$17)+'4KV2_TuneBuilder'!$B20,('4KV2_TuneBuilder'!$B20-'4KV2_TuneBuilder'!$B$14+('4KV2_TuneBuilder'!$B$14*K$162)/100)) -> 13.9 | L163: =IF(L$162<='4KV2_TuneBuilder'!L$17,(((100-L$162)/100)*'4KV2_TuneBuilder'!$B$17)+'4KV2_TuneBuilder'!$B20,('4KV2_TuneBuilder'!$B20-'4KV2_TuneBuilder'!$B$14+('4KV2_TuneBuilder'!$B$14*L$162)/100)) -> 14 | M163: =IF(M$162<='4KV2_TuneBuilder'!M$17,(((100-M$162)/100)*'4KV2_TuneBuilder'!$B$17)+'4KV2_TuneBuilder'!$B20,('4KV2_TuneBuilder'!$B20-'4KV2_TuneBuilder'!$B$14+('4KV2_TuneBuilder'!$B$14*M$162)/100)) -> 14.1 | N163: =IF(N$162<='4KV2_TuneBuilder'!N$17,(((100-N$162)/100)*'4KV2_TuneBuilder'!$B$17)+'4KV2_TuneBuilder'!$B20,('4KV2_TuneBuilder'!$B20-'4KV2_TuneBuilder'!$B$14+('4KV2_TuneBuilder'!$B$14*N$162)/100)) -> 14.2 | O163: =IF(O$162<='4KV2_TuneBuilder'!O$17,(((100-O$162)/100)*'4KV2_TuneBuilder'!$B$17)+'4KV2_TuneBuilder'!$B20,('4KV2_TuneBuilder'!$B20-'4KV2_TuneBuilder'!$B$14+('4KV2_TuneBuilder'!$B$14*O$162)/100)) -> 14.3 | P163: =IF(P$162<='4KV2_TuneBuilder'!P$17,(((100-P$162)/100)*'4KV2_TuneBuilder'!$B$17)+'4KV2_TuneBuilder'!$B20,('4KV2_TuneBuilder'!$B20-'4KV2_TuneBuilder'!$B$14+('4KV2_TuneBuilder'!$B$14*P$162)/100)) -> 14.4 | Q163: =IF(Q$162<='4KV2_TuneBuilder'!Q$17,(((100-Q$162)/100)*'4KV2_TuneBuilder'!$B$17)+'4KV2_TuneBuilder'!$B20,('4KV2_TuneBuilder'!$B20-'4KV2_TuneBuilder'!$B$14+('4KV2_TuneBuilder'!$B$14*Q$162)/100)) -> 14.5 | R163: =IF(R$162<='4KV2_TuneBuilder'!R$17,(((100-R$162)/100)*'4KV2_TuneBuilder'!$B$17)+'4KV2_TuneBuilder'!$B20,('4KV2_TuneBuilder'!$B20-'4KV2_TuneBuilder'!$B$14+('4KV2_TuneBuilder'!$B$14*R$162)/100)) -> 14.6 | S163: =IF(S$162<='4KV2_TuneBuilder'!S$17,(((100-S$162)/100)*'4KV2_TuneBuilder'!$B$17)+'4KV2_TuneBuilder'!$B20,('4KV2_TuneBuilder'!$B20-'4KV2_TuneBuilder'!$B$14+('4KV2_TuneBuilder'!$B$14*S$162)/100)) -> 14.7 | T163: =IF(T$162<='4KV2_TuneBuilder'!T$17,(((100-T$162)/100)*'4KV2_TuneBuilder'!$B$17)+'4KV2_TuneBuilder'!$B20,('4KV2_TuneBuilder'!$B20-'4KV2_TuneBuilder'!$B$14+('4KV2_TuneBuilder'!$B$14*T$162)/100)) -> 14.8 | U163: =IF(U$162<='4KV2_TuneBuilder'!U$17,(((100-U$162)/100)*'4KV2_TuneBuilder'!$B$17)+'4KV2_TuneBuilder'!$B20,('4KV2_TuneBuilder'!$B20-'4KV2_TuneBuilder'!$B$14+('4KV2_TuneBuilder'!$B$14*U$162)/100)) -> 14.9 | V163: =IF(V$162<='4KV2_TuneBuilder'!V$17,(((100-V$162)/100)*'4KV2_TuneBuilder'!$B$17)+'4KV2_TuneBuilder'!$B20,('4KV2_TuneBuilder'!$B20-'4KV2_TuneBuilder'!$B$14+('4KV2_TuneBuilder'!$B$14*V$162)/100)) -> 15
A164: 2000RPM | B164: =IF(B$162<='4KV2_TuneBuilder'!B$18,(((100-B$162)/100)*'4KV2_TuneBuilder'!$B$17)+'4KV2_TuneBuilder'!$B21,('4KV2_TuneBuilder'!$B21-('4KV2_TuneBuilder'!$B$14*B$162)/100)) -> 20 | C164: =IF(C$162<='4KV2_TuneBuilder'!J$6,(((100-C$162)/100)*'4KV2_TuneBuilder'!$B$17)+'4KV2_TuneBuilder'!$B21,('4KV2_TuneBuilder'!$B21-'4KV2_TuneBuilder'!$B$14+('4KV2_TuneBuilder'!$B$14*C$162)/100)) -> 19.9 | D164: =IF(D$162<='4KV2_TuneBuilder'!K$6,(((100-D$162)/100)*'4KV2_TuneBuilder'!$B$17)+'4KV2_TuneBuilder'!$B21,('4KV2_TuneBuilder'!$B21-'4KV2_TuneBuilder'!$B$14+('4KV2_TuneBuilder'!$B$14*D$162)/100)) -> 19.8 | E164: =IF(E$162<='4KV2_TuneBuilder'!K$7,(((100-E$162)/100)*'4KV2_TuneBuilder'!$B$17)+'4KV2_TuneBuilder'!$B21,('4KV2_TuneBuilder'!$B21-'4KV2_TuneBuilder'!$B$14+('4KV2_TuneBuilder'!$B$14*E$162)/100)) -> 19.7 | F164: =IF(F$162<='4KV2_TuneBuilder'!F$17,(((100-F$162)/100)*'4KV2_TuneBuilder'!$B$17)+'4KV2_TuneBuilder'!$B21,('4KV2_TuneBuilder'!$B21-'4KV2_TuneBuilder'!$B$14+('4KV2_TuneBuilder'!$B$14*F$162)/100)) -> 16.4 | G164: =IF(G$162<='4KV2_TuneBuilder'!G$17,(((100-G$162)/100)*'4KV2_TuneBuilder'!$B$17)+'4KV2_TuneBuilder'!$B21,('4KV2_TuneBuilder'!$B21-'4KV2_TuneBuilder'!$B$14+('4KV2_TuneBuilder'!$B$14*G$162)/100)) -> 16.5 | H164: =IF(H$162<='4KV2_TuneBuilder'!H$17,(((100-H$162)/100)*'4KV2_TuneBuilder'!$B$17)+'4KV2_TuneBuilder'!$B21,('4KV2_TuneBuilder'!$B21-'4KV2_TuneBuilder'!$B$14+('4KV2_TuneBuilder'!$B$14*H$162)/100)) -> 16.6 | I164: =IF(I$162<='4KV2_TuneBuilder'!I$17,(((100-I$162)/100)*'4KV2_TuneBuilder'!$B$17)+'4KV2_TuneBuilder'!$B21,('4KV2_TuneBuilder'!$B21-'4KV2_TuneBuilder'!$B$14+('4KV2_TuneBuilder'!$B$14*I$162)/100)) -> 16.7 | J164: =IF(J$162<='4KV2_TuneBuilder'!J$17,(((100-J$162)/100)*'4KV2_TuneBuilder'!$B$17)+'4KV2_TuneBuilder'!$B21,('4KV2_TuneBuilder'!$B21-'4KV2_TuneBuilder'!$B$14+('4KV2_TuneBuilder'!$B$14*J$162)/100)) -> 16.8 | K164: =IF(K$162<='4KV2_TuneBuilder'!K$17,(((100-K$162)/100)*'4KV2_TuneBuilder'!$B$17)+'4KV2_TuneBuilder'!$B21,('4KV2_TuneBuilder'!$B21-'4KV2_TuneBuilder'!$B$14+('4KV2_TuneBuilder'!$B$14*K$162)/100)) -> 16.9 | L164: =IF(L$162<='4KV2_TuneBuilder'!L$17,(((100-L$162)/100)*'4KV2_TuneBuilder'!$B$17)+'4KV2_TuneBuilder'!$B21,('4KV2_TuneBuilder'!$B21-'4KV2_TuneBuilder'!$B$14+('4KV2_TuneBuilder'!$B$14*L$162)/100)) -> 17 | M164: =IF(M$162<='4KV2_TuneBuilder'!M$17,(((100-M$162)/100)*'4KV2_TuneBuilder'!$B$17)+'4KV2_TuneBuilder'!$B21,('4KV2_TuneBuilder'!$B21-'4KV2_TuneBuilder'!$B$14+('4KV2_TuneBuilder'!$B$14*M$162)/100)) -> 17.1 | N164: =IF(N$162<='4KV2_TuneBuilder'!N$17,(((100-N$162)/100)*'4KV2_TuneBuilder'!$B$17)+'4KV2_TuneBuilder'!$B21,('4KV2_TuneBuilder'!$B21-'4KV2_TuneBuilder'!$B$14+('4KV2_TuneBuilder'!$B$14*N$162)/100)) -> 17.2 | O164: =IF(O$162<='4KV2_TuneBuilder'!O$17,(((100-O$162)/100)*'4KV2_TuneBuilder'!$B$17)+'4KV2_TuneBuilder'!$B21,('4KV2_TuneBuilder'!$B21-'4KV2_TuneBuilder'!$B$14+('4KV2_TuneBuilder'!$B$14*O$162)/100)) -> 17.3 | P164: =IF(P$162<='4KV2_TuneBuilder'!P$17,(((100-P$162)/100)*'4KV2_TuneBuilder'!$B$17)+'4KV2_TuneBuilder'!$B21,('4KV2_TuneBuilder'!$B21-'4KV2_TuneBuilder'!$B$14+('4KV2_TuneBuilder'!$B$14*P$162)/100)) -> 17.4 | Q164: =IF(Q$162<='4KV2_TuneBuilder'!Q$17,(((100-Q$162)/100)*'4KV2_TuneBuilder'!$B$17)+'4KV2_TuneBuilder'!$B21,('4KV2_TuneBuilder'!$B21-'4KV2_TuneBuilder'!$B$14+('4KV2_TuneBuilder'!$B$14*Q$162)/100)) -> 17.5 | R164: =IF(R$162<='4KV2_TuneBuilder'!R$17,(((100-R$162)/100)*'4KV2_TuneBuilder'!$B$17)+'4KV2_TuneBuilder'!$B21,('4KV2_TuneBuilder'!$B21-'4KV2_TuneBuilder'!$B$14+('4KV2_TuneBuilder'!$B$14*R$162)/100)) -> 17.6 | S164: =IF(S$162<='4KV2_TuneBuilder'!S$17,(((100-S$162)/100)*'4KV2_TuneBuilder'!$B$17)+'4KV2_TuneBuilder'!$B21,('4KV2_TuneBuilder'!$B21-'4KV2_TuneBuilder'!$B$14+('4KV2_TuneBuilder'!$B$14*S$162)/100)) -> 17.7 | T164: =IF(T$162<='4KV2_TuneBuilder'!T$17,(((100-T$162)/100)*'4KV2_TuneBuilder'!$B$17)+'4KV2_TuneBuilder'!$B21,('4KV2_TuneBuilder'!$B21-'4KV2_TuneBuilder'!$B$14+('4KV2_TuneBuilder'!$B$14*T$162)/100)) -> 17.8 | U164: =IF(U$162<='4KV2_TuneBuilder'!U$17,(((100-U$162)/100)*'4KV2_TuneBuilder'!$B$17)+'4KV2_TuneBuilder'!$B21,('4KV2_TuneBuilder'!$B21-'4KV2_TuneBuilder'!$B$14+('4KV2_TuneBuilder'!$B$14*U$162)/100)) -> 17.9 | V164: =IF(V$162<='4KV2_TuneBuilder'!V$17,(((100-V$162)/100)*'4KV2_TuneBuilder'!$B$17)+'4KV2_TuneBuilder'!$B21,('4KV2_TuneBuilder'!$B21-'4KV2_TuneBuilder'!$B$14+('4KV2_TuneBuilder'!$B$14*V$162)/100)) -> 18
A165: 2500RPM | B165: =IF(B$162<='4KV2_TuneBuilder'!B$18,(((100-B$162)/100)*'4KV2_TuneBuilder'!$B$17)+'4KV2_TuneBuilder'!$B22,('4KV2_TuneBuilder'!$B22-('4KV2_TuneBuilder'!$B$14*B$162)/100)) -> 23 | C165: =IF(C$162<='4KV2_TuneBuilder'!J$6,(((100-C$162)/100)*'4KV2_TuneBuilder'!$B$17)+'4KV2_TuneBuilder'!$B22,('4KV2_TuneBuilder'!$B22-'4KV2_TuneBuilder'!$B$14+('4KV2_TuneBuilder'!$B$14*C$162)/100)) -> 22.9 | D165: =IF(D$162<='4KV2_TuneBuilder'!K$6,(((100-D$162)/100)*'4KV2_TuneBuilder'!$B$17)+'4KV2_TuneBuilder'!$B22,('4KV2_TuneBuilder'!$B22-'4KV2_TuneBuilder'!$B$14+('4KV2_TuneBuilder'!$B$14*D$162)/100)) -> 22.8 | E165: =IF(E$162<='4KV2_TuneBuilder'!K$7,(((100-E$162)/100)*'4KV2_TuneBuilder'!$B$17)+'4KV2_TuneBuilder'!$B22,('4KV2_TuneBuilder'!$B22-'4KV2_TuneBuilder'!$B$14+('4KV2_TuneBuilder'!$B$14*E$162)/100)) -> 22.7 | F165: =IF(F$162<='4KV2_TuneBuilder'!F$17,(((100-F$162)/100)*'4KV2_TuneBuilder'!$B$17)+'4KV2_TuneBuilder'!$B22,('4KV2_TuneBuilder'!$B22-'4KV2_TuneBuilder'!$B$14+('4KV2_TuneBuilder'!$B$14*F$162)/100)) -> 19.4 | G165: =IF(G$162<='4KV2_TuneBuilder'!G$17,(((100-G$162)/100)*'4KV2_TuneBuilder'!$B$17)+'4KV2_TuneBuilder'!$B22,('4KV2_TuneBuilder'!$B22-'4KV2_TuneBuilder'!$B$14+('4KV2_TuneBuilder'!$B$14*G$162)/100)) -> 19.5 | H165: =IF(H$162<='4KV2_TuneBuilder'!H$17,(((100-H$162)/100)*'4KV2_TuneBuilder'!$B$17)+'4KV2_TuneBuilder'!$B22,('4KV2_TuneBuilder'!$B22-'4KV2_TuneBuilder'!$B$14+('4KV2_TuneBuilder'!$B$14*H$162)/100)) -> 19.6 | I165: =IF(I$162<='4KV2_TuneBuilder'!I$17,(((100-I$162)/100)*'4KV2_TuneBuilder'!$B$17)+'4KV2_TuneBuilder'!$B22,('4KV2_TuneBuilder'!$B22-'4KV2_TuneBuilder'!$B$14+('4KV2_TuneBuilder'!$B$14*I$162)/100)) -> 19.7 | J165: =IF(J$162<='4KV2_TuneBuilder'!J$17,(((100-J$162)/100)*'4KV2_TuneBuilder'!$B$17)+'4KV2_TuneBuilder'!$B22,('4KV2_TuneBuilder'!$B22-'4KV2_TuneBuilder'!$B$14+('4KV2_TuneBuilder'!$B$14*J$162)/100)) -> 19.8 | K165: =IF(K$162<='4KV2_TuneBuilder'!K$17,(((100-K$162)/100)*'4KV2_TuneBuilder'!$B$17)+'4KV2_TuneBuilder'!$B22,('4KV2_TuneBuilder'!$B22-'4KV2_TuneBuilder'!$B$14+('4KV2_TuneBuilder'!$B$14*K$162)/100)) -> 19.9 | L165: =IF(L$162<='4KV2_TuneBuilder'!L$17,(((100-L$162)/100)*'4KV2_TuneBuilder'!$B$17)+'4KV2_TuneBuilder'!$B22,('4KV2_TuneBuilder'!$B22-'4KV2_TuneBuilder'!$B$14+('4KV2_TuneBuilder'!$B$14*L$162)/100)) -> 20 | M165: =IF(M$162<='4KV2_TuneBuilder'!M$17,(((100-M$162)/100)*'4KV2_TuneBuilder'!$B$17)+'4KV2_TuneBuilder'!$B22,('4KV2_TuneBuilder'!$B22-'4KV2_TuneBuilder'!$B$14+('4KV2_TuneBuilder'!$B$14*M$162)/100)) -> 20.1 | N165: =IF(N$162<='4KV2_TuneBuilder'!N$17,(((100-N$162)/100)*'4KV2_TuneBuilder'!$B$17)+'4KV2_TuneBuilder'!$B22,('4KV2_TuneBuilder'!$B22-'4KV2_TuneBuilder'!$B$14+('4KV2_TuneBuilder'!$B$14*N$162)/100)) -> 20.2 | O165: =IF(O$162<='4KV2_TuneBuilder'!O$17,(((100-O$162)/100)*'4KV2_TuneBuilder'!$B$17)+'4KV2_TuneBuilder'!$B22,('4KV2_TuneBuilder'!$B22-'4KV2_TuneBuilder'!$B$14+('4KV2_TuneBuilder'!$B$14*O$162)/100)) -> 20.3 | P165: =IF(P$162<='4KV2_TuneBuilder'!P$17,(((100-P$162)/100)*'4KV2_TuneBuilder'!$B$17)+'4KV2_TuneBuilder'!$B22,('4KV2_TuneBuilder'!$B22-'4KV2_TuneBuilder'!$B$14+('4KV2_TuneBuilder'!$B$14*P$162)/100)) -> 20.4 | Q165: =IF(Q$162<='4KV2_TuneBuilder'!Q$17,(((100-Q$162)/100)*'4KV2_TuneBuilder'!$B$17)+'4KV2_TuneBuilder'!$B22,('4KV2_TuneBuilder'!$B22-'4KV2_TuneBuilder'!$B$14+('4KV2_TuneBuilder'!$B$14*Q$162)/100)) -> 20.5 | R165: =IF(R$162<='4KV2_TuneBuilder'!R$17,(((100-R$162)/100)*'4KV2_TuneBuilder'!$B$17)+'4KV2_TuneBuilder'!$B22,('4KV2_TuneBuilder'!$B22-'4KV2_TuneBuilder'!$B$14+('4KV2_TuneBuilder'!$B$14*R$162)/100)) -> 20.6 | S165: =IF(S$162<='4KV2_TuneBuilder'!S$17,(((100-S$162)/100)*'4KV2_TuneBuilder'!$B$17)+'4KV2_TuneBuilder'!$B22,('4KV2_TuneBuilder'!$B22-'4KV2_TuneBuilder'!$B$14+('4KV2_TuneBuilder'!$B$14*S$162)/100)) -> 20.7 | T165: =IF(T$162<='4KV2_TuneBuilder'!T$17,(((100-T$162)/100)*'4KV2_TuneBuilder'!$B$17)+'4KV2_TuneBuilder'!$B22,('4KV2_TuneBuilder'!$B22-'4KV2_TuneBuilder'!$B$14+('4KV2_TuneBuilder'!$B$14*T$162)/100)) -> 20.8 | U165: =IF(U$162<='4KV2_TuneBuilder'!U$17,(((100-U$162)/100)*'4KV2_TuneBuilder'!$B$17)+'4KV2_TuneBuilder'!$B22,('4KV2_TuneBuilder'!$B22-'4KV2_TuneBuilder'!$B$14+('4KV2_TuneBuilder'!$B$14*U$162)/100)) -> 20.9 | V165: =IF(V$162<='4KV2_TuneBuilder'!V$17,(((100-V$162)/100)*'4KV2_TuneBuilder'!$B$17)+'4KV2_TuneBuilder'!$B22,('4KV2_TuneBuilder'!$B22-'4KV2_TuneBuilder'!$B$14+('4KV2_TuneBuilder'!$B$14*V$162)/100)) -> 21
A166: 3000RPM | B166: =IF(B$162<='4KV2_TuneBuilder'!B$18,(((100-B$162)/100)*'4KV2_TuneBuilder'!$B$17)+'4KV2_TuneBuilder'!$B23,('4KV2_TuneBuilder'!$B23-('4KV2_TuneBuilder'!$B$14*B$162)/100)) -> 25 | C166: =IF(C$162<='4KV2_TuneBuilder'!J$6,(((100-C$162)/100)*'4KV2_TuneBuilder'!$B$17)+'4KV2_TuneBuilder'!$B23,('4KV2_TuneBuilder'!$B23-'4KV2_TuneBuilder'!$B$14+('4KV2_TuneBuilder'!$B$14*C$162)/100)) -> 24.9 | D166: =IF(D$162<='4KV2_TuneBuilder'!K$6,(((100-D$162)/100)*'4KV2_TuneBuilder'!$B$17)+'4KV2_TuneBuilder'!$B23,('4KV2_TuneBuilder'!$B23-'4KV2_TuneBuilder'!$B$14+('4KV2_TuneBuilder'!$B$14*D$162)/100)) -> 24.8 | E166: =IF(E$162<='4KV2_TuneBuilder'!K$7,(((100-E$162)/100)*'4KV2_TuneBuilder'!$B$17)+'4KV2_TuneBuilder'!$B23,('4KV2_TuneBuilder'!$B23-'4KV2_TuneBuilder'!$B$14+('4KV2_TuneBuilder'!$B$14*E$162)/100)) -> 24.7 | F166: =IF(F$162<='4KV2_TuneBuilder'!F$17,(((100-F$162)/100)*'4KV2_TuneBuilder'!$B$17)+'4KV2_TuneBuilder'!$B23,('4KV2_TuneBuilder'!$B23-'4KV2_TuneBuilder'!$B$14+('4KV2_TuneBuilder'!$B$14*F$162)/100)) -> 21.4 | G166: =IF(G$162<='4KV2_TuneBuilder'!G$17,(((100-G$162)/100)*'4KV2_TuneBuilder'!$B$17)+'4KV2_TuneBuilder'!$B23,('4KV2_TuneBuilder'!$B23-'4KV2_TuneBuilder'!$B$14+('4KV2_TuneBuilder'!$B$14*G$162)/100)) -> 21.5 | H166: =IF(H$162<='4KV2_TuneBuilder'!H$17,(((100-H$162)/100)*'4KV2_TuneBuilder'!$B$17)+'4KV2_TuneBuilder'!$B23,('4KV2_TuneBuilder'!$B23-'4KV2_TuneBuilder'!$B$14+('4KV2_TuneBuilder'!$B$14*H$162)/100)) -> 21.6 | I166: =IF(I$162<='4KV2_TuneBuilder'!I$17,(((100-I$162)/100)*'4KV2_TuneBuilder'!$B$17)+'4KV2_TuneBuilder'!$B23,('4KV2_TuneBuilder'!$B23-'4KV2_TuneBuilder'!$B$14+('4KV2_TuneBuilder'!$B$14*I$162)/100)) -> 21.7 | J166: =IF(J$162<='4KV2_TuneBuilder'!J$17,(((100-J$162)/100)*'4KV2_TuneBuilder'!$B$17)+'4KV2_TuneBuilder'!$B23,('4KV2_TuneBuilder'!$B23-'4KV2_TuneBuilder'!$B$14+('4KV2_TuneBuilder'!$B$14*J$162)/100)) -> 21.8 | K166: =IF(K$162<='4KV2_TuneBuilder'!K$17,(((100-K$162)/100)*'4KV2_TuneBuilder'!$B$17)+'4KV2_TuneBuilder'!$B23,('4KV2_TuneBuilder'!$B23-'4KV2_TuneBuilder'!$B$14+('4KV2_TuneBuilder'!$B$14*K$162)/100)) -> 21.9 | L166: =IF(L$162<='4KV2_TuneBuilder'!L$17,(((100-L$162)/100)*'4KV2_TuneBuilder'!$B$17)+'4KV2_TuneBuilder'!$B23,('4KV2_TuneBuilder'!$B23-'4KV2_TuneBuilder'!$B$14+('4KV2_TuneBuilder'!$B$14*L$162)/100)) -> 22 | M166: =IF(M$162<='4KV2_TuneBuilder'!M$17,(((100-M$162)/100)*'4KV2_TuneBuilder'!$B$17)+'4KV2_TuneBuilder'!$B23,('4KV2_TuneBuilder'!$B23-'4KV2_TuneBuilder'!$B$14+('4KV2_TuneBuilder'!$B$14*M$162)/100)) -> 22.1 | N166: =IF(N$162<='4KV2_TuneBuilder'!N$17,(((100-N$162)/100)*'4KV2_TuneBuilder'!$B$17)+'4KV2_TuneBuilder'!$B23,('4KV2_TuneBuilder'!$B23-'4KV2_TuneBuilder'!$B$14+('4KV2_TuneBuilder'!$B$14*N$162)/100)) -> 22.2 | O166: =IF(O$162<='4KV2_TuneBuilder'!O$17,(((100-O$162)/100)*'4KV2_TuneBuilder'!$B$17)+'4KV2_TuneBuilder'!$B23,('4KV2_TuneBuilder'!$B23-'4KV2_TuneBuilder'!$B$14+('4KV2_TuneBuilder'!$B$14*O$162)/100)) -> 22.3 | P166: =IF(P$162<='4KV2_TuneBuilder'!P$17,(((100-P$162)/100)*'4KV2_TuneBuilder'!$B$17)+'4KV2_TuneBuilder'!$B23,('4KV2_TuneBuilder'!$B23-'4KV2_TuneBuilder'!$B$14+('4KV2_TuneBuilder'!$B$14*P$162)/100)) -> 22.4 | Q166: =IF(Q$162<='4KV2_TuneBuilder'!Q$17,(((100-Q$162)/100)*'4KV2_TuneBuilder'!$B$17)+'4KV2_TuneBuilder'!$B23,('4KV2_TuneBuilder'!$B23-'4KV2_TuneBuilder'!$B$14+('4KV2_TuneBuilder'!$B$14*Q$162)/100)) -> 22.5 | R166: =IF(R$162<='4KV2_TuneBuilder'!R$17,(((100-R$162)/100)*'4KV2_TuneBuilder'!$B$17)+'4KV2_TuneBuilder'!$B23,('4KV2_TuneBuilder'!$B23-'4KV2_TuneBuilder'!$B$14+('4KV2_TuneBuilder'!$B$14*R$162)/100)) -> 22.6 | S166: =IF(S$162<='4KV2_TuneBuilder'!S$17,(((100-S$162)/100)*'4KV2_TuneBuilder'!$B$17)+'4KV2_TuneBuilder'!$B23,('4KV2_TuneBuilder'!$B23-'4KV2_TuneBuilder'!$B$14+('4KV2_TuneBuilder'!$B$14*S$162)/100)) -> 22.7 | T166: =IF(T$162<='4KV2_TuneBuilder'!T$17,(((100-T$162)/100)*'4KV2_TuneBuilder'!$B$17)+'4KV2_TuneBuilder'!$B23,('4KV2_TuneBuilder'!$B23-'4KV2_TuneBuilder'!$B$14+('4KV2_TuneBuilder'!$B$14*T$162)/100)) -> 22.8 | U166: =IF(U$162<='4KV2_TuneBuilder'!U$17,(((100-U$162)/100)*'4KV2_TuneBuilder'!$B$17)+'4KV2_TuneBuilder'!$B23,('4KV2_TuneBuilder'!$B23-'4KV2_TuneBuilder'!$B$14+('4KV2_TuneBuilder'!$B$14*U$162)/100)) -> 22.9 | V166: =IF(V$162<='4KV2_TuneBuilder'!V$17,(((100-V$162)/100)*'4KV2_TuneBuilder'!$B$17)+'4KV2_TuneBuilder'!$B23,('4KV2_TuneBuilder'!$B23-'4KV2_TuneBuilder'!$B$14+('4KV2_TuneBuilder'!$B$14*V$162)/100)) -> 23
A167: 3500RPM | B167: =IF(B$162<='4KV2_TuneBuilder'!B$18,(((100-B$162)/100)*'4KV2_TuneBuilder'!$B$17)+'4KV2_TuneBuilder'!$B24,('4KV2_TuneBuilder'!$B24-('4KV2_TuneBuilder'!$B$14*B$162)/100)) -> 26 | C167: =IF(C$162<='4KV2_TuneBuilder'!J$6,(((100-C$162)/100)*'4KV2_TuneBuilder'!$B$17)+'4KV2_TuneBuilder'!$B24,('4KV2_TuneBuilder'!$B24-'4KV2_TuneBuilder'!$B$14+('4KV2_TuneBuilder'!$B$14*C$162)/100)) -> 25.9 | D167: =IF(D$162<='4KV2_TuneBuilder'!K$6,(((100-D$162)/100)*'4KV2_TuneBuilder'!$B$17)+'4KV2_TuneBuilder'!$B24,('4KV2_TuneBuilder'!$B24-'4KV2_TuneBuilder'!$B$14+('4KV2_TuneBuilder'!$B$14*D$162)/100)) -> 25.8 | E167: =IF(E$162<='4KV2_TuneBuilder'!K$7,(((100-E$162)/100)*'4KV2_TuneBuilder'!$B$17)+'4KV2_TuneBuilder'!$B24,('4KV2_TuneBuilder'!$B24-'4KV2_TuneBuilder'!$B$14+('4KV2_TuneBuilder'!$B$14*E$162)/100)) -> 25.7 | F167: =IF(F$162<='4KV2_TuneBuilder'!F$17,(((100-F$162)/100)*'4KV2_TuneBuilder'!$B$17)+'4KV2_TuneBuilder'!$B24,('4KV2_TuneBuilder'!$B24-'4KV2_TuneBuilder'!$B$14+('4KV2_TuneBuilder'!$B$14*F$162)/100)) -> 22.4 | G167: =IF(G$162<='4KV2_TuneBuilder'!G$17,(((100-G$162)/100)*'4KV2_TuneBuilder'!$B$17)+'4KV2_TuneBuilder'!$B24,('4KV2_TuneBuilder'!$B24-'4KV2_TuneBuilder'!$B$14+('4KV2_TuneBuilder'!$B$14*G$162)/100)) -> 22.5 | H167: =IF(H$162<='4KV2_TuneBuilder'!H$17,(((100-H$162)/100)*'4KV2_TuneBuilder'!$B$17)+'4KV2_TuneBuilder'!$B24,('4KV2_TuneBuilder'!$B24-'4KV2_TuneBuilder'!$B$14+('4KV2_TuneBuilder'!$B$14*H$162)/100)) -> 22.6 | I167: =IF(I$162<='4KV2_TuneBuilder'!I$17,(((100-I$162)/100)*'4KV2_TuneBuilder'!$B$17)+'4KV2_TuneBuilder'!$B24,('4KV2_TuneBuilder'!$B24-'4KV2_TuneBuilder'!$B$14+('4KV2_TuneBuilder'!$B$14*I$162)/100)) -> 22.7 | J167: =IF(J$162<='4KV2_TuneBuilder'!J$17,(((100-J$162)/100)*'4KV2_TuneBuilder'!$B$17)+'4KV2_TuneBuilder'!$B24,('4KV2_TuneBuilder'!$B24-'4KV2_TuneBuilder'!$B$14+('4KV2_TuneBuilder'!$B$14*J$162)/100)) -> 22.8 | K167: =IF(K$162<='4KV2_TuneBuilder'!K$17,(((100-K$162)/100)*'4KV2_TuneBuilder'!$B$17)+'4KV2_TuneBuilder'!$B24,('4KV2_TuneBuilder'!$B24-'4KV2_TuneBuilder'!$B$14+('4KV2_TuneBuilder'!$B$14*K$162)/100)) -> 22.9 | L167: =IF(L$162<='4KV2_TuneBuilder'!L$17,(((100-L$162)/100)*'4KV2_TuneBuilder'!$B$17)+'4KV2_TuneBuilder'!$B24,('4KV2_TuneBuilder'!$B24-'4KV2_TuneBuilder'!$B$14+('4KV2_TuneBuilder'!$B$14*L$162)/100)) -> 23 | M167: =IF(M$162<='4KV2_TuneBuilder'!M$17,(((100-M$162)/100)*'4KV2_TuneBuilder'!$B$17)+'4KV2_TuneBuilder'!$B24,('4KV2_TuneBuilder'!$B24-'4KV2_TuneBuilder'!$B$14+('4KV2_TuneBuilder'!$B$14*M$162)/100)) -> 23.1 | N167: =IF(N$162<='4KV2_TuneBuilder'!N$17,(((100-N$162)/100)*'4KV2_TuneBuilder'!$B$17)+'4KV2_TuneBuilder'!$B24,('4KV2_TuneBuilder'!$B24-'4KV2_TuneBuilder'!$B$14+('4KV2_TuneBuilder'!$B$14*N$162)/100)) -> 23.2 | O167: =IF(O$162<='4KV2_TuneBuilder'!O$17,(((100-O$162)/100)*'4KV2_TuneBuilder'!$B$17)+'4KV2_TuneBuilder'!$B24,('4KV2_TuneBuilder'!$B24-'4KV2_TuneBuilder'!$B$14+('4KV2_TuneBuilder'!$B$14*O$162)/100)) -> 23.3 | P167: =IF(P$162<='4KV2_TuneBuilder'!P$17,(((100-P$162)/100)*'4KV2_TuneBuilder'!$B$17)+'4KV2_TuneBuilder'!$B24,('4KV2_TuneBuilder'!$B24-'4KV2_TuneBuilder'!$B$14+('4KV2_TuneBuilder'!$B$14*P$162)/100)) -> 23.4 | Q167: =IF(Q$162<='4KV2_TuneBuilder'!Q$17,(((100-Q$162)/100)*'4KV2_TuneBuilder'!$B$17)+'4KV2_TuneBuilder'!$B24,('4KV2_TuneBuilder'!$B24-'4KV2_TuneBuilder'!$B$14+('4KV2_TuneBuilder'!$B$14*Q$162)/100)) -> 23.5 | R167: =IF(R$162<='4KV2_TuneBuilder'!R$17,(((100-R$162)/100)*'4KV2_TuneBuilder'!$B$17)+'4KV2_TuneBuilder'!$B24,('4KV2_TuneBuilder'!$B24-'4KV2_TuneBuilder'!$B$14+('4KV2_TuneBuilder'!$B$14*R$162)/100)) -> 23.6 | S167: =IF(S$162<='4KV2_TuneBuilder'!S$17,(((100-S$162)/100)*'4KV2_TuneBuilder'!$B$17)+'4KV2_TuneBuilder'!$B24,('4KV2_TuneBuilder'!$B24-'4KV2_TuneBuilder'!$B$14+('4KV2_TuneBuilder'!$B$14*S$162)/100)) -> 23.7 | T167: =IF(T$162<='4KV2_TuneBuilder'!T$17,(((100-T$162)/100)*'4KV2_TuneBuilder'!$B$17)+'4KV2_TuneBuilder'!$B24,('4KV2_TuneBuilder'!$B24-'4KV2_TuneBuilder'!$B$14+('4KV2_TuneBuilder'!$B$14*T$162)/100)) -> 23.8 | U167: =IF(U$162<='4KV2_TuneBuilder'!U$17,(((100-U$162)/100)*'4KV2_TuneBuilder'!$B$17)+'4KV2_TuneBuilder'!$B24,('4KV2_TuneBuilder'!$B24-'4KV2_TuneBuilder'!$B$14+('4KV2_TuneBuilder'!$B$14*U$162)/100)) -> 23.9 | V167: =IF(V$162<='4KV2_TuneBuilder'!V$17,(((100-V$162)/100)*'4KV2_TuneBuilder'!$B$17)+'4KV2_TuneBuilder'!$B24,('4KV2_TuneBuilder'!$B24-'4KV2_TuneBuilder'!$B$14+('4KV2_TuneBuilder'!$B$14*V$162)/100)) -> 24
A168: 4000RPM | B168: =IF(B$162<='4KV2_TuneBuilder'!B$18,(((100-B$162)/100)*'4KV2_TuneBuilder'!$B$17)+'4KV2_TuneBuilder'!$B25,('4KV2_TuneBuilder'!$B25-('4KV2_TuneBuilder'!$B$14*B$162)/100)) -> 27 | C168: =IF(C$162<='4KV2_TuneBuilder'!J$6,(((100-C$162)/100)*'4KV2_TuneBuilder'!$B$17)+'4KV2_TuneBuilder'!$B25,('4KV2_TuneBuilder'!$B25-'4KV2_TuneBuilder'!$B$14+('4KV2_TuneBuilder'!$B$14*C$162)/100)) -> 26.9 | D168: =IF(D$162<='4KV2_TuneBuilder'!K$6,(((100-D$162)/100)*'4KV2_TuneBuilder'!$B$17)+'4KV2_TuneBuilder'!$B25,('4KV2_TuneBuilder'!$B25-'4KV2_TuneBuilder'!$B$14+('4KV2_TuneBuilder'!$B$14*D$162)/100)) -> 26.8 | E168: =IF(E$162<='4KV2_TuneBuilder'!K$7,(((100-E$162)/100)*'4KV2_TuneBuilder'!$B$17)+'4KV2_TuneBuilder'!$B25,('4KV2_TuneBuilder'!$B25-'4KV2_TuneBuilder'!$B$14+('4KV2_TuneBuilder'!$B$14*E$162)/100)) -> 26.7 | F168: =IF(F$162<='4KV2_TuneBuilder'!F$17,(((100-F$162)/100)*'4KV2_TuneBuilder'!$B$17)+'4KV2_TuneBuilder'!$B25,('4KV2_TuneBuilder'!$B25-'4KV2_TuneBuilder'!$B$14+('4KV2_TuneBuilder'!$B$14*F$162)/100)) -> 23.4 | G168: =IF(G$162<='4KV2_TuneBuilder'!G$17,(((100-G$162)/100)*'4KV2_TuneBuilder'!$B$17)+'4KV2_TuneBuilder'!$B25,('4KV2_TuneBuilder'!$B25-'4KV2_TuneBuilder'!$B$14+('4KV2_TuneBuilder'!$B$14*G$162)/100)) -> 23.5 | H168: =IF(H$162<='4KV2_TuneBuilder'!H$17,(((100-H$162)/100)*'4KV2_TuneBuilder'!$B$17)+'4KV2_TuneBuilder'!$B25,('4KV2_TuneBuilder'!$B25-'4KV2_TuneBuilder'!$B$14+('4KV2_TuneBuilder'!$B$14*H$162)/100)) -> 23.6 | I168: =IF(I$162<='4KV2_TuneBuilder'!I$17,(((100-I$162)/100)*'4KV2_TuneBuilder'!$B$17)+'4KV2_TuneBuilder'!$B25,('4KV2_TuneBuilder'!$B25-'4KV2_TuneBuilder'!$B$14+('4KV2_TuneBuilder'!$B$14*I$162)/100)) -> 23.7 | J168: =IF(J$162<='4KV2_TuneBuilder'!J$17,(((100-J$162)/100)*'4KV2_TuneBuilder'!$B$17)+'4KV2_TuneBuilder'!$B25,('4KV2_TuneBuilder'!$B25-'4KV2_TuneBuilder'!$B$14+('4KV2_TuneBuilder'!$B$14*J$162)/100)) -> 23.8 | K168: =IF(K$162<='4KV2_TuneBuilder'!K$17,(((100-K$162)/100)*'4KV2_TuneBuilder'!$B$17)+'4KV2_TuneBuilder'!$B25,('4KV2_TuneBuilder'!$B25-'4KV2_TuneBuilder'!$B$14+('4KV2_TuneBuilder'!$B$14*K$162)/100)) -> 23.9 | L168: =IF(L$162<='4KV2_TuneBuilder'!L$17,(((100-L$162)/100)*'4KV2_TuneBuilder'!$B$17)+'4KV2_TuneBuilder'!$B25,('4KV2_TuneBuilder'!$B25-'4KV2_TuneBuilder'!$B$14+('4KV2_TuneBuilder'!$B$14*L$162)/100)) -> 24 | M168: =IF(M$162<='4KV2_TuneBuilder'!M$17,(((100-M$162)/100)*'4KV2_TuneBuilder'!$B$17)+'4KV2_TuneBuilder'!$B25,('4KV2_TuneBuilder'!$B25-'4KV2_TuneBuilder'!$B$14+('4KV2_TuneBuilder'!$B$14*M$162)/100)) -> 24.1 | N168: =IF(N$162<='4KV2_TuneBuilder'!N$17,(((100-N$162)/100)*'4KV2_TuneBuilder'!$B$17)+'4KV2_TuneBuilder'!$B25,('4KV2_TuneBuilder'!$B25-'4KV2_TuneBuilder'!$B$14+('4KV2_TuneBuilder'!$B$14*N$162)/100)) -> 24.2 | O168: =IF(O$162<='4KV2_TuneBuilder'!O$17,(((100-O$162)/100)*'4KV2_TuneBuilder'!$B$17)+'4KV2_TuneBuilder'!$B25,('4KV2_TuneBuilder'!$B25-'4KV2_TuneBuilder'!$B$14+('4KV2_TuneBuilder'!$B$14*O$162)/100)) -> 24.3 | P168: =IF(P$162<='4KV2_TuneBuilder'!P$17,(((100-P$162)/100)*'4KV2_TuneBuilder'!$B$17)+'4KV2_TuneBuilder'!$B25,('4KV2_TuneBuilder'!$B25-'4KV2_TuneBuilder'!$B$14+('4KV2_TuneBuilder'!$B$14*P$162)/100)) -> 24.4 | Q168: =IF(Q$162<='4KV2_TuneBuilder'!Q$17,(((100-Q$162)/100)*'4KV2_TuneBuilder'!$B$17)+'4KV2_TuneBuilder'!$B25,('4KV2_TuneBuilder'!$B25-'4KV2_TuneBuilder'!$B$14+('4KV2_TuneBuilder'!$B$14*Q$162)/100)) -> 24.5 | R168: =IF(R$162<='4KV2_TuneBuilder'!R$17,(((100-R$162)/100)*'4KV2_TuneBuilder'!$B$17)+'4KV2_TuneBuilder'!$B25,('4KV2_TuneBuilder'!$B25-'4KV2_TuneBuilder'!$B$14+('4KV2_TuneBuilder'!$B$14*R$162)/100)) -> 24.6 | S168: =IF(S$162<='4KV2_TuneBuilder'!S$17,(((100-S$162)/100)*'4KV2_TuneBuilder'!$B$17)+'4KV2_TuneBuilder'!$B25,('4KV2_TuneBuilder'!$B25-'4KV2_TuneBuilder'!$B$14+('4KV2_TuneBuilder'!$B$14*S$162)/100)) -> 24.7 | T168: =IF(T$162<='4KV2_TuneBuilder'!T$17,(((100-T$162)/100)*'4KV2_TuneBuilder'!$B$17)+'4KV2_TuneBuilder'!$B25,('4KV2_TuneBuilder'!$B25-'4KV2_TuneBuilder'!$B$14+('4KV2_TuneBuilder'!$B$14*T$162)/100)) -> 24.8 | U168: =IF(U$162<='4KV2_TuneBuilder'!U$17,(((100-U$162)/100)*'4KV2_TuneBuilder'!$B$17)+'4KV2_TuneBuilder'!$B25,('4KV2_TuneBuilder'!$B25-'4KV2_TuneBuilder'!$B$14+('4KV2_TuneBuilder'!$B$14*U$162)/100)) -> 24.9 | V168: =IF(V$162<='4KV2_TuneBuilder'!V$17,(((100-V$162)/100)*'4KV2_TuneBuilder'!$B$17)+'4KV2_TuneBuilder'!$B25,('4KV2_TuneBuilder'!$B25-'4KV2_TuneBuilder'!$B$14+('4KV2_TuneBuilder'!$B$14*V$162)/100)) -> 25
A169: MaxRPM | B169: =IF(B$162<='4KV2_TuneBuilder'!B$18,(((100-B$162)/100)*'4KV2_TuneBuilder'!$B$17)+'4KV2_TuneBuilder'!$B26,('4KV2_TuneBuilder'!$B26-('4KV2_TuneBuilder'!$B$14*B$162)/100)) -> 28 | C169: =IF(C$162<='4KV2_TuneBuilder'!J$6,(((100-C$162)/100)*'4KV2_TuneBuilder'!$B$17)+'4KV2_TuneBuilder'!$B26,('4KV2_TuneBuilder'!$B26-'4KV2_TuneBuilder'!$B$14+('4KV2_TuneBuilder'!$B$14*C$162)/100)) -> 27.9 | D169: =IF(D$162<='4KV2_TuneBuilder'!K$6,(((100-D$162)/100)*'4KV2_TuneBuilder'!$B$17)+'4KV2_TuneBuilder'!$B26,('4KV2_TuneBuilder'!$B26-'4KV2_TuneBuilder'!$B$14+('4KV2_TuneBuilder'!$B$14*D$162)/100)) -> 27.8 | E169: =IF(E$162<='4KV2_TuneBuilder'!K$7,(((100-E$162)/100)*'4KV2_TuneBuilder'!$B$17)+'4KV2_TuneBuilder'!$B26,('4KV2_TuneBuilder'!$B26-'4KV2_TuneBuilder'!$B$14+('4KV2_TuneBuilder'!$B$14*E$162)/100)) -> 27.7 | F169: =IF(F$162<='4KV2_TuneBuilder'!F$17,(((100-F$162)/100)*'4KV2_TuneBuilder'!$B$17)+'4KV2_TuneBuilder'!$B26,('4KV2_TuneBuilder'!$B26-'4KV2_TuneBuilder'!$B$14+('4KV2_TuneBuilder'!$B$14*F$162)/100)) -> 24.4 | G169: =IF(G$162<='4KV2_TuneBuilder'!G$17,(((100-G$162)/100)*'4KV2_TuneBuilder'!$B$17)+'4KV2_TuneBuilder'!$B26,('4KV2_TuneBuilder'!$B26-'4KV2_TuneBuilder'!$B$14+('4KV2_TuneBuilder'!$B$14*G$162)/100)) -> 24.5 | H169: =IF(H$162<='4KV2_TuneBuilder'!H$17,(((100-H$162)/100)*'4KV2_TuneBuilder'!$B$17)+'4KV2_TuneBuilder'!$B26,('4KV2_TuneBuilder'!$B26-'4KV2_TuneBuilder'!$B$14+('4KV2_TuneBuilder'!$B$14*H$162)/100)) -> 24.6 | I169: =IF(I$162<='4KV2_TuneBuilder'!I$17,(((100-I$162)/100)*'4KV2_TuneBuilder'!$B$17)+'4KV2_TuneBuilder'!$B26,('4KV2_TuneBuilder'!$B26-'4KV2_TuneBuilder'!$B$14+('4KV2_TuneBuilder'!$B$14*I$162)/100)) -> 24.7 | J169: =IF(J$162<='4KV2_TuneBuilder'!J$17,(((100-J$162)/100)*'4KV2_TuneBuilder'!$B$17)+'4KV2_TuneBuilder'!$B26,('4KV2_TuneBuilder'!$B26-'4KV2_TuneBuilder'!$B$14+('4KV2_TuneBuilder'!$B$14*J$162)/100)) -> 24.8 | K169: =IF(K$162<='4KV2_TuneBuilder'!K$17,(((100-K$162)/100)*'4KV2_TuneBuilder'!$B$17)+'4KV2_TuneBuilder'!$B26,('4KV2_TuneBuilder'!$B26-'4KV2_TuneBuilder'!$B$14+('4KV2_TuneBuilder'!$B$14*K$162)/100)) -> 24.9 | L169: =IF(L$162<='4KV2_TuneBuilder'!L$17,(((100-L$162)/100)*'4KV2_TuneBuilder'!$B$17)+'4KV2_TuneBuilder'!$B26,('4KV2_TuneBuilder'!$B26-'4KV2_TuneBuilder'!$B$14+('4KV2_TuneBuilder'!$B$14*L$162)/100)) -> 25 | M169: =IF(M$162<='4KV2_TuneBuilder'!M$17,(((100-M$162)/100)*'4KV2_TuneBuilder'!$B$17)+'4KV2_TuneBuilder'!$B26,('4KV2_TuneBuilder'!$B26-'4KV2_TuneBuilder'!$B$14+('4KV2_TuneBuilder'!$B$14*M$162)/100)) -> 25.1 | N169: =IF(N$162<='4KV2_TuneBuilder'!N$17,(((100-N$162)/100)*'4KV2_TuneBuilder'!$B$17)+'4KV2_TuneBuilder'!$B26,('4KV2_TuneBuilder'!$B26-'4KV2_TuneBuilder'!$B$14+('4KV2_TuneBuilder'!$B$14*N$162)/100)) -> 25.2 | O169: =IF(O$162<='4KV2_TuneBuilder'!O$17,(((100-O$162)/100)*'4KV2_TuneBuilder'!$B$17)+'4KV2_TuneBuilder'!$B26,('4KV2_TuneBuilder'!$B26-'4KV2_TuneBuilder'!$B$14+('4KV2_TuneBuilder'!$B$14*O$162)/100)) -> 25.3 | P169: =IF(P$162<='4KV2_TuneBuilder'!P$17,(((100-P$162)/100)*'4KV2_TuneBuilder'!$B$17)+'4KV2_TuneBuilder'!$B26,('4KV2_TuneBuilder'!$B26-'4KV2_TuneBuilder'!$B$14+('4KV2_TuneBuilder'!$B$14*P$162)/100)) -> 25.4 | Q169: =IF(Q$162<='4KV2_TuneBuilder'!Q$17,(((100-Q$162)/100)*'4KV2_TuneBuilder'!$B$17)+'4KV2_TuneBuilder'!$B26,('4KV2_TuneBuilder'!$B26-'4KV2_TuneBuilder'!$B$14+('4KV2_TuneBuilder'!$B$14*Q$162)/100)) -> 25.5 | R169: =IF(R$162<='4KV2_TuneBuilder'!R$17,(((100-R$162)/100)*'4KV2_TuneBuilder'!$B$17)+'4KV2_TuneBuilder'!$B26,('4KV2_TuneBuilder'!$B26-'4KV2_TuneBuilder'!$B$14+('4KV2_TuneBuilder'!$B$14*R$162)/100)) -> 25.6 | S169: =IF(S$162<='4KV2_TuneBuilder'!S$17,(((100-S$162)/100)*'4KV2_TuneBuilder'!$B$17)+'4KV2_TuneBuilder'!$B26,('4KV2_TuneBuilder'!$B26-'4KV2_TuneBuilder'!$B$14+('4KV2_TuneBuilder'!$B$14*S$162)/100)) -> 25.7 | T169: =IF(T$162<='4KV2_TuneBuilder'!T$17,(((100-T$162)/100)*'4KV2_TuneBuilder'!$B$17)+'4KV2_TuneBuilder'!$B26,('4KV2_TuneBuilder'!$B26-'4KV2_TuneBuilder'!$B$14+('4KV2_TuneBuilder'!$B$14*T$162)/100)) -> 25.8 | U169: =IF(U$162<='4KV2_TuneBuilder'!U$17,(((100-U$162)/100)*'4KV2_TuneBuilder'!$B$17)+'4KV2_TuneBuilder'!$B26,('4KV2_TuneBuilder'!$B26-'4KV2_TuneBuilder'!$B$14+('4KV2_TuneBuilder'!$B$14*U$162)/100)) -> 25.9 | V169: =IF(V$162<='4KV2_TuneBuilder'!V$17,(((100-V$162)/100)*'4KV2_TuneBuilder'!$B$17)+'4KV2_TuneBuilder'!$B26,('4KV2_TuneBuilder'!$B26-'4KV2_TuneBuilder'!$B$14+('4KV2_TuneBuilder'!$B$14*V$162)/100)) -> 26
A171: V3 Fuel load timing vs rpm
B172: 0 | C172: 5 | D172: 10 | E172: 15 | F172: 20 | G172: 25 | H172: 30 | I172: 35 | J172: 40 | K172: 45 | L172: 50 | M172: 55 | N172: 60 | O172: 65 | P172: 70 | Q172: 75 | R172: 80 | S172: 85 | T172: 90 | U172: 95 | V172: 100
A173: 1500RPM | B173: =IF(B$172<='4KV3_TuneBuilder'!B$43,(((100-B$172)/100)*'4KV3_TuneBuilder'!$B$42)+'4KV3_TuneBuilder'!$B45,('4KV3_TuneBuilder'!$B45-('4KV3_TuneBuilder'!$B$39*B$172)/100)) -> 17 | C173: =IF(C$172<='4KV3_TuneBuilder'!J$6,(((100-C$172)/100)*'4KV3_TuneBuilder'!$B$42)+'4KV3_TuneBuilder'!$B45,('4KV3_TuneBuilder'!$B45-'4KV3_TuneBuilder'!$B$39+('4KV3_TuneBuilder'!$B$39*C$172)/100)) -> 16.9 | D173: =IF(D$172<='4KV3_TuneBuilder'!K$6,(((100-D$172)/100)*'4KV3_TuneBuilder'!$B$42)+'4KV3_TuneBuilder'!$B45,('4KV3_TuneBuilder'!$B45-'4KV3_TuneBuilder'!$B$39+('4KV3_TuneBuilder'!$B$39*D$172)/100)) -> 16.8 | E173: =IF(E$172<='4KV3_TuneBuilder'!K$7,(((100-E$172)/100)*'4KV3_TuneBuilder'!$B$42)+'4KV3_TuneBuilder'!$B45,('4KV3_TuneBuilder'!$B45-'4KV3_TuneBuilder'!$B$39+('4KV3_TuneBuilder'!$B$39*E$172)/100)) -> 16.7 | F173: =IF(F$172<='4KV3_TuneBuilder'!F$43,(((100-F$172)/100)*'4KV3_TuneBuilder'!$B$42)+'4KV3_TuneBuilder'!$B45,('4KV3_TuneBuilder'!$B45-'4KV3_TuneBuilder'!$B$39+('4KV3_TuneBuilder'!$B$39*F$172)/100)) -> 13.4 | G173: =IF(G$172<='4KV3_TuneBuilder'!G$43,(((100-G$172)/100)*'4KV3_TuneBuilder'!$B$42)+'4KV3_TuneBuilder'!$B45,('4KV3_TuneBuilder'!$B45-'4KV3_TuneBuilder'!$B$39+('4KV3_TuneBuilder'!$B$39*G$172)/100)) -> 13.5 | H173: =IF(H$172<='4KV3_TuneBuilder'!H$43,(((100-H$172)/100)*'4KV3_TuneBuilder'!$B$42)+'4KV3_TuneBuilder'!$B45,('4KV3_TuneBuilder'!$B45-'4KV3_TuneBuilder'!$B$39+('4KV3_TuneBuilder'!$B$39*H$172)/100)) -> 13.6 | I173: =IF(I$172<='4KV3_TuneBuilder'!I$43,(((100-I$172)/100)*'4KV3_TuneBuilder'!$B$42)+'4KV3_TuneBuilder'!$B45,('4KV3_TuneBuilder'!$B45-'4KV3_TuneBuilder'!$B$39+('4KV3_TuneBuilder'!$B$39*I$172)/100)) -> 13.7 | J173: =IF(J$172<='4KV3_TuneBuilder'!J$43,(((100-J$172)/100)*'4KV3_TuneBuilder'!$B$42)+'4KV3_TuneBuilder'!$B45,('4KV3_TuneBuilder'!$B45-'4KV3_TuneBuilder'!$B$39+('4KV3_TuneBuilder'!$B$39*J$172)/100)) -> 13.8 | K173: =IF(K$172<='4KV3_TuneBuilder'!K$43,(((100-K$172)/100)*'4KV3_TuneBuilder'!$B$42)+'4KV3_TuneBuilder'!$B45,('4KV3_TuneBuilder'!$B45-'4KV3_TuneBuilder'!$B$39+('4KV3_TuneBuilder'!$B$39*K$172)/100)) -> 13.9 | L173: =IF(L$172<='4KV3_TuneBuilder'!L$43,(((100-L$172)/100)*'4KV3_TuneBuilder'!$B$42)+'4KV3_TuneBuilder'!$B45,('4KV3_TuneBuilder'!$B45-'4KV3_TuneBuilder'!$B$39+('4KV3_TuneBuilder'!$B$39*L$172)/100)) -> 14 | M173: =IF(M$172<='4KV3_TuneBuilder'!M$43,(((100-M$172)/100)*'4KV3_TuneBuilder'!$B$42)+'4KV3_TuneBuilder'!$B45,('4KV3_TuneBuilder'!$B45-'4KV3_TuneBuilder'!$B$39+('4KV3_TuneBuilder'!$B$39*M$172)/100)) -> 14.1 | N173: =IF(N$172<='4KV3_TuneBuilder'!N$43,(((100-N$172)/100)*'4KV3_TuneBuilder'!$B$42)+'4KV3_TuneBuilder'!$B45,('4KV3_TuneBuilder'!$B45-'4KV3_TuneBuilder'!$B$39+('4KV3_TuneBuilder'!$B$39*N$172)/100)) -> 14.2 | O173: =IF(O$172<='4KV3_TuneBuilder'!O$43,(((100-O$172)/100)*'4KV3_TuneBuilder'!$B$42)+'4KV3_TuneBuilder'!$B45,('4KV3_TuneBuilder'!$B45-'4KV3_TuneBuilder'!$B$39+('4KV3_TuneBuilder'!$B$39*O$172)/100)) -> 14.3 | P173: =IF(P$172<='4KV3_TuneBuilder'!P$43,(((100-P$172)/100)*'4KV3_TuneBuilder'!$B$42)+'4KV3_TuneBuilder'!$B45,('4KV3_TuneBuilder'!$B45-'4KV3_TuneBuilder'!$B$39+('4KV3_TuneBuilder'!$B$39*P$172)/100)) -> 14.4 | Q173: =IF(Q$172<='4KV3_TuneBuilder'!Q$43,(((100-Q$172)/100)*'4KV3_TuneBuilder'!$B$42)+'4KV3_TuneBuilder'!$B45,('4KV3_TuneBuilder'!$B45-'4KV3_TuneBuilder'!$B$39+('4KV3_TuneBuilder'!$B$39*Q$172)/100)) -> 14.5 | R173: =IF(R$172<='4KV3_TuneBuilder'!R$43,(((100-R$172)/100)*'4KV3_TuneBuilder'!$B$42)+'4KV3_TuneBuilder'!$B45,('4KV3_TuneBuilder'!$B45-'4KV3_TuneBuilder'!$B$39+('4KV3_TuneBuilder'!$B$39*R$172)/100)) -> 14.6 | S173: =IF(S$172<='4KV3_TuneBuilder'!S$43,(((100-S$172)/100)*'4KV3_TuneBuilder'!$B$42)+'4KV3_TuneBuilder'!$B45,('4KV3_TuneBuilder'!$B45-'4KV3_TuneBuilder'!$B$39+('4KV3_TuneBuilder'!$B$39*S$172)/100)) -> 14.7 | T173: =IF(T$172<='4KV3_TuneBuilder'!T$43,(((100-T$172)/100)*'4KV3_TuneBuilder'!$B$42)+'4KV3_TuneBuilder'!$B45,('4KV3_TuneBuilder'!$B45-'4KV3_TuneBuilder'!$B$39+('4KV3_TuneBuilder'!$B$39*T$172)/100)) -> 14.8 | U173: =IF(U$172<='4KV3_TuneBuilder'!U$43,(((100-U$172)/100)*'4KV3_TuneBuilder'!$B$42)+'4KV3_TuneBuilder'!$B45,('4KV3_TuneBuilder'!$B45-'4KV3_TuneBuilder'!$B$39+('4KV3_TuneBuilder'!$B$39*U$172)/100)) -> 14.9 | V173: =IF(V$172<='4KV3_TuneBuilder'!V$43,(((100-V$172)/100)*'4KV3_TuneBuilder'!$B$42)+'4KV3_TuneBuilder'!$B45,('4KV3_TuneBuilder'!$B45-'4KV3_TuneBuilder'!$B$39+('4KV3_TuneBuilder'!$B$39*V$172)/100)) -> 15
A174: 2000RPM | B174: =IF(B$172<='4KV3_TuneBuilder'!B$43,(((100-B$172)/100)*'4KV3_TuneBuilder'!$B$42)+'4KV3_TuneBuilder'!$B46,('4KV3_TuneBuilder'!$B46-('4KV3_TuneBuilder'!$B$39*B$172)/100)) -> 20 | C174: =IF(C$172<='4KV3_TuneBuilder'!J$6,(((100-C$172)/100)*'4KV3_TuneBuilder'!$B$42)+'4KV3_TuneBuilder'!$B46,('4KV3_TuneBuilder'!$B46-'4KV3_TuneBuilder'!$B$39+('4KV3_TuneBuilder'!$B$39*C$172)/100)) -> 19.9 | D174: =IF(D$172<='4KV3_TuneBuilder'!K$6,(((100-D$172)/100)*'4KV3_TuneBuilder'!$B$42)+'4KV3_TuneBuilder'!$B46,('4KV3_TuneBuilder'!$B46-'4KV3_TuneBuilder'!$B$39+('4KV3_TuneBuilder'!$B$39*D$172)/100)) -> 19.8 | E174: =IF(E$172<='4KV3_TuneBuilder'!K$7,(((100-E$172)/100)*'4KV3_TuneBuilder'!$B$42)+'4KV3_TuneBuilder'!$B46,('4KV3_TuneBuilder'!$B46-'4KV3_TuneBuilder'!$B$39+('4KV3_TuneBuilder'!$B$39*E$172)/100)) -> 19.7 | F174: =IF(F$172<='4KV3_TuneBuilder'!F$43,(((100-F$172)/100)*'4KV3_TuneBuilder'!$B$42)+'4KV3_TuneBuilder'!$B46,('4KV3_TuneBuilder'!$B46-'4KV3_TuneBuilder'!$B$39+('4KV3_TuneBuilder'!$B$39*F$172)/100)) -> 16.4 | G174: =IF(G$172<='4KV3_TuneBuilder'!G$43,(((100-G$172)/100)*'4KV3_TuneBuilder'!$B$42)+'4KV3_TuneBuilder'!$B46,('4KV3_TuneBuilder'!$B46-'4KV3_TuneBuilder'!$B$39+('4KV3_TuneBuilder'!$B$39*G$172)/100)) -> 16.5 | H174: =IF(H$172<='4KV3_TuneBuilder'!H$43,(((100-H$172)/100)*'4KV3_TuneBuilder'!$B$42)+'4KV3_TuneBuilder'!$B46,('4KV3_TuneBuilder'!$B46-'4KV3_TuneBuilder'!$B$39+('4KV3_TuneBuilder'!$B$39*H$172)/100)) -> 16.6 | I174: =IF(I$172<='4KV3_TuneBuilder'!I$43,(((100-I$172)/100)*'4KV3_TuneBuilder'!$B$42)+'4KV3_TuneBuilder'!$B46,('4KV3_TuneBuilder'!$B46-'4KV3_TuneBuilder'!$B$39+('4KV3_TuneBuilder'!$B$39*I$172)/100)) -> 16.7 | J174: =IF(J$172<='4KV3_TuneBuilder'!J$43,(((100-J$172)/100)*'4KV3_TuneBuilder'!$B$42)+'4KV3_TuneBuilder'!$B46,('4KV3_TuneBuilder'!$B46-'4KV3_TuneBuilder'!$B$39+('4KV3_TuneBuilder'!$B$39*J$172)/100)) -> 16.8 | K174: =IF(K$172<='4KV3_TuneBuilder'!K$43,(((100-K$172)/100)*'4KV3_TuneBuilder'!$B$42)+'4KV3_TuneBuilder'!$B46,('4KV3_TuneBuilder'!$B46-'4KV3_TuneBuilder'!$B$39+('4KV3_TuneBuilder'!$B$39*K$172)/100)) -> 16.9 | L174: =IF(L$172<='4KV3_TuneBuilder'!L$43,(((100-L$172)/100)*'4KV3_TuneBuilder'!$B$42)+'4KV3_TuneBuilder'!$B46,('4KV3_TuneBuilder'!$B46-'4KV3_TuneBuilder'!$B$39+('4KV3_TuneBuilder'!$B$39*L$172)/100)) -> 17 | M174: =IF(M$172<='4KV3_TuneBuilder'!M$43,(((100-M$172)/100)*'4KV3_TuneBuilder'!$B$42)+'4KV3_TuneBuilder'!$B46,('4KV3_TuneBuilder'!$B46-'4KV3_TuneBuilder'!$B$39+('4KV3_TuneBuilder'!$B$39*M$172)/100)) -> 17.1 | N174: =IF(N$172<='4KV3_TuneBuilder'!N$43,(((100-N$172)/100)*'4KV3_TuneBuilder'!$B$42)+'4KV3_TuneBuilder'!$B46,('4KV3_TuneBuilder'!$B46-'4KV3_TuneBuilder'!$B$39+('4KV3_TuneBuilder'!$B$39*N$172)/100)) -> 17.2 | O174: =IF(O$172<='4KV3_TuneBuilder'!O$43,(((100-O$172)/100)*'4KV3_TuneBuilder'!$B$42)+'4KV3_TuneBuilder'!$B46,('4KV3_TuneBuilder'!$B46-'4KV3_TuneBuilder'!$B$39+('4KV3_TuneBuilder'!$B$39*O$172)/100)) -> 17.3 | P174: =IF(P$172<='4KV3_TuneBuilder'!P$43,(((100-P$172)/100)*'4KV3_TuneBuilder'!$B$42)+'4KV3_TuneBuilder'!$B46,('4KV3_TuneBuilder'!$B46-'4KV3_TuneBuilder'!$B$39+('4KV3_TuneBuilder'!$B$39*P$172)/100)) -> 17.4 | Q174: =IF(Q$172<='4KV3_TuneBuilder'!Q$43,(((100-Q$172)/100)*'4KV3_TuneBuilder'!$B$42)+'4KV3_TuneBuilder'!$B46,('4KV3_TuneBuilder'!$B46-'4KV3_TuneBuilder'!$B$39+('4KV3_TuneBuilder'!$B$39*Q$172)/100)) -> 17.5 | R174: =IF(R$172<='4KV3_TuneBuilder'!R$43,(((100-R$172)/100)*'4KV3_TuneBuilder'!$B$42)+'4KV3_TuneBuilder'!$B46,('4KV3_TuneBuilder'!$B46-'4KV3_TuneBuilder'!$B$39+('4KV3_TuneBuilder'!$B$39*R$172)/100)) -> 17.6 | S174: =IF(S$172<='4KV3_TuneBuilder'!S$43,(((100-S$172)/100)*'4KV3_TuneBuilder'!$B$42)+'4KV3_TuneBuilder'!$B46,('4KV3_TuneBuilder'!$B46-'4KV3_TuneBuilder'!$B$39+('4KV3_TuneBuilder'!$B$39*S$172)/100)) -> 17.7 | T174: =IF(T$172<='4KV3_TuneBuilder'!T$43,(((100-T$172)/100)*'4KV3_TuneBuilder'!$B$42)+'4KV3_TuneBuilder'!$B46,('4KV3_TuneBuilder'!$B46-'4KV3_TuneBuilder'!$B$39+('4KV3_TuneBuilder'!$B$39*T$172)/100)) -> 17.8 | U174: =IF(U$172<='4KV3_TuneBuilder'!U$43,(((100-U$172)/100)*'4KV3_TuneBuilder'!$B$42)+'4KV3_TuneBuilder'!$B46,('4KV3_TuneBuilder'!$B46-'4KV3_TuneBuilder'!$B$39+('4KV3_TuneBuilder'!$B$39*U$172)/100)) -> 17.9 | V174: =IF(V$172<='4KV3_TuneBuilder'!V$43,(((100-V$172)/100)*'4KV3_TuneBuilder'!$B$42)+'4KV3_TuneBuilder'!$B46,('4KV3_TuneBuilder'!$B46-'4KV3_TuneBuilder'!$B$39+('4KV3_TuneBuilder'!$B$39*V$172)/100)) -> 18
A175: 2500RPM | B175: =IF(B$172<='4KV3_TuneBuilder'!B$43,(((100-B$172)/100)*'4KV3_TuneBuilder'!$B$42)+'4KV3_TuneBuilder'!$B47,('4KV3_TuneBuilder'!$B47-('4KV3_TuneBuilder'!$B$39*B$172)/100)) -> 23 | C175: =IF(C$172<='4KV3_TuneBuilder'!J$6,(((100-C$172)/100)*'4KV3_TuneBuilder'!$B$42)+'4KV3_TuneBuilder'!$B47,('4KV3_TuneBuilder'!$B47-'4KV3_TuneBuilder'!$B$39+('4KV3_TuneBuilder'!$B$39*C$172)/100)) -> 22.9 | D175: =IF(D$172<='4KV3_TuneBuilder'!K$6,(((100-D$172)/100)*'4KV3_TuneBuilder'!$B$42)+'4KV3_TuneBuilder'!$B47,('4KV3_TuneBuilder'!$B47-'4KV3_TuneBuilder'!$B$39+('4KV3_TuneBuilder'!$B$39*D$172)/100)) -> 22.8 | E175: =IF(E$172<='4KV3_TuneBuilder'!K$7,(((100-E$172)/100)*'4KV3_TuneBuilder'!$B$42)+'4KV3_TuneBuilder'!$B47,('4KV3_TuneBuilder'!$B47-'4KV3_TuneBuilder'!$B$39+('4KV3_TuneBuilder'!$B$39*E$172)/100)) -> 22.7 | F175: =IF(F$172<='4KV3_TuneBuilder'!F$43,(((100-F$172)/100)*'4KV3_TuneBuilder'!$B$42)+'4KV3_TuneBuilder'!$B47,('4KV3_TuneBuilder'!$B47-'4KV3_TuneBuilder'!$B$39+('4KV3_TuneBuilder'!$B$39*F$172)/100)) -> 19.4 | G175: =IF(G$172<='4KV3_TuneBuilder'!G$43,(((100-G$172)/100)*'4KV3_TuneBuilder'!$B$42)+'4KV3_TuneBuilder'!$B47,('4KV3_TuneBuilder'!$B47-'4KV3_TuneBuilder'!$B$39+('4KV3_TuneBuilder'!$B$39*G$172)/100)) -> 19.5 | H175: =IF(H$172<='4KV3_TuneBuilder'!H$43,(((100-H$172)/100)*'4KV3_TuneBuilder'!$B$42)+'4KV3_TuneBuilder'!$B47,('4KV3_TuneBuilder'!$B47-'4KV3_TuneBuilder'!$B$39+('4KV3_TuneBuilder'!$B$39*H$172)/100)) -> 19.6 | I175: =IF(I$172<='4KV3_TuneBuilder'!I$43,(((100-I$172)/100)*'4KV3_TuneBuilder'!$B$42)+'4KV3_TuneBuilder'!$B47,('4KV3_TuneBuilder'!$B47-'4KV3_TuneBuilder'!$B$39+('4KV3_TuneBuilder'!$B$39*I$172)/100)) -> 19.7 | J175: =IF(J$172<='4KV3_TuneBuilder'!J$43,(((100-J$172)/100)*'4KV3_TuneBuilder'!$B$42)+'4KV3_TuneBuilder'!$B47,('4KV3_TuneBuilder'!$B47-'4KV3_TuneBuilder'!$B$39+('4KV3_TuneBuilder'!$B$39*J$172)/100)) -> 19.8 | K175: =IF(K$172<='4KV3_TuneBuilder'!K$43,(((100-K$172)/100)*'4KV3_TuneBuilder'!$B$42)+'4KV3_TuneBuilder'!$B47,('4KV3_TuneBuilder'!$B47-'4KV3_TuneBuilder'!$B$39+('4KV3_TuneBuilder'!$B$39*K$172)/100)) -> 19.9 | L175: =IF(L$172<='4KV3_TuneBuilder'!L$43,(((100-L$172)/100)*'4KV3_TuneBuilder'!$B$42)+'4KV3_TuneBuilder'!$B47,('4KV3_TuneBuilder'!$B47-'4KV3_TuneBuilder'!$B$39+('4KV3_TuneBuilder'!$B$39*L$172)/100)) -> 20 | M175: =IF(M$172<='4KV3_TuneBuilder'!M$43,(((100-M$172)/100)*'4KV3_TuneBuilder'!$B$42)+'4KV3_TuneBuilder'!$B47,('4KV3_TuneBuilder'!$B47-'4KV3_TuneBuilder'!$B$39+('4KV3_TuneBuilder'!$B$39*M$172)/100)) -> 20.1 | N175: =IF(N$172<='4KV3_TuneBuilder'!N$43,(((100-N$172)/100)*'4KV3_TuneBuilder'!$B$42)+'4KV3_TuneBuilder'!$B47,('4KV3_TuneBuilder'!$B47-'4KV3_TuneBuilder'!$B$39+('4KV3_TuneBuilder'!$B$39*N$172)/100)) -> 20.2 | O175: =IF(O$172<='4KV3_TuneBuilder'!O$43,(((100-O$172)/100)*'4KV3_TuneBuilder'!$B$42)+'4KV3_TuneBuilder'!$B47,('4KV3_TuneBuilder'!$B47-'4KV3_TuneBuilder'!$B$39+('4KV3_TuneBuilder'!$B$39*O$172)/100)) -> 20.3 | P175: =IF(P$172<='4KV3_TuneBuilder'!P$43,(((100-P$172)/100)*'4KV3_TuneBuilder'!$B$42)+'4KV3_TuneBuilder'!$B47,('4KV3_TuneBuilder'!$B47-'4KV3_TuneBuilder'!$B$39+('4KV3_TuneBuilder'!$B$39*P$172)/100)) -> 20.4 | Q175: =IF(Q$172<='4KV3_TuneBuilder'!Q$43,(((100-Q$172)/100)*'4KV3_TuneBuilder'!$B$42)+'4KV3_TuneBuilder'!$B47,('4KV3_TuneBuilder'!$B47-'4KV3_TuneBuilder'!$B$39+('4KV3_TuneBuilder'!$B$39*Q$172)/100)) -> 20.5 | R175: =IF(R$172<='4KV3_TuneBuilder'!R$43,(((100-R$172)/100)*'4KV3_TuneBuilder'!$B$42)+'4KV3_TuneBuilder'!$B47,('4KV3_TuneBuilder'!$B47-'4KV3_TuneBuilder'!$B$39+('4KV3_TuneBuilder'!$B$39*R$172)/100)) -> 20.6 | S175: =IF(S$172<='4KV3_TuneBuilder'!S$43,(((100-S$172)/100)*'4KV3_TuneBuilder'!$B$42)+'4KV3_TuneBuilder'!$B47,('4KV3_TuneBuilder'!$B47-'4KV3_TuneBuilder'!$B$39+('4KV3_TuneBuilder'!$B$39*S$172)/100)) -> 20.7 | T175: =IF(T$172<='4KV3_TuneBuilder'!T$43,(((100-T$172)/100)*'4KV3_TuneBuilder'!$B$42)+'4KV3_TuneBuilder'!$B47,('4KV3_TuneBuilder'!$B47-'4KV3_TuneBuilder'!$B$39+('4KV3_TuneBuilder'!$B$39*T$172)/100)) -> 20.8 | U175: =IF(U$172<='4KV3_TuneBuilder'!U$43,(((100-U$172)/100)*'4KV3_TuneBuilder'!$B$42)+'4KV3_TuneBuilder'!$B47,('4KV3_TuneBuilder'!$B47-'4KV3_TuneBuilder'!$B$39+('4KV3_TuneBuilder'!$B$39*U$172)/100)) -> 20.9 | V175: =IF(V$172<='4KV3_TuneBuilder'!V$43,(((100-V$172)/100)*'4KV3_TuneBuilder'!$B$42)+'4KV3_TuneBuilder'!$B47,('4KV3_TuneBuilder'!$B47-'4KV3_TuneBuilder'!$B$39+('4KV3_TuneBuilder'!$B$39*V$172)/100)) -> 21
A176: 3000RPM | B176: =IF(B$172<='4KV3_TuneBuilder'!B$43,(((100-B$172)/100)*'4KV3_TuneBuilder'!$B$42)+'4KV3_TuneBuilder'!$B48,('4KV3_TuneBuilder'!$B48-('4KV3_TuneBuilder'!$B$39*B$172)/100)) -> 25 | C176: =IF(C$172<='4KV3_TuneBuilder'!J$6,(((100-C$172)/100)*'4KV3_TuneBuilder'!$B$42)+'4KV3_TuneBuilder'!$B48,('4KV3_TuneBuilder'!$B48-'4KV3_TuneBuilder'!$B$39+('4KV3_TuneBuilder'!$B$39*C$172)/100)) -> 24.9 | D176: =IF(D$172<='4KV3_TuneBuilder'!K$6,(((100-D$172)/100)*'4KV3_TuneBuilder'!$B$42)+'4KV3_TuneBuilder'!$B48,('4KV3_TuneBuilder'!$B48-'4KV3_TuneBuilder'!$B$39+('4KV3_TuneBuilder'!$B$39*D$172)/100)) -> 24.8 | E176: =IF(E$172<='4KV3_TuneBuilder'!K$7,(((100-E$172)/100)*'4KV3_TuneBuilder'!$B$42)+'4KV3_TuneBuilder'!$B48,('4KV3_TuneBuilder'!$B48-'4KV3_TuneBuilder'!$B$39+('4KV3_TuneBuilder'!$B$39*E$172)/100)) -> 24.7 | F176: =IF(F$172<='4KV3_TuneBuilder'!F$43,(((100-F$172)/100)*'4KV3_TuneBuilder'!$B$42)+'4KV3_TuneBuilder'!$B48,('4KV3_TuneBuilder'!$B48-'4KV3_TuneBuilder'!$B$39+('4KV3_TuneBuilder'!$B$39*F$172)/100)) -> 21.4 | G176: =IF(G$172<='4KV3_TuneBuilder'!G$43,(((100-G$172)/100)*'4KV3_TuneBuilder'!$B$42)+'4KV3_TuneBuilder'!$B48,('4KV3_TuneBuilder'!$B48-'4KV3_TuneBuilder'!$B$39+('4KV3_TuneBuilder'!$B$39*G$172)/100)) -> 21.5 | H176: =IF(H$172<='4KV3_TuneBuilder'!H$43,(((100-H$172)/100)*'4KV3_TuneBuilder'!$B$42)+'4KV3_TuneBuilder'!$B48,('4KV3_TuneBuilder'!$B48-'4KV3_TuneBuilder'!$B$39+('4KV3_TuneBuilder'!$B$39*H$172)/100)) -> 21.6 | I176: =IF(I$172<='4KV3_TuneBuilder'!I$43,(((100-I$172)/100)*'4KV3_TuneBuilder'!$B$42)+'4KV3_TuneBuilder'!$B48,('4KV3_TuneBuilder'!$B48-'4KV3_TuneBuilder'!$B$39+('4KV3_TuneBuilder'!$B$39*I$172)/100)) -> 21.7 | J176: =IF(J$172<='4KV3_TuneBuilder'!J$43,(((100-J$172)/100)*'4KV3_TuneBuilder'!$B$42)+'4KV3_TuneBuilder'!$B48,('4KV3_TuneBuilder'!$B48-'4KV3_TuneBuilder'!$B$39+('4KV3_TuneBuilder'!$B$39*J$172)/100)) -> 21.8 | K176: =IF(K$172<='4KV3_TuneBuilder'!K$43,(((100-K$172)/100)*'4KV3_TuneBuilder'!$B$42)+'4KV3_TuneBuilder'!$B48,('4KV3_TuneBuilder'!$B48-'4KV3_TuneBuilder'!$B$39+('4KV3_TuneBuilder'!$B$39*K$172)/100)) -> 21.9 | L176: =IF(L$172<='4KV3_TuneBuilder'!L$43,(((100-L$172)/100)*'4KV3_TuneBuilder'!$B$42)+'4KV3_TuneBuilder'!$B48,('4KV3_TuneBuilder'!$B48-'4KV3_TuneBuilder'!$B$39+('4KV3_TuneBuilder'!$B$39*L$172)/100)) -> 22 | M176: =IF(M$172<='4KV3_TuneBuilder'!M$43,(((100-M$172)/100)*'4KV3_TuneBuilder'!$B$42)+'4KV3_TuneBuilder'!$B48,('4KV3_TuneBuilder'!$B48-'4KV3_TuneBuilder'!$B$39+('4KV3_TuneBuilder'!$B$39*M$172)/100)) -> 22.1 | N176: =IF(N$172<='4KV3_TuneBuilder'!N$43,(((100-N$172)/100)*'4KV3_TuneBuilder'!$B$42)+'4KV3_TuneBuilder'!$B48,('4KV3_TuneBuilder'!$B48-'4KV3_TuneBuilder'!$B$39+('4KV3_TuneBuilder'!$B$39*N$172)/100)) -> 22.2 | O176: =IF(O$172<='4KV3_TuneBuilder'!O$43,(((100-O$172)/100)*'4KV3_TuneBuilder'!$B$42)+'4KV3_TuneBuilder'!$B48,('4KV3_TuneBuilder'!$B48-'4KV3_TuneBuilder'!$B$39+('4KV3_TuneBuilder'!$B$39*O$172)/100)) -> 22.3 | P176: =IF(P$172<='4KV3_TuneBuilder'!P$43,(((100-P$172)/100)*'4KV3_TuneBuilder'!$B$42)+'4KV3_TuneBuilder'!$B48,('4KV3_TuneBuilder'!$B48-'4KV3_TuneBuilder'!$B$39+('4KV3_TuneBuilder'!$B$39*P$172)/100)) -> 22.4 | Q176: =IF(Q$172<='4KV3_TuneBuilder'!Q$43,(((100-Q$172)/100)*'4KV3_TuneBuilder'!$B$42)+'4KV3_TuneBuilder'!$B48,('4KV3_TuneBuilder'!$B48-'4KV3_TuneBuilder'!$B$39+('4KV3_TuneBuilder'!$B$39*Q$172)/100)) -> 22.5 | R176: =IF(R$172<='4KV3_TuneBuilder'!R$43,(((100-R$172)/100)*'4KV3_TuneBuilder'!$B$42)+'4KV3_TuneBuilder'!$B48,('4KV3_TuneBuilder'!$B48-'4KV3_TuneBuilder'!$B$39+('4KV3_TuneBuilder'!$B$39*R$172)/100)) -> 22.6 | S176: =IF(S$172<='4KV3_TuneBuilder'!S$43,(((100-S$172)/100)*'4KV3_TuneBuilder'!$B$42)+'4KV3_TuneBuilder'!$B48,('4KV3_TuneBuilder'!$B48-'4KV3_TuneBuilder'!$B$39+('4KV3_TuneBuilder'!$B$39*S$172)/100)) -> 22.7 | T176: =IF(T$172<='4KV3_TuneBuilder'!T$43,(((100-T$172)/100)*'4KV3_TuneBuilder'!$B$42)+'4KV3_TuneBuilder'!$B48,('4KV3_TuneBuilder'!$B48-'4KV3_TuneBuilder'!$B$39+('4KV3_TuneBuilder'!$B$39*T$172)/100)) -> 22.8 | U176: =IF(U$172<='4KV3_TuneBuilder'!U$43,(((100-U$172)/100)*'4KV3_TuneBuilder'!$B$42)+'4KV3_TuneBuilder'!$B48,('4KV3_TuneBuilder'!$B48-'4KV3_TuneBuilder'!$B$39+('4KV3_TuneBuilder'!$B$39*U$172)/100)) -> 22.9 | V176: =IF(V$172<='4KV3_TuneBuilder'!V$43,(((100-V$172)/100)*'4KV3_TuneBuilder'!$B$42)+'4KV3_TuneBuilder'!$B48,('4KV3_TuneBuilder'!$B48-'4KV3_TuneBuilder'!$B$39+('4KV3_TuneBuilder'!$B$39*V$172)/100)) -> 23
A177: 3500RPM | B177: =IF(B$172<='4KV3_TuneBuilder'!B$43,(((100-B$172)/100)*'4KV3_TuneBuilder'!$B$42)+'4KV3_TuneBuilder'!$B49,('4KV3_TuneBuilder'!$B49-('4KV3_TuneBuilder'!$B$39*B$172)/100)) -> 26 | C177: =IF(C$172<='4KV3_TuneBuilder'!J$6,(((100-C$172)/100)*'4KV3_TuneBuilder'!$B$42)+'4KV3_TuneBuilder'!$B49,('4KV3_TuneBuilder'!$B49-'4KV3_TuneBuilder'!$B$39+('4KV3_TuneBuilder'!$B$39*C$172)/100)) -> 25.9 | D177: =IF(D$172<='4KV3_TuneBuilder'!K$6,(((100-D$172)/100)*'4KV3_TuneBuilder'!$B$42)+'4KV3_TuneBuilder'!$B49,('4KV3_TuneBuilder'!$B49-'4KV3_TuneBuilder'!$B$39+('4KV3_TuneBuilder'!$B$39*D$172)/100)) -> 25.8 | E177: =IF(E$172<='4KV3_TuneBuilder'!K$7,(((100-E$172)/100)*'4KV3_TuneBuilder'!$B$42)+'4KV3_TuneBuilder'!$B49,('4KV3_TuneBuilder'!$B49-'4KV3_TuneBuilder'!$B$39+('4KV3_TuneBuilder'!$B$39*E$172)/100)) -> 25.7 | F177: =IF(F$172<='4KV3_TuneBuilder'!F$43,(((100-F$172)/100)*'4KV3_TuneBuilder'!$B$42)+'4KV3_TuneBuilder'!$B49,('4KV3_TuneBuilder'!$B49-'4KV3_TuneBuilder'!$B$39+('4KV3_TuneBuilder'!$B$39*F$172)/100)) -> 22.4 | G177: =IF(G$172<='4KV3_TuneBuilder'!G$43,(((100-G$172)/100)*'4KV3_TuneBuilder'!$B$42)+'4KV3_TuneBuilder'!$B49,('4KV3_TuneBuilder'!$B49-'4KV3_TuneBuilder'!$B$39+('4KV3_TuneBuilder'!$B$39*G$172)/100)) -> 22.5 | H177: =IF(H$172<='4KV3_TuneBuilder'!H$43,(((100-H$172)/100)*'4KV3_TuneBuilder'!$B$42)+'4KV3_TuneBuilder'!$B49,('4KV3_TuneBuilder'!$B49-'4KV3_TuneBuilder'!$B$39+('4KV3_TuneBuilder'!$B$39*H$172)/100)) -> 22.6 | I177: =IF(I$172<='4KV3_TuneBuilder'!I$43,(((100-I$172)/100)*'4KV3_TuneBuilder'!$B$42)+'4KV3_TuneBuilder'!$B49,('4KV3_TuneBuilder'!$B49-'4KV3_TuneBuilder'!$B$39+('4KV3_TuneBuilder'!$B$39*I$172)/100)) -> 22.7 | J177: =IF(J$172<='4KV3_TuneBuilder'!J$43,(((100-J$172)/100)*'4KV3_TuneBuilder'!$B$42)+'4KV3_TuneBuilder'!$B49,('4KV3_TuneBuilder'!$B49-'4KV3_TuneBuilder'!$B$39+('4KV3_TuneBuilder'!$B$39*J$172)/100)) -> 22.8 | K177: =IF(K$172<='4KV3_TuneBuilder'!K$43,(((100-K$172)/100)*'4KV3_TuneBuilder'!$B$42)+'4KV3_TuneBuilder'!$B49,('4KV3_TuneBuilder'!$B49-'4KV3_TuneBuilder'!$B$39+('4KV3_TuneBuilder'!$B$39*K$172)/100)) -> 22.9 | L177: =IF(L$172<='4KV3_TuneBuilder'!L$43,(((100-L$172)/100)*'4KV3_TuneBuilder'!$B$42)+'4KV3_TuneBuilder'!$B49,('4KV3_TuneBuilder'!$B49-'4KV3_TuneBuilder'!$B$39+('4KV3_TuneBuilder'!$B$39*L$172)/100)) -> 23 | M177: =IF(M$172<='4KV3_TuneBuilder'!M$43,(((100-M$172)/100)*'4KV3_TuneBuilder'!$B$42)+'4KV3_TuneBuilder'!$B49,('4KV3_TuneBuilder'!$B49-'4KV3_TuneBuilder'!$B$39+('4KV3_TuneBuilder'!$B$39*M$172)/100)) -> 23.1 | N177: =IF(N$172<='4KV3_TuneBuilder'!N$43,(((100-N$172)/100)*'4KV3_TuneBuilder'!$B$42)+'4KV3_TuneBuilder'!$B49,('4KV3_TuneBuilder'!$B49-'4KV3_TuneBuilder'!$B$39+('4KV3_TuneBuilder'!$B$39*N$172)/100)) -> 23.2 | O177: =IF(O$172<='4KV3_TuneBuilder'!O$43,(((100-O$172)/100)*'4KV3_TuneBuilder'!$B$42)+'4KV3_TuneBuilder'!$B49,('4KV3_TuneBuilder'!$B49-'4KV3_TuneBuilder'!$B$39+('4KV3_TuneBuilder'!$B$39*O$172)/100)) -> 23.3 | P177: =IF(P$172<='4KV3_TuneBuilder'!P$43,(((100-P$172)/100)*'4KV3_TuneBuilder'!$B$42)+'4KV3_TuneBuilder'!$B49,('4KV3_TuneBuilder'!$B49-'4KV3_TuneBuilder'!$B$39+('4KV3_TuneBuilder'!$B$39*P$172)/100)) -> 23.4 | Q177: =IF(Q$172<='4KV3_TuneBuilder'!Q$43,(((100-Q$172)/100)*'4KV3_TuneBuilder'!$B$42)+'4KV3_TuneBuilder'!$B49,('4KV3_TuneBuilder'!$B49-'4KV3_TuneBuilder'!$B$39+('4KV3_TuneBuilder'!$B$39*Q$172)/100)) -> 23.5 | R177: =IF(R$172<='4KV3_TuneBuilder'!R$43,(((100-R$172)/100)*'4KV3_TuneBuilder'!$B$42)+'4KV3_TuneBuilder'!$B49,('4KV3_TuneBuilder'!$B49-'4KV3_TuneBuilder'!$B$39+('4KV3_TuneBuilder'!$B$39*R$172)/100)) -> 23.6 | S177: =IF(S$172<='4KV3_TuneBuilder'!S$43,(((100-S$172)/100)*'4KV3_TuneBuilder'!$B$42)+'4KV3_TuneBuilder'!$B49,('4KV3_TuneBuilder'!$B49-'4KV3_TuneBuilder'!$B$39+('4KV3_TuneBuilder'!$B$39*S$172)/100)) -> 23.7 | T177: =IF(T$172<='4KV3_TuneBuilder'!T$43,(((100-T$172)/100)*'4KV3_TuneBuilder'!$B$42)+'4KV3_TuneBuilder'!$B49,('4KV3_TuneBuilder'!$B49-'4KV3_TuneBuilder'!$B$39+('4KV3_TuneBuilder'!$B$39*T$172)/100)) -> 23.8 | U177: =IF(U$172<='4KV3_TuneBuilder'!U$43,(((100-U$172)/100)*'4KV3_TuneBuilder'!$B$42)+'4KV3_TuneBuilder'!$B49,('4KV3_TuneBuilder'!$B49-'4KV3_TuneBuilder'!$B$39+('4KV3_TuneBuilder'!$B$39*U$172)/100)) -> 23.9 | V177: =IF(V$172<='4KV3_TuneBuilder'!V$43,(((100-V$172)/100)*'4KV3_TuneBuilder'!$B$42)+'4KV3_TuneBuilder'!$B49,('4KV3_TuneBuilder'!$B49-'4KV3_TuneBuilder'!$B$39+('4KV3_TuneBuilder'!$B$39*V$172)/100)) -> 24
A178: 4000RPM | B178: =IF(B$172<='4KV3_TuneBuilder'!B$43,(((100-B$172)/100)*'4KV3_TuneBuilder'!$B$42)+'4KV3_TuneBuilder'!$B50,('4KV3_TuneBuilder'!$B50-('4KV3_TuneBuilder'!$B$39*B$172)/100)) -> 27 | C178: =IF(C$172<='4KV3_TuneBuilder'!J$6,(((100-C$172)/100)*'4KV3_TuneBuilder'!$B$42)+'4KV3_TuneBuilder'!$B50,('4KV3_TuneBuilder'!$B50-'4KV3_TuneBuilder'!$B$39+('4KV3_TuneBuilder'!$B$39*C$172)/100)) -> 26.9 | D178: =IF(D$172<='4KV3_TuneBuilder'!K$6,(((100-D$172)/100)*'4KV3_TuneBuilder'!$B$42)+'4KV3_TuneBuilder'!$B50,('4KV3_TuneBuilder'!$B50-'4KV3_TuneBuilder'!$B$39+('4KV3_TuneBuilder'!$B$39*D$172)/100)) -> 26.8 | E178: =IF(E$172<='4KV3_TuneBuilder'!K$7,(((100-E$172)/100)*'4KV3_TuneBuilder'!$B$42)+'4KV3_TuneBuilder'!$B50,('4KV3_TuneBuilder'!$B50-'4KV3_TuneBuilder'!$B$39+('4KV3_TuneBuilder'!$B$39*E$172)/100)) -> 26.7 | F178: =IF(F$172<='4KV3_TuneBuilder'!F$43,(((100-F$172)/100)*'4KV3_TuneBuilder'!$B$42)+'4KV3_TuneBuilder'!$B50,('4KV3_TuneBuilder'!$B50-'4KV3_TuneBuilder'!$B$39+('4KV3_TuneBuilder'!$B$39*F$172)/100)) -> 23.4 | G178: =IF(G$172<='4KV3_TuneBuilder'!G$43,(((100-G$172)/100)*'4KV3_TuneBuilder'!$B$42)+'4KV3_TuneBuilder'!$B50,('4KV3_TuneBuilder'!$B50-'4KV3_TuneBuilder'!$B$39+('4KV3_TuneBuilder'!$B$39*G$172)/100)) -> 23.5 | H178: =IF(H$172<='4KV3_TuneBuilder'!H$43,(((100-H$172)/100)*'4KV3_TuneBuilder'!$B$42)+'4KV3_TuneBuilder'!$B50,('4KV3_TuneBuilder'!$B50-'4KV3_TuneBuilder'!$B$39+('4KV3_TuneBuilder'!$B$39*H$172)/100)) -> 23.6 | I178: =IF(I$172<='4KV3_TuneBuilder'!I$43,(((100-I$172)/100)*'4KV3_TuneBuilder'!$B$42)+'4KV3_TuneBuilder'!$B50,('4KV3_TuneBuilder'!$B50-'4KV3_TuneBuilder'!$B$39+('4KV3_TuneBuilder'!$B$39*I$172)/100)) -> 23.7 | J178: =IF(J$172<='4KV3_TuneBuilder'!J$43,(((100-J$172)/100)*'4KV3_TuneBuilder'!$B$42)+'4KV3_TuneBuilder'!$B50,('4KV3_TuneBuilder'!$B50-'4KV3_TuneBuilder'!$B$39+('4KV3_TuneBuilder'!$B$39*J$172)/100)) -> 23.8 | K178: =IF(K$172<='4KV3_TuneBuilder'!K$43,(((100-K$172)/100)*'4KV3_TuneBuilder'!$B$42)+'4KV3_TuneBuilder'!$B50,('4KV3_TuneBuilder'!$B50-'4KV3_TuneBuilder'!$B$39+('4KV3_TuneBuilder'!$B$39*K$172)/100)) -> 23.9 | L178: =IF(L$172<='4KV3_TuneBuilder'!L$43,(((100-L$172)/100)*'4KV3_TuneBuilder'!$B$42)+'4KV3_TuneBuilder'!$B50,('4KV3_TuneBuilder'!$B50-'4KV3_TuneBuilder'!$B$39+('4KV3_TuneBuilder'!$B$39*L$172)/100)) -> 24 | M178: =IF(M$172<='4KV3_TuneBuilder'!M$43,(((100-M$172)/100)*'4KV3_TuneBuilder'!$B$42)+'4KV3_TuneBuilder'!$B50,('4KV3_TuneBuilder'!$B50-'4KV3_TuneBuilder'!$B$39+('4KV3_TuneBuilder'!$B$39*M$172)/100)) -> 24.1 | N178: =IF(N$172<='4KV3_TuneBuilder'!N$43,(((100-N$172)/100)*'4KV3_TuneBuilder'!$B$42)+'4KV3_TuneBuilder'!$B50,('4KV3_TuneBuilder'!$B50-'4KV3_TuneBuilder'!$B$39+('4KV3_TuneBuilder'!$B$39*N$172)/100)) -> 24.2 | O178: =IF(O$172<='4KV3_TuneBuilder'!O$43,(((100-O$172)/100)*'4KV3_TuneBuilder'!$B$42)+'4KV3_TuneBuilder'!$B50,('4KV3_TuneBuilder'!$B50-'4KV3_TuneBuilder'!$B$39+('4KV3_TuneBuilder'!$B$39*O$172)/100)) -> 24.3 | P178: =IF(P$172<='4KV3_TuneBuilder'!P$43,(((100-P$172)/100)*'4KV3_TuneBuilder'!$B$42)+'4KV3_TuneBuilder'!$B50,('4KV3_TuneBuilder'!$B50-'4KV3_TuneBuilder'!$B$39+('4KV3_TuneBuilder'!$B$39*P$172)/100)) -> 24.4 | Q178: =IF(Q$172<='4KV3_TuneBuilder'!Q$43,(((100-Q$172)/100)*'4KV3_TuneBuilder'!$B$42)+'4KV3_TuneBuilder'!$B50,('4KV3_TuneBuilder'!$B50-'4KV3_TuneBuilder'!$B$39+('4KV3_TuneBuilder'!$B$39*Q$172)/100)) -> 24.5 | R178: =IF(R$172<='4KV3_TuneBuilder'!R$43,(((100-R$172)/100)*'4KV3_TuneBuilder'!$B$42)+'4KV3_TuneBuilder'!$B50,('4KV3_TuneBuilder'!$B50-'4KV3_TuneBuilder'!$B$39+('4KV3_TuneBuilder'!$B$39*R$172)/100)) -> 24.6 | S178: =IF(S$172<='4KV3_TuneBuilder'!S$43,(((100-S$172)/100)*'4KV3_TuneBuilder'!$B$42)+'4KV3_TuneBuilder'!$B50,('4KV3_TuneBuilder'!$B50-'4KV3_TuneBuilder'!$B$39+('4KV3_TuneBuilder'!$B$39*S$172)/100)) -> 24.7 | T178: =IF(T$172<='4KV3_TuneBuilder'!T$43,(((100-T$172)/100)*'4KV3_TuneBuilder'!$B$42)+'4KV3_TuneBuilder'!$B50,('4KV3_TuneBuilder'!$B50-'4KV3_TuneBuilder'!$B$39+('4KV3_TuneBuilder'!$B$39*T$172)/100)) -> 24.8 | U178: =IF(U$172<='4KV3_TuneBuilder'!U$43,(((100-U$172)/100)*'4KV3_TuneBuilder'!$B$42)+'4KV3_TuneBuilder'!$B50,('4KV3_TuneBuilder'!$B50-'4KV3_TuneBuilder'!$B$39+('4KV3_TuneBuilder'!$B$39*U$172)/100)) -> 24.9 | V178: =IF(V$172<='4KV3_TuneBuilder'!V$43,(((100-V$172)/100)*'4KV3_TuneBuilder'!$B$42)+'4KV3_TuneBuilder'!$B50,('4KV3_TuneBuilder'!$B50-'4KV3_TuneBuilder'!$B$39+('4KV3_TuneBuilder'!$B$39*V$172)/100)) -> 25
A179: MaxRPM | B179: =IF(B$172<='4KV3_TuneBuilder'!B$43,(((100-B$172)/100)*'4KV3_TuneBuilder'!$B$42)+'4KV3_TuneBuilder'!$B51,('4KV3_TuneBuilder'!$B51-('4KV3_TuneBuilder'!$B$39*B$172)/100)) -> 28 | C179: =IF(C$172<='4KV3_TuneBuilder'!J$6,(((100-C$172)/100)*'4KV3_TuneBuilder'!$B$42)+'4KV3_TuneBuilder'!$B51,('4KV3_TuneBuilder'!$B51-'4KV3_TuneBuilder'!$B$39+('4KV3_TuneBuilder'!$B$39*C$172)/100)) -> 27.9 | D179: =IF(D$172<='4KV3_TuneBuilder'!K$6,(((100-D$172)/100)*'4KV3_TuneBuilder'!$B$42)+'4KV3_TuneBuilder'!$B51,('4KV3_TuneBuilder'!$B51-'4KV3_TuneBuilder'!$B$39+('4KV3_TuneBuilder'!$B$39*D$172)/100)) -> 27.8 | E179: =IF(E$172<='4KV3_TuneBuilder'!K$7,(((100-E$172)/100)*'4KV3_TuneBuilder'!$B$42)+'4KV3_TuneBuilder'!$B51,('4KV3_TuneBuilder'!$B51-'4KV3_TuneBuilder'!$B$39+('4KV3_TuneBuilder'!$B$39*E$172)/100)) -> 27.7 | F179: =IF(F$172<='4KV3_TuneBuilder'!F$43,(((100-F$172)/100)*'4KV3_TuneBuilder'!$B$42)+'4KV3_TuneBuilder'!$B51,('4KV3_TuneBuilder'!$B51-'4KV3_TuneBuilder'!$B$39+('4KV3_TuneBuilder'!$B$39*F$172)/100)) -> 24.4 | G179: =IF(G$172<='4KV3_TuneBuilder'!G$43,(((100-G$172)/100)*'4KV3_TuneBuilder'!$B$42)+'4KV3_TuneBuilder'!$B51,('4KV3_TuneBuilder'!$B51-'4KV3_TuneBuilder'!$B$39+('4KV3_TuneBuilder'!$B$39*G$172)/100)) -> 24.5 | H179: =IF(H$172<='4KV3_TuneBuilder'!H$43,(((100-H$172)/100)*'4KV3_TuneBuilder'!$B$42)+'4KV3_TuneBuilder'!$B51,('4KV3_TuneBuilder'!$B51-'4KV3_TuneBuilder'!$B$39+('4KV3_TuneBuilder'!$B$39*H$172)/100)) -> 24.6 | I179: =IF(I$172<='4KV3_TuneBuilder'!I$43,(((100-I$172)/100)*'4KV3_TuneBuilder'!$B$42)+'4KV3_TuneBuilder'!$B51,('4KV3_TuneBuilder'!$B51-'4KV3_TuneBuilder'!$B$39+('4KV3_TuneBuilder'!$B$39*I$172)/100)) -> 24.7 | J179: =IF(J$172<='4KV3_TuneBuilder'!J$43,(((100-J$172)/100)*'4KV3_TuneBuilder'!$B$42)+'4KV3_TuneBuilder'!$B51,('4KV3_TuneBuilder'!$B51-'4KV3_TuneBuilder'!$B$39+('4KV3_TuneBuilder'!$B$39*J$172)/100)) -> 24.8 | K179: =IF(K$172<='4KV3_TuneBuilder'!K$43,(((100-K$172)/100)*'4KV3_TuneBuilder'!$B$42)+'4KV3_TuneBuilder'!$B51,('4KV3_TuneBuilder'!$B51-'4KV3_TuneBuilder'!$B$39+('4KV3_TuneBuilder'!$B$39*K$172)/100)) -> 24.9 | L179: =IF(L$172<='4KV3_TuneBuilder'!L$43,(((100-L$172)/100)*'4KV3_TuneBuilder'!$B$42)+'4KV3_TuneBuilder'!$B51,('4KV3_TuneBuilder'!$B51-'4KV3_TuneBuilder'!$B$39+('4KV3_TuneBuilder'!$B$39*L$172)/100)) -> 25 | M179: =IF(M$172<='4KV3_TuneBuilder'!M$43,(((100-M$172)/100)*'4KV3_TuneBuilder'!$B$42)+'4KV3_TuneBuilder'!$B51,('4KV3_TuneBuilder'!$B51-'4KV3_TuneBuilder'!$B$39+('4KV3_TuneBuilder'!$B$39*M$172)/100)) -> 25.1 | N179: =IF(N$172<='4KV3_TuneBuilder'!N$43,(((100-N$172)/100)*'4KV3_TuneBuilder'!$B$42)+'4KV3_TuneBuilder'!$B51,('4KV3_TuneBuilder'!$B51-'4KV3_TuneBuilder'!$B$39+('4KV3_TuneBuilder'!$B$39*N$172)/100)) -> 25.2 | O179: =IF(O$172<='4KV3_TuneBuilder'!O$43,(((100-O$172)/100)*'4KV3_TuneBuilder'!$B$42)+'4KV3_TuneBuilder'!$B51,('4KV3_TuneBuilder'!$B51-'4KV3_TuneBuilder'!$B$39+('4KV3_TuneBuilder'!$B$39*O$172)/100)) -> 25.3 | P179: =IF(P$172<='4KV3_TuneBuilder'!P$43,(((100-P$172)/100)*'4KV3_TuneBuilder'!$B$42)+'4KV3_TuneBuilder'!$B51,('4KV3_TuneBuilder'!$B51-'4KV3_TuneBuilder'!$B$39+('4KV3_TuneBuilder'!$B$39*P$172)/100)) -> 25.4 | Q179: =IF(Q$172<='4KV3_TuneBuilder'!Q$43,(((100-Q$172)/100)*'4KV3_TuneBuilder'!$B$42)+'4KV3_TuneBuilder'!$B51,('4KV3_TuneBuilder'!$B51-'4KV3_TuneBuilder'!$B$39+('4KV3_TuneBuilder'!$B$39*Q$172)/100)) -> 25.5 | R179: =IF(R$172<='4KV3_TuneBuilder'!R$43,(((100-R$172)/100)*'4KV3_TuneBuilder'!$B$42)+'4KV3_TuneBuilder'!$B51,('4KV3_TuneBuilder'!$B51-'4KV3_TuneBuilder'!$B$39+('4KV3_TuneBuilder'!$B$39*R$172)/100)) -> 25.6 | S179: =IF(S$172<='4KV3_TuneBuilder'!S$43,(((100-S$172)/100)*'4KV3_TuneBuilder'!$B$42)+'4KV3_TuneBuilder'!$B51,('4KV3_TuneBuilder'!$B51-'4KV3_TuneBuilder'!$B$39+('4KV3_TuneBuilder'!$B$39*S$172)/100)) -> 25.7 | T179: =IF(T$172<='4KV3_TuneBuilder'!T$43,(((100-T$172)/100)*'4KV3_TuneBuilder'!$B$42)+'4KV3_TuneBuilder'!$B51,('4KV3_TuneBuilder'!$B51-'4KV3_TuneBuilder'!$B$39+('4KV3_TuneBuilder'!$B$39*T$172)/100)) -> 25.8 | U179: =IF(U$172<='4KV3_TuneBuilder'!U$43,(((100-U$172)/100)*'4KV3_TuneBuilder'!$B$42)+'4KV3_TuneBuilder'!$B51,('4KV3_TuneBuilder'!$B51-'4KV3_TuneBuilder'!$B$39+('4KV3_TuneBuilder'!$B$39*U$172)/100)) -> 25.9 | V179: =IF(V$172<='4KV3_TuneBuilder'!V$43,(((100-V$172)/100)*'4KV3_TuneBuilder'!$B$42)+'4KV3_TuneBuilder'!$B51,('4KV3_TuneBuilder'!$B51-'4KV3_TuneBuilder'!$B$39+('4KV3_TuneBuilder'!$B$39*V$172)/100)) -> 26
A182: V2 Fuel load timing vs rpm
C183: 0 | D183: 5 | E183: 10 | F183: 15 | G183: 20 | H183: 25 | I183: 30 | J183: 35 | K183: 40 | L183: 45 | M183: 50 | N183: 55 | O183: 60 | P183: 65 | Q183: 70 | R183: 75 | S183: 80 | T183: 85 | U183: 90 | V183: 95 | W183: 100
A184: 0PSI | B184: 1500RPM | C184: 0 | D184: 0 | E184: 0 | F184: 0 | G184: =IF(10*V2_TuneBuilder!$B$15/100>V2_TuneBuilder!$B$15*V2_TuneBuilder!$B$16/100,V2_TuneBuilder!$B$15*V2_TuneBuilder!$B$16/100,10*V2_TuneBuilder!$B$15/100) -> 0.2 | H184: =IF(20*V2_TuneBuilder!$B$15/100>V2_TuneBuilder!$B$15*V2_TuneBuilder!$B$16/100,V2_TuneBuilder!$B$15*V2_TuneBuilder!$B$16/100,20*V2_TuneBuilder!$B$15/100) -> 0.4 | I184: =IF(30*V2_TuneBuilder!$B$15/100>V2_TuneBuilder!$B$15*V2_TuneBuilder!$B$16/100,V2_TuneBuilder!$B$15*V2_TuneBuilder!$B$16/100,30*V2_TuneBuilder!$B$15/100) -> 0.6 | J184: =IF(35*V2_TuneBuilder!$B$15/100>V2_TuneBuilder!$B$15*V2_TuneBuilder!$B$16/100,V2_TuneBuilder!$B$15*V2_TuneBuilder!$B$16/100,35*V2_TuneBuilder!$B$15/100) -> 0.7 | K184: =IF(40*V2_TuneBuilder!$B$15/100>V2_TuneBuilder!$B$15*V2_TuneBuilder!$B$16/100,V2_TuneBuilder!$B$15*V2_TuneBuilder!$B$16/100,40*V2_TuneBuilder!$B$15/100) -> 0.8 | L184: =IF(45*V2_TuneBuilder!$B$15/100>V2_TuneBuilder!$B$15*V2_TuneBuilder!$B$16/100,V2_TuneBuilder!$B$15*V2_TuneBuilder!$B$16/100,45*V2_TuneBuilder!$B$15/100) -> 0.9 | M184: =IF(50*V2_TuneBuilder!$B$15/100>V2_TuneBuilder!$B$15*V2_TuneBuilder!$B$16/100,V2_TuneBuilder!$B$15*V2_TuneBuilder!$B$16/100,50*V2_TuneBuilder!$B$15/100) -> 1 | N184: =IF(55*V2_TuneBuilder!$B$15/100>V2_TuneBuilder!$B$15*V2_TuneBuilder!$B$16/100,V2_TuneBuilder!$B$15*V2_TuneBuilder!$B$16/100,55*V2_TuneBuilder!$B$15/100) -> 1.1 | O184: =IF(60*V2_TuneBuilder!$B$15/100>V2_TuneBuilder!$B$15*V2_TuneBuilder!$B$16/100,V2_TuneBuilder!$B$15*V2_TuneBuilder!$B$16/100,60*V2_TuneBuilder!$B$15/100) -> 1.2 | P184: =IF(65*V2_TuneBuilder!$B$15/100>V2_TuneBuilder!$B$15*V2_TuneBuilder!$B$16/100,V2_TuneBuilder!$B$15*V2_TuneBuilder!$B$16/100,65*V2_TuneBuilder!$B$15/100) -> 1.3 | Q184: =IF(70*V2_TuneBuilder!$B$15/100>V2_TuneBuilder!$B$15*V2_TuneBuilder!$B$16/100,V2_TuneBuilder!$B$15*V2_TuneBuilder!$B$16/100,70*V2_TuneBuilder!$B$15/100) -> 1.4 | R184: =IF(75*V2_TuneBuilder!$B$15/100>V2_TuneBuilder!$B$15*V2_TuneBuilder!$B$16/100,V2_TuneBuilder!$B$15*V2_TuneBuilder!$B$16/100,75*V2_TuneBuilder!$B$15/100) -> 1.5 | S184: =IF(80*V2_TuneBuilder!$B$15/100>V2_TuneBuilder!$B$15*V2_TuneBuilder!$B$16/100,V2_TuneBuilder!$B$15*V2_TuneBuilder!$B$16/100,80*V2_TuneBuilder!$B$15/100) -> 1.6 | T184: =IF(85*V2_TuneBuilder!$B$15/100>V2_TuneBuilder!$B$15*V2_TuneBuilder!$B$16/100,V2_TuneBuilder!$B$15*V2_TuneBuilder!$B$16/100,85*V2_TuneBuilder!$B$15/100) -> 1.7 | U184: =IF(90*V2_TuneBuilder!$B$15/100>V2_TuneBuilder!$B$15*V2_TuneBuilder!$B$16/100,V2_TuneBuilder!$B$15*V2_TuneBuilder!$B$16/100,90*V2_TuneBuilder!$B$15/100) -> 1.8 | V184: =IF(95*V2_TuneBuilder!$B$15/100>V2_TuneBuilder!$B$15*V2_TuneBuilder!$B$16/100,V2_TuneBuilder!$B$15*V2_TuneBuilder!$B$16/100,95*V2_TuneBuilder!$B$15/100) -> 1.9 | W184: =IF(100*V2_TuneBuilder!$B$15/100>V2_TuneBuilder!$B$15*V2_TuneBuilder!$B$16/100,V2_TuneBuilder!$B$15*V2_TuneBuilder!$B$16/100,100*V2_TuneBuilder!$B$15/100) -> 2
A185: 2PSI | B185: 2000RPM | C185: 0 | D185: 0 | E185: 0 | F185: 0 | G185: 0 | H185: 0 | I185: =IF(E183*V2_TuneBuilder!$B$15/100>V2_TuneBuilder!$B$15*V2_TuneBuilder!$B$16/100,V2_TuneBuilder!$B$15*V2_TuneBuilder!$B$16/100,E183*V2_TuneBuilder!$B$15/100) -> 0.2 | J185: =IF(F183*V2_TuneBuilder!$B$15/100>V2_TuneBuilder!$B$15*V2_TuneBuilder!$B$16/100,V2_TuneBuilder!$B$15*V2_TuneBuilder!$B$16/100,F183*V2_TuneBuilder!$B$15/100) -> 0.3 | K185: =IF(G183*V2_TuneBuilder!$B$15/100>V2_TuneBuilder!$B$15*V2_TuneBuilder!$B$16/100,V2_TuneBuilder!$B$15*V2_TuneBuilder!$B$16/100,G183*V2_TuneBuilder!$B$15/100) -> 0.4 | L185: =IF(H183*V2_TuneBuilder!$B$15/100>V2_TuneBuilder!$B$15*V2_TuneBuilder!$B$16/100,V2_TuneBuilder!$B$15*V2_TuneBuilder!$B$16/100,H183*V2_TuneBuilder!$B$15/100) -> 0.5 | M185: =IF(I183*V2_TuneBuilder!$B$15/100>V2_TuneBuilder!$B$15*V2_TuneBuilder!$B$16/100,V2_TuneBuilder!$B$15*V2_TuneBuilder!$B$16/100,I183*V2_TuneBuilder!$B$15/100) -> 0.6 | N185: =IF(J183*V2_TuneBuilder!$B$15/100>V2_TuneBuilder!$B$15*V2_TuneBuilder!$B$16/100,V2_TuneBuilder!$B$15*V2_TuneBuilder!$B$16/100,J183*V2_TuneBuilder!$B$15/100) -> 0.7 | O185: =IF(K183*V2_TuneBuilder!$B$15/100>V2_TuneBuilder!$B$15*V2_TuneBuilder!$B$16/100,V2_TuneBuilder!$B$15*V2_TuneBuilder!$B$16/100,K183*V2_TuneBuilder!$B$15/100) -> 0.8 | P185: =IF(L183*V2_TuneBuilder!$B$15/100>V2_TuneBuilder!$B$15*V2_TuneBuilder!$B$16/100,V2_TuneBuilder!$B$15*V2_TuneBuilder!$B$16/100,L183*V2_TuneBuilder!$B$15/100) -> 0.9 | Q185: =IF(M183*V2_TuneBuilder!$B$15/100>V2_TuneBuilder!$B$15*V2_TuneBuilder!$B$16/100,V2_TuneBuilder!$B$15*V2_TuneBuilder!$B$16/100,M183*V2_TuneBuilder!$B$15/100) -> 1 | R185: =IF(N183*V2_TuneBuilder!$B$15/100>V2_TuneBuilder!$B$15*V2_TuneBuilder!$B$16/100,V2_TuneBuilder!$B$15*V2_TuneBuilder!$B$16/100,N183*V2_TuneBuilder!$B$15/100) -> 1.1 | S185: =IF(O183*V2_TuneBuilder!$B$15/100>V2_TuneBuilder!$B$15*V2_TuneBuilder!$B$16/100,V2_TuneBuilder!$B$15*V2_TuneBuilder!$B$16/100,O183*V2_TuneBuilder!$B$15/100) -> 1.2 | T185: =IF(P183*V2_TuneBuilder!$B$15/100>V2_TuneBuilder!$B$15*V2_TuneBuilder!$B$16/100,V2_TuneBuilder!$B$15*V2_TuneBuilder!$B$16/100,P183*V2_TuneBuilder!$B$15/100) -> 1.3 | U185: =IF(Q183*V2_TuneBuilder!$B$15/100>V2_TuneBuilder!$B$15*V2_TuneBuilder!$B$16/100,V2_TuneBuilder!$B$15*V2_TuneBuilder!$B$16/100,Q183*V2_TuneBuilder!$B$15/100) -> 1.4 | V185: =IF(R183*V2_TuneBuilder!$B$15/100>V2_TuneBuilder!$B$15*V2_TuneBuilder!$B$16/100,V2_TuneBuilder!$B$15*V2_TuneBuilder!$B$16/100,R183*V2_TuneBuilder!$B$15/100) -> 1.5 | W185: =IF(S183*V2_TuneBuilder!$B$15/100>V2_TuneBuilder!$B$15*V2_TuneBuilder!$B$16/100,V2_TuneBuilder!$B$15*V2_TuneBuilder!$B$16/100,S183*V2_TuneBuilder!$B$15/100) -> 1.6
A186: 4PSI | B186: 2500RPM | C186: 0 | D186: 0 | E186: 0 | F186: 0 | G186: 0 | H186: 0 | I186: 0 | J186: 0 | K186: 0 | L186: =IF(D183*V2_TuneBuilder!$B$15/100>V2_TuneBuilder!$B$15*V2_TuneBuilder!$B$16/100,V2_TuneBuilder!$B$15*V2_TuneBuilder!$B$16/100,D183*V2_TuneBuilder!$B$15/100) -> 0.1 | M186: =IF(E183*V2_TuneBuilder!$B$15/100>V2_TuneBuilder!$B$15*V2_TuneBuilder!$B$16/100,V2_TuneBuilder!$B$15*V2_TuneBuilder!$B$16/100,E183*V2_TuneBuilder!$B$15/100) -> 0.2 | N186: =IF(F183*V2_TuneBuilder!$B$15/100>V2_TuneBuilder!$B$15*V2_TuneBuilder!$B$16/100,V2_TuneBuilder!$B$15*V2_TuneBuilder!$B$16/100,F183*V2_TuneBuilder!$B$15/100) -> 0.3 | O186: =IF(G183*V2_TuneBuilder!$B$15/100>V2_TuneBuilder!$B$15*V2_TuneBuilder!$B$16/100,V2_TuneBuilder!$B$15*V2_TuneBuilder!$B$16/100,G183*V2_TuneBuilder!$B$15/100) -> 0.4 | P186: =IF(H183*V2_TuneBuilder!$B$15/100>V2_TuneBuilder!$B$15*V2_TuneBuilder!$B$16/100,V2_TuneBuilder!$B$15*V2_TuneBuilder!$B$16/100,H183*V2_TuneBuilder!$B$15/100) -> 0.5 | Q186: =IF(I183*V2_TuneBuilder!$B$15/100>V2_TuneBuilder!$B$15*V2_TuneBuilder!$B$16/100,V2_TuneBuilder!$B$15*V2_TuneBuilder!$B$16/100,I183*V2_TuneBuilder!$B$15/100) -> 0.6 | R186: =IF(J183*V2_TuneBuilder!$B$15/100>V2_TuneBuilder!$B$15*V2_TuneBuilder!$B$16/100,V2_TuneBuilder!$B$15*V2_TuneBuilder!$B$16/100,J183*V2_TuneBuilder!$B$15/100) -> 0.7 | S186: =IF(K183*V2_TuneBuilder!$B$15/100>V2_TuneBuilder!$B$15*V2_TuneBuilder!$B$16/100,V2_TuneBuilder!$B$15*V2_TuneBuilder!$B$16/100,K183*V2_TuneBuilder!$B$15/100) -> 0.8 | T186: =IF(L183*V2_TuneBuilder!$B$15/100>V2_TuneBuilder!$B$15*V2_TuneBuilder!$B$16/100,V2_TuneBuilder!$B$15*V2_TuneBuilder!$B$16/100,L183*V2_TuneBuilder!$B$15/100) -> 0.9 | U186: =IF(M183*V2_TuneBuilder!$B$15/100>V2_TuneBuilder!$B$15*V2_TuneBuilder!$B$16/100,V2_TuneBuilder!$B$15*V2_TuneBuilder!$B$16/100,M183*V2_TuneBuilder!$B$15/100) -> 1 | V186: =IF(N183*V2_TuneBuilder!$B$15/100>V2_TuneBuilder!$B$15*V2_TuneBuilder!$B$16/100,V2_TuneBuilder!$B$15*V2_TuneBuilder!$B$16/100,N183*V2_TuneBuilder!$B$15/100) -> 1.1 | W186: =IF(O183*V2_TuneBuilder!$B$15/100>V2_TuneBuilder!$B$15*V2_TuneBuilder!$B$16/100,V2_TuneBuilder!$B$15*V2_TuneBuilder!$B$16/100,O183*V2_TuneBuilder!$B$15/100) -> 1.2
A187: 6PSI | B187: 3000RPM | C187: 0 | D187: 0 | E187: 0 | F187: 0 | G187: 0 | H187: 0 | I187: 0 | J187: 0 | K187: 0 | L187: 0 | M187: 0 | N187: 0 | O187: 0 | P187: =IF(D183*V2_TuneBuilder!$B$15/100>V2_TuneBuilder!$B$15*V2_TuneBuilder!$B$16/100,V2_TuneBuilder!$B$15*V2_TuneBuilder!$B$16/100,D183*V2_TuneBuilder!$B$15/100) -> 0.1 | Q187: =IF(E183*V2_TuneBuilder!$B$15/100>V2_TuneBuilder!$B$15*V2_TuneBuilder!$B$16/100,V2_TuneBuilder!$B$15*V2_TuneBuilder!$B$16/100,E183*V2_TuneBuilder!$B$15/100) -> 0.2 | R187: =IF(F183*V2_TuneBuilder!$B$15/100>V2_TuneBuilder!$B$15*V2_TuneBuilder!$B$16/100,V2_TuneBuilder!$B$15*V2_TuneBuilder!$B$16/100,F183*V2_TuneBuilder!$B$15/100) -> 0.3 | S187: =IF(G183*V2_TuneBuilder!$B$15/100>V2_TuneBuilder!$B$15*V2_TuneBuilder!$B$16/100,V2_TuneBuilder!$B$15*V2_TuneBuilder!$B$16/100,G183*V2_TuneBuilder!$B$15/100) -> 0.4 | T187: =IF(H183*V2_TuneBuilder!$B$15/100>V2_TuneBuilder!$B$15*V2_TuneBuilder!$B$16/100,V2_TuneBuilder!$B$15*V2_TuneBuilder!$B$16/100,H183*V2_TuneBuilder!$B$15/100) -> 0.5 | U187: =IF(I183*V2_TuneBuilder!$B$15/100>V2_TuneBuilder!$B$15*V2_TuneBuilder!$B$16/100,V2_TuneBuilder!$B$15*V2_TuneBuilder!$B$16/100,I183*V2_TuneBuilder!$B$15/100) -> 0.6 | V187: =IF(J183*V2_TuneBuilder!$B$15/100>V2_TuneBuilder!$B$15*V2_TuneBuilder!$B$16/100,V2_TuneBuilder!$B$15*V2_TuneBuilder!$B$16/100,J183*V2_TuneBuilder!$B$15/100) -> 0.7 | W187: =IF(K183*V2_TuneBuilder!$B$15/100>V2_TuneBuilder!$B$15*V2_TuneBuilder!$B$16/100,V2_TuneBuilder!$B$15*V2_TuneBuilder!$B$16/100,K183*V2_TuneBuilder!$B$15/100) -> 0.8
A188: 8PSI | B188: MaxRPM | C188: 0 | D188: 0 | E188: 0 | F188: 0 | G188: 0 | H188: 0 | I188: 0 | J188: 0 | K188: 0 | L188: 0 | M188: 0 | N188: 0 | O188: 0 | P188: 0 | Q188: 0 | R188: 0 | S188: 0 | T188: =IF(D183*V2_TuneBuilder!$B$15/100>V2_TuneBuilder!$B$15*V2_TuneBuilder!$B$16/100,V2_TuneBuilder!$B$15*V2_TuneBuilder!$B$16/100,D183*V2_TuneBuilder!$B$15/100) -> 0.1 | U188: =IF(E183*V2_TuneBuilder!$B$15/100>V2_TuneBuilder!$B$15*V2_TuneBuilder!$B$16/100,V2_TuneBuilder!$B$15*V2_TuneBuilder!$B$16/100,E183*V2_TuneBuilder!$B$15/100) -> 0.2 | V188: =IF(F183*V2_TuneBuilder!$B$15/100>V2_TuneBuilder!$B$15*V2_TuneBuilder!$B$16/100,V2_TuneBuilder!$B$15*V2_TuneBuilder!$B$16/100,F183*V2_TuneBuilder!$B$15/100) -> 0.3 | W188: =IF(G183*V2_TuneBuilder!$B$15/100>V2_TuneBuilder!$B$15*V2_TuneBuilder!$B$16/100,V2_TuneBuilder!$B$15*V2_TuneBuilder!$B$16/100,G183*V2_TuneBuilder!$B$15/100) -> 0.4
A189: 10PSI | C189: 0 | D189: 0 | E189: 0 | F189: 0 | G189: 0 | H189: 0 | I189: 0 | J189: 0 | K189: 0 | L189: 0 | M189: 0 | N189: 0 | O189: 0 | P189: 0 | Q189: 0 | R189: 0 | S189: 0 | T189: 0 | U189: 0 | V189: 0 | W189: 0
B190: V3 Fuel load timing vs rpm
C191: 0 | D191: 5 | E191: 10 | F191: 15 | G191: 20 | H191: 25 | I191: 30 | J191: 35 | K191: 40 | L191: 45 | M191: 50 | N191: 55 | O191: 60 | P191: 65 | Q191: 70 | R191: 75 | S191: 80 | T191: 85 | U191: 90 | V191: 95 | W191: 100
A192: 0PSI | B192: 1500RPM | C192: 0 | D192: 0 | E192: 0 | F192: 0 | G192: =IF(10*V3_TuneBuilder!$B$40/100>V3_TuneBuilder!$B$40*V3_TuneBuilder!$B$41/100,V3_TuneBuilder!$B$40*V3_TuneBuilder!$B$41/100,10*V3_TuneBuilder!$B$40/100) -> 0.2 | H192: =IF(20*V3_TuneBuilder!$B$40/100>V3_TuneBuilder!$B$40*V3_TuneBuilder!$B$41/100,V3_TuneBuilder!$B$40*V3_TuneBuilder!$B$41/100,20*V3_TuneBuilder!$B$40/100) -> 0.4 | I192: =IF(I191*V3_TuneBuilder!$B$40/100>V3_TuneBuilder!$B$40*V3_TuneBuilder!$B$41/100,V3_TuneBuilder!$B$40*V3_TuneBuilder!$B$41/100,I191*V3_TuneBuilder!$B$40/100) -> 0.6 | J192: =IF(J191*V3_TuneBuilder!$B$40/100>V3_TuneBuilder!$B$40*V3_TuneBuilder!$B$41/100,V3_TuneBuilder!$B$40*V3_TuneBuilder!$B$41/100,J191*V3_TuneBuilder!$B$40/100) -> 0.7 | K192: =IF(K191*V3_TuneBuilder!$B$40/100>V3_TuneBuilder!$B$40*V3_TuneBuilder!$B$41/100,V3_TuneBuilder!$B$40*V3_TuneBuilder!$B$41/100,K191*V3_TuneBuilder!$B$40/100) -> 0.8 | L192: =IF(L191*V3_TuneBuilder!$B$40/100>V3_TuneBuilder!$B$40*V3_TuneBuilder!$B$41/100,V3_TuneBuilder!$B$40*V3_TuneBuilder!$B$41/100,L191*V3_TuneBuilder!$B$40/100) -> 0.9 | M192: =IF(M191*V3_TuneBuilder!$B$40/100>V3_TuneBuilder!$B$40*V3_TuneBuilder!$B$41/100,V3_TuneBuilder!$B$40*V3_TuneBuilder!$B$41/100,M191*V3_TuneBuilder!$B$40/100) -> 1 | N192: =IF(N191*V3_TuneBuilder!$B$40/100>V3_TuneBuilder!$B$40*V3_TuneBuilder!$B$41/100,V3_TuneBuilder!$B$40*V3_TuneBuilder!$B$41/100,N191*V3_TuneBuilder!$B$40/100) -> 1.1 | O192: =IF(O191*V3_TuneBuilder!$B$40/100>V3_TuneBuilder!$B$40*V3_TuneBuilder!$B$41/100,V3_TuneBuilder!$B$40*V3_TuneBuilder!$B$41/100,O191*V3_TuneBuilder!$B$40/100) -> 1.2 | P192: =IF(P191*V3_TuneBuilder!$B$40/100>V3_TuneBuilder!$B$40*V3_TuneBuilder!$B$41/100,V3_TuneBuilder!$B$40*V3_TuneBuilder!$B$41/100,P191*V3_TuneBuilder!$B$40/100) -> 1.3 | Q192: =IF(Q191*V3_TuneBuilder!$B$40/100>V3_TuneBuilder!$B$40*V3_TuneBuilder!$B$41/100,V3_TuneBuilder!$B$40*V3_TuneBuilder!$B$41/100,Q191*V3_TuneBuilder!$B$40/100) -> 1.4 | R192: =IF(R191*V3_TuneBuilder!$B$40/100>V3_TuneBuilder!$B$40*V3_TuneBuilder!$B$41/100,V3_TuneBuilder!$B$40*V3_TuneBuilder!$B$41/100,R191*V3_TuneBuilder!$B$40/100) -> 1.5 | S192: =IF(S191*V3_TuneBuilder!$B$40/100>V3_TuneBuilder!$B$40*V3_TuneBuilder!$B$41/100,V3_TuneBuilder!$B$40*V3_TuneBuilder!$B$41/100,S191*V3_TuneBuilder!$B$40/100) -> 1.6 | T192: =IF(T191*V3_TuneBuilder!$B$40/100>V3_TuneBuilder!$B$40*V3_TuneBuilder!$B$41/100,V3_TuneBuilder!$B$40*V3_TuneBuilder!$B$41/100,T191*V3_TuneBuilder!$B$40/100) -> 1.7 | U192: =IF(U191*V3_TuneBuilder!$B$40/100>V3_TuneBuilder!$B$40*V3_TuneBuilder!$B$41/100,V3_TuneBuilder!$B$40*V3_TuneBuilder!$B$41/100,U191*V3_TuneBuilder!$B$40/100) -> 1.8 | V192: =IF(V191*V3_TuneBuilder!$B$40/100>V3_TuneBuilder!$B$40*V3_TuneBuilder!$B$41/100,V3_TuneBuilder!$B$40*V3_TuneBuilder!$B$41/100,V191*V3_TuneBuilder!$B$40/100) -> 1.9 | W192: =IF(W191*V3_TuneBuilder!$B$40/100>V3_TuneBuilder!$B$40*V3_TuneBuilder!$B$41/100,V3_TuneBuilder!$B$40*V3_TuneBuilder!$B$41/100,W191*V3_TuneBuilder!$B$40/100) -> 2
A193: 2PSI | B193: 2000RPM | C193: 0 | D193: 0 | E193: 0 | F193: 0 | G193: 0 | H193: 0 | I193: =IF(E191*V3_TuneBuilder!$B$40/100>V3_TuneBuilder!$B$40*V3_TuneBuilder!$B$41/100,V3_TuneBuilder!$B$40*V3_TuneBuilder!$B$41/100,E191*V3_TuneBuilder!$B$40/100) -> 0.2 | J193: =IF(F191*V3_TuneBuilder!$B$40/100>V3_TuneBuilder!$B$40*V3_TuneBuilder!$B$41/100,V3_TuneBuilder!$B$40*V3_TuneBuilder!$B$41/100,F191*V3_TuneBuilder!$B$40/100) -> 0.3 | K193: =IF(G191*V3_TuneBuilder!$B$40/100>V3_TuneBuilder!$B$40*V3_TuneBuilder!$B$41/100,V3_TuneBuilder!$B$40*V3_TuneBuilder!$B$41/100,G191*V3_TuneBuilder!$B$40/100) -> 0.4 | L193: =IF(H191*V3_TuneBuilder!$B$40/100>V3_TuneBuilder!$B$40*V3_TuneBuilder!$B$41/100,V3_TuneBuilder!$B$40*V3_TuneBuilder!$B$41/100,H191*V3_TuneBuilder!$B$40/100) -> 0.5 | M193: =IF(I191*V3_TuneBuilder!$B$40/100>V3_TuneBuilder!$B$40*V3_TuneBuilder!$B$41/100,V3_TuneBuilder!$B$40*V3_TuneBuilder!$B$41/100,I191*V3_TuneBuilder!$B$40/100) -> 0.6 | N193: =IF(J191*V3_TuneBuilder!$B$40/100>V3_TuneBuilder!$B$40*V3_TuneBuilder!$B$41/100,V3_TuneBuilder!$B$40*V3_TuneBuilder!$B$41/100,J191*V3_TuneBuilder!$B$40/100) -> 0.7 | O193: =IF(K191*V3_TuneBuilder!$B$40/100>V3_TuneBuilder!$B$40*V3_TuneBuilder!$B$41/100,V3_TuneBuilder!$B$40*V3_TuneBuilder!$B$41/100,K191*V3_TuneBuilder!$B$40/100) -> 0.8 | P193: =IF(L191*V3_TuneBuilder!$B$40/100>V3_TuneBuilder!$B$40*V3_TuneBuilder!$B$41/100,V3_TuneBuilder!$B$40*V3_TuneBuilder!$B$41/100,L191*V3_TuneBuilder!$B$40/100) -> 0.9 | Q193: =IF(M191*V3_TuneBuilder!$B$40/100>V3_TuneBuilder!$B$40*V3_TuneBuilder!$B$41/100,V3_TuneBuilder!$B$40*V3_TuneBuilder!$B$41/100,M191*V3_TuneBuilder!$B$40/100) -> 1 | R193: =IF(N191*V3_TuneBuilder!$B$40/100>V3_TuneBuilder!$B$40*V3_TuneBuilder!$B$41/100,V3_TuneBuilder!$B$40*V3_TuneBuilder!$B$41/100,N191*V3_TuneBuilder!$B$40/100) -> 1.1 | S193: =IF(O191*V3_TuneBuilder!$B$40/100>V3_TuneBuilder!$B$40*V3_TuneBuilder!$B$41/100,V3_TuneBuilder!$B$40*V3_TuneBuilder!$B$41/100,O191*V3_TuneBuilder!$B$40/100) -> 1.2 | T193: =IF(P191*V3_TuneBuilder!$B$40/100>V3_TuneBuilder!$B$40*V3_TuneBuilder!$B$41/100,V3_TuneBuilder!$B$40*V3_TuneBuilder!$B$41/100,P191*V3_TuneBuilder!$B$40/100) -> 1.3 | U193: =IF(Q191*V3_TuneBuilder!$B$40/100>V3_TuneBuilder!$B$40*V3_TuneBuilder!$B$41/100,V3_TuneBuilder!$B$40*V3_TuneBuilder!$B$41/100,Q191*V3_TuneBuilder!$B$40/100) -> 1.4 | V193: =IF(R191*V3_TuneBuilder!$B$40/100>V3_TuneBuilder!$B$40*V3_TuneBuilder!$B$41/100,V3_TuneBuilder!$B$40*V3_TuneBuilder!$B$41/100,R191*V3_TuneBuilder!$B$40/100) -> 1.5 | W193: =IF(S191*V3_TuneBuilder!$B$40/100>V3_TuneBuilder!$B$40*V3_TuneBuilder!$B$41/100,V3_TuneBuilder!$B$40*V3_TuneBuilder!$B$41/100,S191*V3_TuneBuilder!$B$40/100) -> 1.6
A194: 4PSI | B194: 2500RPM | C194: 0 | D194: 0 | E194: 0 | F194: 0 | G194: 0 | H194: 0 | I194: 0 | J194: 0 | K194: 0 | L194: =IF(D191*V3_TuneBuilder!$B$40/100>V3_TuneBuilder!$B$40*V3_TuneBuilder!$B$41/100,V3_TuneBuilder!$B$40*V3_TuneBuilder!$B$41/100,D191*V3_TuneBuilder!$B$40/100) -> 0.1 | M194: =IF(E191*V3_TuneBuilder!$B$40/100>V3_TuneBuilder!$B$40*V3_TuneBuilder!$B$41/100,V3_TuneBuilder!$B$40*V3_TuneBuilder!$B$41/100,E191*V3_TuneBuilder!$B$40/100) -> 0.2 | N194: =IF(F191*V3_TuneBuilder!$B$40/100>V3_TuneBuilder!$B$40*V3_TuneBuilder!$B$41/100,V3_TuneBuilder!$B$40*V3_TuneBuilder!$B$41/100,F191*V3_TuneBuilder!$B$40/100) -> 0.3 | O194: =IF(G191*V3_TuneBuilder!$B$40/100>V3_TuneBuilder!$B$40*V3_TuneBuilder!$B$41/100,V3_TuneBuilder!$B$40*V3_TuneBuilder!$B$41/100,G191*V3_TuneBuilder!$B$40/100) -> 0.4 | P194: =IF(H191*V3_TuneBuilder!$B$40/100>V3_TuneBuilder!$B$40*V3_TuneBuilder!$B$41/100,V3_TuneBuilder!$B$40*V3_TuneBuilder!$B$41/100,H191*V3_TuneBuilder!$B$40/100) -> 0.5 | Q194: =IF(I191*V3_TuneBuilder!$B$40/100>V3_TuneBuilder!$B$40*V3_TuneBuilder!$B$41/100,V3_TuneBuilder!$B$40*V3_TuneBuilder!$B$41/100,I191*V3_TuneBuilder!$B$40/100) -> 0.6 | R194: =IF(J191*V3_TuneBuilder!$B$40/100>V3_TuneBuilder!$B$40*V3_TuneBuilder!$B$41/100,V3_TuneBuilder!$B$40*V3_TuneBuilder!$B$41/100,J191*V3_TuneBuilder!$B$40/100) -> 0.7 | S194: =IF(K191*V3_TuneBuilder!$B$40/100>V3_TuneBuilder!$B$40*V3_TuneBuilder!$B$41/100,V3_TuneBuilder!$B$40*V3_TuneBuilder!$B$41/100,K191*V3_TuneBuilder!$B$40/100) -> 0.8 | T194: =IF(L191*V3_TuneBuilder!$B$40/100>V3_TuneBuilder!$B$40*V3_TuneBuilder!$B$41/100,V3_TuneBuilder!$B$40*V3_TuneBuilder!$B$41/100,L191*V3_TuneBuilder!$B$40/100) -> 0.9 | U194: =IF(M191*V3_TuneBuilder!$B$40/100>V3_TuneBuilder!$B$40*V3_TuneBuilder!$B$41/100,V3_TuneBuilder!$B$40*V3_TuneBuilder!$B$41/100,M191*V3_TuneBuilder!$B$40/100) -> 1 | V194: =IF(N191*V3_TuneBuilder!$B$40/100>V3_TuneBuilder!$B$40*V3_TuneBuilder!$B$41/100,V3_TuneBuilder!$B$40*V3_TuneBuilder!$B$41/100,N191*V3_TuneBuilder!$B$40/100) -> 1.1 | W194: =IF(O191*V3_TuneBuilder!$B$40/100>V3_TuneBuilder!$B$40*V3_TuneBuilder!$B$41/100,V3_TuneBuilder!$B$40*V3_TuneBuilder!$B$41/100,O191*V3_TuneBuilder!$B$40/100) -> 1.2
A195: 6PSI | B195: 3000RPM | C195: 0 | D195: 0 | E195: 0 | F195: 0 | G195: 0 | H195: 0 | I195: 0 | J195: 0 | K195: 0 | L195: 0 | M195: 0 | N195: 0 | O195: 0 | P195: =IF(D191*V3_TuneBuilder!$B$40/100>V3_TuneBuilder!$B$40*V3_TuneBuilder!$B$41/100,V3_TuneBuilder!$B$40*V3_TuneBuilder!$B$41/100,D191*V3_TuneBuilder!$B$40/100) -> 0.1 | Q195: =IF(E191*V3_TuneBuilder!$B$40/100>V3_TuneBuilder!$B$40*V3_TuneBuilder!$B$41/100,V3_TuneBuilder!$B$40*V3_TuneBuilder!$B$41/100,E191*V3_TuneBuilder!$B$40/100) -> 0.2 | R195: =IF(F191*V3_TuneBuilder!$B$40/100>V3_TuneBuilder!$B$40*V3_TuneBuilder!$B$41/100,V3_TuneBuilder!$B$40*V3_TuneBuilder!$B$41/100,F191*V3_TuneBuilder!$B$40/100) -> 0.3 | S195: =IF(G191*V3_TuneBuilder!$B$40/100>V3_TuneBuilder!$B$40*V3_TuneBuilder!$B$41/100,V3_TuneBuilder!$B$40*V3_TuneBuilder!$B$41/100,G191*V3_TuneBuilder!$B$40/100) -> 0.4 | T195: =IF(H191*V3_TuneBuilder!$B$40/100>V3_TuneBuilder!$B$40*V3_TuneBuilder!$B$41/100,V3_TuneBuilder!$B$40*V3_TuneBuilder!$B$41/100,H191*V3_TuneBuilder!$B$40/100) -> 0.5 | U195: =IF(I191*V3_TuneBuilder!$B$40/100>V3_TuneBuilder!$B$40*V3_TuneBuilder!$B$41/100,V3_TuneBuilder!$B$40*V3_TuneBuilder!$B$41/100,I191*V3_TuneBuilder!$B$40/100) -> 0.6 | V195: =IF(J191*V3_TuneBuilder!$B$40/100>V3_TuneBuilder!$B$40*V3_TuneBuilder!$B$41/100,V3_TuneBuilder!$B$40*V3_TuneBuilder!$B$41/100,J191*V3_TuneBuilder!$B$40/100) -> 0.7 | W195: =IF(K191*V3_TuneBuilder!$B$40/100>V3_TuneBuilder!$B$40*V3_TuneBuilder!$B$41/100,V3_TuneBuilder!$B$40*V3_TuneBuilder!$B$41/100,K191*V3_TuneBuilder!$B$40/100) -> 0.8
A196: 8PSI | B196: MaxRPM | C196: 0 | D196: 0 | E196: 0 | F196: 0 | G196: 0 | H196: 0 | I196: 0 | J196: 0 | K196: 0 | L196: 0 | M196: 0 | N196: 0 | O196: 0 | P196: 0 | Q196: 0 | R196: 0 | S196: 0 | T196: =IF(D191*V3_TuneBuilder!$B$40/100>V3_TuneBuilder!$B$40*V3_TuneBuilder!$B$41/100,V3_TuneBuilder!$B$40*V3_TuneBuilder!$B$41/100,D191*V3_TuneBuilder!$B$40/100) -> 0.1 | U196: =IF(E191*V3_TuneBuilder!$B$40/100>V3_TuneBuilder!$B$40*V3_TuneBuilder!$B$41/100,V3_TuneBuilder!$B$40*V3_TuneBuilder!$B$41/100,E191*V3_TuneBuilder!$B$40/100) -> 0.2 | V196: =IF(F191*V3_TuneBuilder!$B$40/100>V3_TuneBuilder!$B$40*V3_TuneBuilder!$B$41/100,V3_TuneBuilder!$B$40*V3_TuneBuilder!$B$41/100,F191*V3_TuneBuilder!$B$40/100) -> 0.3 | W196: =IF(G191*V3_TuneBuilder!$B$40/100>V3_TuneBuilder!$B$40*V3_TuneBuilder!$B$41/100,V3_TuneBuilder!$B$40*V3_TuneBuilder!$B$41/100,G191*V3_TuneBuilder!$B$40/100) -> 0.4
A197: 10PSI | C197: 0 | D197: 0 | E197: 0 | F197: 0 | G197: 0 | H197: 0 | I197: 0 | J197: 0 | K197: 0 | L197: 0 | M197: 0 | N197: 0 | O197: 0 | P197: 0 | Q197: 0 | R197: 0 | S197: 0 | T197: 0 | U197: 0 | V197: 0 | W197: 0
B198: 4KV2 Fuel load timing vs rpm
C199: 0 | D199: 5 | E199: 10 | F199: 15 | G199: 20 | H199: 25 | I199: 30 | J199: 35 | K199: 40 | L199: 45 | M199: 50 | N199: 55 | O199: 60 | P199: 65 | Q199: 70 | R199: 75 | S199: 80 | T199: 85 | U199: 90 | V199: 95 | W199: 100
A200: 0PSI | B200: 1500RPM | C200: 0 | D200: 0 | E200: 0 | F200: 0 | G200: =IF(10*'4KV2_TuneBuilder'!$B$15/100>'4KV2_TuneBuilder'!$B$15*'4KV2_TuneBuilder'!$B$16/100,'4KV2_TuneBuilder'!$B$15*'4KV2_TuneBuilder'!$B$16/100,10*'4KV2_TuneBuilder'!$B$15/100) -> 0.2 | H200: =IF(20*'4KV2_TuneBuilder'!$B$15/100>'4KV2_TuneBuilder'!$B$15*'4KV2_TuneBuilder'!$B$16/100,'4KV2_TuneBuilder'!$B$15*'4KV2_TuneBuilder'!$B$16/100,20*'4KV2_TuneBuilder'!$B$15/100) -> 0.4 | I200: =IF(30*'4KV2_TuneBuilder'!$B$15/100>'4KV2_TuneBuilder'!$B$15*'4KV2_TuneBuilder'!$B$16/100,'4KV2_TuneBuilder'!$B$15*'4KV2_TuneBuilder'!$B$16/100,30*'4KV2_TuneBuilder'!$B$15/100) -> 0.6 | J200: =IF(J199*'4KV2_TuneBuilder'!$B$15/100>'4KV2_TuneBuilder'!$B$15*'4KV2_TuneBuilder'!$B$16/100,'4KV2_TuneBuilder'!$B$15*'4KV2_TuneBuilder'!$B$16/100,J199*'4KV2_TuneBuilder'!$B$15/100) -> 0.7 | K200: =IF(K199*'4KV2_TuneBuilder'!$B$15/100>'4KV2_TuneBuilder'!$B$15*'4KV2_TuneBuilder'!$B$16/100,'4KV2_TuneBuilder'!$B$15*'4KV2_TuneBuilder'!$B$16/100,K199*'4KV2_TuneBuilder'!$B$15/100) -> 0.8 | L200: =IF(L199*'4KV2_TuneBuilder'!$B$15/100>'4KV2_TuneBuilder'!$B$15*'4KV2_TuneBuilder'!$B$16/100,'4KV2_TuneBuilder'!$B$15*'4KV2_TuneBuilder'!$B$16/100,L199*'4KV2_TuneBuilder'!$B$15/100) -> 0.9 | M200: =IF(M199*'4KV2_TuneBuilder'!$B$15/100>'4KV2_TuneBuilder'!$B$15*'4KV2_TuneBuilder'!$B$16/100,'4KV2_TuneBuilder'!$B$15*'4KV2_TuneBuilder'!$B$16/100,M199*'4KV2_TuneBuilder'!$B$15/100) -> 1 | N200: =IF(N199*'4KV2_TuneBuilder'!$B$15/100>'4KV2_TuneBuilder'!$B$15*'4KV2_TuneBuilder'!$B$16/100,'4KV2_TuneBuilder'!$B$15*'4KV2_TuneBuilder'!$B$16/100,N199*'4KV2_TuneBuilder'!$B$15/100) -> 1.1 | O200: =IF(O199*'4KV2_TuneBuilder'!$B$15/100>'4KV2_TuneBuilder'!$B$15*'4KV2_TuneBuilder'!$B$16/100,'4KV2_TuneBuilder'!$B$15*'4KV2_TuneBuilder'!$B$16/100,O199*'4KV2_TuneBuilder'!$B$15/100) -> 1.2 | P200: =IF(P199*'4KV2_TuneBuilder'!$B$15/100>'4KV2_TuneBuilder'!$B$15*'4KV2_TuneBuilder'!$B$16/100,'4KV2_TuneBuilder'!$B$15*'4KV2_TuneBuilder'!$B$16/100,P199*'4KV2_TuneBuilder'!$B$15/100) -> 1.3 | Q200: =IF(Q199*'4KV2_TuneBuilder'!$B$15/100>'4KV2_TuneBuilder'!$B$15*'4KV2_TuneBuilder'!$B$16/100,'4KV2_TuneBuilder'!$B$15*'4KV2_TuneBuilder'!$B$16/100,Q199*'4KV2_TuneBuilder'!$B$15/100) -> 1.4 | R200: =IF(R199*'4KV2_TuneBuilder'!$B$15/100>'4KV2_TuneBuilder'!$B$15*'4KV2_TuneBuilder'!$B$16/100,'4KV2_TuneBuilder'!$B$15*'4KV2_TuneBuilder'!$B$16/100,R199*'4KV2_TuneBuilder'!$B$15/100) -> 1.5 | S200: =IF(S199*'4KV2_TuneBuilder'!$B$15/100>'4KV2_TuneBuilder'!$B$15*'4KV2_TuneBuilder'!$B$16/100,'4KV2_TuneBuilder'!$B$15*'4KV2_TuneBuilder'!$B$16/100,S199*'4KV2_TuneBuilder'!$B$15/100) -> 1.6 | T200: =IF(T199*'4KV2_TuneBuilder'!$B$15/100>'4KV2_TuneBuilder'!$B$15*'4KV2_TuneBuilder'!$B$16/100,'4KV2_TuneBuilder'!$B$15*'4KV2_TuneBuilder'!$B$16/100,T199*'4KV2_TuneBuilder'!$B$15/100) -> 1.7 | U200: =IF(U199*'4KV2_TuneBuilder'!$B$15/100>'4KV2_TuneBuilder'!$B$15*'4KV2_TuneBuilder'!$B$16/100,'4KV2_TuneBuilder'!$B$15*'4KV2_TuneBuilder'!$B$16/100,U199*'4KV2_TuneBuilder'!$B$15/100) -> 1.8 | V200: =IF(V199*'4KV2_TuneBuilder'!$B$15/100>'4KV2_TuneBuilder'!$B$15*'4KV2_TuneBuilder'!$B$16/100,'4KV2_TuneBuilder'!$B$15*'4KV2_TuneBuilder'!$B$16/100,V199*'4KV2_TuneBuilder'!$B$15/100) -> 1.9 | W200: =IF(W199*'4KV2_TuneBuilder'!$B$15/100>'4KV2_TuneBuilder'!$B$15*'4KV2_TuneBuilder'!$B$16/100,'4KV2_TuneBuilder'!$B$15*'4KV2_TuneBuilder'!$B$16/100,W199*'4KV2_TuneBuilder'!$B$15/100) -> 2
A201: 2PSI | B201: 2000RPM | C201: 0 | D201: 0 | E201: 0 | F201: 0 | G201: 0 | H201: 0 | I201: =IF(E199*'4KV2_TuneBuilder'!$B$15/100>'4KV2_TuneBuilder'!$B$15*'4KV2_TuneBuilder'!$B$16/100,'4KV2_TuneBuilder'!$B$15*'4KV2_TuneBuilder'!$B$16/100,E199*'4KV2_TuneBuilder'!$B$15/100) -> 0.2 | J201: =IF(F199*'4KV2_TuneBuilder'!$B$15/100>'4KV2_TuneBuilder'!$B$15*'4KV2_TuneBuilder'!$B$16/100,'4KV2_TuneBuilder'!$B$15*'4KV2_TuneBuilder'!$B$16/100,F199*'4KV2_TuneBuilder'!$B$15/100) -> 0.3 | K201: =IF(G199*'4KV2_TuneBuilder'!$B$15/100>'4KV2_TuneBuilder'!$B$15*'4KV2_TuneBuilder'!$B$16/100,'4KV2_TuneBuilder'!$B$15*'4KV2_TuneBuilder'!$B$16/100,G199*'4KV2_TuneBuilder'!$B$15/100) -> 0.4 | L201: =IF(H199*'4KV2_TuneBuilder'!$B$15/100>'4KV2_TuneBuilder'!$B$15*'4KV2_TuneBuilder'!$B$16/100,'4KV2_TuneBuilder'!$B$15*'4KV2_TuneBuilder'!$B$16/100,H199*'4KV2_TuneBuilder'!$B$15/100) -> 0.5 | M201: =IF(I199*'4KV2_TuneBuilder'!$B$15/100>'4KV2_TuneBuilder'!$B$15*'4KV2_TuneBuilder'!$B$16/100,'4KV2_TuneBuilder'!$B$15*'4KV2_TuneBuilder'!$B$16/100,I199*'4KV2_TuneBuilder'!$B$15/100) -> 0.6 | N201: =IF(J199*'4KV2_TuneBuilder'!$B$15/100>'4KV2_TuneBuilder'!$B$15*'4KV2_TuneBuilder'!$B$16/100,'4KV2_TuneBuilder'!$B$15*'4KV2_TuneBuilder'!$B$16/100,J199*'4KV2_TuneBuilder'!$B$15/100) -> 0.7 | O201: =IF(K199*'4KV2_TuneBuilder'!$B$15/100>'4KV2_TuneBuilder'!$B$15*'4KV2_TuneBuilder'!$B$16/100,'4KV2_TuneBuilder'!$B$15*'4KV2_TuneBuilder'!$B$16/100,K199*'4KV2_TuneBuilder'!$B$15/100) -> 0.8 | P201: =IF(L199*'4KV2_TuneBuilder'!$B$15/100>'4KV2_TuneBuilder'!$B$15*'4KV2_TuneBuilder'!$B$16/100,'4KV2_TuneBuilder'!$B$15*'4KV2_TuneBuilder'!$B$16/100,L199*'4KV2_TuneBuilder'!$B$15/100) -> 0.9 | Q201: =IF(M199*'4KV2_TuneBuilder'!$B$15/100>'4KV2_TuneBuilder'!$B$15*'4KV2_TuneBuilder'!$B$16/100,'4KV2_TuneBuilder'!$B$15*'4KV2_TuneBuilder'!$B$16/100,M199*'4KV2_TuneBuilder'!$B$15/100) -> 1 | R201: =IF(N199*'4KV2_TuneBuilder'!$B$15/100>'4KV2_TuneBuilder'!$B$15*'4KV2_TuneBuilder'!$B$16/100,'4KV2_TuneBuilder'!$B$15*'4KV2_TuneBuilder'!$B$16/100,N199*'4KV2_TuneBuilder'!$B$15/100) -> 1.1 | S201: =IF(O199*'4KV2_TuneBuilder'!$B$15/100>'4KV2_TuneBuilder'!$B$15*'4KV2_TuneBuilder'!$B$16/100,'4KV2_TuneBuilder'!$B$15*'4KV2_TuneBuilder'!$B$16/100,O199*'4KV2_TuneBuilder'!$B$15/100) -> 1.2 | T201: =IF(P199*'4KV2_TuneBuilder'!$B$15/100>'4KV2_TuneBuilder'!$B$15*'4KV2_TuneBuilder'!$B$16/100,'4KV2_TuneBuilder'!$B$15*'4KV2_TuneBuilder'!$B$16/100,P199*'4KV2_TuneBuilder'!$B$15/100) -> 1.3 | U201: =IF(Q199*'4KV2_TuneBuilder'!$B$15/100>'4KV2_TuneBuilder'!$B$15*'4KV2_TuneBuilder'!$B$16/100,'4KV2_TuneBuilder'!$B$15*'4KV2_TuneBuilder'!$B$16/100,Q199*'4KV2_TuneBuilder'!$B$15/100) -> 1.4 | V201: =IF(R199*'4KV2_TuneBuilder'!$B$15/100>'4KV2_TuneBuilder'!$B$15*'4KV2_TuneBuilder'!$B$16/100,'4KV2_TuneBuilder'!$B$15*'4KV2_TuneBuilder'!$B$16/100,R199*'4KV2_TuneBuilder'!$B$15/100) -> 1.5 | W201: =IF(S199*'4KV2_TuneBuilder'!$B$15/100>'4KV2_TuneBuilder'!$B$15*'4KV2_TuneBuilder'!$B$16/100,'4KV2_TuneBuilder'!$B$15*'4KV2_TuneBuilder'!$B$16/100,S199*'4KV2_TuneBuilder'!$B$15/100) -> 1.6
A202: 4PSI | B202: 2500RPM | C202: 0 | D202: 0 | E202: 0 | F202: 0 | G202: 0 | H202: 0 | I202: 0 | J202: 0 | K202: 0 | L202: =IF(D199*'4KV2_TuneBuilder'!$B$15/100>'4KV2_TuneBuilder'!$B$15*'4KV2_TuneBuilder'!$B$16/100,'4KV2_TuneBuilder'!$B$15*'4KV2_TuneBuilder'!$B$16/100,D199*'4KV2_TuneBuilder'!$B$15/100) -> 0.1 | M202: =IF(E199*'4KV2_TuneBuilder'!$B$15/100>'4KV2_TuneBuilder'!$B$15*'4KV2_TuneBuilder'!$B$16/100,'4KV2_TuneBuilder'!$B$15*'4KV2_TuneBuilder'!$B$16/100,E199*'4KV2_TuneBuilder'!$B$15/100) -> 0.2 | N202: =IF(F199*'4KV2_TuneBuilder'!$B$15/100>'4KV2_TuneBuilder'!$B$15*'4KV2_TuneBuilder'!$B$16/100,'4KV2_TuneBuilder'!$B$15*'4KV2_TuneBuilder'!$B$16/100,F199*'4KV2_TuneBuilder'!$B$15/100) -> 0.3 | O202: =IF(G199*'4KV2_TuneBuilder'!$B$15/100>'4KV2_TuneBuilder'!$B$15*'4KV2_TuneBuilder'!$B$16/100,'4KV2_TuneBuilder'!$B$15*'4KV2_TuneBuilder'!$B$16/100,G199*'4KV2_TuneBuilder'!$B$15/100) -> 0.4 | P202: =IF(H199*'4KV2_TuneBuilder'!$B$15/100>'4KV2_TuneBuilder'!$B$15*'4KV2_TuneBuilder'!$B$16/100,'4KV2_TuneBuilder'!$B$15*'4KV2_TuneBuilder'!$B$16/100,H199*'4KV2_TuneBuilder'!$B$15/100) -> 0.5 | Q202: =IF(I199*'4KV2_TuneBuilder'!$B$15/100>'4KV2_TuneBuilder'!$B$15*'4KV2_TuneBuilder'!$B$16/100,'4KV2_TuneBuilder'!$B$15*'4KV2_TuneBuilder'!$B$16/100,I199*'4KV2_TuneBuilder'!$B$15/100) -> 0.6 | R202: =IF(J199*'4KV2_TuneBuilder'!$B$15/100>'4KV2_TuneBuilder'!$B$15*'4KV2_TuneBuilder'!$B$16/100,'4KV2_TuneBuilder'!$B$15*'4KV2_TuneBuilder'!$B$16/100,J199*'4KV2_TuneBuilder'!$B$15/100) -> 0.7 | S202: =IF(K199*'4KV2_TuneBuilder'!$B$15/100>'4KV2_TuneBuilder'!$B$15*'4KV2_TuneBuilder'!$B$16/100,'4KV2_TuneBuilder'!$B$15*'4KV2_TuneBuilder'!$B$16/100,K199*'4KV2_TuneBuilder'!$B$15/100) -> 0.8 | T202: =IF(L199*'4KV2_TuneBuilder'!$B$15/100>'4KV2_TuneBuilder'!$B$15*'4KV2_TuneBuilder'!$B$16/100,'4KV2_TuneBuilder'!$B$15*'4KV2_TuneBuilder'!$B$16/100,L199*'4KV2_TuneBuilder'!$B$15/100) -> 0.9 | U202: =IF(M199*'4KV2_TuneBuilder'!$B$15/100>'4KV2_TuneBuilder'!$B$15*'4KV2_TuneBuilder'!$B$16/100,'4KV2_TuneBuilder'!$B$15*'4KV2_TuneBuilder'!$B$16/100,M199*'4KV2_TuneBuilder'!$B$15/100) -> 1 | V202: =IF(N199*'4KV2_TuneBuilder'!$B$15/100>'4KV2_TuneBuilder'!$B$15*'4KV2_TuneBuilder'!$B$16/100,'4KV2_TuneBuilder'!$B$15*'4KV2_TuneBuilder'!$B$16/100,N199*'4KV2_TuneBuilder'!$B$15/100) -> 1.1 | W202: =IF(O199*'4KV2_TuneBuilder'!$B$15/100>'4KV2_TuneBuilder'!$B$15*'4KV2_TuneBuilder'!$B$16/100,'4KV2_TuneBuilder'!$B$15*'4KV2_TuneBuilder'!$B$16/100,O199*'4KV2_TuneBuilder'!$B$15/100) -> 1.2
A203: 6PSI | B203: 3000RPM | C203: 0 | D203: 0 | E203: 0 | F203: 0 | G203: 0 | H203: 0 | I203: 0 | J203: 0 | K203: 0 | L203: 0 | M203: 0 | N203: 0 | O203: 0 | P203: =IF(D199*'4KV2_TuneBuilder'!$B$15/100>'4KV2_TuneBuilder'!$B$15*'4KV2_TuneBuilder'!$B$16/100,'4KV2_TuneBuilder'!$B$15*'4KV2_TuneBuilder'!$B$16/100,D199*'4KV2_TuneBuilder'!$B$15/100) -> 0.1 | Q203: =IF(E199*'4KV2_TuneBuilder'!$B$15/100>'4KV2_TuneBuilder'!$B$15*'4KV2_TuneBuilder'!$B$16/100,'4KV2_TuneBuilder'!$B$15*'4KV2_TuneBuilder'!$B$16/100,E199*'4KV2_TuneBuilder'!$B$15/100) -> 0.2 | R203: =IF(F199*'4KV2_TuneBuilder'!$B$15/100>'4KV2_TuneBuilder'!$B$15*'4KV2_TuneBuilder'!$B$16/100,'4KV2_TuneBuilder'!$B$15*'4KV2_TuneBuilder'!$B$16/100,F199*'4KV2_TuneBuilder'!$B$15/100) -> 0.3 | S203: =IF(G199*'4KV2_TuneBuilder'!$B$15/100>'4KV2_TuneBuilder'!$B$15*'4KV2_TuneBuilder'!$B$16/100,'4KV2_TuneBuilder'!$B$15*'4KV2_TuneBuilder'!$B$16/100,G199*'4KV2_TuneBuilder'!$B$15/100) -> 0.4 | T203: =IF(H199*'4KV2_TuneBuilder'!$B$15/100>'4KV2_TuneBuilder'!$B$15*'4KV2_TuneBuilder'!$B$16/100,'4KV2_TuneBuilder'!$B$15*'4KV2_TuneBuilder'!$B$16/100,H199*'4KV2_TuneBuilder'!$B$15/100) -> 0.5 | U203: =IF(I199*'4KV2_TuneBuilder'!$B$15/100>'4KV2_TuneBuilder'!$B$15*'4KV2_TuneBuilder'!$B$16/100,'4KV2_TuneBuilder'!$B$15*'4KV2_TuneBuilder'!$B$16/100,I199*'4KV2_TuneBuilder'!$B$15/100) -> 0.6 | V203: =IF(J199*'4KV2_TuneBuilder'!$B$15/100>'4KV2_TuneBuilder'!$B$15*'4KV2_TuneBuilder'!$B$16/100,'4KV2_TuneBuilder'!$B$15*'4KV2_TuneBuilder'!$B$16/100,J199*'4KV2_TuneBuilder'!$B$15/100) -> 0.7 | W203: =IF(K199*'4KV2_TuneBuilder'!$B$15/100>'4KV2_TuneBuilder'!$B$15*'4KV2_TuneBuilder'!$B$16/100,'4KV2_TuneBuilder'!$B$15*'4KV2_TuneBuilder'!$B$16/100,K199*'4KV2_TuneBuilder'!$B$15/100) -> 0.8
A204: 8PSI | B204: 3500RPM | C204: 0 | D204: 0 | E204: 0 | F204: 0 | G204: 0 | H204: 0 | I204: 0 | J204: 0 | K204: 0 | L204: 0 | M204: 0 | N204: 0 | O204: 0 | P204: 0 | Q204: 0 | R204: 0 | S204: 0 | T204: =IF(D199*'4KV2_TuneBuilder'!$B$15/100>'4KV2_TuneBuilder'!$B$15*'4KV2_TuneBuilder'!$B$16/100,'4KV2_TuneBuilder'!$B$15*'4KV2_TuneBuilder'!$B$16/100,D199*'4KV2_TuneBuilder'!$B$15/100) -> 0.1 | U204: =IF(E199*'4KV2_TuneBuilder'!$B$15/100>'4KV2_TuneBuilder'!$B$15*'4KV2_TuneBuilder'!$B$16/100,'4KV2_TuneBuilder'!$B$15*'4KV2_TuneBuilder'!$B$16/100,E199*'4KV2_TuneBuilder'!$B$15/100) -> 0.2 | V204: =IF(F199*'4KV2_TuneBuilder'!$B$15/100>'4KV2_TuneBuilder'!$B$15*'4KV2_TuneBuilder'!$B$16/100,'4KV2_TuneBuilder'!$B$15*'4KV2_TuneBuilder'!$B$16/100,F199*'4KV2_TuneBuilder'!$B$15/100) -> 0.3 | W204: =IF(G199*'4KV2_TuneBuilder'!$B$15/100>'4KV2_TuneBuilder'!$B$15*'4KV2_TuneBuilder'!$B$16/100,'4KV2_TuneBuilder'!$B$15*'4KV2_TuneBuilder'!$B$16/100,G199*'4KV2_TuneBuilder'!$B$15/100) -> 0.4
A205: 10PSI | B205: 4000RPM | C205: 0 | D205: 0 | E205: 0 | F205: 0 | G205: 0 | H205: 0 | I205: 0 | J205: 0 | K205: 0 | L205: 0 | M205: 0 | N205: 0 | O205: 0 | P205: 0 | Q205: 0 | R205: 0 | S205: 0 | T205: 0 | U205: 0 | V205: 0 | W205: 0
B206: MaxRPM | C206: 0 | D206: 0 | E206: 0 | F206: 0 | G206: 0 | H206: 0 | I206: 0 | J206: 0 | K206: 0 | L206: 0 | M206: 0 | N206: 0 | O206: 0 | P206: 0 | Q206: 0 | R206: 0 | S206: 0 | T206: 0 | U206: 0 | V206: 0 | W206: 0
B208: V3 Fuel load timing vs rpm
C209: 0 | D209: 5 | E209: 10 | F209: 15 | G209: 20 | H209: 25 | I209: 30 | J209: 35 | K209: 40 | L209: 45 | M209: 50 | N209: 55 | O209: 60 | P209: 65 | Q209: 70 | R209: 75 | S209: 80 | T209: 85 | U209: 90 | V209: 95 | W209: 100
A210: 0PSI | B210: 1500RPM | C210: 0 | D210: 0 | E210: 0 | F210: 0 | G210: =IF(10*'4KV3_TuneBuilder'!$B$40/100>'4KV3_TuneBuilder'!$B$40*'4KV3_TuneBuilder'!$B$41/100,'4KV3_TuneBuilder'!$B$40*'4KV3_TuneBuilder'!$B$41/100,10*'4KV3_TuneBuilder'!$B$40/100) -> 0.2 | H210: =IF(20*'4KV3_TuneBuilder'!$B$40/100>'4KV3_TuneBuilder'!$B$40*'4KV3_TuneBuilder'!$B$41/100,'4KV3_TuneBuilder'!$B$40*'4KV3_TuneBuilder'!$B$41/100,20*'4KV3_TuneBuilder'!$B$40/100) -> 0.4 | I210: =IF(30*'4KV3_TuneBuilder'!$B$40/100>'4KV3_TuneBuilder'!$B$40*'4KV3_TuneBuilder'!$B$41/100,'4KV3_TuneBuilder'!$B$40*'4KV3_TuneBuilder'!$B$41/100,30*'4KV3_TuneBuilder'!$B$40/100) -> 0.6 | J210: =IF(J209*'4KV3_TuneBuilder'!$B$40/100>'4KV3_TuneBuilder'!$B$40*'4KV3_TuneBuilder'!$B$41/100,'4KV3_TuneBuilder'!$B$40*'4KV3_TuneBuilder'!$B$41/100,J209*'4KV3_TuneBuilder'!$B$40/100) -> 0.7 | K210: =IF(K209*'4KV3_TuneBuilder'!$B$40/100>'4KV3_TuneBuilder'!$B$40*'4KV3_TuneBuilder'!$B$41/100,'4KV3_TuneBuilder'!$B$40*'4KV3_TuneBuilder'!$B$41/100,K209*'4KV3_TuneBuilder'!$B$40/100) -> 0.8 | L210: =IF(L209*'4KV3_TuneBuilder'!$B$40/100>'4KV3_TuneBuilder'!$B$40*'4KV3_TuneBuilder'!$B$41/100,'4KV3_TuneBuilder'!$B$40*'4KV3_TuneBuilder'!$B$41/100,L209*'4KV3_TuneBuilder'!$B$40/100) -> 0.9 | M210: =IF(M209*'4KV3_TuneBuilder'!$B$40/100>'4KV3_TuneBuilder'!$B$40*'4KV3_TuneBuilder'!$B$41/100,'4KV3_TuneBuilder'!$B$40*'4KV3_TuneBuilder'!$B$41/100,M209*'4KV3_TuneBuilder'!$B$40/100) -> 1 | N210: =IF(N209*'4KV3_TuneBuilder'!$B$40/100>'4KV3_TuneBuilder'!$B$40*'4KV3_TuneBuilder'!$B$41/100,'4KV3_TuneBuilder'!$B$40*'4KV3_TuneBuilder'!$B$41/100,N209*'4KV3_TuneBuilder'!$B$40/100) -> 1.1 | O210: =IF(O209*'4KV3_TuneBuilder'!$B$40/100>'4KV3_TuneBuilder'!$B$40*'4KV3_TuneBuilder'!$B$41/100,'4KV3_TuneBuilder'!$B$40*'4KV3_TuneBuilder'!$B$41/100,O209*'4KV3_TuneBuilder'!$B$40/100) -> 1.2 | P210: =IF(P209*'4KV3_TuneBuilder'!$B$40/100>'4KV3_TuneBuilder'!$B$40*'4KV3_TuneBuilder'!$B$41/100,'4KV3_TuneBuilder'!$B$40*'4KV3_TuneBuilder'!$B$41/100,P209*'4KV3_TuneBuilder'!$B$40/100) -> 1.3 | Q210: =IF(Q209*'4KV3_TuneBuilder'!$B$40/100>'4KV3_TuneBuilder'!$B$40*'4KV3_TuneBuilder'!$B$41/100,'4KV3_TuneBuilder'!$B$40*'4KV3_TuneBuilder'!$B$41/100,Q209*'4KV3_TuneBuilder'!$B$40/100) -> 1.4 | R210: =IF(R209*'4KV3_TuneBuilder'!$B$40/100>'4KV3_TuneBuilder'!$B$40*'4KV3_TuneBuilder'!$B$41/100,'4KV3_TuneBuilder'!$B$40*'4KV3_TuneBuilder'!$B$41/100,R209*'4KV3_TuneBuilder'!$B$40/100) -> 1.5 | S210: =IF(S209*'4KV3_TuneBuilder'!$B$40/100>'4KV3_TuneBuilder'!$B$40*'4KV3_TuneBuilder'!$B$41/100,'4KV3_TuneBuilder'!$B$40*'4KV3_TuneBuilder'!$B$41/100,S209*'4KV3_TuneBuilder'!$B$40/100) -> 1.6 | T210: =IF(T209*'4KV3_TuneBuilder'!$B$40/100>'4KV3_TuneBuilder'!$B$40*'4KV3_TuneBuilder'!$B$41/100,'4KV3_TuneBuilder'!$B$40*'4KV3_TuneBuilder'!$B$41/100,T209*'4KV3_TuneBuilder'!$B$40/100) -> 1.7 | U210: =IF(U209*'4KV3_TuneBuilder'!$B$40/100>'4KV3_TuneBuilder'!$B$40*'4KV3_TuneBuilder'!$B$41/100,'4KV3_TuneBuilder'!$B$40*'4KV3_TuneBuilder'!$B$41/100,U209*'4KV3_TuneBuilder'!$B$40/100) -> 1.8 | V210: =IF(V209*'4KV3_TuneBuilder'!$B$40/100>'4KV3_TuneBuilder'!$B$40*'4KV3_TuneBuilder'!$B$41/100,'4KV3_TuneBuilder'!$B$40*'4KV3_TuneBuilder'!$B$41/100,V209*'4KV3_TuneBuilder'!$B$40/100) -> 1.9 | W210: =IF(W209*'4KV3_TuneBuilder'!$B$40/100>'4KV3_TuneBuilder'!$B$40*'4KV3_TuneBuilder'!$B$41/100,'4KV3_TuneBuilder'!$B$40*'4KV3_TuneBuilder'!$B$41/100,W209*'4KV3_TuneBuilder'!$B$40/100) -> 2
A211: 2PSI | B211: 2000RPM | C211: 0 | D211: 0 | E211: 0 | F211: 0 | G211: 0 | H211: 0 | I211: =IF(E209*'4KV3_TuneBuilder'!$B$40/100>'4KV3_TuneBuilder'!$B$40*'4KV3_TuneBuilder'!$B$41/100,'4KV3_TuneBuilder'!$B$40*'4KV3_TuneBuilder'!$B$41/100,E209*'4KV3_TuneBuilder'!$B$40/100) -> 0.2 | J211: =IF(F209*'4KV3_TuneBuilder'!$B$40/100>'4KV3_TuneBuilder'!$B$40*'4KV3_TuneBuilder'!$B$41/100,'4KV3_TuneBuilder'!$B$40*'4KV3_TuneBuilder'!$B$41/100,F209*'4KV3_TuneBuilder'!$B$40/100) -> 0.3 | K211: =IF(G209*'4KV3_TuneBuilder'!$B$40/100>'4KV3_TuneBuilder'!$B$40*'4KV3_TuneBuilder'!$B$41/100,'4KV3_TuneBuilder'!$B$40*'4KV3_TuneBuilder'!$B$41/100,G209*'4KV3_TuneBuilder'!$B$40/100) -> 0.4 | L211: =IF(H209*'4KV3_TuneBuilder'!$B$40/100>'4KV3_TuneBuilder'!$B$40*'4KV3_TuneBuilder'!$B$41/100,'4KV3_TuneBuilder'!$B$40*'4KV3_TuneBuilder'!$B$41/100,H209*'4KV3_TuneBuilder'!$B$40/100) -> 0.5 | M211: =IF(I209*'4KV3_TuneBuilder'!$B$40/100>'4KV3_TuneBuilder'!$B$40*'4KV3_TuneBuilder'!$B$41/100,'4KV3_TuneBuilder'!$B$40*'4KV3_TuneBuilder'!$B$41/100,I209*'4KV3_TuneBuilder'!$B$40/100) -> 0.6 | N211: =IF(J209*'4KV3_TuneBuilder'!$B$40/100>'4KV3_TuneBuilder'!$B$40*'4KV3_TuneBuilder'!$B$41/100,'4KV3_TuneBuilder'!$B$40*'4KV3_TuneBuilder'!$B$41/100,J209*'4KV3_TuneBuilder'!$B$40/100) -> 0.7 | O211: =IF(K209*'4KV3_TuneBuilder'!$B$40/100>'4KV3_TuneBuilder'!$B$40*'4KV3_TuneBuilder'!$B$41/100,'4KV3_TuneBuilder'!$B$40*'4KV3_TuneBuilder'!$B$41/100,K209*'4KV3_TuneBuilder'!$B$40/100) -> 0.8 | P211: =IF(L209*'4KV3_TuneBuilder'!$B$40/100>'4KV3_TuneBuilder'!$B$40*'4KV3_TuneBuilder'!$B$41/100,'4KV3_TuneBuilder'!$B$40*'4KV3_TuneBuilder'!$B$41/100,L209*'4KV3_TuneBuilder'!$B$40/100) -> 0.9 | Q211: =IF(M209*'4KV3_TuneBuilder'!$B$40/100>'4KV3_TuneBuilder'!$B$40*'4KV3_TuneBuilder'!$B$41/100,'4KV3_TuneBuilder'!$B$40*'4KV3_TuneBuilder'!$B$41/100,M209*'4KV3_TuneBuilder'!$B$40/100) -> 1 | R211: =IF(N209*'4KV3_TuneBuilder'!$B$40/100>'4KV3_TuneBuilder'!$B$40*'4KV3_TuneBuilder'!$B$41/100,'4KV3_TuneBuilder'!$B$40*'4KV3_TuneBuilder'!$B$41/100,N209*'4KV3_TuneBuilder'!$B$40/100) -> 1.1 | S211: =IF(O209*'4KV3_TuneBuilder'!$B$40/100>'4KV3_TuneBuilder'!$B$40*'4KV3_TuneBuilder'!$B$41/100,'4KV3_TuneBuilder'!$B$40*'4KV3_TuneBuilder'!$B$41/100,O209*'4KV3_TuneBuilder'!$B$40/100) -> 1.2 | T211: =IF(P209*'4KV3_TuneBuilder'!$B$40/100>'4KV3_TuneBuilder'!$B$40*'4KV3_TuneBuilder'!$B$41/100,'4KV3_TuneBuilder'!$B$40*'4KV3_TuneBuilder'!$B$41/100,P209*'4KV3_TuneBuilder'!$B$40/100) -> 1.3 | U211: =IF(Q209*'4KV3_TuneBuilder'!$B$40/100>'4KV3_TuneBuilder'!$B$40*'4KV3_TuneBuilder'!$B$41/100,'4KV3_TuneBuilder'!$B$40*'4KV3_TuneBuilder'!$B$41/100,Q209*'4KV3_TuneBuilder'!$B$40/100) -> 1.4 | V211: =IF(R209*'4KV3_TuneBuilder'!$B$40/100>'4KV3_TuneBuilder'!$B$40*'4KV3_TuneBuilder'!$B$41/100,'4KV3_TuneBuilder'!$B$40*'4KV3_TuneBuilder'!$B$41/100,R209*'4KV3_TuneBuilder'!$B$40/100) -> 1.5 | W211: =IF(S209*'4KV3_TuneBuilder'!$B$40/100>'4KV3_TuneBuilder'!$B$40*'4KV3_TuneBuilder'!$B$41/100,'4KV3_TuneBuilder'!$B$40*'4KV3_TuneBuilder'!$B$41/100,S209*'4KV3_TuneBuilder'!$B$40/100) -> 1.6
A212: 4PSI | B212: 2500RPM | C212: 0 | D212: 0 | E212: 0 | F212: 0 | G212: 0 | H212: 0 | I212: 0 | J212: 0 | K212: 0 | L212: =IF(D209*'4KV3_TuneBuilder'!$B$40/100>'4KV3_TuneBuilder'!$B$40*'4KV3_TuneBuilder'!$B$41/100,'4KV3_TuneBuilder'!$B$40*'4KV3_TuneBuilder'!$B$41/100,D209*'4KV3_TuneBuilder'!$B$40/100) -> 0.1 | M212: =IF(E209*'4KV3_TuneBuilder'!$B$40/100>'4KV3_TuneBuilder'!$B$40*'4KV3_TuneBuilder'!$B$41/100,'4KV3_TuneBuilder'!$B$40*'4KV3_TuneBuilder'!$B$41/100,E209*'4KV3_TuneBuilder'!$B$40/100) -> 0.2 | N212: =IF(F209*'4KV3_TuneBuilder'!$B$40/100>'4KV3_TuneBuilder'!$B$40*'4KV3_TuneBuilder'!$B$41/100,'4KV3_TuneBuilder'!$B$40*'4KV3_TuneBuilder'!$B$41/100,F209*'4KV3_TuneBuilder'!$B$40/100) -> 0.3 | O212: =IF(G209*'4KV3_TuneBuilder'!$B$40/100>'4KV3_TuneBuilder'!$B$40*'4KV3_TuneBuilder'!$B$41/100,'4KV3_TuneBuilder'!$B$40*'4KV3_TuneBuilder'!$B$41/100,G209*'4KV3_TuneBuilder'!$B$40/100) -> 0.4 | P212: =IF(H209*'4KV3_TuneBuilder'!$B$40/100>'4KV3_TuneBuilder'!$B$40*'4KV3_TuneBuilder'!$B$41/100,'4KV3_TuneBuilder'!$B$40*'4KV3_TuneBuilder'!$B$41/100,H209*'4KV3_TuneBuilder'!$B$40/100) -> 0.5 | Q212: =IF(I209*'4KV3_TuneBuilder'!$B$40/100>'4KV3_TuneBuilder'!$B$40*'4KV3_TuneBuilder'!$B$41/100,'4KV3_TuneBuilder'!$B$40*'4KV3_TuneBuilder'!$B$41/100,I209*'4KV3_TuneBuilder'!$B$40/100) -> 0.6 | R212: =IF(J209*'4KV3_TuneBuilder'!$B$40/100>'4KV3_TuneBuilder'!$B$40*'4KV3_TuneBuilder'!$B$41/100,'4KV3_TuneBuilder'!$B$40*'4KV3_TuneBuilder'!$B$41/100,J209*'4KV3_TuneBuilder'!$B$40/100) -> 0.7 | S212: =IF(K209*'4KV3_TuneBuilder'!$B$40/100>'4KV3_TuneBuilder'!$B$40*'4KV3_TuneBuilder'!$B$41/100,'4KV3_TuneBuilder'!$B$40*'4KV3_TuneBuilder'!$B$41/100,K209*'4KV3_TuneBuilder'!$B$40/100) -> 0.8 | T212: =IF(L209*'4KV3_TuneBuilder'!$B$40/100>'4KV3_TuneBuilder'!$B$40*'4KV3_TuneBuilder'!$B$41/100,'4KV3_TuneBuilder'!$B$40*'4KV3_TuneBuilder'!$B$41/100,L209*'4KV3_TuneBuilder'!$B$40/100) -> 0.9 | U212: =IF(M209*'4KV3_TuneBuilder'!$B$40/100>'4KV3_TuneBuilder'!$B$40*'4KV3_TuneBuilder'!$B$41/100,'4KV3_TuneBuilder'!$B$40*'4KV3_TuneBuilder'!$B$41/100,M209*'4KV3_TuneBuilder'!$B$40/100) -> 1 | V212: =IF(N209*'4KV3_TuneBuilder'!$B$40/100>'4KV3_TuneBuilder'!$B$40*'4KV3_TuneBuilder'!$B$41/100,'4KV3_TuneBuilder'!$B$40*'4KV3_TuneBuilder'!$B$41/100,N209*'4KV3_TuneBuilder'!$B$40/100) -> 1.1 | W212: =IF(O209*'4KV3_TuneBuilder'!$B$40/100>'4KV3_TuneBuilder'!$B$40*'4KV3_TuneBuilder'!$B$41/100,'4KV3_TuneBuilder'!$B$40*'4KV3_TuneBuilder'!$B$41/100,O209*'4KV3_TuneBuilder'!$B$40/100) -> 1.2
A213: 6PSI | B213: 3000RPM | C213: 0 | D213: 0 | E213: 0 | F213: 0 | G213: 0 | H213: 0 | I213: 0 | J213: 0 | K213: 0 | L213: 0 | M213: 0 | N213: 0 | O213: 0 | P213: =IF(D209*'4KV3_TuneBuilder'!$B$40/100>'4KV3_TuneBuilder'!$B$40*'4KV3_TuneBuilder'!$B$41/100,'4KV3_TuneBuilder'!$B$40*'4KV3_TuneBuilder'!$B$41/100,D209*'4KV3_TuneBuilder'!$B$40/100) -> 0.1 | Q213: =IF(E209*'4KV3_TuneBuilder'!$B$40/100>'4KV3_TuneBuilder'!$B$40*'4KV3_TuneBuilder'!$B$41/100,'4KV3_TuneBuilder'!$B$40*'4KV3_TuneBuilder'!$B$41/100,E209*'4KV3_TuneBuilder'!$B$40/100) -> 0.2 | R213: =IF(F209*'4KV3_TuneBuilder'!$B$40/100>'4KV3_TuneBuilder'!$B$40*'4KV3_TuneBuilder'!$B$41/100,'4KV3_TuneBuilder'!$B$40*'4KV3_TuneBuilder'!$B$41/100,F209*'4KV3_TuneBuilder'!$B$40/100) -> 0.3 | S213: =IF(G209*'4KV3_TuneBuilder'!$B$40/100>'4KV3_TuneBuilder'!$B$40*'4KV3_TuneBuilder'!$B$41/100,'4KV3_TuneBuilder'!$B$40*'4KV3_TuneBuilder'!$B$41/100,G209*'4KV3_TuneBuilder'!$B$40/100) -> 0.4 | T213: =IF(H209*'4KV3_TuneBuilder'!$B$40/100>'4KV3_TuneBuilder'!$B$40*'4KV3_TuneBuilder'!$B$41/100,'4KV3_TuneBuilder'!$B$40*'4KV3_TuneBuilder'!$B$41/100,H209*'4KV3_TuneBuilder'!$B$40/100) -> 0.5 | U213: =IF(I209*'4KV3_TuneBuilder'!$B$40/100>'4KV3_TuneBuilder'!$B$40*'4KV3_TuneBuilder'!$B$41/100,'4KV3_TuneBuilder'!$B$40*'4KV3_TuneBuilder'!$B$41/100,I209*'4KV3_TuneBuilder'!$B$40/100) -> 0.6 | V213: =IF(J209*'4KV3_TuneBuilder'!$B$40/100>'4KV3_TuneBuilder'!$B$40*'4KV3_TuneBuilder'!$B$41/100,'4KV3_TuneBuilder'!$B$40*'4KV3_TuneBuilder'!$B$41/100,J209*'4KV3_TuneBuilder'!$B$40/100) -> 0.7 | W213: =IF(K209*'4KV3_TuneBuilder'!$B$40/100>'4KV3_TuneBuilder'!$B$40*'4KV3_TuneBuilder'!$B$41/100,'4KV3_TuneBuilder'!$B$40*'4KV3_TuneBuilder'!$B$41/100,K209*'4KV3_TuneBuilder'!$B$40/100) -> 0.8
A214: 8PSI | B214: 3500RPM | C214: 0 | D214: 0 | E214: 0 | F214: 0 | G214: 0 | H214: 0 | I214: 0 | J214: 0 | K214: 0 | L214: 0 | M214: 0 | N214: 0 | O214: 0 | P214: 0 | Q214: 0 | R214: 0 | S214: 0 | T214: =IF(D209*'4KV3_TuneBuilder'!$B$40/100>'4KV3_TuneBuilder'!$B$40*'4KV3_TuneBuilder'!$B$41/100,'4KV3_TuneBuilder'!$B$40*'4KV3_TuneBuilder'!$B$41/100,D209*'4KV3_TuneBuilder'!$B$40/100) -> 0.1 | U214: =IF(E209*'4KV3_TuneBuilder'!$B$40/100>'4KV3_TuneBuilder'!$B$40*'4KV3_TuneBuilder'!$B$41/100,'4KV3_TuneBuilder'!$B$40*'4KV3_TuneBuilder'!$B$41/100,E209*'4KV3_TuneBuilder'!$B$40/100) -> 0.2 | V214: =IF(F209*'4KV3_TuneBuilder'!$B$40/100>'4KV3_TuneBuilder'!$B$40*'4KV3_TuneBuilder'!$B$41/100,'4KV3_TuneBuilder'!$B$40*'4KV3_TuneBuilder'!$B$41/100,F209*'4KV3_TuneBuilder'!$B$40/100) -> 0.3 | W214: =IF(G209*'4KV3_TuneBuilder'!$B$40/100>'4KV3_TuneBuilder'!$B$40*'4KV3_TuneBuilder'!$B$41/100,'4KV3_TuneBuilder'!$B$40*'4KV3_TuneBuilder'!$B$41/100,G209*'4KV3_TuneBuilder'!$B$40/100) -> 0.4
A215: 10PSI | B215: 4000RPM | C215: 0 | D215: 0 | E215: 0 | F215: 0 | G215: 0 | H215: 0 | I215: 0 | J215: 0 | K215: 0 | L215: 0 | M215: 0 | N215: 0 | O215: 0 | P215: 0 | Q215: 0 | R215: 0 | S215: 0 | T215: 0 | U215: 0 | V215: 0 | W215: 0
B216: MaxRPM | C216: =IF(C$209<='4KV3_TuneBuilder'!B$43,(((100-C$209)/100)*'4KV3_TuneBuilder'!$B$42)+'4KV3_TuneBuilder'!$B51,('4KV3_TuneBuilder'!$B51-('4KV3_TuneBuilder'!$B$39*C$209)/100)) -> 28 | D216: =IF(D$209<='4KV3_TuneBuilder'!J$6,(((100-D$209)/100)*'4KV3_TuneBuilder'!$B$42)+'4KV3_TuneBuilder'!$B51,('4KV3_TuneBuilder'!$B51-'4KV3_TuneBuilder'!$B$39+('4KV3_TuneBuilder'!$B$39*D$209)/100)) -> 27.9 | E216: =IF(E$209<='4KV3_TuneBuilder'!K$6,(((100-E$209)/100)*'4KV3_TuneBuilder'!$B$42)+'4KV3_TuneBuilder'!$B51,('4KV3_TuneBuilder'!$B51-'4KV3_TuneBuilder'!$B$39+('4KV3_TuneBuilder'!$B$39*E$209)/100)) -> 27.8 | F216: =IF(F$209<='4KV3_TuneBuilder'!K$7,(((100-F$209)/100)*'4KV3_TuneBuilder'!$B$42)+'4KV3_TuneBuilder'!$B51,('4KV3_TuneBuilder'!$B51-'4KV3_TuneBuilder'!$B$39+('4KV3_TuneBuilder'!$B$39*F$209)/100)) -> 27.7 | G216: =IF(G$209<='4KV3_TuneBuilder'!F$43,(((100-G$209)/100)*'4KV3_TuneBuilder'!$B$42)+'4KV3_TuneBuilder'!$B51,('4KV3_TuneBuilder'!$B51-'4KV3_TuneBuilder'!$B$39+('4KV3_TuneBuilder'!$B$39*G$209)/100)) -> 24.4 | H216: =IF(H$209<='4KV3_TuneBuilder'!G$43,(((100-H$209)/100)*'4KV3_TuneBuilder'!$B$42)+'4KV3_TuneBuilder'!$B51,('4KV3_TuneBuilder'!$B51-'4KV3_TuneBuilder'!$B$39+('4KV3_TuneBuilder'!$B$39*H$209)/100)) -> 24.5 | I216: =IF(I$209<='4KV3_TuneBuilder'!H$43,(((100-I$209)/100)*'4KV3_TuneBuilder'!$B$42)+'4KV3_TuneBuilder'!$B51,('4KV3_TuneBuilder'!$B51-'4KV3_TuneBuilder'!$B$39+('4KV3_TuneBuilder'!$B$39*I$209)/100)) -> 24.6 | J216: =IF(J$209<='4KV3_TuneBuilder'!I$43,(((100-J$209)/100)*'4KV3_TuneBuilder'!$B$42)+'4KV3_TuneBuilder'!$B51,('4KV3_TuneBuilder'!$B51-'4KV3_TuneBuilder'!$B$39+('4KV3_TuneBuilder'!$B$39*J$209)/100)) -> 24.7 | K216: =IF(K$209<='4KV3_TuneBuilder'!J$43,(((100-K$209)/100)*'4KV3_TuneBuilder'!$B$42)+'4KV3_TuneBuilder'!$B51,('4KV3_TuneBuilder'!$B51-'4KV3_TuneBuilder'!$B$39+('4KV3_TuneBuilder'!$B$39*K$209)/100)) -> 24.8 | L216: =IF(L$209<='4KV3_TuneBuilder'!K$43,(((100-L$209)/100)*'4KV3_TuneBuilder'!$B$42)+'4KV3_TuneBuilder'!$B51,('4KV3_TuneBuilder'!$B51-'4KV3_TuneBuilder'!$B$39+('4KV3_TuneBuilder'!$B$39*L$209)/100)) -> 24.9 | M216: =IF(M$209<='4KV3_TuneBuilder'!L$43,(((100-M$209)/100)*'4KV3_TuneBuilder'!$B$42)+'4KV3_TuneBuilder'!$B51,('4KV3_TuneBuilder'!$B51-'4KV3_TuneBuilder'!$B$39+('4KV3_TuneBuilder'!$B$39*M$209)/100)) -> 25 | N216: =IF(N$209<='4KV3_TuneBuilder'!M$43,(((100-N$209)/100)*'4KV3_TuneBuilder'!$B$42)+'4KV3_TuneBuilder'!$B51,('4KV3_TuneBuilder'!$B51-'4KV3_TuneBuilder'!$B$39+('4KV3_TuneBuilder'!$B$39*N$209)/100)) -> 25.1 | O216: =IF(O$209<='4KV3_TuneBuilder'!N$43,(((100-O$209)/100)*'4KV3_TuneBuilder'!$B$42)+'4KV3_TuneBuilder'!$B51,('4KV3_TuneBuilder'!$B51-'4KV3_TuneBuilder'!$B$39+('4KV3_TuneBuilder'!$B$39*O$209)/100)) -> 25.2 | P216: =IF(P$209<='4KV3_TuneBuilder'!O$43,(((100-P$209)/100)*'4KV3_TuneBuilder'!$B$42)+'4KV3_TuneBuilder'!$B51,('4KV3_TuneBuilder'!$B51-'4KV3_TuneBuilder'!$B$39+('4KV3_TuneBuilder'!$B$39*P$209)/100)) -> 25.3 | Q216: =IF(Q$209<='4KV3_TuneBuilder'!P$43,(((100-Q$209)/100)*'4KV3_TuneBuilder'!$B$42)+'4KV3_TuneBuilder'!$B51,('4KV3_TuneBuilder'!$B51-'4KV3_TuneBuilder'!$B$39+('4KV3_TuneBuilder'!$B$39*Q$209)/100)) -> 25.4 | R216: =IF(R$209<='4KV3_TuneBuilder'!Q$43,(((100-R$209)/100)*'4KV3_TuneBuilder'!$B$42)+'4KV3_TuneBuilder'!$B51,('4KV3_TuneBuilder'!$B51-'4KV3_TuneBuilder'!$B$39+('4KV3_TuneBuilder'!$B$39*R$209)/100)) -> 25.5 | S216: =IF(S$209<='4KV3_TuneBuilder'!R$43,(((100-S$209)/100)*'4KV3_TuneBuilder'!$B$42)+'4KV3_TuneBuilder'!$B51,('4KV3_TuneBuilder'!$B51-'4KV3_TuneBuilder'!$B$39+('4KV3_TuneBuilder'!$B$39*S$209)/100)) -> 25.6 | T216: =IF(T$209<='4KV3_TuneBuilder'!S$43,(((100-T$209)/100)*'4KV3_TuneBuilder'!$B$42)+'4KV3_TuneBuilder'!$B51,('4KV3_TuneBuilder'!$B51-'4KV3_TuneBuilder'!$B$39+('4KV3_TuneBuilder'!$B$39*T$209)/100)) -> 25.7 | U216: =IF(U$209<='4KV3_TuneBuilder'!T$43,(((100-U$209)/100)*'4KV3_TuneBuilder'!$B$42)+'4KV3_TuneBuilder'!$B51,('4KV3_TuneBuilder'!$B51-'4KV3_TuneBuilder'!$B$39+('4KV3_TuneBuilder'!$B$39*U$209)/100)) -> 25.8 | V216: =IF(V$209<='4KV3_TuneBuilder'!U$43,(((100-V$209)/100)*'4KV3_TuneBuilder'!$B$42)+'4KV3_TuneBuilder'!$B51,('4KV3_TuneBuilder'!$B51-'4KV3_TuneBuilder'!$B$39+('4KV3_TuneBuilder'!$B$39*V$209)/100)) -> 25.9 | W216: =IF(W$209<='4KV3_TuneBuilder'!V$43,(((100-W$209)/100)*'4KV3_TuneBuilder'!$B$42)+'4KV3_TuneBuilder'!$B51,('4KV3_TuneBuilder'!$B51-'4KV3_TuneBuilder'!$B$39+('4KV3_TuneBuilder'!$B$39*W$209)/100)) -> 26

Sheet V2_TuneBuilder (hidden)
A1: 7x012 vgt daily | F1: RPM | G1: Timing Input | H1: Respective Timing | J1: Timing Calculator
A2: Number of Power Levels | B2: 12 | F2: 1500RPM | G2: =B20 -> 15 | H2: =GraphBuild!B92 -> 16.42 | J2: Load % | K2: 29
A3: RPM Limit | B3: 3200 | F3: 2000RPM | G3: =B21 -> 18 | H3: =GraphBuild!B93 -> 19.42 | J3: PSI | K3: 0
A4: Valet Mode | F4: 2500RPM | G4: =B22 -> 21 | H4: =GraphBuild!B94 -> 22.42 | J4: TPS % | K4: 1
A5: Maximum Valet Mode Power | B5: 50 | F5: 3000RPM | G5: =B23 -> 23 | H5: =GraphBuild!B95 -> 24.42 | J5: MPH | K5: 35
A6: Pump Tap Parameters List | F6: MAX | G6: =B24 -> 26 | H6: =GraphBuild!B96 -> 27.42 | J6: RPM | K6: 2000
A7: Maximum Fuel Stretch | B7: 1800 | I7: Exact Timing at RPM | K7: =GraphBuild!F90 -> 19.426
A8: TPS Pump Maximum | B8: 100
A9: TPS Pump Minimum | B9: 10
A10: Min Pump Tap Fueling % | B10: 10
A11: Pump Tap Min PSI | B11: 5
A12: Boost Scaling | B12: 38
A13: Timing Parameters
A14: Fuel Load Timing | B14: 2
A15: Low PSI Timing Reduct | B15: 2
A16: Timing Reduct Scaling | B16: 100
A17: LightThrottle Timing Adv | B17: 2
A18: Light Throttle Limit | B18: 30
A19: Timing Equilzer
A20: 1500RPM | B20: 15
A21: 2000RPM | B21: 18
A22: 2500RPM | B22: 21
A23: 3000RPM | B23: 23
A24: MAX | B24: 26
A25: Boost Level Fueling - CAN Bus
A26: 0 PSI | B26: 101
A27: 1 PSI | B27: 103
A28: 2 PSI | B28: 105
A29: 3 PSI | B29: 107
A30: 4 PSI | B30: 110
A31: 5 PSI | B31: 113
A32: 6 PSI | B32: 116
A33: 7 PSI | B33: 119
A34: 8 PSI | B34: 122
A35: 9 PSI | B35: 125
A36: 10 PSI | B36: 128
A37: 11 PSI | B37: 131
A38: 12 PSI | B38: 134
A39: 13 PSI | B39: 137
A40: 14 PSI | B40: 140
A41: 15 PSI | B41: 143
A42: 16 PSI | B42: 146
A43: 18 PSI | B43: 149
A44: 20 PSI | B44: 150
A45: 22 PSI | B45: 150
A46: 24 PSI | B46: 150
A47: 26 PSI | B47: 150
A48: 28 PSI | B48: 150
A49: 30+ PSI | B49: 150

Sheet V3_TuneBuilder (hidden)
A1: Daily | F1: RPM | G1: Timing Input | H1: Timing Given Inputs | J1: Timing Calculator
A2: Number of Power Levels | B2: 12 | F2: 1500RPM | G2: =B45 -> 15 | H2: =GraphBuild!B106 -> 13.58 | J2: Load % | K2: 29
A3: RPM Limit | B3: 3200 | F3: 2000RPM | G3: =B46 -> 18 | H3: =GraphBuild!B107 -> 16.58 | J3: PSI | K3: 0
A4: Valet Mode | F4: 2500RPM | G4: =B47 -> 21 | H4: =GraphBuild!B108 -> 19.58 | J4: TPS % | K4: 1
A5: Maximum Valet Mode Power | B5: 50 | F5: 3000RPM | G5: =B48 -> 23 | H5: =GraphBuild!B109 -> 21.58 | J5: MPH | K5: 35
A6: Pump Tap Parameters List | F6: MAX | G6: =B49 -> 26 | H6: =GraphBuild!B110 -> 24.58 | J6: RPM | K6: 2000
A7: Maximum Fuel Stretch | B7: 1800 | J7: Exact Timing At RPM | K7: =GraphBuild!F104 -> 16.586
A8: TPS Pump Maximum | B8: 100
A9: TPS Pump Minimum | B9: 10
A10: Pump Tap Min PSI | B10: 5
A11: Boost Scaling | B11: 38
A12: Wiretap PSI Equlizer
A13: 1 PSI | B13: 4
A14: 2 PSI | B14: 8
A15: 3 PSI | B15: 12
A16: 4 PSI | B16: 16
A17: 5 PSI | B17: 20
A18: 6 PSI | B18: 24
A19: 7 PSI | B19: 28
A20: 8 PSI | B20: 32
A21: 9 PSI | B21: 36
A22: 10 PSI | B22: 40
A23: 12 PSI | B23: 44
A24: 14 PSI | B24: 48
A25: 16 PSI | B25: 52
A26: 18 PSI | B26: 56
A27: 20 PSI | B27: 60
A28: 22 PSI | B28: 64
A29: 24 PSI | B29: 68
A30: 26 PSI | B30: 72
A31: 28 PSI | B31: 76
A32: 30 PSI | B32: 80
A33: 32 PSI | B33: 84
A34: 34 PSI | B34: 88
A35: 36 PSI | B35: 92
A36: 38 PSI | B36: 96
A37: 40 PSI | B37: 100
A38: Timing Parameters
A39: Fuel Load Timing | B39: 2
A40: Low PSI Timing Reduct | B40: 2
A41: Timing Reduct Scaling | B41: 100
A42: LightThrottle Timing Adv | B42: 2
A43: Light Throttle Limit | B43: 5
A44: Timing Equilzer
A45: 1500RPM | B45: 15
A46: 2000RPM | B46: 18
A47: 2500RPM | B47: 21
A48: 3000RPM | B48: 23
A49: MAX | B49: 26
A50: Boost Level Fueling - CAN Bus
A51: 0 PSI | B51: 101
A52: 1 PSI | B52: 103
A53: 2 PSI | B53: 105
A54: 3 PSI | B54: 107
